Workbook

Sheet Overhaul - Simple
H1: =_xlfn.SEQUENCE(,360) -> 1 | I1: 2 | J1: 3 | K1: 4 | L1: 5 | M1: 6 | N1: 7 | O1: 8 | P1: 9 | Q1: 10 | R1: 11 | S1: 12 | T1: 13 | U1: 14 | V1: 15 | W1: 16 | X1: 17 | Y1: 18 | Z1: 19 | AA1: 20 | AB1: 21 | AC1: 22 | AD1: 23 | AE1: 24 | AF1: 25 | AG1: 26 | AH1: 27 | AI1: 28 | AJ1: 29 | AK1: 30 | AL1: 31 | AM1: 32 | AN1: 33 | AO1: 34 | AP1: 35 | AQ1: 36 | AR1: 37 | AS1: 38 | AT1: 39 | AU1: 40 | AV1: 41 | AW1: 42 | AX1: 43 | AY1: 44 | AZ1: 45 | BA1: 46 | BB1: 47 | BC1: 48 | BD1: 49 | BE1: 50 | BF1: 51 | BG1: 52 | BH1: 53 | BI1: 54 | BJ1: 55 | BK1: 56 | BL1: 57 | BM1: 58 | BN1: 59 | BO1: 60 | BP1: 61 | BQ1: 62 | BR1: 63 | BS1: 64 | BT1: 65 | BU1: 66 | BV1: 67 | BW1: 68 | BX1: 69 | BY1: 70 | BZ1: 71 | CA1: 72 | CB1: 73 | CC1: 74 | CD1: 75 | CE1: 76 | CF1: 77 | CG1: 78 | CH1: 79 | CI1: 80 | CJ1: 81 | CK1: 82 | CL1: 83 | CM1: 84 | CN1: 85 | CO1: 86 | CP1: 87 | CQ1: 88 | CR1: 89 | CS1: 90 | CT1: 91 | CU1: 92 | CV1: 93 | CW1: 94 | CX1: 95 | CY1: 96 | CZ1: 97 | DA1: 98 | DB1: 99 | DC1: 100 | DD1: 101 | DE1: 102 | DF1: 103 | DG1: 104 | DH1: 105 | DI1: 106 | DJ1: 107 | DK1: 108 | DL1: 109 | DM1: 110 | DN1: 111 | DO1: 112 | DP1: 113 | DQ1: 114 | DR1: 115 | DS1: 116 | DT1: 117 | DU1: 118 | DV1: 119 | DW1: 120 | DX1: 121 | DY1: 122 | DZ1: 123 | EA1: 124 | EB1: 125 | EC1: 126 | ED1: 127 | EE1: 128 | EF1: 129 | EG1: 130 | EH1: 131 | EI1: 132 | EJ1: 133 | EK1: 134 | EL1: 135 | EM1: 136 | EN1: 137 | EO1: 138 | EP1: 139 | EQ1: 140 | ER1: 141 | ES1: 142 | ET1: 143 | EU1: 144 | EV1: 145 | EW1: 146 | EX1: 147 | EY1: 148 | EZ1: 149 | FA1: 150 | FB1: 151 | FC1: 152 | FD1: 153 | FE1: 154 | FF1: 155 | FG1: 156 | FH1: 157 | FI1: 158 | FJ1: 159 | FK1: 160 | FL1: 161 | FM1: 162 | FN1: 163 | FO1: 164 | FP1: 165 | FQ1: 166 | FR1: 167 | FS1: 168 | FT1: 169 | FU1: 170 | FV1: 171 | FW1: 172 | FX1: 173 | FY1: 174 | FZ1: 175 | GA1: 176 | GB1: 177 | GC1: 178 | GD1: 179 | GE1: 180 | GF1: 181 | GG1: 182 | GH1: 183 | GI1: 184 | GJ1: 185 | GK1: 186 | GL1: 187 | GM1: 188 | GN1: 189 | GO1: 190 | GP1: 191 | GQ1: 192 | GR1: 193 | GS1: 194 | GT1: 195 | GU1: 196 | GV1: 197 | GW1: 198 | GX1: 199 | GY1: 200 | GZ1: 201 | HA1: 202 | HB1: 203 | HC1: 204 | HD1: 205 | HE1: 206 | HF1: 207 | HG1: 208 | HH1: 209 | HI1: 210 | HJ1: 211 | HK1: 212 | HL1: 213 | HM1: 214 | HN1: 215 | HO1: 216 | HP1: 217 | HQ1: 218 | HR1: 219 | HS1: 220 | HT1: 221 | HU1: 222 | HV1: 223 | HW1: 224 | HX1: 225 | HY1: 226 | HZ1: 227 | IA1: 228 | IB1: 229 | IC1: 230 | ID1: 231 | IE1: 232 | IF1: 233 | IG1: 234 | IH1: 235 | II1: 236 | IJ1: 237 | IK1: 238 | IL1: 239 | IM1: 240 | IN1: 241 | IO1: 242 | IP1: 243 | IQ1: 244 | IR1: 245 | IS1: 246 | IT1: 247 | IU1: 248 | IV1: 249 | IW1: 250 | IX1: 251 | IY1: 252 | IZ1: 253 | JA1: 254 | JB1: 255 | JC1: 256 | JD1: 257 | JE1: 258 | JF1: 259 | JG1: 260 | JH1: 261 | JI1: 262 | JJ1: 263 | JK1: 264 | JL1: 265 | JM1: 266 | JN1: 267 | JO1: 268 | JP1: 269 | JQ1: 270 | JR1: 271 | JS1: 272 | JT1: 273 | JU1: 274 | JV1: 275 | JW1: 276 | JX1: 277 | JY1: 278 | JZ1: 279 | KA1: 280 | KB1: 281 | KC1: 282 | KD1: 283 | KE1: 284 | KF1: 285 | KG1: 286 | KH1: 287 | KI1: 288 | KJ1: 289 | KK1: 290 | KL1: 291 | KM1: 292 | KN1: 293 | KO1: 294 | KP1: 295 | KQ1: 296 | KR1: 297 | KS1: 298 | KT1: 299 | KU1: 300 | KV1: 301 | KW1: 302 | KX1: 303 | KY1: 304 | KZ1: 305 | LA1: 306 | LB1: 307 | LC1: 308 | LD1: 309 | LE1: 310 | LF1: 311 | LG1: 312 | LH1: 313 | LI1: 314 | LJ1: 315 | LK1: 316 | LL1: 317 | LM1: 318 | LN1: 319 | LO1: 320 | LP1: 321 | LQ1: 322 | LR1: 323 | LS1: 324 | LT1: 325 | LU1: 326 | LV1: 327 | LW1: 328 | LX1: 329 | LY1: 330 | LZ1: 331 | MA1: 332 | MB1: 333 | MC1: 334 | MD1: 335 | ME1: 336 | MF1: 337 | MG1: 338 | MH1: 339 | MI1: 340 | MJ1: 341 | MK1: 342 | ML1: 343 | MM1: 344 | MN1: 345 | MO1: 346 | MP1: 347 | MQ1: 348 | MR1: 349 | MS1: 350 | MT1: 351 | MU1: 352 | MV1: 353 | MW1: 354 | MX1: 355 | MY1: 356 | MZ1: 357 | NA1: 358 | NB1: 359 | NC1: 360
C2: Date Start | D2: FALSE | H2: =1+G3 -> 2026-01-01 | I2: =1+H3 -> 2026-02-01 | J2: 2026-03-01 | K2: 2026-04-01 | L2: 2026-05-01 | M2: 2026-06-01 | N2: 2026-07-01 | O2: 2026-08-01 | P2: 2026-09-01 | Q2: 2026-10-01 | R2: 2026-11-01 | S2: 2026-12-01 | T2: 2027-01-01 | U2: 2027-02-01 | V2: 2027-03-01 | W2: 2027-04-01 | X2: 2027-05-01 | Y2: 2027-06-01 | Z2: 2027-07-01 | AA2: 2027-08-01 | AB2: 2027-09-01 | AC2: 2027-10-01 | AD2: 2027-11-01 | AE2: 2027-12-01 | AF2: 2028-01-01 | AG2: 2028-02-01 | AH2: 2028-03-01 | AI2: 2028-04-01 | AJ2: 2028-05-01 | AK2: 2028-06-01 | AL2: 2028-07-01 | AM2: 2028-08-01 | AN2: 2028-09-01 | AO2: 2028-10-01 | AP2: 2028-11-01 | AQ2: 2028-12-01 | AR2: 2029-01-01 | AS2: 2029-02-01 | AT2: 2029-03-01 | AU2: 2029-04-01 | AV2: 2029-05-01 | AW2: 2029-06-01 | AX2: 2029-07-01 | AY2: 2029-08-01 | AZ2: 2029-09-01 | BA2: 2029-10-01 | BB2: 2029-11-01 | BC2: 2029-12-01 | BD2: 2030-01-01 | BE2: 2030-02-01 | BF2: 2030-03-01 | BG2: 2030-04-01 | BH2: 2030-05-01 | BI2: 2030-06-01 | BJ2: 2030-07-01 | BK2: 2030-08-01 | BL2: 2030-09-01 | BM2: 2030-10-01 | BN2: 2030-11-01 | BO2: 2030-12-01 | BP2: 2031-01-01 | BQ2: 2031-02-01 | BR2: 2031-03-01 | BS2: 2031-04-01 | BT2: 2031-05-01 | BU2: =1+BT3 -> 2031-06-01 | BV2: 2031-07-01 | BW2: 2031-08-01 | BX2: 2031-09-01 | BY2: 2031-10-01 | BZ2: 2031-11-01 | CA2: 2031-12-01 | CB2: 2032-01-01 | CC2: 2032-02-01 | CD2: 2032-03-01 | CE2: 2032-04-01 | CF2: 2032-05-01 | CG2: 2032-06-01 | CH2: 2032-07-01 | CI2: 2032-08-01 | CJ2: 2032-09-01 | CK2: 2032-10-01 | CL2: 2032-11-01 | CM2: 2032-12-01 | CN2: 2033-01-01 | CO2: 2033-02-01 | CP2: 2033-03-01 | CQ2: 2033-04-01 | CR2: 2033-05-01 | CS2: 2033-06-01 | CT2: 2033-07-01 | CU2: 2033-08-01 | CV2: 2033-09-01 | CW2: 2033-10-01 | CX2: 2033-11-01 | CY2: 2033-12-01 | CZ2: 2034-01-01 | DA2: 2034-02-01 | DB2: 2034-03-01 | DC2: 2034-04-01 | DD2: 2034-05-01 | DE2: 2034-06-01 | DF2: 2034-07-01 | DG2: 2034-08-01 | DH2: 2034-09-01 | DI2: 2034-10-01 | DJ2: 2034-11-01 | DK2: 2034-12-01 | DL2: 2035-01-01 | DM2: 2035-02-01 | DN2: 2035-03-01 | DO2: 2035-04-01 | DP2: 2035-05-01 | DQ2: 2035-06-01 | DR2: 2035-07-01 | DS2: 2035-08-01 | DT2: 2035-09-01 | DU2: 2035-10-01 | DV2: 2035-11-01 | DW2: 2035-12-01 | DX2: 2036-01-01 | DY2: 2036-02-01 | DZ2: 2036-03-01 | EA2: 2036-04-01 | EB2: 2036-05-01 | EC2: 2036-06-01 | ED2: 2036-07-01 | EE2: 2036-08-01 | EF2: 2036-09-01 | EG2: =1+EF3 -> 2036-10-01 | EH2: 2036-11-01 | EI2: 2036-12-01 | EJ2: 2037-01-01 | EK2: 2037-02-01 | EL2: 2037-03-01 | EM2: 2037-04-01 | EN2: 2037-05-01 | EO2: 2037-06-01 | EP2: 2037-07-01 | EQ2: 2037-08-01 | ER2: 2037-09-01 | ES2: 2037-10-01 | ET2: 2037-11-01 | EU2: 2037-12-01 | EV2: 2038-01-01 | EW2: 2038-02-01 | EX2: 2038-03-01 | EY2: 2038-04-01 | EZ2: 2038-05-01 | FA2: 2038-06-01 | FB2: 2038-07-01 | FC2: 2038-08-01 | FD2: 2038-09-01 | FE2: 2038-10-01 | FF2: 2038-11-01 | FG2: 2038-12-01 | FH2: 2039-01-01 | FI2: 2039-02-01 | FJ2: 2039-03-01 | FK2: 2039-04-01 | FL2: 2039-05-01 | FM2: 2039-06-01 | FN2: 2039-07-01 | FO2: 2039-08-01 | FP2: 2039-09-01 | FQ2: 2039-10-01 | FR2: 2039-11-01 | FS2: 2039-12-01 | FT2: 2040-01-01 | FU2: 2040-02-01 | FV2: 2040-03-01 | FW2: 2040-04-01 | FX2: 2040-05-01 | FY2: 2040-06-01 | FZ2: 2040-07-01 | GA2: 2040-08-01 | GB2: 2040-09-01 | GC2: 2040-10-01 | GD2: 2040-11-01 | GE2: 2040-12-01 | GF2: 2041-01-01 | GG2: 2041-02-01 | GH2: 2041-03-01 | GI2: 2041-04-01 | GJ2: 2041-05-01 | GK2: 2041-06-01 | GL2: 2041-07-01 | GM2: 2041-08-01 | GN2: 2041-09-01 | GO2: 2041-10-01 | GP2: 2041-11-01 | GQ2: 2041-12-01 | GR2: 2042-01-01 | GS2: =1+GR3 -> 2042-02-01 | GT2: 2042-03-01 | GU2: 2042-04-01 | GV2: 2042-05-01 | GW2: 2042-06-01 | GX2: 2042-07-01 | GY2: 2042-08-01 | GZ2: 2042-09-01 | HA2: 2042-10-01 | HB2: 2042-11-01 | HC2: 2042-12-01 | HD2: 2043-01-01 | HE2: 2043-02-01 | HF2: 2043-03-01 | HG2: 2043-04-01 | HH2: 2043-05-01 | HI2: 2043-06-01 | HJ2: 2043-07-01 | HK2: 2043-08-01 | HL2: 2043-09-01 | HM2: 2043-10-01 | HN2: 2043-11-01 | HO2: 2043-12-01 | HP2: 2044-01-01 | HQ2: 2044-02-01 | HR2: 2044-03-01 | HS2: 2044-04-01 | HT2: 2044-05-01 | HU2: 2044-06-01 | HV2: 2044-07-01 | HW2: 2044-08-01 | HX2: 2044-09-01 | HY2: 2044-10-01 | HZ2: 2044-11-01 | IA2: 2044-12-01 | IB2: 2045-01-01 | IC2: 2045-02-01 | ID2: 2045-03-01 | IE2: 2045-04-01 | IF2: 2045-05-01 | IG2: 2045-06-01 | IH2: 2045-07-01 | II2: 2045-08-01 | IJ2: 2045-09-01 | IK2: 2045-10-01 | IL2: 2045-11-01 | IM2: 2045-12-01 | IN2: 2046-01-01 | IO2: 2046-02-01 | IP2: 2046-03-01 | IQ2: 2046-04-01 | IR2: 2046-05-01 | IS2: 2046-06-01 | IT2: 2046-07-01 | IU2: 2046-08-01 | IV2: 2046-09-01 | IW2: 2046-10-01 | IX2: 2046-11-01 | IY2: 2046-12-01 | IZ2: 2047-01-01 | JA2: 2047-02-01 | JB2: 2047-03-01 | JC2: 2047-04-01 | JD2: 2047-05-01 | JE2: =1+JD3 -> 2047-06-01 | JF2: 2047-07-01 | JG2: 2047-08-01 | JH2: 2047-09-01 | JI2: 2047-10-01 | JJ2: 2047-11-01 | JK2: 2047-12-01 | JL2: 2048-01-01 | JM2: 2048-02-01 | JN2: 2048-03-01 | JO2: 2048-04-01 | JP2: 2048-05-01 | JQ2: 2048-06-01 | JR2: 2048-07-01 | JS2: 2048-08-01 | JT2: 2048-09-01 | JU2: 2048-10-01 | JV2: 2048-11-01 | JW2: 2048-12-01 | JX2: 2049-01-01 | JY2: 2049-02-01 | JZ2: 2049-03-01 | KA2: 2049-04-01 | KB2: 2049-05-01 | KC2: 2049-06-01 | KD2: 2049-07-01 | KE2: 2049-08-01 | KF2: 2049-09-01 | KG2: 2049-10-01 | KH2: 2049-11-01 | KI2: 2049-12-01 | KJ2: 2050-01-01 | KK2: 2050-02-01 | KL2: 2050-03-01 | KM2: 2050-04-01 | KN2: 2050-05-01 | KO2: 2050-06-01 | KP2: 2050-07-01 | KQ2: 2050-08-01 | KR2: 2050-09-01 | KS2: 2050-10-01 | KT2: 2050-11-01 | KU2: 2050-12-01 | KV2: 2051-01-01 | KW2: 2051-02-01 | KX2: 2051-03-01 | KY2: 2051-04-01 | KZ2: 2051-05-01 | LA2: 2051-06-01 | LB2: 2051-07-01 | LC2: 2051-08-01 | LD2: 2051-09-01 | LE2: 2051-10-01 | LF2: 2051-11-01 | LG2: 2051-12-01 | LH2: 2052-01-01 | LI2: 2052-02-01 | LJ2: 2052-03-01 | LK2: 2052-04-01 | LL2: 2052-05-01 | LM2: 2052-06-01 | LN2: 2052-07-01 | LO2: 2052-08-01 | LP2: 2052-09-01 | LQ2: =1+LP3 -> 2052-10-01 | LR2: 2052-11-01 | LS2: 2052-12-01 | LT2: 2053-01-01 | LU2: 2053-02-01 | LV2: 2053-03-01 | LW2: 2053-04-01 | LX2: 2053-05-01 | LY2: 2053-06-01 | LZ2: 2053-07-01 | MA2: 2053-08-01 | MB2: 2053-09-01 | MC2: 2053-10-01 | MD2: 2053-11-01 | ME2: 2053-12-01 | MF2: 2054-01-01 | MG2: 2054-02-01 | MH2: 2054-03-01 | MI2: 2054-04-01 | MJ2: 2054-05-01 | MK2: 2054-06-01 | ML2: 2054-07-01 | MM2: 2054-08-01 | MN2: 2054-09-01 | MO2: 2054-10-01 | MP2: 2054-11-01 | MQ2: 2054-12-01 | MR2: 2055-01-01 | MS2: 2055-02-01 | MT2: 2055-03-01 | MU2: 2055-04-01 | MV2: 2055-05-01 | MW2: 2055-06-01 | MX2: 2055-07-01 | MY2: 2055-08-01 | MZ2: 2055-09-01 | NA2: 2055-10-01 | NB2: 2055-11-01 | NC2: 2055-12-01
C3: Date End | G3: 2025-12-31 | H3: =EOMONTH(H2,0) -> 2026-01-31 | I3: =EOMONTH(I2,0) -> 2026-02-28 | J3: 2026-03-31 | K3: 2026-04-30 | L3: 2026-05-31 | M3: 2026-06-30 | N3: 2026-07-31 | O3: 2026-08-31 | P3: 2026-09-30 | Q3: 2026-10-31 | R3: 2026-11-30 | S3: 2026-12-31 | T3: 2027-01-31 | U3: 2027-02-28 | V3: 2027-03-31 | W3: 2027-04-30 | X3: 2027-05-31 | Y3: 2027-06-30 | Z3: 2027-07-31 | AA3: 2027-08-31 | AB3: 2027-09-30 | AC3: 2027-10-31 | AD3: 2027-11-30 | AE3: 2027-12-31 | AF3: 2028-01-31 | AG3: 2028-02-29 | AH3: 2028-03-31 | AI3: 2028-04-30 | AJ3: 2028-05-31 | AK3: 2028-06-30 | AL3: 2028-07-31 | AM3: 2028-08-31 | AN3: 2028-09-30 | AO3: 2028-10-31 | AP3: 2028-11-30 | AQ3: 2028-12-31 | AR3: 2029-01-31 | AS3: 2029-02-28 | AT3: 2029-03-31 | AU3: 2029-04-30 | AV3: 2029-05-31 | AW3: 2029-06-30 | AX3: 2029-07-31 | AY3: 2029-08-31 | AZ3: 2029-09-30 | BA3: 2029-10-31 | BB3: 2029-11-30 | BC3: 2029-12-31 | BD3: 2030-01-31 | BE3: 2030-02-28 | BF3: 2030-03-31 | BG3: 2030-04-30 | BH3: 2030-05-31 | BI3: 2030-06-30 | BJ3: 2030-07-31 | BK3: 2030-08-31 | BL3: 2030-09-30 | BM3: 2030-10-31 | BN3: 2030-11-30 | BO3: 2030-12-31 | BP3: 2031-01-31 | BQ3: 2031-02-28 | BR3: 2031-03-31 | BS3: 2031-04-30 | BT3: 2031-05-31 | BU3: =EOMONTH(BU2,0) -> 2031-06-30 | BV3: 2031-07-31 | BW3: 2031-08-31 | BX3: 2031-09-30 | BY3: 2031-10-31 | BZ3: 2031-11-30 | CA3: 2031-12-31 | CB3: 2032-01-31 | CC3: 2032-02-29 | CD3: 2032-03-31 | CE3: 2032-04-30 | CF3: 2032-05-31 | CG3: 2032-06-30 | CH3: 2032-07-31 | CI3: 2032-08-31 | CJ3: 2032-09-30 | CK3: 2032-10-31 | CL3: 2032-11-30 | CM3: 2032-12-31 | CN3: 2033-01-31 | CO3: 2033-02-28 | CP3: 2033-03-31 | CQ3: 2033-04-30 | CR3: 2033-05-31 | CS3: 2033-06-30 | CT3: 2033-07-31 | CU3: 2033-08-31 | CV3: 2033-09-30 | CW3: 2033-10-31 | CX3: 2033-11-30 | CY3: 2033-12-31 | CZ3: 2034-01-31 | DA3: 2034-02-28 | DB3: 2034-03-31 | DC3: 2034-04-30 | DD3: 2034-05-31 | DE3: 2034-06-30 | DF3: 2034-07-31 | DG3: 2034-08-31 | DH3: 2034-09-30 | DI3: 2034-10-31 | DJ3: 2034-11-30 | DK3: 2034-12-31 | DL3: 2035-01-31 | DM3: 2035-02-28 | DN3: 2035-03-31 | DO3: 2035-04-30 | DP3: 2035-05-31 | DQ3: 2035-06-30 | DR3: 2035-07-31 | DS3: 2035-08-31 | DT3: 2035-09-30 | DU3: 2035-10-31 | DV3: 2035-11-30 | DW3: 2035-12-31 | DX3: 2036-01-31 | DY3: 2036-02-29 | DZ3: 2036-03-31 | EA3: 2036-04-30 | EB3: 2036-05-31 | EC3: 2036-06-30 | ED3: 2036-07-31 | EE3: 2036-08-31 | EF3: 2036-09-30 | EG3: =EOMONTH(EG2,0) -> 2036-10-31 | EH3: 2036-11-30 | EI3: 2036-12-31 | EJ3: 2037-01-31 | EK3: 2037-02-28 | EL3: 2037-03-31 | EM3: 2037-04-30 | EN3: 2037-05-31 | EO3: 2037-06-30 | EP3: 2037-07-31 | EQ3: 2037-08-31 | ER3: 2037-09-30 | ES3: 2037-10-31 | ET3: 2037-11-30 | EU3: 2037-12-31 | EV3: 2038-01-31 | EW3: 2038-02-28 | EX3: 2038-03-31 | EY3: 2038-04-30 | EZ3: 2038-05-31 | FA3: 2038-06-30 | FB3: 2038-07-31 | FC3: 2038-08-31 | FD3: 2038-09-30 | FE3: 2038-10-31 | FF3: 2038-11-30 | FG3: 2038-12-31 | FH3: 2039-01-31 | FI3: 2039-02-28 | FJ3: 2039-03-31 | FK3: 2039-04-30 | FL3: 2039-05-31 | FM3: 2039-06-30 | FN3: 2039-07-31 | FO3: 2039-08-31 | FP3: 2039-09-30 | FQ3: 2039-10-31 | FR3: 2039-11-30 | FS3: 2039-12-31 | FT3: 2040-01-31 | FU3: 2040-02-29 | FV3: 2040-03-31 | FW3: 2040-04-30 | FX3: 2040-05-31 | FY3: 2040-06-30 | FZ3: 2040-07-31 | GA3: 2040-08-31 | GB3: 2040-09-30 | GC3: 2040-10-31 | GD3: 2040-11-30 | GE3: 2040-12-31 | GF3: 2041-01-31 | GG3: 2041-02-28 | GH3: 2041-03-31 | GI3: 2041-04-30 | GJ3: 2041-05-31 | GK3: 2041-06-30 | GL3: 2041-07-31 | GM3: 2041-08-31 | GN3: 2041-09-30 | GO3: 2041-10-31 | GP3: 2041-11-30 | GQ3: 2041-12-31 | GR3: 2042-01-31 | GS3: =EOMONTH(GS2,0) -> 2042-02-28 | GT3: 2042-03-31 | GU3: 2042-04-30 | GV3: 2042-05-31 | GW3: 2042-06-30 | GX3: 2042-07-31 | GY3: 2042-08-31 | GZ3: 2042-09-30 | HA3: 2042-10-31 | HB3: 2042-11-30 | HC3: 2042-12-31 | HD3: 2043-01-31 | HE3: 2043-02-28 | HF3: 2043-03-31 | HG3: 2043-04-30 | HH3: 2043-05-31 | HI3: 2043-06-30 | HJ3: 2043-07-31 | HK3: 2043-08-31 | HL3: 2043-09-30 | HM3: 2043-10-31 | HN3: 2043-11-30 | HO3: 2043-12-31 | HP3: 2044-01-31 | HQ3: 2044-02-29 | HR3: 2044-03-31 | HS3: 2044-04-30 | HT3: 2044-05-31 | HU3: 2044-06-30 | HV3: 2044-07-31 | HW3: 2044-08-31 | HX3: 2044-09-30 | HY3: 2044-10-31 | HZ3: 2044-11-30 | IA3: 2044-12-31 | IB3: 2045-01-31 | IC3: 2045-02-28 | ID3: 2045-03-31 | IE3: 2045-04-30 | IF3: 2045-05-31 | IG3: 2045-06-30 | IH3: 2045-07-31 | II3: 2045-08-31 | IJ3: 2045-09-30 | IK3: 2045-10-31 | IL3: 2045-11-30 | IM3: 2045-12-31 | IN3: 2046-01-31 | IO3: 2046-02-28 | IP3: 2046-03-31 | IQ3: 2046-04-30 | IR3: 2046-05-31 | IS3: 2046-06-30 | IT3: 2046-07-31 | IU3: 2046-08-31 | IV3: 2046-09-30 | IW3: 2046-10-31 | IX3: 2046-11-30 | IY3: 2046-12-31 | IZ3: 2047-01-31 | JA3: 2047-02-28 | JB3: 2047-03-31 | JC3: 2047-04-30 | JD3: 2047-05-31 | JE3: =EOMONTH(JE2,0) -> 2047-06-30 | JF3: 2047-07-31 | JG3: 2047-08-31 | JH3: 2047-09-30 | JI3: 2047-10-31 | JJ3: 2047-11-30 | JK3: 2047-12-31 | JL3: 2048-01-31 | JM3: 2048-02-29 | JN3: 2048-03-31 | JO3: 2048-04-30 | JP3: 2048-05-31 | JQ3: 2048-06-30 | JR3: 2048-07-31 | JS3: 2048-08-31 | JT3: 2048-09-30 | JU3: 2048-10-31 | JV3: 2048-11-30 | JW3: 2048-12-31 | JX3: 2049-01-31 | JY3: 2049-02-28 | JZ3: 2049-03-31 | KA3: 2049-04-30 | KB3: 2049-05-31 | KC3: 2049-06-30 | KD3: 2049-07-31 | KE3: 2049-08-31 | KF3: 2049-09-30 | KG3: 2049-10-31 | KH3: 2049-11-30 | KI3: 2049-12-31 | KJ3: 2050-01-31 | KK3: 2050-02-28 | KL3: 2050-03-31 | KM3: 2050-04-30 | KN3: 2050-05-31 | KO3: 2050-06-30 | KP3: 2050-07-31 | KQ3: 2050-08-31 | KR3: 2050-09-30 | KS3: 2050-10-31 | KT3: 2050-11-30 | KU3: 2050-12-31 | KV3: 2051-01-31 | KW3: 2051-02-28 | KX3: 2051-03-31 | KY3: 2051-04-30 | KZ3: 2051-05-31 | LA3: 2051-06-30 | LB3: 2051-07-31 | LC3: 2051-08-31 | LD3: 2051-09-30 | LE3: 2051-10-31 | LF3: 2051-11-30 | LG3: 2051-12-31 | LH3: 2052-01-31 | LI3: 2052-02-29 | LJ3: 2052-03-31 | LK3: 2052-04-30 | LL3: 2052-05-31 | LM3: 2052-06-30 | LN3: 2052-07-31 | LO3: 2052-08-31 | LP3: 2052-09-30 | LQ3: =EOMONTH(LQ2,0) -> 2052-10-31 | LR3: 2052-11-30 | LS3: 2052-12-31 | LT3: 2053-01-31 | LU3: 2053-02-28 | LV3: 2053-03-31 | LW3: 2053-04-30 | LX3: 2053-05-31 | LY3: 2053-06-30 | LZ3: 2053-07-31 | MA3: 2053-08-31 | MB3: 2053-09-30 | MC3: 2053-10-31 | MD3: 2053-11-30 | ME3: 2053-12-31 | MF3: 2054-01-31 | MG3: 2054-02-28 | MH3: 2054-03-31 | MI3: 2054-04-30 | MJ3: 2054-05-31 | MK3: 2054-06-30 | ML3: 2054-07-31 | MM3: 2054-08-31 | MN3: 2054-09-30 | MO3: 2054-10-31 | MP3: 2054-11-30 | MQ3: 2054-12-31 | MR3: 2055-01-31 | MS3: 2055-02-28 | MT3: 2055-03-31 | MU3: 2055-04-30 | MV3: 2055-05-31 | MW3: 2055-06-30 | MX3: 2055-07-31 | MY3: 2055-08-31 | MZ3: 2055-09-30 | NA3: 2055-10-31 | NB3: 2055-11-30 | NC3: 2055-12-31
C4: Year | H4: =YEAR(H2) -> 2026 | I4: =YEAR(I2) -> 2026 | J4: 2026 | K4: 2026 | L4: 2026 | M4: 2026 | N4: 2026 | O4: 2026 | P4: 2026 | Q4: 2026 | R4: 2026 | S4: 2026 | T4: 2027 | U4: 2027 | V4: 2027 | W4: 2027 | X4: 2027 | Y4: 2027 | Z4: 2027 | AA4: 2027 | AB4: 2027 | AC4: 2027 | AD4: 2027 | AE4: 2027 | AF4: 2028 | AG4: 2028 | AH4: 2028 | AI4: 2028 | AJ4: 2028 | AK4: 2028 | AL4: 2028 | AM4: 2028 | AN4: 2028 | AO4: 2028 | AP4: 2028 | AQ4: 2028 | AR4: 2029 | AS4: 2029 | AT4: 2029 | AU4: 2029 | AV4: 2029 | AW4: 2029 | AX4: 2029 | AY4: 2029 | AZ4: 2029 | BA4: 2029 | BB4: 2029 | BC4: 2029 | BD4: 2030 | BE4: 2030 | BF4: 2030 | BG4: 2030 | BH4: 2030 | BI4: 2030 | BJ4: 2030 | BK4: 2030 | BL4: 2030 | BM4: 2030 | BN4: 2030 | BO4: 2030 | BP4: 2031 | BQ4: 2031 | BR4: 2031 | BS4: 2031 | BT4: 2031 | BU4: =YEAR(BU2) -> 2031 | BV4: 2031 | BW4: 2031 | BX4: 2031 | BY4: 2031 | BZ4: 2031 | CA4: 2031 | CB4: 2032 | CC4: 2032 | CD4: 2032 | CE4: 2032 | CF4: 2032 | CG4: 2032 | CH4: 2032 | CI4: 2032 | CJ4: 2032 | CK4: 2032 | CL4: 2032 | CM4: 2032 | CN4: 2033 | CO4: 2033 | CP4: 2033 | CQ4: 2033 | CR4: 2033 | CS4: 2033 | CT4: 2033 | CU4: 2033 | CV4: 2033 | CW4: 2033 | CX4: 2033 | CY4: 2033 | CZ4: 2034 | DA4: 2034 | DB4: 2034 | DC4: 2034 | DD4: 2034 | DE4: 2034 | DF4: 2034 | DG4: 2034 | DH4: 2034 | DI4: 2034 | DJ4: 2034 | DK4: 2034 | DL4: 2035 | DM4: 2035 | DN4: 2035 | DO4: 2035 | DP4: 2035 | DQ4: 2035 | DR4: 2035 | DS4: 2035 | DT4: 2035 | DU4: 2035 | DV4: 2035 | DW4: 2035 | DX4: 2036 | DY4: 2036 | DZ4: 2036 | EA4: 2036 | EB4: 2036 | EC4: 2036 | ED4: 2036 | EE4: 2036 | EF4: 2036 | EG4: =YEAR(EG2) -> 2036 | EH4: 2036 | EI4: 2036 | EJ4: 2037 | EK4: 2037 | EL4: 2037 | EM4: 2037 | EN4: 2037 | EO4: 2037 | EP4: 2037 | EQ4: 2037 | ER4: 2037 | ES4: 2037 | ET4: 2037 | EU4: 2037 | EV4: 2038 | EW4: 2038 | EX4: 2038 | EY4: 2038 | EZ4: 2038 | FA4: 2038 | FB4: 2038 | FC4: 2038 | FD4: 2038 | FE4: 2038 | FF4: 2038 | FG4: 2038 | FH4: 2039 | FI4: 2039 | FJ4: 2039 | FK4: 2039 | FL4: 2039 | FM4: 2039 | FN4: 2039 | FO4: 2039 | FP4: 2039 | FQ4: 2039 | FR4: 2039 | FS4: 2039 | FT4: 2040 | FU4: 2040 | FV4: 2040 | FW4: 2040 | FX4: 2040 | FY4: 2040 | FZ4: 2040 | GA4: 2040 | GB4: 2040 | GC4: 2040 | GD4: 2040 | GE4: 2040 | GF4: 2041 | GG4: 2041 | GH4: 2041 | GI4: 2041 | GJ4: 2041 | GK4: 2041 | GL4: 2041 | GM4: 2041 | GN4: 2041 | GO4: 2041 | GP4: 2041 | GQ4: 2041 | GR4: 2042 | GS4: =YEAR(GS2) -> 2042 | GT4: 2042 | GU4: 2042 | GV4: 2042 | GW4: 2042 | GX4: 2042 | GY4: 2042 | GZ4: 2042 | HA4: 2042 | HB4: 2042 | HC4: 2042 | HD4: 2043 | HE4: 2043 | HF4: 2043 | HG4: 2043 | HH4: 2043 | HI4: 2043 | HJ4: 2043 | HK4: 2043 | HL4: 2043 | HM4: 2043 | HN4: 2043 | HO4: 2043 | HP4: 2044 | HQ4: 2044 | HR4: 2044 | HS4: 2044 | HT4: 2044 | HU4: 2044 | HV4: 2044 | HW4: 2044 | HX4: 2044 | HY4: 2044 | HZ4: 2044 | IA4: 2044 | IB4: 2045 | IC4: 2045 | ID4: 2045 | IE4: 2045 | IF4: 2045 | IG4: 2045 | IH4: 2045 | II4: 2045 | IJ4: 2045 | IK4: 2045 | IL4: 2045 | IM4: 2045 | IN4: 2046 | IO4: 2046 | IP4: 2046 | IQ4: 2046 | IR4: 2046 | IS4: 2046 | IT4: 2046 | IU4: 2046 | IV4: 2046 | IW4: 2046 | IX4: 2046 | IY4: 2046 | IZ4: 2047 | JA4: 2047 | JB4: 2047 | JC4: 2047 | JD4: 2047 | JE4: =YEAR(JE2) -> 2047 | JF4: 2047 | JG4: 2047 | JH4: 2047 | JI4: 2047 | JJ4: 2047 | JK4: 2047 | JL4: 2048 | JM4: 2048 | JN4: 2048 | JO4: 2048 | JP4: 2048 | JQ4: 2048 | JR4: 2048 | JS4: 2048 | JT4: 2048 | JU4: 2048 | JV4: 2048 | JW4: 2048 | JX4: 2049 | JY4: 2049 | JZ4: 2049 | KA4: 2049 | KB4: 2049 | KC4: 2049 | KD4: 2049 | KE4: 2049 | KF4: 2049 | KG4: 2049 | KH4: 2049 | KI4: 2049 | KJ4: 2050 | KK4: 2050 | KL4: 2050 | KM4: 2050 | KN4: 2050 | KO4: 2050 | KP4: 2050 | KQ4: 2050 | KR4: 2050 | KS4: 2050 | KT4: 2050 | KU4: 2050 | KV4: 2051 | KW4: 2051 | KX4: 2051 | KY4: 2051 | KZ4: 2051 | LA4: 2051 | LB4: 2051 | LC4: 2051 | LD4: 2051 | LE4: 2051 | LF4: 2051 | LG4: 2051 | LH4: 2052 | LI4: 2052 | LJ4: 2052 | LK4: 2052 | LL4: 2052 | LM4: 2052 | LN4: 2052 | LO4: 2052 | LP4: 2052 | LQ4: =YEAR(LQ2) -> 2052 | LR4: 2052 | LS4: 2052 | LT4: 2053 | LU4: 2053 | LV4: 2053 | LW4: 2053 | LX4: 2053 | LY4: 2053 | LZ4: 2053 | MA4: 2053 | MB4: 2053 | MC4: 2053 | MD4: 2053 | ME4: 2053 | MF4: 2054 | MG4: 2054 | MH4: 2054 | MI4: 2054 | MJ4: 2054 | MK4: 2054 | ML4: 2054 | MM4: 2054 | MN4: 2054 | MO4: 2054 | MP4: 2054 | MQ4: 2054 | MR4: 2055 | MS4: 2055 | MT4: 2055 | MU4: 2055 | MV4: 2055 | MW4: 2055 | MX4: 2055 | MY4: 2055 | MZ4: 2055 | NA4: 2055 | NB4: 2055 | NC4: 2055
B6: Maintenance Inputs
C7: Hours Until Major Maintenance | D7: Hours | E7: 20000
B9: Computed Hours of Operation
C10: Hours in Period | H10: =(H3-H2+1)*24 -> 744 | I10: 672 | J10: 744 | K10: 720 | L10: 744 | M10: 720 | N10: 744 | O10: 744 | P10: 720 | Q10: 744 | R10: 720 | S10: 744 | T10: 744 | U10: 672 | V10: 744 | W10: 720 | X10: 744 | Y10: 720 | Z10: 744 | AA10: 744 | AB10: 720 | AC10: 744 | AD10: 720 | AE10: 744 | AF10: 744 | AG10: 696 | AH10: 744 | AI10: 720 | AJ10: 744 | AK10: 720 | AL10: 744 | AM10: 744 | AN10: 720 | AO10: 744 | AP10: 720 | AQ10: 744 | AR10: 744 | AS10: 672 | AT10: 744 | AU10: 720 | AV10: 744 | AW10: 720 | AX10: 744 | AY10: 744 | AZ10: 720 | BA10: 744 | BB10: 720 | BC10: 744 | BD10: 744 | BE10: 672 | BF10: 744 | BG10: 720 | BH10: 744 | BI10: 720 | BJ10: 744 | BK10: 744 | BL10: 720 | BM10: 744 | BN10: 720 | BO10: 744 | BP10: 744 | BQ10: 672 | BR10: 744 | BS10: 720 | BT10: =(BT3-BT2+1)*24 -> 744 | BU10: 720 | BV10: 744 | BW10: 744 | BX10: 720 | BY10: 744 | BZ10: 720 | CA10: 744 | CB10: 744 | CC10: 696 | CD10: 744 | CE10: 720 | CF10: 744 | CG10: 720 | CH10: 744 | CI10: 744 | CJ10: 720 | CK10: 744 | CL10: 720 | CM10: 744 | CN10: 744 | CO10: 672 | CP10: 744 | CQ10: 720 | CR10: 744 | CS10: 720 | CT10: 744 | CU10: 744 | CV10: 720 | CW10: 744 | CX10: 720 | CY10: 744 | CZ10: 744 | DA10: 672 | DB10: 744 | DC10: 720 | DD10: 744 | DE10: 720 | DF10: 744 | DG10: 744 | DH10: 720 | DI10: 744 | DJ10: 720 | DK10: 744 | DL10: 744 | DM10: 672 | DN10: 744 | DO10: 720 | DP10: 744 | DQ10: 720 | DR10: 744 | DS10: 744 | DT10: 720 | DU10: 744 | DV10: 720 | DW10: 744 | DX10: 744 | DY10: 696 | DZ10: 744 | EA10: 720 | EB10: 744 | EC10: 720 | ED10: 744 | EE10: 744 | EF10: =(EF3-EF2+1)*24 -> 720 | EG10: 744 | EH10: 720 | EI10: 744 | EJ10: 744 | EK10: 672 | EL10: 744 | EM10: 720 | EN10: 744 | EO10: 720 | EP10: 744 | EQ10: 744 | ER10: 720 | ES10: 744 | ET10: 720 | EU10: 744 | EV10: 744 | EW10: 672 | EX10: 744 | EY10: 720 | EZ10: 744 | FA10: 720 | FB10: 744 | FC10: 744 | FD10: 720 | FE10: 744 | FF10: 720 | FG10: 744 | FH10: 744 | FI10: 672 | FJ10: 744 | FK10: 720 | FL10: 744 | FM10: 720 | FN10: 744 | FO10: 744 | FP10: 720 | FQ10: 744 | FR10: 720 | FS10: 744 | FT10: 744 | FU10: 696 | FV10: 744 | FW10: 720 | FX10: 744 | FY10: 720 | FZ10: 744 | GA10: 744 | GB10: 720 | GC10: 744 | GD10: 720 | GE10: 744 | GF10: 744 | GG10: 672 | GH10: 744 | GI10: 720 | GJ10: 744 | GK10: 720 | GL10: 744 | GM10: 744 | GN10: 720 | GO10: 744 | GP10: 720 | GQ10: 744 | GR10: =(GR3-GR2+1)*24 -> 744 | GS10: 672 | GT10: 744 | GU10: 720 | GV10: 744 | GW10: 720 | GX10: 744 | GY10: 744 | GZ10: 720 | HA10: 744 | HB10: 720 | HC10: 744 | HD10: 744 | HE10: 672 | HF10: 744 | HG10: 720 | HH10: 744 | HI10: 720 | HJ10: 744 | HK10: 744 | HL10: 720 | HM10: 744 | HN10: 720 | HO10: 744 | HP10: 744 | HQ10: 696 | HR10: 744 | HS10: 720 | HT10: 744 | HU10: 720 | HV10: 744 | HW10: 744 | HX10: 720 | HY10: 744 | HZ10: 720 | IA10: 744 | IB10: 744 | IC10: 672 | ID10: 744 | IE10: 720 | IF10: 744 | IG10: 720 | IH10: 744 | II10: 744 | IJ10: 720 | IK10: 744 | IL10: 720 | IM10: 744 | IN10: 744 | IO10: 672 | IP10: 744 | IQ10: 720 | IR10: 744 | IS10: 720 | IT10: 744 | IU10: 744 | IV10: 720 | IW10: 744 | IX10: 720 | IY10: 744 | IZ10: 744 | JA10: 672 | JB10: 744 | JC10: 720 | JD10: =(JD3-JD2+1)*24 -> 744 | JE10: 720 | JF10: 744 | JG10: 744 | JH10: 720 | JI10: 744 | JJ10: 720 | JK10: 744 | JL10: 744 | JM10: 696 | JN10: 744 | JO10: 720 | JP10: 744 | JQ10: 720 | JR10: 744 | JS10: 744 | JT10: 720 | JU10: 744 | JV10: 720 | JW10: 744 | JX10: 744 | JY10: 672 | JZ10: 744 | KA10: 720 | KB10: 744 | KC10: 720 | KD10: 744 | KE10: 744 | KF10: 720 | KG10: 744 | KH10: 720 | KI10: 744 | KJ10: 744 | KK10: 672 | KL10: 744 | KM10: 720 | KN10: 744 | KO10: 720 | KP10: 744 | KQ10: 744 | KR10: 720 | KS10: 744 | KT10: 720 | KU10: 744 | KV10: 744 | KW10: 672 | KX10: 744 | KY10: 720 | KZ10: 744 | LA10: 720 | LB10: 744 | LC10: 744 | LD10: 720 | LE10: 744 | LF10: 720 | LG10: 744 | LH10: 744 | LI10: 696 | LJ10: 744 | LK10: 720 | LL10: 744 | LM10: 720 | LN10: 744 | LO10: 744 | LP10: =(LP3-LP2+1)*24 -> 720 | LQ10: 744 | LR10: 720 | LS10: 744 | LT10: 744 | LU10: 672 | LV10: 744 | LW10: 720 | LX10: 744 | LY10: 720 | LZ10: 744 | MA10: 744 | MB10: 720 | MC10: 744 | MD10: 720 | ME10: 744 | MF10: 744 | MG10: 672 | MH10: 744 | MI10: 720 | MJ10: 744 | MK10: 720 | ML10: 744 | MM10: 744 | MN10: 720 | MO10: 744 | MP10: 720 | MQ10: 744 | MR10: 744 | MS10: 672 | MT10: 744 | MU10: 720 | MV10: 744 | MW10: 720 | MX10: 744 | MY10: 744 | MZ10: 720 | NA10: 744 | NB10: 720 | NC10: 744
C11: Capacity | D11: MW | E11: 500 | H11: =$E$11 -> 500 | I11: =$E$11 -> 500 | J11: 500 | K11: 500 | L11: 500 | M11: 500 | N11: 500 | O11: 500 | P11: 500 | Q11: 500 | R11: 500 | S11: 500 | T11: 500 | U11: 500 | V11: 500 | W11: 500 | X11: 500 | Y11: 500 | Z11: 500 | AA11: 500 | AB11: 500 | AC11: 500 | AD11: 500 | AE11: 500 | AF11: 500 | AG11: 500 | AH11: 500 | AI11: 500 | AJ11: 500 | AK11: 500 | AL11: 500 | AM11: 500 | AN11: 500 | AO11: 500 | AP11: 500 | AQ11: 500 | AR11: 500 | AS11: 500 | AT11: 500 | AU11: 500 | AV11: 500 | AW11: 500 | AX11: 500 | AY11: 500 | AZ11: 500 | BA11: 500 | BB11: 500 | BC11: 500 | BD11: 500 | BE11: 500 | BF11: 500 | BG11: 500 | BH11: 500 | BI11: 500 | BJ11: 500 | BK11: 500 | BL11: 500 | BM11: 500 | BN11: 500 | BO11: 500 | BP11: 500 | BQ11: 500 | BR11: 500 | BS11: 500 | BT11: 500 | BU11: =$E$11 -> 500 | BV11: 500 | BW11: 500 | BX11: 500 | BY11: 500 | BZ11: 500 | CA11: 500 | CB11: 500 | CC11: 500 | CD11: 500 | CE11: 500 | CF11: 500 | CG11: 500 | CH11: 500 | CI11: 500 | CJ11: 500 | CK11: 500 | CL11: 500 | CM11: 500 | CN11: 500 | CO11: 500 | CP11: 500 | CQ11: 500 | CR11: 500 | CS11: 500 | CT11: 500 | CU11: 500 | CV11: 500 | CW11: 500 | CX11: 500 | CY11: 500 | CZ11: 500 | DA11: 500 | DB11: 500 | DC11: 500 | DD11: 500 | DE11: 500 | DF11: 500 | DG11: 500 | DH11: 500 | DI11: 500 | DJ11: 500 | DK11: 500 | DL11: 500 | DM11: 500 | DN11: 500 | DO11: 500 | DP11: 500 | DQ11: 500 | DR11: 500 | DS11: 500 | DT11: 500 | DU11: 500 | DV11: 500 | DW11: 500 | DX11: 500 | DY11: 500 | DZ11: 500 | EA11: 500 | EB11: 500 | EC11: 500 | ED11: 500 | EE11: 500 | EF11: 500 | EG11: =$E$11 -> 500 | EH11: 500 | EI11: 500 | EJ11: 500 | EK11: 500 | EL11: 500 | EM11: 500 | EN11: 500 | EO11: 500 | EP11: 500 | EQ11: 500 | ER11: 500 | ES11: 500 | ET11: 500 | EU11: 500 | EV11: 500 | EW11: 500 | EX11: 500 | EY11: 500 | EZ11: 500 | FA11: 500 | FB11: 500 | FC11: 500 | FD11: 500 | FE11: 500 | FF11: 500 | FG11: 500 | FH11: 500 | FI11: 500 | FJ11: 500 | FK11: 500 | FL11: 500 | FM11: 500 | FN11: 500 | FO11: 500 | FP11: 500 | FQ11: 500 | FR11: 500 | FS11: 500 | FT11: 500 | FU11: 500 | FV11: 500 | FW11: 500 | FX11: 500 | FY11: 500 | FZ11: 500 | GA11: 500 | GB11: 500 | GC11: 500 | GD11: 500 | GE11: 500 | GF11: 500 | GG11: 500 | GH11: 500 | GI11: 500 | GJ11: 500 | GK11: 500 | GL11: 500 | GM11: 500 | GN11: 500 | GO11: 500 | GP11: 500 | GQ11: 500 | GR11: 500 | GS11: =$E$11 -> 500 | GT11: 500 | GU11: 500 | GV11: 500 | GW11: 500 | GX11: 500 | GY11: 500 | GZ11: 500 | HA11: 500 | HB11: 500 | HC11: 500 | HD11: 500 | HE11: 500 | HF11: 500 | HG11: 500 | HH11: 500 | HI11: 500 | HJ11: 500 | HK11: 500 | HL11: 500 | HM11: 500 | HN11: 500 | HO11: 500 | HP11: 500 | HQ11: 500 | HR11: 500 | HS11: 500 | HT11: 500 | HU11: 500 | HV11: 500 | HW11: 500 | HX11: 500 | HY11: 500 | HZ11: 500 | IA11: 500 | IB11: 500 | IC11: 500 | ID11: 500 | IE11: 500 | IF11: 500 | IG11: 500 | IH11: 500 | II11: 500 | IJ11: 500 | IK11: 500 | IL11: 500 | IM11: 500 | IN11: 500 | IO11: 500 | IP11: 500 | IQ11: 500 | IR11: 500 | IS11: 500 | IT11: 500 | IU11: 500 | IV11: 500 | IW11: 500 | IX11: 500 | IY11: 500 | IZ11: 500 | JA11: 500 | JB11: 500 | JC11: 500 | JD11: 500 | JE11: =$E$11 -> 500 | JF11: 500 | JG11: 500 | JH11: 500 | JI11: 500 | JJ11: 500 | JK11: 500 | JL11: 500 | JM11: 500 | JN11: 500 | JO11: 500 | JP11: 500 | JQ11: 500 | JR11: 500 | JS11: 500 | JT11: 500 | JU11: 500 | JV11: 500 | JW11: 500 | JX11: 500 | JY11: 500 | JZ11: 500 | KA11: 500 | KB11: 500 | KC11: 500 | KD11: 500 | KE11: 500 | KF11: 500 | KG11: 500 | KH11: 500 | KI11: 500 | KJ11: 500 | KK11: 500 | KL11: 500 | KM11: 500 | KN11: 500 | KO11: 500 | KP11: 500 | KQ11: 500 | KR11: 500 | KS11: 500 | KT11: 500 | KU11: 500 | KV11: 500 | KW11: 500 | KX11: 500 | KY11: 500 | KZ11: 500 | LA11: 500 | LB11: 500 | LC11: 500 | LD11: 500 | LE11: 500 | LF11: 500 | LG11: 500 | LH11: 500 | LI11: 500 | LJ11: 500 | LK11: 500 | LL11: 500 | LM11: 500 | LN11: 500 | LO11: 500 | LP11: 500 | LQ11: =$E$11 -> 500 | LR11: 500 | LS11: 500 | LT11: 500 | LU11: 500 | LV11: 500 | LW11: 500 | LX11: 500 | LY11: 500 | LZ11: 500 | MA11: 500 | MB11: 500 | MC11: 500 | MD11: 500 | ME11: 500 | MF11: 500 | MG11: 500 | MH11: 500 | MI11: 500 | MJ11: 500 | MK11: 500 | ML11: 500 | MM11: 500 | MN11: 500 | MO11: 500 | MP11: 500 | MQ11: 500 | MR11: 500 | MS11: 500 | MT11: 500 | MU11: 500 | MV11: 500 | MW11: 500 | MX11: 500 | MY11: 500 | MZ11: 500 | NA11: 500 | NB11: 500 | NC11: 500
C12: Capacity Factor | D12: % | E12: =G12/100 -> 0.8 | G12: 80 | H12: =$E$12 -> 0.8 | I12: =$E$12 -> 0.8 | J12: 0.8 | K12: 0.8 | L12: 0.8 | M12: 0.8 | N12: 0.8 | O12: 0.8 | P12: 0.8 | Q12: 0.8 | R12: 0.8 | S12: 0.8 | T12: 0.8 | U12: 0.8 | V12: 0.8 | W12: 0.8 | X12: 0.8 | Y12: 0.8 | Z12: 0.8 | AA12: 0.8 | AB12: 0.8 | AC12: 0.8 | AD12: 0.8 | AE12: 0.8 | AF12: 0.8 | AG12: 0.8 | AH12: 0.8 | AI12: 0.8 | AJ12: 0.8 | AK12: 0.8 | AL12: 0.8 | AM12: 0.8 | AN12: 0.8 | AO12: 0.8 | AP12: 0.8 | AQ12: 0.8 | AR12: 0.8 | AS12: 0.8 | AT12: 0.8 | AU12: 0.8 | AV12: 0.8 | AW12: 0.8 | AX12: 0.8 | AY12: 0.8 | AZ12: 0.8 | BA12: 0.8 | BB12: 0.8 | BC12: 0.8 | BD12: 0.8 | BE12: 0.8 | BF12: 0.8 | BG12: 0.8 | BH12: 0.8 | BI12: 0.8 | BJ12: 0.8 | BK12: 0.8 | BL12: 0.8 | BM12: 0.8 | BN12: 0.8 | BO12: 0.8 | BP12: 0.8 | BQ12: 0.8 | BR12: 0.8 | BS12: 0.8 | BT12: 0.8 | BU12: =$E$12 -> 0.8 | BV12: 0.8 | BW12: 0.8 | BX12: 0.8 | BY12: 0.8 | BZ12: 0.8 | CA12: 0.8 | CB12: 0.8 | CC12: 0.8 | CD12: 0.8 | CE12: 0.8 | CF12: 0.8 | CG12: 0.8 | CH12: 0.8 | CI12: 0.8 | CJ12: 0.8 | CK12: 0.8 | CL12: 0.8 | CM12: 0.8 | CN12: 0.8 | CO12: 0.8 | CP12: 0.8 | CQ12: 0.8 | CR12: 0.8 | CS12: 0.8 | CT12: 0.8 | CU12: 0.8 | CV12: 0.8 | CW12: 0.8 | CX12: 0.8 | CY12: 0.8 | CZ12: 0.8 | DA12: 0.8 | DB12: 0.8 | DC12: 0.8 | DD12: 0.8 | DE12: 0.8 | DF12: 0.8 | DG12: 0.8 | DH12: 0.8 | DI12: 0.8 | DJ12: 0.8 | DK12: 0.8 | DL12: 0.8 | DM12: 0.8 | DN12: 0.8 | DO12: 0.8 | DP12: 0.8 | DQ12: 0.8 | DR12: 0.8 | DS12: 0.8 | DT12: 0.8 | DU12: 0.8 | DV12: 0.8 | DW12: 0.8 | DX12: 0.8 | DY12: 0.8 | DZ12: 0.8 | EA12: 0.8 | EB12: 0.8 | EC12: 0.8 | ED12: 0.8 | EE12: 0.8 | EF12: 0.8 | EG12: =$E$12 -> 0.8 | EH12: 0.8 | EI12: 0.8 | EJ12: 0.8 | EK12: 0.8 | EL12: 0.8 | EM12: 0.8 | EN12: 0.8 | EO12: 0.8 | EP12: 0.8 | EQ12: 0.8 | ER12: 0.8 | ES12: 0.8 | ET12: 0.8 | EU12: 0.8 | EV12: 0.8 | EW12: 0.8 | EX12: 0.8 | EY12: 0.8 | EZ12: 0.8 | FA12: 0.8 | FB12: 0.8 | FC12: 0.8 | FD12: 0.8 | FE12: 0.8 | FF12: 0.8 | FG12: 0.8 | FH12: 0.8 | FI12: 0.8 | FJ12: 0.8 | FK12: 0.8 | FL12: 0.8 | FM12: 0.8 | FN12: 0.8 | FO12: 0.8 | FP12: 0.8 | FQ12: 0.8 | FR12: 0.8 | FS12: 0.8 | FT12: 0.8 | FU12: 0.8 | FV12: 0.8 | FW12: 0.8 | FX12: 0.8 | FY12: 0.8 | FZ12: 0.8 | GA12: 0.8 | GB12: 0.8 | GC12: 0.8 | GD12: 0.8 | GE12: 0.8 | GF12: 0.8 | GG12: 0.8 | GH12: 0.8 | GI12: 0.8 | GJ12: 0.8 | GK12: 0.8 | GL12: 0.8 | GM12: 0.8 | GN12: 0.8 | GO12: 0.8 | GP12: 0.8 | GQ12: 0.8 | GR12: 0.8 | GS12: =$E$12 -> 0.8 | GT12: 0.8 | GU12: 0.8 | GV12: 0.8 | GW12: 0.8 | GX12: 0.8 | GY12: 0.8 | GZ12: 0.8 | HA12: 0.8 | HB12: 0.8 | HC12: 0.8 | HD12: 0.8 | HE12: 0.8 | HF12: 0.8 | HG12: 0.8 | HH12: 0.8 | HI12: 0.8 | HJ12: 0.8 | HK12: 0.8 | HL12: 0.8 | HM12: 0.8 | HN12: 0.8 | HO12: 0.8 | HP12: 0.8 | HQ12: 0.8 | HR12: 0.8 | HS12: 0.8 | HT12: 0.8 | HU12: 0.8 | HV12: 0.8 | HW12: 0.8 | HX12: 0.8 | HY12: 0.8 | HZ12: 0.8 | IA12: 0.8 | IB12: 0.8 | IC12: 0.8 | ID12: 0.8 | IE12: 0.8 | IF12: 0.8 | IG12: 0.8 | IH12: 0.8 | II12: 0.8 | IJ12: 0.8 | IK12: 0.8 | IL12: 0.8 | IM12: 0.8 | IN12: 0.8 | IO12: 0.8 | IP12: 0.8 | IQ12: 0.8 | IR12: 0.8 | IS12: 0.8 | IT12: 0.8 | IU12: 0.8 | IV12: 0.8 | IW12: 0.8 | IX12: 0.8 | IY12: 0.8 | IZ12: 0.8 | JA12: 0.8 | JB12: 0.8 | JC12: 0.8 | JD12: 0.8 | JE12: =$E$12 -> 0.8 | JF12: 0.8 | JG12: 0.8 | JH12: 0.8 | JI12: 0.8 | JJ12: 0.8 | JK12: 0.8 | JL12: 0.8 | JM12: 0.8 | JN12: 0.8 | JO12: 0.8 | JP12: 0.8 | JQ12: 0.8 | JR12: 0.8 | JS12: 0.8 | JT12: 0.8 | JU12: 0.8 | JV12: 0.8 | JW12: 0.8 | JX12: 0.8 | JY12: 0.8 | JZ12: 0.8 | KA12: 0.8 | KB12: 0.8 | KC12: 0.8 | KD12: 0.8 | KE12: 0.8 | KF12: 0.8 | KG12: 0.8 | KH12: 0.8 | KI12: 0.8 | KJ12: 0.8 | KK12: 0.8 | KL12: 0.8 | KM12: 0.8 | KN12: 0.8 | KO12: 0.8 | KP12: 0.8 | KQ12: 0.8 | KR12: 0.8 | KS12: 0.8 | KT12: 0.8 | KU12: 0.8 | KV12: 0.8 | KW12: 0.8 | KX12: 0.8 | KY12: 0.8 | KZ12: 0.8 | LA12: 0.8 | LB12: 0.8 | LC12: 0.8 | LD12: 0.8 | LE12: 0.8 | LF12: 0.8 | LG12: 0.8 | LH12: 0.8 | LI12: 0.8 | LJ12: 0.8 | LK12: 0.8 | LL12: 0.8 | LM12: 0.8 | LN12: 0.8 | LO12: 0.8 | LP12: 0.8 | LQ12: =$E$12 -> 0.8 | LR12: 0.8 | LS12: 0.8 | LT12: 0.8 | LU12: 0.8 | LV12: 0.8 | LW12: 0.8 | LX12: 0.8 | LY12: 0.8 | LZ12: 0.8 | MA12: 0.8 | MB12: 0.8 | MC12: 0.8 | MD12: 0.8 | ME12: 0.8 | MF12: 0.8 | MG12: 0.8 | MH12: 0.8 | MI12: 0.8 | MJ12: 0.8 | MK12: 0.8 | ML12: 0.8 | MM12: 0.8 | MN12: 0.8 | MO12: 0.8 | MP12: 0.8 | MQ12: 0.8 | MR12: 0.8 | MS12: 0.8 | MT12: 0.8 | MU12: 0.8 | MV12: 0.8 | MW12: 0.8 | MX12: 0.8 | MY12: 0.8 | MZ12: 0.8 | NA12: 0.8 | NB12: 0.8 | NC12: 0.8
C13: Hours Run (from capacity factor) | D13: Hours | H13: =H12*H10 -> 595.2 | I13: =I12*I10 -> 537.6 | J13: 595.2 | K13: 576 | L13: 595.2 | M13: 576 | N13: 595.2 | O13: 595.2 | P13: 576 | Q13: 595.2 | R13: 576 | S13: 595.2 | T13: 595.2 | U13: 537.6 | V13: 595.2 | W13: 576 | X13: 595.2 | Y13: 576 | Z13: 595.2 | AA13: 595.2 | AB13: 576 | AC13: 595.2 | AD13: 576 | AE13: 595.2 | AF13: 595.2 | AG13: 556.8 | AH13: 595.2 | AI13: 576 | AJ13: 595.2 | AK13: 576 | AL13: 595.2 | AM13: 595.2 | AN13: 576 | AO13: 595.2 | AP13: 576 | AQ13: 595.2 | AR13: 595.2 | AS13: 537.6 | AT13: 595.2 | AU13: 576 | AV13: 595.2 | AW13: 576 | AX13: 595.2 | AY13: 595.2 | AZ13: 576 | BA13: 595.2 | BB13: 576 | BC13: 595.2 | BD13: 595.2 | BE13: 537.6 | BF13: 595.2 | BG13: 576 | BH13: 595.2 | BI13: 576 | BJ13: 595.2 | BK13: 595.2 | BL13: 576 | BM13: 595.2 | BN13: 576 | BO13: 595.2 | BP13: 595.2 | BQ13: 537.6 | BR13: 595.2 | BS13: 576 | BT13: 595.2 | BU13: =BU12*BU10 -> 576 | BV13: 595.2 | BW13: 595.2 | BX13: 576 | BY13: 595.2 | BZ13: 576 | CA13: 595.2 | CB13: 595.2 | CC13: 556.8 | CD13: 595.2 | CE13: 576 | CF13: 595.2 | CG13: 576 | CH13: 595.2 | CI13: 595.2 | CJ13: 576 | CK13: 595.2 | CL13: 576 | CM13: 595.2 | CN13: 595.2 | CO13: 537.6 | CP13: 595.2 | CQ13: 576 | CR13: 595.2 | CS13: 576 | CT13: 595.2 | CU13: 595.2 | CV13: 576 | CW13: 595.2 | CX13: 576 | CY13: 595.2 | CZ13: 595.2 | DA13: 537.6 | DB13: 595.2 | DC13: 576 | DD13: 595.2 | DE13: 576 | DF13: 595.2 | DG13: 595.2 | DH13: 576 | DI13: 595.2 | DJ13: 576 | DK13: 595.2 | DL13: 595.2 | DM13: 537.6 | DN13: 595.2 | DO13: 576 | DP13: 595.2 | DQ13: 576 | DR13: 595.2 | DS13: 595.2 | DT13: 576 | DU13: 595.2 | DV13: 576 | DW13: 595.2 | DX13: 595.2 | DY13: 556.8 | DZ13: 595.2 | EA13: 576 | EB13: 595.2 | EC13: 576 | ED13: 595.2 | EE13: 595.2 | EF13: 576 | EG13: =EG12*EG10 -> 595.2 | EH13: 576 | EI13: 595.2 | EJ13: 595.2 | EK13: 537.6 | EL13: 595.2 | EM13: 576 | EN13: 595.2 | EO13: 576 | EP13: 595.2 | EQ13: 595.2 | ER13: 576 | ES13: 595.2 | ET13: 576 | EU13: 595.2 | EV13: 595.2 | EW13: 537.6 | EX13: 595.2 | EY13: 576 | EZ13: 595.2 | FA13: 576 | FB13: 595.2 | FC13: 595.2 | FD13: 576 | FE13: 595.2 | FF13: 576 | FG13: 595.2 | FH13: 595.2 | FI13: 537.6 | FJ13: 595.2 | FK13: 576 | FL13: 595.2 | FM13: 576 | FN13: 595.2 | FO13: 595.2 | FP13: 576 | FQ13: 595.2 | FR13: 576 | FS13: 595.2 | FT13: 595.2 | FU13: 556.8 | FV13: 595.2 | FW13: 576 | FX13: 595.2 | FY13: 576 | FZ13: 595.2 | GA13: 595.2 | GB13: 576 | GC13: 595.2 | GD13: 576 | GE13: 595.2 | GF13: 595.2 | GG13: 537.6 | GH13: 595.2 | GI13: 576 | GJ13: 595.2 | GK13: 576 | GL13: 595.2 | GM13: 595.2 | GN13: 576 | GO13: 595.2 | GP13: 576 | GQ13: 595.2 | GR13: 595.2 | GS13: =GS12*GS10 -> 537.6 | GT13: 595.2 | GU13: 576 | GV13: 595.2 | GW13: 576 | GX13: 595.2 | GY13: 595.2 | GZ13: 576 | HA13: 595.2 | HB13: 576 | HC13: 595.2 | HD13: 595.2 | HE13: 537.6 | HF13: 595.2 | HG13: 576 | HH13: 595.2 | HI13: 576 | HJ13: 595.2 | HK13: 595.2 | HL13: 576 | HM13: 595.2 | HN13: 576 | HO13: 595.2 | HP13: 595.2 | HQ13: 556.8 | HR13: 595.2 | HS13: 576 | HT13: 595.2 | HU13: 576 | HV13: 595.2 | HW13: 595.2 | HX13: 576 | HY13: 595.2 | HZ13: 576 | IA13: 595.2 | IB13: 595.2 | IC13: 537.6 | ID13: 595.2 | IE13: 576 | IF13: 595.2 | IG13: 576 | IH13: 595.2 | II13: 595.2 | IJ13: 576 | IK13: 595.2 | IL13: 576 | IM13: 595.2 | IN13: 595.2 | IO13: 537.6 | IP13: 595.2 | IQ13: 576 | IR13: 595.2 | IS13: 576 | IT13: 595.2 | IU13: 595.2 | IV13: 576 | IW13: 595.2 | IX13: 576 | IY13: 595.2 | IZ13: 595.2 | JA13: 537.6 | JB13: 595.2 | JC13: 576 | JD13: 595.2 | JE13: =JE12*JE10 -> 576 | JF13: 595.2 | JG13: 595.2 | JH13: 576 | JI13: 595.2 | JJ13: 576 | JK13: 595.2 | JL13: 595.2 | JM13: 556.8 | JN13: 595.2 | JO13: 576 | JP13: 595.2 | JQ13: 576 | JR13: 595.2 | JS13: 595.2 | JT13: 576 | JU13: 595.2 | JV13: 576 | JW13: 595.2 | JX13: 595.2 | JY13: 537.6 | JZ13: 595.2 | KA13: 576 | KB13: 595.2 | KC13: 576 | KD13: 595.2 | KE13: 595.2 | KF13: 576 | KG13: 595.2 | KH13: 576 | KI13: 595.2 | KJ13: 595.2 | KK13: 537.6 | KL13: 595.2 | KM13: 576 | KN13: 595.2 | KO13: 576 | KP13: 595.2 | KQ13: 595.2 | KR13: 576 | KS13: 595.2 | KT13: 576 | KU13: 595.2 | KV13: 595.2 | KW13: 537.6 | KX13: 595.2 | KY13: 576 | KZ13: 595.2 | LA13: 576 | LB13: 595.2 | LC13: 595.2 | LD13: 576 | LE13: 595.2 | LF13: 576 | LG13: 595.2 | LH13: 595.2 | LI13: 556.8 | LJ13: 595.2 | LK13: 576 | LL13: 595.2 | LM13: 576 | LN13: 595.2 | LO13: 595.2 | LP13: 576 | LQ13: =LQ12*LQ10 -> 595.2 | LR13: 576 | LS13: 595.2 | LT13: 595.2 | LU13: 537.6 | LV13: 595.2 | LW13: 576 | LX13: 595.2 | LY13: 576 | LZ13: 595.2 | MA13: 595.2 | MB13: 576 | MC13: 595.2 | MD13: 576 | ME13: 595.2 | MF13: 595.2 | MG13: 537.6 | MH13: 595.2 | MI13: 576 | MJ13: 595.2 | MK13: 576 | ML13: 595.2 | MM13: 595.2 | MN13: 576 | MO13: 595.2 | MP13: 576 | MQ13: 595.2 | MR13: 595.2 | MS13: 537.6 | MT13: 595.2 | MU13: 576 | MV13: 595.2 | MW13: 576 | MX13: 595.2 | MY13: 595.2 | MZ13: 576 | NA13: 595.2 | NB13: 576 | NC13: 595.2
C14: Generation | D14: MWh | H14: =H11*H13 -> 297600 | I14: =I11*I13 -> 268800 | J14: 297600 | K14: 288000 | L14: 297600 | M14: 288000 | N14: 297600 | O14: 297600 | P14: 288000 | Q14: 297600 | R14: 288000 | S14: 297600 | T14: 297600 | U14: 268800 | V14: 297600 | W14: 288000 | X14: 297600 | Y14: 288000 | Z14: 297600 | AA14: 297600 | AB14: 288000 | AC14: 297600 | AD14: 288000 | AE14: 297600 | AF14: 297600 | AG14: 278400 | AH14: 297600 | AI14: 288000 | AJ14: 297600 | AK14: 288000 | AL14: 297600 | AM14: 297600 | AN14: 288000 | AO14: 297600 | AP14: 288000 | AQ14: 297600 | AR14: 297600 | AS14: 268800 | AT14: 297600 | AU14: 288000 | AV14: 297600 | AW14: 288000 | AX14: 297600 | AY14: 297600 | AZ14: 288000 | BA14: 297600 | BB14: 288000 | BC14: 297600 | BD14: 297600 | BE14: 268800 | BF14: 297600 | BG14: 288000 | BH14: 297600 | BI14: 288000 | BJ14: 297600 | BK14: 297600 | BL14: 288000 | BM14: 297600 | BN14: 288000 | BO14: 297600 | BP14: 297600 | BQ14: 268800 | BR14: 297600 | BS14: 288000 | BT14: 297600 | BU14: =BU11*BU13 -> 288000 | BV14: 297600 | BW14: 297600 | BX14: 288000 | BY14: 297600 | BZ14: 288000 | CA14: 297600 | CB14: 297600 | CC14: 278400 | CD14: 297600 | CE14: 288000 | CF14: 297600 | CG14: 288000 | CH14: 297600 | CI14: 297600 | CJ14: 288000 | CK14: 297600 | CL14: 288000 | CM14: 297600 | CN14: 297600 | CO14: 268800 | CP14: 297600 | CQ14: 288000 | CR14: 297600 | CS14: 288000 | CT14: 297600 | CU14: 297600 | CV14: 288000 | CW14: 297600 | CX14: 288000 | CY14: 297600 | CZ14: 297600 | DA14: 268800 | DB14: 297600 | DC14: 288000 | DD14: 297600 | DE14: 288000 | DF14: 297600 | DG14: 297600 | DH14: 288000 | DI14: 297600 | DJ14: 288000 | DK14: 297600 | DL14: 297600 | DM14: 268800 | DN14: 297600 | DO14: 288000 | DP14: 297600 | DQ14: 288000 | DR14: 297600 | DS14: 297600 | DT14: 288000 | DU14: 297600 | DV14: 288000 | DW14: 297600 | DX14: 297600 | DY14: 278400 | DZ14: 297600 | EA14: 288000 | EB14: 297600 | EC14: 288000 | ED14: 297600 | EE14: 297600 | EF14: 288000 | EG14: =EG11*EG13 -> 297600 | EH14: 288000 | EI14: 297600 | EJ14: 297600 | EK14: 268800 | EL14: 297600 | EM14: 288000 | EN14: 297600 | EO14: 288000 | EP14: 297600 | EQ14: 297600 | ER14: 288000 | ES14: 297600 | ET14: 288000 | EU14: 297600 | EV14: 297600 | EW14: 268800 | EX14: 297600 | EY14: 288000 | EZ14: 297600 | FA14: 288000 | FB14: 297600 | FC14: 297600 | FD14: 288000 | FE14: 297600 | FF14: 288000 | FG14: 297600 | FH14: 297600 | FI14: 268800 | FJ14: 297600 | FK14: 288000 | FL14: 297600 | FM14: 288000 | FN14: 297600 | FO14: 297600 | FP14: 288000 | FQ14: 297600 | FR14: 288000 | FS14: 297600 | FT14: 297600 | FU14: 278400 | FV14: 297600 | FW14: 288000 | FX14: 297600 | FY14: 288000 | FZ14: 297600 | GA14: 297600 | GB14: 288000 | GC14: 297600 | GD14: 288000 | GE14: 297600 | GF14: 297600 | GG14: 268800 | GH14: 297600 | GI14: 288000 | GJ14: 297600 | GK14: 288000 | GL14: 297600 | GM14: 297600 | GN14: 288000 | GO14: 297600 | GP14: 288000 | GQ14: 297600 | GR14: 297600 | GS14: =GS11*GS13 -> 268800 | GT14: 297600 | GU14: 288000 | GV14: 297600 | GW14: 288000 | GX14: 297600 | GY14: 297600 | GZ14: 288000 | HA14: 297600 | HB14: 288000 | HC14: 297600 | HD14: 297600 | HE14: 268800 | HF14: 297600 | HG14: 288000 | HH14: 297600 | HI14: 288000 | HJ14: 297600 | HK14: 297600 | HL14: 288000 | HM14: 297600 | HN14: 288000 | HO14: 297600 | HP14: 297600 | HQ14: 278400 | HR14: 297600 | HS14: 288000 | HT14: 297600 | HU14: 288000 | HV14: 297600 | HW14: 297600 | HX14: 288000 | HY14: 297600 | HZ14: 288000 | IA14: 297600 | IB14: 297600 | IC14: 268800 | ID14: 297600 | IE14: 288000 | IF14: 297600 | IG14: 288000 | IH14: 297600 | II14: 297600 | IJ14: 288000 | IK14: 297600 | IL14: 288000 | IM14: 297600 | IN14: 297600 | IO14: 268800 | IP14: 297600 | IQ14: 288000 | IR14: 297600 | IS14: 288000 | IT14: 297600 | IU14: 297600 | IV14: 288000 | IW14: 297600 | IX14: 288000 | IY14: 297600 | IZ14: 297600 | JA14: 268800 | JB14: 297600 | JC14: 288000 | JD14: 297600 | JE14: =JE11*JE13 -> 288000 | JF14: 297600 | JG14: 297600 | JH14: 288000 | JI14: 297600 | JJ14: 288000 | JK14: 297600 | JL14: 297600 | JM14: 278400 | JN14: 297600 | JO14: 288000 | JP14: 297600 | JQ14: 288000 | JR14: 297600 | JS14: 297600 | JT14: 288000 | JU14: 297600 | JV14: 288000 | JW14: 297600 | JX14: 297600 | JY14: 268800 | JZ14: 297600 | KA14: 288000 | KB14: 297600 | KC14: 288000 | KD14: 297600 | KE14: 297600 | KF14: 288000 | KG14: 297600 | KH14: 288000 | KI14: 297600 | KJ14: 297600 | KK14: 268800 | KL14: 297600 | KM14: 288000 | KN14: 297600 | KO14: 288000 | KP14: 297600 | KQ14: 297600 | KR14: 288000 | KS14: 297600 | KT14: 288000 | KU14: 297600 | KV14: 297600 | KW14: 268800 | KX14: 297600 | KY14: 288000 | KZ14: 297600 | LA14: 288000 | LB14: 297600 | LC14: 297600 | LD14: 288000 | LE14: 297600 | LF14: 288000 | LG14: 297600 | LH14: 297600 | LI14: 278400 | LJ14: 297600 | LK14: 288000 | LL14: 297600 | LM14: 288000 | LN14: 297600 | LO14: 297600 | LP14: 288000 | LQ14: =LQ11*LQ13 -> 297600 | LR14: 288000 | LS14: 297600 | LT14: 297600 | LU14: 268800 | LV14: 297600 | LW14: 288000 | LX14: 297600 | LY14: 288000 | LZ14: 297600 | MA14: 297600 | MB14: 288000 | MC14: 297600 | MD14: 288000 | ME14: 297600 | MF14: 297600 | MG14: 268800 | MH14: 297600 | MI14: 288000 | MJ14: 297600 | MK14: 288000 | ML14: 297600 | MM14: 297600 | MN14: 288000 | MO14: 297600 | MP14: 288000 | MQ14: 297600 | MR14: 297600 | MS14: 268800 | MT14: 297600 | MU14: 288000 | MV14: 297600 | MW14: 288000 | MX14: 297600 | MY14: 297600 | MZ14: 288000 | NA14: 297600 | NB14: 288000 | NC14: 297600
B16: Accumulated Hours Unitl Maintnenace Period
C17: Total Hours in Before Overhaul | D17: Hours | E17: 30000 | H17: =$E$17 -> 30000 | I17: 30000 | J17: 30000 | K17: 30000 | L17: 30000 | M17: 30000 | N17: 30000 | O17: 30000 | P17: 30000 | Q17: 30000 | R17: 30000 | S17: 30000 | T17: 30000 | U17: 30000 | V17: 30000 | W17: 30000 | X17: 30000 | Y17: 30000 | Z17: 30000 | AA17: 30000 | AB17: 30000 | AC17: 30000 | AD17: 30000 | AE17: 30000 | AF17: 30000 | AG17: 30000 | AH17: 30000 | AI17: 30000 | AJ17: 30000 | AK17: 30000 | AL17: 30000 | AM17: 30000 | AN17: 30000 | AO17: 30000 | AP17: 30000 | AQ17: 30000 | AR17: 30000 | AS17: 30000 | AT17: 30000 | AU17: 30000 | AV17: 30000 | AW17: 30000 | AX17: 30000 | AY17: 30000 | AZ17: 30000 | BA17: 30000 | BB17: 30000 | BC17: 30000 | BD17: 30000 | BE17: 30000 | BF17: 30000 | BG17: 30000 | BH17: 30000 | BI17: 30000 | BJ17: 30000 | BK17: 30000 | BL17: 30000 | BM17: 30000 | BN17: 30000 | BO17: 30000 | BP17: 30000 | BQ17: 30000 | BR17: 30000 | BS17: 30000 | BT17: =$E$17 -> 30000 | BU17: 30000 | BV17: 30000 | BW17: 30000 | BX17: 30000 | BY17: 30000 | BZ17: 30000 | CA17: 30000 | CB17: 30000 | CC17: 30000 | CD17: 30000 | CE17: 30000 | CF17: 30000 | CG17: 30000 | CH17: 30000 | CI17: 30000 | CJ17: 30000 | CK17: 30000 | CL17: 30000 | CM17: 30000 | CN17: 30000 | CO17: 30000 | CP17: 30000 | CQ17: 30000 | CR17: 30000 | CS17: 30000 | CT17: 30000 | CU17: 30000 | CV17: 30000 | CW17: 30000 | CX17: 30000 | CY17: 30000 | CZ17: 30000 | DA17: 30000 | DB17: 30000 | DC17: 30000 | DD17: 30000 | DE17: 30000 | DF17: 30000 | DG17: 30000 | DH17: 30000 | DI17: 30000 | DJ17: 30000 | DK17: 30000 | DL17: 30000 | DM17: 30000 | DN17: 30000 | DO17: 30000 | DP17: 30000 | DQ17: 30000 | DR17: 30000 | DS17: 30000 | DT17: 30000 | DU17: 30000 | DV17: 30000 | DW17: 30000 | DX17: 30000 | DY17: 30000 | DZ17: 30000 | EA17: 30000 | EB17: 30000 | EC17: 30000 | ED17: 30000 | EE17: 30000 | EF17: =$E$17 -> 30000 | EG17: 30000 | EH17: 30000 | EI17: 30000 | EJ17: 30000 | EK17: 30000 | EL17: 30000 | EM17: 30000 | EN17: 30000 | EO17: 30000 | EP17: 30000 | EQ17: 30000 | ER17: 30000 | ES17: 30000 | ET17: 30000 | EU17: 30000 | EV17: 30000 | EW17: 30000 | EX17: 30000 | EY17: 30000 | EZ17: 30000 | FA17: 30000 | FB17: 30000 | FC17: 30000 | FD17: 30000 | FE17: 30000 | FF17: 30000 | FG17: 30000 | FH17: 30000 | FI17: 30000 | FJ17: 30000 | FK17: 30000 | FL17: 30000 | FM17: 30000 | FN17: 30000 | FO17: 30000 | FP17: 30000 | FQ17: 30000 | FR17: 30000 | FS17: 30000 | FT17: 30000 | FU17: 30000 | FV17: 30000 | FW17: 30000 | FX17: 30000 | FY17: 30000 | FZ17: 30000 | GA17: 30000 | GB17: 30000 | GC17: 30000 | GD17: 30000 | GE17: 30000 | GF17: 30000 | GG17: 30000 | GH17: 30000 | GI17: 30000 | GJ17: 30000 | GK17: 30000 | GL17: 30000 | GM17: 30000 | GN17: 30000 | GO17: 30000 | GP17: 30000 | GQ17: 30000 | GR17: =$E$17 -> 30000 | GS17: 30000 | GT17: 30000 | GU17: 30000 | GV17: 30000 | GW17: 30000 | GX17: 30000 | GY17: 30000 | GZ17: 30000 | HA17: 30000 | HB17: 30000 | HC17: 30000 | HD17: 30000 | HE17: 30000 | HF17: 30000 | HG17: 30000 | HH17: 30000 | HI17: 30000 | HJ17: 30000 | HK17: 30000 | HL17: 30000 | HM17: 30000 | HN17: 30000 | HO17: 30000 | HP17: 30000 | HQ17: 30000 | HR17: 30000 | HS17: 30000 | HT17: 30000 | HU17: 30000 | HV17: 30000 | HW17: 30000 | HX17: 30000 | HY17: 30000 | HZ17: 30000 | IA17: 30000 | IB17: 30000 | IC17: 30000 | ID17: 30000 | IE17: 30000 | IF17: 30000 | IG17: 30000 | IH17: 30000 | II17: 30000 | IJ17: 30000 | IK17: 30000 | IL17: 30000 | IM17: 30000 | IN17: 30000 | IO17: 30000 | IP17: 30000 | IQ17: 30000 | IR17: 30000 | IS17: 30000 | IT17: 30000 | IU17: 30000 | IV17: 30000 | IW17: 30000 | IX17: 30000 | IY17: 30000 | IZ17: 30000 | JA17: 30000 | JB17: 30000 | JC17: 30000 | JD17: =$E$17 -> 30000 | JE17: 30000 | JF17: 30000 | JG17: 30000 | JH17: 30000 | JI17: 30000 | JJ17: 30000 | JK17: 30000 | JL17: 30000 | JM17: 30000 | JN17: 30000 | JO17: 30000 | JP17: 30000 | JQ17: 30000 | JR17: 30000 | JS17: 30000 | JT17: 30000 | JU17: 30000 | JV17: 30000 | JW17: 30000 | JX17: 30000 | JY17: 30000 | JZ17: 30000 | KA17: 30000 | KB17: 30000 | KC17: 30000 | KD17: 30000 | KE17: 30000 | KF17: 30000 | KG17: 30000 | KH17: 30000 | KI17: 30000 | KJ17: 30000 | KK17: 30000 | KL17: 30000 | KM17: 30000 | KN17: 30000 | KO17: 30000 | KP17: 30000 | KQ17: 30000 | KR17: 30000 | KS17: 30000 | KT17: 30000 | KU17: 30000 | KV17: 30000 | KW17: 30000 | KX17: 30000 | KY17: 30000 | KZ17: 30000 | LA17: 30000 | LB17: 30000 | LC17: 30000 | LD17: 30000 | LE17: 30000 | LF17: 30000 | LG17: 30000 | LH17: 30000 | LI17: 30000 | LJ17: 30000 | LK17: 30000 | LL17: 30000 | LM17: 30000 | LN17: 30000 | LO17: 30000 | LP17: =$E$17 -> 30000 | LQ17: 30000 | LR17: 30000 | LS17: 30000 | LT17: 30000 | LU17: 30000 | LV17: 30000 | LW17: 30000 | LX17: 30000 | LY17: 30000 | LZ17: 30000 | MA17: 30000 | MB17: 30000 | MC17: 30000 | MD17: 30000 | ME17: 30000 | MF17: 30000 | MG17: 30000 | MH17: 30000 | MI17: 30000 | MJ17: 30000 | MK17: 30000 | ML17: 30000 | MM17: 30000 | MN17: 30000 | MO17: 30000 | MP17: 30000 | MQ17: 30000 | MR17: 30000 | MS17: 30000 | MT17: 30000 | MU17: 30000 | MV17: 30000 | MW17: 30000 | MX17: 30000 | MY17: 30000 | MZ17: 30000 | NA17: 30000 | NB17: 30000 | NC17: 30000
C19: Opening Balance | D19: Hours | H19: =G24 -> 0 | I19: =H24 -> 595.2 | J19: 1132.8 | K19: 1728 | L19: 2304 | M19: 2899.2 | N19: 3475.2 | O19: 4070.4 | P19: 4665.6 | Q19: 5241.6 | R19: 5836.8 | S19: 6412.8 | T19: 7008 | U19: 7603.2 | V19: 8140.8 | W19: 8736 | X19: 9312 | Y19: 9907.2 | Z19: 10483.2 | AA19: 11078.4 | AB19: 11673.6 | AC19: 12249.6 | AD19: 12844.8 | AE19: 13420.8 | AF19: 14016 | AG19: 14611.2 | AH19: 15168 | AI19: 15763.2 | AJ19: 16339.2 | AK19: 16934.4 | AL19: 17510.4 | AM19: 18105.6 | AN19: 18700.8 | AO19: 19276.8 | AP19: 19872 | AQ19: 20448 | AR19: 21043.2 | AS19: 21638.4 | AT19: 22176 | AU19: 22771.2 | AV19: 23347.2 | AW19: 23942.4 | AX19: 24518.4 | AY19: 25113.6 | AZ19: 25708.8 | BA19: 26284.8 | BB19: 26880 | BC19: 27456 | BD19: 28051.2 | BE19: 28646.4 | BF19: 29184 | BG19: 29779.2 | BH19: 355.2 | BI19: 950.4 | BJ19: 1526.4 | BK19: 2121.6 | BL19: 2716.8 | BM19: 3292.8 | BN19: 3888 | BO19: 4464 | BP19: 5059.2 | BQ19: 5654.4 | BR19: 6192 | BS19: 6787.2 | BT19: 7363.2 | BU19: =BT24 -> 7958.4 | BV19: 8534.4 | BW19: 9129.6 | BX19: 9724.8 | BY19: 10300.8 | BZ19: 10896 | CA19: 11472 | CB19: 12067.2 | CC19: 12662.4 | CD19: 13219.2 | CE19: 13814.4 | CF19: 14390.4 | CG19: 14985.6 | CH19: 15561.6 | CI19: 16156.8 | CJ19: 16752 | CK19: 17328 | CL19: 17923.2 | CM19: 18499.2 | CN19: 19094.4 | CO19: 19689.6 | CP19: 20227.2 | CQ19: 20822.4 | CR19: 21398.4 | CS19: 21993.6 | CT19: 22569.6 | CU19: 23164.8 | CV19: 23760 | CW19: 24336 | CX19: 24931.2 | CY19: 25507.2 | CZ19: 26102.4 | DA19: 26697.6 | DB19: 27235.2 | DC19: 27830.4 | DD19: 28406.4 | DE19: 29001.6 | DF19: 29577.6 | DG19: 172.8 | DH19: 768 | DI19: 1344 | DJ19: 1939.2 | DK19: 2515.2 | DL19: 3110.4 | DM19: 3705.6 | DN19: 4243.2 | DO19: 4838.4 | DP19: 5414.4 | DQ19: 6009.6 | DR19: 6585.6 | DS19: 7180.8 | DT19: 7776 | DU19: 8352 | DV19: 8947.2 | DW19: 9523.2 | DX19: 10118.4 | DY19: 10713.6 | DZ19: 11270.4 | EA19: 11865.6 | EB19: 12441.6 | EC19: 13036.8 | ED19: 13612.8 | EE19: 14208 | EF19: 14803.2 | EG19: =EF24 -> 15379.2 | EH19: 15974.4 | EI19: 16550.4 | EJ19: 17145.6 | EK19: 17740.8 | EL19: 18278.4 | EM19: 18873.6 | EN19: 19449.6 | EO19: 20044.8 | EP19: 20620.8 | EQ19: 21216 | ER19: 21811.2 | ES19: 22387.2 | ET19: 22982.4 | EU19: 23558.4 | EV19: 24153.6 | EW19: 24748.8 | EX19: 25286.4 | EY19: 25881.6 | EZ19: 26457.6 | FA19: 27052.8 | FB19: 27628.8 | FC19: 28224 | FD19: 28819.2 | FE19: 29395.2 | FF19: 29990.4 | FG19: 566.4 | FH19: 1161.6 | FI19: 1756.8 | FJ19: 2294.4 | FK19: 2889.6 | FL19: 3465.6 | FM19: 4060.8 | FN19: 4636.8 | FO19: 5232 | FP19: 5827.2 | FQ19: 6403.2 | FR19: 6998.4 | FS19: 7574.4 | FT19: 8169.6 | FU19: 8764.8 | FV19: 9321.6 | FW19: 9916.8 | FX19: 10492.8 | FY19: 11088 | FZ19: 11664 | GA19: 12259.2 | GB19: 12854.4 | GC19: 13430.4 | GD19: 14025.6 | GE19: 14601.6 | GF19: 15196.8 | GG19: 15792 | GH19: 16329.6 | GI19: 16924.8 | GJ19: 17500.8 | GK19: 18096 | GL19: 18672 | GM19: 19267.2 | GN19: 19862.4 | GO19: 20438.4 | GP19: 21033.6 | GQ19: 21609.6 | GR19: 22204.8 | GS19: =GR24 -> 22800 | GT19: 23337.6 | GU19: 23932.8 | GV19: 24508.8 | GW19: 25104 | GX19: 25680 | GY19: 26275.2 | GZ19: 26870.4 | HA19: 27446.4 | HB19: 28041.6 | HC19: 28617.6 | HD19: 29212.8 | HE19: 29808 | HF19: 345.6 | HG19: 940.8 | HH19: 1516.8 | HI19: 2112 | HJ19: 2688 | HK19: 3283.2 | HL19: 3878.4 | HM19: 4454.4 | HN19: 5049.6 | HO19: 5625.6 | HP19: 6220.8 | HQ19: 6816 | HR19: 7372.8 | HS19: 7968 | HT19: 8544 | HU19: 9139.2 | HV19: 9715.2 | HW19: 10310.4 | HX19: 10905.6 | HY19: 11481.6 | HZ19: 12076.8 | IA19: 12652.8 | IB19: 13248 | IC19: 13843.2 | ID19: 14380.8 | IE19: 14976 | IF19: 15552 | IG19: 16147.2 | IH19: 16723.2 | II19: 17318.4 | IJ19: 17913.6 | IK19: 18489.6 | IL19: 19084.8 | IM19: 19660.8 | IN19: 20256 | IO19: 20851.2 | IP19: 21388.8 | IQ19: 21984 | IR19: 22560 | IS19: 23155.2 | IT19: 23731.2 | IU19: 24326.4 | IV19: 24921.6 | IW19: 25497.6 | IX19: 26092.8 | IY19: 26668.8 | IZ19: 27264 | JA19: 27859.2 | JB19: 28396.8 | JC19: 28992 | JD19: 29568 | JE19: =JD24 -> 163.2 | JF19: 739.2 | JG19: 1334.4 | JH19: 1929.6 | JI19: 2505.6 | JJ19: 3100.8 | JK19: 3676.8 | JL19: 4272 | JM19: 4867.2 | JN19: 5424 | JO19: 6019.2 | JP19: 6595.2 | JQ19: 7190.4 | JR19: 7766.4 | JS19: 8361.6 | JT19: 8956.8 | JU19: 9532.8 | JV19: 10128 | JW19: 10704 | JX19: 11299.2 | JY19: 11894.4 | JZ19: 12432 | KA19: 13027.2 | KB19: 13603.2 | KC19: 14198.4 | KD19: 14774.4 | KE19: 15369.6 | KF19: 15964.8 | KG19: 16540.8 | KH19: 17136 | KI19: 17712 | KJ19: 18307.2 | KK19: 18902.4 | KL19: 19440 | KM19: 20035.2 | KN19: 20611.2 | KO19: 21206.4 | KP19: 21782.4 | KQ19: 22377.6 | KR19: 22972.8 | KS19: 23548.8 | KT19: 24144 | KU19: 24720 | KV19: 25315.2 | KW19: 25910.4 | KX19: 26448 | KY19: 27043.2 | KZ19: 27619.2 | LA19: 28214.4 | LB19: 28790.4 | LC19: 29385.6 | LD19: 29980.8 | LE19: 556.8 | LF19: 1152 | LG19: 1728 | LH19: 2323.2 | LI19: 2918.4 | LJ19: 3475.2 | LK19: 4070.4 | LL19: 4646.4 | LM19: 5241.6 | LN19: 5817.6 | LO19: 6412.8 | LP19: 7008 | LQ19: =LP24 -> 7584 | LR19: 8179.2 | LS19: 8755.2 | LT19: 9350.4 | LU19: 9945.6 | LV19: 10483.2 | LW19: 11078.4 | LX19: 11654.4 | LY19: 12249.6 | LZ19: 12825.6 | MA19: 13420.8 | MB19: 14016 | MC19: 14592 | MD19: 15187.2 | ME19: 15763.2 | MF19: 16358.4 | MG19: 16953.6 | MH19: 17491.2 | MI19: 18086.4 | MJ19: 18662.4 | MK19: 19257.6 | ML19: 19833.6 | MM19: 20428.8 | MN19: 21024 | MO19: 21600 | MP19: 22195.2 | MQ19: 22771.2 | MR19: 23366.4 | MS19: 23961.6 | MT19: 24499.2 | MU19: 25094.4 | MV19: 25670.4 | MW19: 26265.6 | MX19: 26841.6 | MY19: 27436.8 | MZ19: 28032 | NA19: 28608 | NB19: 29203.2 | NC19: 29779.2
C20: Subtotal Hours Remaining Until Maintenance | D20: Hours | H20: =H17-H19 -> 30000 | I20: =I17-I19 -> 29404.8 | J20: 28867.2 | K20: 28272 | L20: 27696 | M20: 27100.8 | N20: 26524.8 | O20: 25929.6 | P20: 25334.4 | Q20: 24758.4 | R20: 24163.2 | S20: 23587.2 | T20: 22992 | U20: 22396.8 | V20: 21859.2 | W20: 21264 | X20: 20688 | Y20: 20092.8 | Z20: 19516.8 | AA20: 18921.6 | AB20: 18326.4 | AC20: 17750.4 | AD20: 17155.2 | AE20: 16579.2 | AF20: 15984 | AG20: 15388.8 | AH20: 14832 | AI20: 14236.8 | AJ20: 13660.8 | AK20: 13065.6 | AL20: 12489.6 | AM20: 11894.4 | AN20: 11299.2 | AO20: 10723.2 | AP20: 10128 | AQ20: 9552 | AR20: 8956.8 | AS20: 8361.6 | AT20: 7824 | AU20: 7228.8 | AV20: 6652.8 | AW20: 6057.6 | AX20: 5481.6 | AY20: 4886.4 | AZ20: 4291.2 | BA20: 3715.2 | BB20: 3120 | BC20: 2544 | BD20: 1948.8 | BE20: 1353.6 | BF20: 816 | BG20: 220.8 | BH20: 29644.8 | BI20: 29049.6 | BJ20: 28473.6 | BK20: 27878.4 | BL20: 27283.2 | BM20: 26707.2 | BN20: 26112 | BO20: 25536 | BP20: 24940.8 | BQ20: 24345.6 | BR20: 23808 | BS20: 23212.8 | BT20: =BT17-BT19 -> 22636.8 | BU20: 22041.6 | BV20: 21465.6 | BW20: 20870.4 | BX20: 20275.2 | BY20: 19699.2 | BZ20: 19104 | CA20: 18528 | CB20: 17932.8 | CC20: 17337.6 | CD20: 16780.8 | CE20: 16185.6 | CF20: 15609.6 | CG20: 15014.4 | CH20: 14438.4 | CI20: 13843.2 | CJ20: 13248 | CK20: 12672 | CL20: 12076.8 | CM20: 11500.8 | CN20: 10905.6 | CO20: 10310.4 | CP20: 9772.8 | CQ20: 9177.6 | CR20: 8601.6 | CS20: 8006.4 | CT20: 7430.4 | CU20: 6835.2 | CV20: 6240 | CW20: 5664 | CX20: 5068.8 | CY20: 4492.8 | CZ20: 3897.6 | DA20: 3302.4 | DB20: 2764.8 | DC20: 2169.6 | DD20: 1593.6 | DE20: 998.4 | DF20: 422.4 | DG20: 29827.2 | DH20: 29232 | DI20: 28656 | DJ20: 28060.8 | DK20: 27484.8 | DL20: 26889.6 | DM20: 26294.4 | DN20: 25756.8 | DO20: 25161.6 | DP20: 24585.6 | DQ20: 23990.4 | DR20: 23414.4 | DS20: 22819.2 | DT20: 22224 | DU20: 21648 | DV20: 21052.8 | DW20: 20476.8 | DX20: 19881.6 | DY20: 19286.4 | DZ20: 18729.6 | EA20: 18134.4 | EB20: 17558.4 | EC20: 16963.2 | ED20: 16387.2 | EE20: 15792 | EF20: =EF17-EF19 -> 15196.8 | EG20: 14620.8 | EH20: 14025.6 | EI20: 13449.6 | EJ20: 12854.4 | EK20: 12259.2 | EL20: 11721.6 | EM20: 11126.4 | EN20: 10550.4 | EO20: 9955.2 | EP20: 9379.2 | EQ20: 8784 | ER20: 8188.8 | ES20: 7612.8 | ET20: 7017.6 | EU20: 6441.6 | EV20: 5846.4 | EW20: 5251.2 | EX20: 4713.6 | EY20: 4118.4 | EZ20: 3542.4 | FA20: 2947.2 | FB20: 2371.2 | FC20: 1776 | FD20: 1180.8 | FE20: 604.8 | FF20: 9.6 | FG20: 29433.6 | FH20: 28838.4 | FI20: 28243.2 | FJ20: 27705.6 | FK20: 27110.4 | FL20: 26534.4 | FM20: 25939.2 | FN20: 25363.2 | FO20: 24768 | FP20: 24172.8 | FQ20: 23596.8 | FR20: 23001.6 | FS20: 22425.6 | FT20: 21830.4 | FU20: 21235.2 | FV20: 20678.4 | FW20: 20083.2 | FX20: 19507.2 | FY20: 18912 | FZ20: 18336 | GA20: 17740.8 | GB20: 17145.6 | GC20: 16569.6 | GD20: 15974.4 | GE20: 15398.4 | GF20: 14803.2 | GG20: 14208 | GH20: 13670.4 | GI20: 13075.2 | GJ20: 12499.2 | GK20: 11904 | GL20: 11328 | GM20: 10732.8 | GN20: 10137.6 | GO20: 9561.6 | GP20: 8966.4 | GQ20: 8390.4 | GR20: =GR17-GR19 -> 7795.2 | GS20: 7200 | GT20: 6662.4 | GU20: 6067.2 | GV20: 5491.2 | GW20: 4896 | GX20: 4320 | GY20: 3724.8 | GZ20: 3129.6 | HA20: 2553.6 | HB20: 1958.4 | HC20: 1382.4 | HD20: 787.2 | HE20: 192 | HF20: 29654.4 | HG20: 29059.2 | HH20: 28483.2 | HI20: 27888 | HJ20: 27312 | HK20: 26716.8 | HL20: 26121.6 | HM20: 25545.6 | HN20: 24950.4 | HO20: 24374.4 | HP20: 23779.2 | HQ20: 23184 | HR20: 22627.2 | HS20: 22032 | HT20: 21456 | HU20: 20860.8 | HV20: 20284.8 | HW20: 19689.6 | HX20: 19094.4 | HY20: 18518.4 | HZ20: 17923.2 | IA20: 17347.2 | IB20: 16752 | IC20: 16156.8 | ID20: 15619.2 | IE20: 15024 | IF20: 14448 | IG20: 13852.8 | IH20: 13276.8 | II20: 12681.6 | IJ20: 12086.4 | IK20: 11510.4 | IL20: 10915.2 | IM20: 10339.2 | IN20: 9744 | IO20: 9148.8 | IP20: 8611.2 | IQ20: 8016 | IR20: 7440 | IS20: 6844.8 | IT20: 6268.8 | IU20: 5673.6 | IV20: 5078.4 | IW20: 4502.4 | IX20: 3907.2 | IY20: 3331.2 | IZ20: 2736 | JA20: 2140.8 | JB20: 1603.2 | JC20: 1008 | JD20: =JD17-JD19 -> 432 | JE20: 29836.8 | JF20: 29260.8 | JG20: 28665.6 | JH20: 28070.4 | JI20: 27494.4 | JJ20: 26899.2 | JK20: 26323.2 | JL20: 25728 | JM20: 25132.8 | JN20: 24576 | JO20: 23980.8 | JP20: 23404.8 | JQ20: 22809.6 | JR20: 22233.6 | JS20: 21638.4 | JT20: 21043.2 | JU20: 20467.2 | JV20: 19872 | JW20: 19296 | JX20: 18700.8 | JY20: 18105.6 | JZ20: 17568 | KA20: 16972.8 | KB20: 16396.8 | KC20: 15801.6 | KD20: 15225.6 | KE20: 14630.4 | KF20: 14035.2 | KG20: 13459.2 | KH20: 12864 | KI20: 12288 | KJ20: 11692.8 | KK20: 11097.6 | KL20: 10560 | KM20: 9964.8 | KN20: 9388.8 | KO20: 8793.6 | KP20: 8217.6 | KQ20: 7622.4 | KR20: 7027.2 | KS20: 6451.2 | KT20: 5856 | KU20: 5280 | KV20: 4684.8 | KW20: 4089.6 | KX20: 3552 | KY20: 2956.8 | KZ20: 2380.8 | LA20: 1785.6 | LB20: 1209.6 | LC20: 614.4 | LD20: 19.2 | LE20: 29443.2 | LF20: 28848 | LG20: 28272 | LH20: 27676.8 | LI20: 27081.6 | LJ20: 26524.8 | LK20: 25929.6 | LL20: 25353.6 | LM20: 24758.4 | LN20: 24182.4 | LO20: 23587.2 | LP20: =LP17-LP19 -> 22992 | LQ20: 22416 | LR20: 21820.8 | LS20: 21244.8 | LT20: 20649.6 | LU20: 20054.4 | LV20: 19516.8 | LW20: 18921.6 | LX20: 18345.6 | LY20: 17750.4 | LZ20: 17174.4 | MA20: 16579.2 | MB20: 15984 | MC20: 15408 | MD20: 14812.8 | ME20: 14236.8 | MF20: 13641.6 | MG20: 13046.4 | MH20: 12508.8 | MI20: 11913.6 | MJ20: 11337.6 | MK20: 10742.4 | ML20: 10166.4 | MM20: 9571.2 | MN20: 8976 | MO20: 8400 | MP20: 7804.8 | MQ20: 7228.8 | MR20: 6633.6 | MS20: 6038.4 | MT20: 5500.8 | MU20: 4905.6 | MV20: 4329.6 | MW20: 3734.4 | MX20: 3158.4 | MY20: 2563.2 | MZ20: 1968 | NA20: 1392 | NB20: 796.8 | NC20: 220.8
C22: Hours Run before Maintenance Period (Min) | D22: Hours | H22: =MIN(H13,H20) -> 595.2 | I22: 537.6 | J22: 595.2 | K22: 576 | L22: 595.2 | M22: 576 | N22: 595.2 | O22: 595.2 | P22: 576 | Q22: 595.2 | R22: 576 | S22: 595.2 | T22: 595.2 | U22: 537.6 | V22: 595.2 | W22: 576 | X22: 595.2 | Y22: 576 | Z22: 595.2 | AA22: 595.2 | AB22: 576 | AC22: 595.2 | AD22: 576 | AE22: 595.2 | AF22: 595.2 | AG22: 556.8 | AH22: 595.2 | AI22: 576 | AJ22: 595.2 | AK22: 576 | AL22: 595.2 | AM22: 595.2 | AN22: 576 | AO22: 595.2 | AP22: 576 | AQ22: 595.2 | AR22: 595.2 | AS22: 537.6 | AT22: 595.2 | AU22: 576 | AV22: 595.2 | AW22: 576 | AX22: 595.2 | AY22: 595.2 | AZ22: 576 | BA22: 595.2 | BB22: 576 | BC22: 595.2 | BD22: 595.2 | BE22: 537.6 | BF22: 595.2 | BG22: 220.8 | BH22: 595.2 | BI22: 576 | BJ22: 595.2 | BK22: 595.2 | BL22: 576 | BM22: 595.2 | BN22: 576 | BO22: 595.2 | BP22: 595.2 | BQ22: 537.6 | BR22: 595.2 | BS22: 576 | BT22: =MIN(BT13,BT20) -> 595.2 | BU22: 576 | BV22: 595.2 | BW22: 595.2 | BX22: 576 | BY22: 595.2 | BZ22: 576 | CA22: 595.2 | CB22: 595.2 | CC22: 556.8 | CD22: 595.2 | CE22: 576 | CF22: 595.2 | CG22: 576 | CH22: 595.2 | CI22: 595.2 | CJ22: 576 | CK22: 595.2 | CL22: 576 | CM22: 595.2 | CN22: 595.2 | CO22: 537.6 | CP22: 595.2 | CQ22: 576 | CR22: 595.2 | CS22: 576 | CT22: 595.2 | CU22: 595.2 | CV22: 576 | CW22: 595.2 | CX22: 576 | CY22: 595.2 | CZ22: 595.2 | DA22: 537.6 | DB22: 595.2 | DC22: 576 | DD22: 595.2 | DE22: 576 | DF22: 422.4 | DG22: 595.2 | DH22: 576 | DI22: 595.2 | DJ22: 576 | DK22: 595.2 | DL22: 595.2 | DM22: 537.6 | DN22: 595.2 | DO22: 576 | DP22: 595.2 | DQ22: 576 | DR22: 595.2 | DS22: 595.2 | DT22: 576 | DU22: 595.2 | DV22: 576 | DW22: 595.2 | DX22: 595.2 | DY22: 556.8 | DZ22: 595.2 | EA22: 576 | EB22: 595.2 | EC22: 576 | ED22: 595.2 | EE22: 595.2 | EF22: =MIN(EF13,EF20) -> 576 | EG22: 595.2 | EH22: 576 | EI22: 595.2 | EJ22: 595.2 | EK22: 537.6 | EL22: 595.2 | EM22: 576 | EN22: 595.2 | EO22: 576 | EP22: 595.2 | EQ22: 595.2 | ER22: 576 | ES22: 595.2 | ET22: 576 | EU22: 595.2 | EV22: 595.2 | EW22: 537.6 | EX22: 595.2 | EY22: 576 | EZ22: 595.2 | FA22: 576 | FB22: 595.2 | FC22: 595.2 | FD22: 576 | FE22: 595.2 | FF22: 9.6 | FG22: 595.2 | FH22: 595.2 | FI22: 537.6 | FJ22: 595.2 | FK22: 576 | FL22: 595.2 | FM22: 576 | FN22: 595.2 | FO22: 595.2 | FP22: 576 | FQ22: 595.2 | FR22: 576 | FS22: 595.2 | FT22: 595.2 | FU22: 556.8 | FV22: 595.2 | FW22: 576 | FX22: 595.2 | FY22: 576 | FZ22: 595.2 | GA22: 595.2 | GB22: 576 | GC22: 595.2 | GD22: 576 | GE22: 595.2 | GF22: 595.2 | GG22: 537.6 | GH22: 595.2 | GI22: 576 | GJ22: 595.2 | GK22: 576 | GL22: 595.2 | GM22: 595.2 | GN22: 576 | GO22: 595.2 | GP22: 576 | GQ22: 595.2 | GR22: =MIN(GR13,GR20) -> 595.2 | GS22: 537.6 | GT22: 595.2 | GU22: 576 | GV22: 595.2 | GW22: 576 | GX22: 595.2 | GY22: 595.2 | GZ22: 576 | HA22: 595.2 | HB22: 576 | HC22: 595.2 | HD22: 595.2 | HE22: 192 | HF22: 595.2 | HG22: 576 | HH22: 595.2 | HI22: 576 | HJ22: 595.2 | HK22: 595.2 | HL22: 576 | HM22: 595.2 | HN22: 576 | HO22: 595.2 | HP22: 595.2 | HQ22: 556.8 | HR22: 595.2 | HS22: 576 | HT22: 595.2 | HU22: 576 | HV22: 595.2 | HW22: 595.2 | HX22: 576 | HY22: 595.2 | HZ22: 576 | IA22: 595.2 | IB22: 595.2 | IC22: 537.6 | ID22: 595.2 | IE22: 576 | IF22: 595.2 | IG22: 576 | IH22: 595.2 | II22: 595.2 | IJ22: 576 | IK22: 595.2 | IL22: 576 | IM22: 595.2 | IN22: 595.2 | IO22: 537.6 | IP22: 595.2 | IQ22: 576 | IR22: 595.2 | IS22: 576 | IT22: 595.2 | IU22: 595.2 | IV22: 576 | IW22: 595.2 | IX22: 576 | IY22: 595.2 | IZ22: 595.2 | JA22: 537.6 | JB22: 595.2 | JC22: 576 | JD22: =MIN(JD13,JD20) -> 432 | JE22: 576 | JF22: 595.2 | JG22: 595.2 | JH22: 576 | JI22: 595.2 | JJ22: 576 | JK22: 595.2 | JL22: 595.2 | JM22: 556.8 | JN22: 595.2 | JO22: 576 | JP22: 595.2 | JQ22: 576 | JR22: 595.2 | JS22: 595.2 | JT22: 576 | JU22: 595.2 | JV22: 576 | JW22: 595.2 | JX22: 595.2 | JY22: 537.6 | JZ22: 595.2 | KA22: 576 | KB22: 595.2 | KC22: 576 | KD22: 595.2 | KE22: 595.2 | KF22: 576 | KG22: 595.2 | KH22: 576 | KI22: 595.2 | KJ22: 595.2 | KK22: 537.6 | KL22: 595.2 | KM22: 576 | KN22: 595.2 | KO22: 576 | KP22: 595.2 | KQ22: 595.2 | KR22: 576 | KS22: 595.2 | KT22: 576 | KU22: 595.2 | KV22: 595.2 | KW22: 537.6 | KX22: 595.2 | KY22: 576 | KZ22: 595.2 | LA22: 576 | LB22: 595.2 | LC22: 595.2 | LD22: 19.2 | LE22: 595.2 | LF22: 576 | LG22: 595.2 | LH22: 595.2 | LI22: 556.8 | LJ22: 595.2 | LK22: 576 | LL22: 595.2 | LM22: 576 | LN22: 595.2 | LO22: 595.2 | LP22: =MIN(LP13,LP20) -> 576 | LQ22: 595.2 | LR22: 576 | LS22: 595.2 | LT22: 595.2 | LU22: 537.6 | LV22: 595.2 | LW22: 576 | LX22: 595.2 | LY22: 576 | LZ22: 595.2 | MA22: 595.2 | MB22: 576 | MC22: 595.2 | MD22: 576 | ME22: 595.2 | MF22: 595.2 | MG22: 537.6 | MH22: 595.2 | MI22: 576 | MJ22: 595.2 | MK22: 576 | ML22: 595.2 | MM22: 595.2 | MN22: 576 | MO22: 595.2 | MP22: 576 | MQ22: 595.2 | MR22: 595.2 | MS22: 537.6 | MT22: 595.2 | MU22: 576 | MV22: 595.2 | MW22: 576 | MX22: 595.2 | MY22: 595.2 | MZ22: 576 | NA22: 595.2 | NB22: 576 | NC22: 220.8
C23: Hours in New Maintenance Period | D23: Hours | H23: =H13-H22 -> 0 | I23: 0 | J23: 0 | K23: 0 | L23: 0 | M23: 0 | N23: 0 | O23: 0 | P23: 0 | Q23: 0 | R23: 0 | S23: 0 | T23: 0 | U23: 0 | V23: 0 | W23: 0 | X23: 0 | Y23: 0 | Z23: 0 | AA23: 0 | AB23: 0 | AC23: 0 | AD23: 0 | AE23: 0 | AF23: 0 | AG23: 0 | AH23: 0 | AI23: 0 | AJ23: 0 | AK23: 0 | AL23: 0 | AM23: 0 | AN23: 0 | AO23: 0 | AP23: 0 | AQ23: 0 | AR23: 0 | AS23: 0 | AT23: 0 | AU23: 0 | AV23: 0 | AW23: 0 | AX23: 0 | AY23: 0 | AZ23: 0 | BA23: 0 | BB23: 0 | BC23: 0 | BD23: 0 | BE23: 0 | BF23: 0 | BG23: 355.2 | BH23: 0 | BI23: 0 | BJ23: 0 | BK23: 0 | BL23: 0 | BM23: 0 | BN23: 0 | BO23: 0 | BP23: 0 | BQ23: 0 | BR23: 0 | BS23: 0 | BT23: =BT13-BT22 -> 0 | BU23: 0 | BV23: 0 | BW23: 0 | BX23: 0 | BY23: 0 | BZ23: 0 | CA23: 0 | CB23: 0 | CC23: 0 | CD23: 0 | CE23: 0 | CF23: 0 | CG23: 0 | CH23: 0 | CI23: 0 | CJ23: 0 | CK23: 0 | CL23: 0 | CM23: 0 | CN23: 0 | CO23: 0 | CP23: 0 | CQ23: 0 | CR23: 0 | CS23: 0 | CT23: 0 | CU23: 0 | CV23: 0 | CW23: 0 | CX23: 0 | CY23: 0 | CZ23: 0 | DA23: 0 | DB23: 0 | DC23: 0 | DD23: 0 | DE23: 0 | DF23: 172.8 | DG23: 0 | DH23: 0 | DI23: 0 | DJ23: 0 | DK23: 0 | DL23: 0 | DM23: 0 | DN23: 0 | DO23: 0 | DP23: 0 | DQ23: 0 | DR23: 0 | DS23: 0 | DT23: 0 | DU23: 0 | DV23: 0 | DW23: 0 | DX23: 0 | DY23: 0 | DZ23: 0 | EA23: 0 | EB23: 0 | EC23: 0 | ED23: 0 | EE23: 0 | EF23: =EF13-EF22 -> 0 | EG23: 0 | EH23: 0 | EI23: 0 | EJ23: 0 | EK23: 0 | EL23: 0 | EM23: 0 | EN23: 0 | EO23: 0 | EP23: 0 | EQ23: 0 | ER23: 0 | ES23: 0 | ET23: 0 | EU23: 0 | EV23: 0 | EW23: 0 | EX23: 0 | EY23: 0 | EZ23: 0 | FA23: 0 | FB23: 0 | FC23: 0 | FD23: 0 | FE23: 0 | FF23: 566.4 | FG23: 0 | FH23: 0 | FI23: 0 | FJ23: 0 | FK23: 0 | FL23: 0 | FM23: 0 | FN23: 0 | FO23: 0 | FP23: 0 | FQ23: 0 | FR23: 0 | FS23: 0 | FT23: 0 | FU23: 0 | FV23: 0 | FW23: 0 | FX23: 0 | FY23: 0 | FZ23: 0 | GA23: 0 | GB23: 0 | GC23: 0 | GD23: 0 | GE23: 0 | GF23: 0 | GG23: 0 | GH23: 0 | GI23: 0 | GJ23: 0 | GK23: 0 | GL23: 0 | GM23: 0 | GN23: 0 | GO23: 0 | GP23: 0 | GQ23: 0 | GR23: =GR13-GR22 -> 0 | GS23: 0 | GT23: 0 | GU23: 0 | GV23: 0 | GW23: 0 | GX23: 0 | GY23: 0 | GZ23: 0 | HA23: 0 | HB23: 0 | HC23: 0 | HD23: 0 | HE23: 345.6 | HF23: 0 | HG23: 0 | HH23: 0 | HI23: 0 | HJ23: 0 | HK23: 0 | HL23: 0 | HM23: 0 | HN23: 0 | HO23: 0 | HP23: 0 | HQ23: 0 | HR23: 0 | HS23: 0 | HT23: 0 | HU23: 0 | HV23: 0 | HW23: 0 | HX23: 0 | HY23: 0 | HZ23: 0 | IA23: 0 | IB23: 0 | IC23: 0 | ID23: 0 | IE23: 0 | IF23: 0 | IG23: 0 | IH23: 0 | II23: 0 | IJ23: 0 | IK23: 0 | IL23: 0 | IM23: 0 | IN23: 0 | IO23: 0 | IP23: 0 | IQ23: 0 | IR23: 0 | IS23: 0 | IT23: 0 | IU23: 0 | IV23: 0 | IW23: 0 | IX23: 0 | IY23: 0 | IZ23: 0 | JA23: 0 | JB23: 0 | JC23: 0 | JD23: =JD13-JD22 -> 163.2 | JE23: 0 | JF23: 0 | JG23: 0 | JH23: 0 | JI23: 0 | JJ23: 0 | JK23: 0 | JL23: 0 | JM23: 0 | JN23: 0 | JO23: 0 | JP23: 0 | JQ23: 0 | JR23: 0 | JS23: 0 | JT23: 0 | JU23: 0 | JV23: 0 | JW23: 0 | JX23: 0 | JY23: 0 | JZ23: 0 | KA23: 0 | KB23: 0 | KC23: 0 | KD23: 0 | KE23: 0 | KF23: 0 | KG23: 0 | KH23: 0 | KI23: 0 | KJ23: 0 | KK23: 0 | KL23: 0 | KM23: 0 | KN23: 0 | KO23: 0 | KP23: 0 | KQ23: 0 | KR23: 0 | KS23: 0 | KT23: 0 | KU23: 0 | KV23: 0 | KW23: 0 | KX23: 0 | KY23: 0 | KZ23: 0 | LA23: 0 | LB23: 0 | LC23: 0 | LD23: 556.8 | LE23: 0 | LF23: 0 | LG23: 0 | LH23: 0 | LI23: 0 | LJ23: 0 | LK23: 0 | LL23: 0 | LM23: 0 | LN23: 0 | LO23: 0 | LP23: =LP13-LP22 -> 0 | LQ23: 0 | LR23: 0 | LS23: 0 | LT23: 0 | LU23: 0 | LV23: 0 | LW23: 0 | LX23: 0 | LY23: 0 | LZ23: 0 | MA23: 0 | MB23: 0 | MC23: 0 | MD23: 0 | ME23: 0 | MF23: 0 | MG23: 0 | MH23: 0 | MI23: 0 | MJ23: 0 | MK23: 0 | ML23: 0 | MM23: 0 | MN23: 0 | MO23: 0 | MP23: 0 | MQ23: 0 | MR23: 0 | MS23: 0 | MT23: 0 | MU23: 0 | MV23: 0 | MW23: 0 | MX23: 0 | MY23: 0 | MZ23: 0 | NA23: 0 | NB23: 0 | NC23: 374.4
C24: Closing Balance | H24: =IF(NOT(H26),H19+H22,H23) -> 595.2 | I24: 1132.8 | J24: 1728 | K24: 2304 | L24: 2899.2 | M24: 3475.2 | N24: 4070.4 | O24: 4665.6 | P24: 5241.6 | Q24: 5836.8 | R24: 6412.8 | S24: 7008 | T24: 7603.2 | U24: 8140.8 | V24: 8736 | W24: 9312 | X24: 9907.2 | Y24: 10483.2 | Z24: 11078.4 | AA24: 11673.6 | AB24: 12249.6 | AC24: 12844.8 | AD24: 13420.8 | AE24: 14016 | AF24: 14611.2 | AG24: 15168 | AH24: 15763.2 | AI24: 16339.2 | AJ24: 16934.4 | AK24: 17510.4 | AL24: 18105.6 | AM24: 18700.8 | AN24: 19276.8 | AO24: 19872 | AP24: 20448 | AQ24: 21043.2 | AR24: 21638.4 | AS24: 22176 | AT24: 22771.2 | AU24: 23347.2 | AV24: 23942.4 | AW24: 24518.4 | AX24: 25113.6 | AY24: 25708.8 | AZ24: 26284.8 | BA24: 26880 | BB24: 27456 | BC24: 28051.2 | BD24: 28646.4 | BE24: =IF(NOT(BE26),BE19+BE22,BE23) -> 29184 | BF24: 29779.2 | BG24: 355.2 | BH24: 950.4 | BI24: 1526.4 | BJ24: 2121.6 | BK24: 2716.8 | BL24: 3292.8 | BM24: 3888 | BN24: =IF(NOT(BN26),BN19+BN22,BN23) -> 4464 | BO24: 5059.2 | BP24: 5654.4 | BQ24: 6192 | BR24: 6787.2 | BS24: 7363.2 | BT24: =IF(NOT(BT26),BT19+BT22,BT23) -> 7958.4 | BU24: 8534.4 | BV24: 9129.6 | BW24: 9724.8 | BX24: 10300.8 | BY24: 10896 | BZ24: 11472 | CA24: 12067.2 | CB24: 12662.4 | CC24: 13219.2 | CD24: 13814.4 | CE24: 14390.4 | CF24: 14985.6 | CG24: 15561.6 | CH24: 16156.8 | CI24: 16752 | CJ24: 17328 | CK24: 17923.2 | CL24: 18499.2 | CM24: 19094.4 | CN24: 19689.6 | CO24: 20227.2 | CP24: 20822.4 | CQ24: 21398.4 | CR24: 21993.6 | CS24: 22569.6 | CT24: 23164.8 | CU24: 23760 | CV24: 24336 | CW24: 24931.2 | CX24: 25507.2 | CY24: 26102.4 | CZ24: 26697.6 | DA24: 27235.2 | DB24: 27830.4 | DC24: 28406.4 | DD24: 29001.6 | DE24: 29577.6 | DF24: 172.8 | DG24: 768 | DH24: 1344 | DI24: 1939.2 | DJ24: 2515.2 | DK24: 3110.4 | DL24: 3705.6 | DM24: 4243.2 | DN24: 4838.4 | DO24: 5414.4 | DP24: 6009.6 | DQ24: 6585.6 | DR24: 7180.8 | DS24: 7776 | DT24: 8352 | DU24: 8947.2 | DV24: 9523.2 | DW24: 10118.4 | DX24: 10713.6 | DY24: 11270.4 | DZ24: 11865.6 | EA24: 12441.6 | EB24: 13036.8 | EC24: 13612.8 | ED24: 14208 | EE24: 14803.2 | EF24: =IF(NOT(EF26),EF19+EF22,EF23) -> 15379.2 | EG24: 15974.4 | EH24: 16550.4 | EI24: 17145.6 | EJ24: 17740.8 | EK24: 18278.4 | EL24: 18873.6 | EM24: 19449.6 | EN24: 20044.8 | EO24: 20620.8 | EP24: 21216 | EQ24: 21811.2 | ER24: 22387.2 | ES24: 22982.4 | ET24: 23558.4 | EU24: 24153.6 | EV24: 24748.8 | EW24: 25286.4 | EX24: 25881.6 | EY24: 26457.6 | EZ24: 27052.8 | FA24: 27628.8 | FB24: 28224 | FC24: 28819.2 | FD24: 29395.2 | FE24: 29990.4 | FF24: 566.4 | FG24: 1161.6 | FH24: 1756.8 | FI24: 2294.4 | FJ24: 2889.6 | FK24: 3465.6 | FL24: 4060.8 | FM24: 4636.8 | FN24: 5232 | FO24: 5827.2 | FP24: 6403.2 | FQ24: 6998.4 | FR24: 7574.4 | FS24: 8169.6 | FT24: 8764.8 | FU24: 9321.6 | FV24: 9916.8 | FW24: 10492.8 | FX24: 11088 | FY24: 11664 | FZ24: 12259.2 | GA24: 12854.4 | GB24: 13430.4 | GC24: 14025.6 | GD24: 14601.6 | GE24: 15196.8 | GF24: 15792 | GG24: 16329.6 | GH24: 16924.8 | GI24: 17500.8 | GJ24: 18096 | GK24: 18672 | GL24: 19267.2 | GM24: 19862.4 | GN24: 20438.4 | GO24: 21033.6 | GP24: 21609.6 | GQ24: 22204.8 | GR24: =IF(NOT(GR26),GR19+GR22,GR23) -> 22800 | GS24: 23337.6 | GT24: 23932.8 | GU24: 24508.8 | GV24: 25104 | GW24: 25680 | GX24: 26275.2 | GY24: 26870.4 | GZ24: 27446.4 | HA24: 28041.6 | HB24: 28617.6 | HC24: 29212.8 | HD24: 29808 | HE24: 345.6 | HF24: 940.8 | HG24: 1516.8 | HH24: 2112 | HI24: 2688 | HJ24: 3283.2 | HK24: 3878.4 | HL24: 4454.4 | HM24: 5049.6 | HN24: 5625.6 | HO24: 6220.8 | HP24: 6816 | HQ24: 7372.8 | HR24: 7968 | HS24: 8544 | HT24: 9139.2 | HU24: 9715.2 | HV24: 10310.4 | HW24: 10905.6 | HX24: 11481.6 | HY24: 12076.8 | HZ24: 12652.8 | IA24: 13248 | IB24: 13843.2 | IC24: 14380.8 | ID24: 14976 | IE24: 15552 | IF24: 16147.2 | IG24: 16723.2 | IH24: 17318.4 | II24: 17913.6 | IJ24: 18489.6 | IK24: 19084.8 | IL24: 19660.8 | IM24: 20256 | IN24: 20851.2 | IO24: 21388.8 | IP24: 21984 | IQ24: 22560 | IR24: 23155.2 | IS24: 23731.2 | IT24: 24326.4 | IU24: 24921.6 | IV24: 25497.6 | IW24: 26092.8 | IX24: 26668.8 | IY24: 27264 | IZ24: 27859.2 | JA24: 28396.8 | JB24: 28992 | JC24: 29568 | JD24: =IF(NOT(JD26),JD19+JD22,JD23) -> 163.2 | JE24: 739.2 | JF24: 1334.4 | JG24: 1929.6 | JH24: 2505.6 | JI24: 3100.8 | JJ24: 3676.8 | JK24: 4272 | JL24: 4867.2 | JM24: 5424 | JN24: 6019.2 | JO24: 6595.2 | JP24: 7190.4 | JQ24: 7766.4 | JR24: 8361.6 | JS24: 8956.8 | JT24: 9532.8 | JU24: 10128 | JV24: 10704 | JW24: 11299.2 | JX24: 11894.4 | JY24: 12432 | JZ24: 13027.2 | KA24: 13603.2 | KB24: 14198.4 | KC24: 14774.4 | KD24: 15369.6 | KE24: 15964.8 | KF24: 16540.8 | KG24: 17136 | KH24: 17712 | KI24: 18307.2 | KJ24: 18902.4 | KK24: 19440 | KL24: 20035.2 | KM24: 20611.2 | KN24: 21206.4 | KO24: 21782.4 | KP24: 22377.6 | KQ24: 22972.8 | KR24: 23548.8 | KS24: 24144 | KT24: 24720 | KU24: 25315.2 | KV24: 25910.4 | KW24: 26448 | KX24: 27043.2 | KY24: 27619.2 | KZ24: 28214.4 | LA24: 28790.4 | LB24: 29385.6 | LC24: 29980.8 | LD24: 556.8 | LE24: 1152 | LF24: 1728 | LG24: 2323.2 | LH24: 2918.4 | LI24: 3475.2 | LJ24: 4070.4 | LK24: 4646.4 | LL24: 5241.6 | LM24: 5817.6 | LN24: 6412.8 | LO24: 7008 | LP24: =IF(NOT(LP26),LP19+LP22,LP23) -> 7584 | LQ24: 8179.2 | LR24: 8755.2 | LS24: 9350.4 | LT24: 9945.6 | LU24: 10483.2 | LV24: 11078.4 | LW24: 11654.4 | LX24: 12249.6 | LY24: 12825.6 | LZ24: 13420.8 | MA24: 14016 | MB24: 14592 | MC24: 15187.2 | MD24: 15763.2 | ME24: 16358.4 | MF24: 16953.6 | MG24: 17491.2 | MH24: 18086.4 | MI24: 18662.4 | MJ24: 19257.6 | MK24: 19833.6 | ML24: 20428.8 | MM24: 21024 | MN24: 21600 | MO24: 22195.2 | MP24: 22771.2 | MQ24: 23366.4 | MR24: 23961.6 | MS24: 24499.2 | MT24: 25094.4 | MU24: 25670.4 | MV24: 26265.6 | MW24: 26841.6 | MX24: 27436.8 | MY24: 28032 | MZ24: 28608 | NA24: 29203.2 | NB24: 29779.2 | NC24: 374.4
C26: End of Run Period | H26: =H22<>H13 -> FALSE | I26: FALSE | J26: FALSE | K26: FALSE | L26: FALSE | M26: FALSE | N26: FALSE | O26: FALSE | P26: FALSE | Q26: FALSE | R26: FALSE | S26: FALSE | T26: FALSE | U26: FALSE | V26: FALSE | W26: FALSE | X26: FALSE | Y26: FALSE | Z26: FALSE | AA26: FALSE | AB26: FALSE | AC26: FALSE | AD26: FALSE | AE26: FALSE | AF26: FALSE | AG26: FALSE | AH26: FALSE | AI26: FALSE | AJ26: FALSE | AK26: FALSE | AL26: FALSE | AM26: FALSE | AN26: FALSE | AO26: FALSE | AP26: FALSE | AQ26: FALSE | AR26: FALSE | AS26: FALSE | AT26: FALSE | AU26: FALSE | AV26: FALSE | AW26: FALSE | AX26: FALSE | AY26: FALSE | AZ26: FALSE | BA26: FALSE | BB26: FALSE | BC26: FALSE | BD26: FALSE | BE26: FALSE | BF26: FALSE | BG26: TRUE | BH26: FALSE | BI26: FALSE | BJ26: FALSE | BK26: FALSE | BL26: FALSE | BM26: FALSE | BN26: FALSE | BO26: FALSE | BP26: FALSE | BQ26: FALSE | BR26: FALSE | BS26: FALSE | BT26: =BT22<>BT13 -> FALSE | BU26: FALSE | BV26: FALSE | BW26: FALSE | BX26: FALSE | BY26: FALSE | BZ26: FALSE | CA26: FALSE | CB26: FALSE | CC26: FALSE | CD26: FALSE | CE26: FALSE | CF26: FALSE | CG26: FALSE | CH26: FALSE | CI26: FALSE | CJ26: FALSE | CK26: FALSE | CL26: FALSE | CM26: FALSE | CN26: FALSE | CO26: FALSE | CP26: FALSE | CQ26: FALSE | CR26: FALSE | CS26: FALSE | CT26: FALSE | CU26: FALSE | CV26: FALSE | CW26: FALSE | CX26: FALSE | CY26: FALSE | CZ26: FALSE | DA26: FALSE | DB26: FALSE | DC26: FALSE | DD26: FALSE | DE26: FALSE | DF26: TRUE | DG26: FALSE | DH26: FALSE | DI26: FALSE | DJ26: FALSE | DK26: FALSE | DL26: FALSE | DM26: FALSE | DN26: FALSE | DO26: FALSE | DP26: FALSE | DQ26: FALSE | DR26: FALSE | DS26: FALSE | DT26: FALSE | DU26: FALSE | DV26: FALSE | DW26: FALSE | DX26: FALSE | DY26: FALSE | DZ26: FALSE | EA26: FALSE | EB26: FALSE | EC26: FALSE | ED26: FALSE | EE26: FALSE | EF26: =EF22<>EF13 -> FALSE | EG26: FALSE | EH26: FALSE | EI26: FALSE | EJ26: FALSE | EK26: FALSE | EL26: FALSE | EM26: FALSE | EN26: FALSE | EO26: FALSE | EP26: FALSE | EQ26: FALSE | ER26: FALSE | ES26: FALSE | ET26: FALSE | EU26: FALSE | EV26: FALSE | EW26: FALSE | EX26: FALSE | EY26: FALSE | EZ26: FALSE | FA26: FALSE | FB26: FALSE | FC26: FALSE | FD26: FALSE | FE26: FALSE | FF26: TRUE | FG26: FALSE | FH26: FALSE | FI26: FALSE | FJ26: FALSE | FK26: FALSE | FL26: FALSE | FM26: FALSE | FN26: FALSE | FO26: FALSE | FP26: FALSE | FQ26: FALSE | FR26: FALSE | FS26: FALSE | FT26: FALSE | FU26: FALSE | FV26: FALSE | FW26: FALSE | FX26: FALSE | FY26: FALSE | FZ26: FALSE | GA26: FALSE | GB26: FALSE | GC26: FALSE | GD26: FALSE | GE26: FALSE | GF26: FALSE | GG26: FALSE | GH26: FALSE | GI26: FALSE | GJ26: FALSE | GK26: FALSE | GL26: FALSE | GM26: FALSE | GN26: FALSE | GO26: FALSE | GP26: FALSE | GQ26: FALSE | GR26: =GR22<>GR13 -> FALSE | GS26: FALSE | GT26: FALSE | GU26: FALSE | GV26: FALSE | GW26: FALSE | GX26: FALSE | GY26: FALSE | GZ26: FALSE | HA26: FALSE | HB26: FALSE | HC26: FALSE | HD26: FALSE | HE26: TRUE | HF26: FALSE | HG26: FALSE | HH26: FALSE | HI26: FALSE | HJ26: FALSE | HK26: FALSE | HL26: FALSE | HM26: FALSE | HN26: FALSE | HO26: FALSE | HP26: FALSE | HQ26: FALSE | HR26: FALSE | HS26: FALSE | HT26: FALSE | HU26: FALSE | HV26: FALSE | HW26: FALSE | HX26: FALSE | HY26: FALSE | HZ26: FALSE | IA26: FALSE | IB26: FALSE | IC26: FALSE | ID26: FALSE | IE26: FALSE | IF26: FALSE | IG26: FALSE | IH26: FALSE | II26: FALSE | IJ26: FALSE | IK26: FALSE | IL26: FALSE | IM26: FALSE | IN26: FALSE | IO26: FALSE | IP26: FALSE | IQ26: FALSE | IR26: FALSE | IS26: FALSE | IT26: FALSE | IU26: FALSE | IV26: FALSE | IW26: FALSE | IX26: FALSE | IY26: FALSE | IZ26: FALSE | JA26: FALSE | JB26: FALSE | JC26: FALSE | JD26: =JD22<>JD13 -> TRUE | JE26: FALSE | JF26: FALSE | JG26: FALSE | JH26: FALSE | JI26: FALSE | JJ26: FALSE | JK26: FALSE | JL26: FALSE | JM26: FALSE | JN26: FALSE | JO26: FALSE | JP26: FALSE | JQ26: FALSE | JR26: FALSE | JS26: FALSE | JT26: FALSE | JU26: FALSE | JV26: FALSE | JW26: FALSE | JX26: FALSE | JY26: FALSE | JZ26: FALSE | KA26: FALSE | KB26: FALSE | KC26: FALSE | KD26: FALSE | KE26: FALSE | KF26: FALSE | KG26: FALSE | KH26: FALSE | KI26: FALSE | KJ26: FALSE | KK26: FALSE | KL26: FALSE | KM26: FALSE | KN26: FALSE | KO26: FALSE | KP26: FALSE | KQ26: FALSE | KR26: FALSE | KS26: FALSE | KT26: FALSE | KU26: FALSE | KV26: FALSE | KW26: FALSE | KX26: FALSE | KY26: FALSE | KZ26: FALSE | LA26: FALSE | LB26: FALSE | LC26: FALSE | LD26: TRUE | LE26: FALSE | LF26: FALSE | LG26: FALSE | LH26: FALSE | LI26: FALSE | LJ26: FALSE | LK26: FALSE | LL26: FALSE | LM26: FALSE | LN26: FALSE | LO26: FALSE | LP26: =LP22<>LP13 -> FALSE | LQ26: FALSE | LR26: FALSE | LS26: FALSE | LT26: FALSE | LU26: FALSE | LV26: FALSE | LW26: FALSE | LX26: FALSE | LY26: FALSE | LZ26: FALSE | MA26: FALSE | MB26: FALSE | MC26: FALSE | MD26: FALSE | ME26: FALSE | MF26: FALSE | MG26: FALSE | MH26: FALSE | MI26: FALSE | MJ26: FALSE | MK26: FALSE | ML26: FALSE | MM26: FALSE | MN26: FALSE | MO26: FALSE | MP26: FALSE | MQ26: FALSE | MR26: FALSE | MS26: FALSE | MT26: FALSE | MU26: FALSE | MV26: FALSE | MW26: FALSE | MX26: FALSE | MY26: FALSE | MZ26: FALSE | NA26: FALSE | NB26: FALSE | NC26: TRUE
C28: Cost of Overhaul - Real | D28: RM/kW | E28: 500 | H28: =$E$28 -> 500 | I28: =$E$28 -> 500 | J28: 500 | K28: 500 | L28: 500 | M28: 500 | N28: 500 | O28: 500 | P28: 500 | Q28: 500 | R28: 500 | S28: 500 | T28: 500 | U28: 500 | V28: 500 | W28: 500 | X28: 500 | Y28: 500 | Z28: 500 | AA28: 500 | AB28: 500 | AC28: 500 | AD28: 500 | AE28: 500 | AF28: 500 | AG28: 500 | AH28: 500 | AI28: 500 | AJ28: 500 | AK28: 500 | AL28: 500 | AM28: 500 | AN28: 500 | AO28: 500 | AP28: 500 | AQ28: 500 | AR28: 500 | AS28: 500 | AT28: 500 | AU28: 500 | AV28: 500 | AW28: 500 | AX28: 500 | AY28: 500 | AZ28: 500 | BA28: 500 | BB28: 500 | BC28: 500 | BD28: 500 | BE28: 500 | BF28: 500 | BG28: 500 | BH28: 500 | BI28: 500 | BJ28: 500 | BK28: 500 | BL28: 500 | BM28: 500 | BN28: 500 | BO28: 500 | BP28: 500 | BQ28: 500 | BR28: 500 | BS28: 500 | BT28: 500 | BU28: =$E$28 -> 500 | BV28: 500 | BW28: 500 | BX28: 500 | BY28: 500 | BZ28: 500 | CA28: 500 | CB28: 500 | CC28: 500 | CD28: 500 | CE28: 500 | CF28: 500 | CG28: 500 | CH28: 500 | CI28: 500 | CJ28: 500 | CK28: 500 | CL28: 500 | CM28: 500 | CN28: 500 | CO28: 500 | CP28: 500 | CQ28: 500 | CR28: 500 | CS28: 500 | CT28: 500 | CU28: 500 | CV28: 500 | CW28: 500 | CX28: 500 | CY28: 500 | CZ28: 500 | DA28: 500 | DB28: 500 | DC28: 500 | DD28: 500 | DE28: 500 | DF28: 500 | DG28: 500 | DH28: 500 | DI28: 500 | DJ28: 500 | DK28: 500 | DL28: 500 | DM28: 500 | DN28: 500 | DO28: 500 | DP28: 500 | DQ28: 500 | DR28: 500 | DS28: 500 | DT28: 500 | DU28: 500 | DV28: 500 | DW28: 500 | DX28: 500 | DY28: 500 | DZ28: 500 | EA28: 500 | EB28: 500 | EC28: 500 | ED28: 500 | EE28: 500 | EF28: 500 | EG28: =$E$28 -> 500 | EH28: 500 | EI28: 500 | EJ28: 500 | EK28: 500 | EL28: 500 | EM28: 500 | EN28: 500 | EO28: 500 | EP28: 500 | EQ28: 500 | ER28: 500 | ES28: 500 | ET28: 500 | EU28: 500 | EV28: 500 | EW28: 500 | EX28: 500 | EY28: 500 | EZ28: 500 | FA28: 500 | FB28: 500 | FC28: 500 | FD28: 500 | FE28: 500 | FF28: 500 | FG28: 500 | FH28: 500 | FI28: 500 | FJ28: 500 | FK28: 500 | FL28: 500 | FM28: 500 | FN28: 500 | FO28: 500 | FP28: 500 | FQ28: 500 | FR28: 500 | FS28: 500 | FT28: 500 | FU28: 500 | FV28: 500 | FW28: 500 | FX28: 500 | FY28: 500 | FZ28: 500 | GA28: 500 | GB28: 500 | GC28: 500 | GD28: 500 | GE28: 500 | GF28: 500 | GG28: 500 | GH28: 500 | GI28: 500 | GJ28: 500 | GK28: 500 | GL28: 500 | GM28: 500 | GN28: 500 | GO28: 500 | GP28: 500 | GQ28: 500 | GR28: 500 | GS28: =$E$28 -> 500 | GT28: 500 | GU28: 500 | GV28: 500 | GW28: 500 | GX28: 500 | GY28: 500 | GZ28: 500 | HA28: 500 | HB28: 500 | HC28: 500 | HD28: 500 | HE28: 500 | HF28: 500 | HG28: 500 | HH28: 500 | HI28: 500 | HJ28: 500 | HK28: 500 | HL28: 500 | HM28: 500 | HN28: 500 | HO28: 500 | HP28: 500 | HQ28: 500 | HR28: 500 | HS28: 500 | HT28: 500 | HU28: 500 | HV28: 500 | HW28: 500 | HX28: 500 | HY28: 500 | HZ28: 500 | IA28: 500 | IB28: 500 | IC28: 500 | ID28: 500 | IE28: 500 | IF28: 500 | IG28: 500 | IH28: 500 | II28: 500 | IJ28: 500 | IK28: 500 | IL28: 500 | IM28: 500 | IN28: 500 | IO28: 500 | IP28: 500 | IQ28: 500 | IR28: 500 | IS28: 500 | IT28: 500 | IU28: 500 | IV28: 500 | IW28: 500 | IX28: 500 | IY28: 500 | IZ28: 500 | JA28: 500 | JB28: 500 | JC28: 500 | JD28: 500 | JE28: =$E$28 -> 500 | JF28: 500 | JG28: 500 | JH28: 500 | JI28: 500 | JJ28: 500 | JK28: 500 | JL28: 500 | JM28: 500 | JN28: 500 | JO28: 500 | JP28: 500 | JQ28: 500 | JR28: 500 | JS28: 500 | JT28: 500 | JU28: 500 | JV28: 500 | JW28: 500 | JX28: 500 | JY28: 500 | JZ28: 500 | KA28: 500 | KB28: 500 | KC28: 500 | KD28: 500 | KE28: 500 | KF28: 500 | KG28: 500 | KH28: 500 | KI28: 500 | KJ28: 500 | KK28: 500 | KL28: 500 | KM28: 500 | KN28: 500 | KO28: 500 | KP28: 500 | KQ28: 500 | KR28: 500 | KS28: 500 | KT28: 500 | KU28: 500 | KV28: 500 | KW28: 500 | KX28: 500 | KY28: 500 | KZ28: 500 | LA28: 500 | LB28: 500 | LC28: 500 | LD28: 500 | LE28: 500 | LF28: 500 | LG28: 500 | LH28: 500 | LI28: 500 | LJ28: 500 | LK28: 500 | LL28: 500 | LM28: 500 | LN28: 500 | LO28: 500 | LP28: 500 | LQ28: =$E$28 -> 500 | LR28: 500 | LS28: 500 | LT28: 500 | LU28: 500 | LV28: 500 | LW28: 500 | LX28: 500 | LY28: 500 | LZ28: 500 | MA28: 500 | MB28: 500 | MC28: 500 | MD28: 500 | ME28: 500 | MF28: 500 | MG28: 500 | MH28: 500 | MI28: 500 | MJ28: 500 | MK28: 500 | ML28: 500 | MM28: 500 | MN28: 500 | MO28: 500 | MP28: 500 | MQ28: 500 | MR28: 500 | MS28: 500 | MT28: 500 | MU28: 500 | MV28: 500 | MW28: 500 | MX28: 500 | MY28: 500 | MZ28: 500 | NA28: 500 | NB28: 500 | NC28: 500
C29: Inflation Index | D29: % | E29: 0.02 | F29: =(1+E29)^(1/12)-1 -> 0.001651581302 | G29: 1 | H29: =G29*(1+$F$29) -> 1.001651581 | I29: =H29*(1+$F$29) -> 1.00330589 | J29: 1.004962932 | K29: 1.00662271 | L29: 1.008285229 | M29: 1.009950494 | N29: 1.011618509 | O29: 1.013289279 | P29: 1.014962809 | Q29: 1.016639103 | R29: 1.018318165 | S29: 1.02 | T29: 1.021684613 | U29: 1.023372008 | V29: 1.02506219 | W29: 1.026755164 | X29: 1.028450933 | Y29: 1.030149504 | Z29: 1.031850879 | AA29: 1.033555065 | AB29: 1.035262065 | AC29: 1.036971885 | AD29: 1.038684528 | AE29: 1.0404 | AF29: 1.042118305 | AG29: 1.043839448 | AH29: 1.045563434 | AI29: 1.047290267 | AJ29: 1.049019952 | AK29: 1.050752494 | AL29: 1.052487897 | AM29: 1.054226166 | AN29: 1.055967307 | AO29: 1.057711322 | AP29: 1.059458219 | AQ29: 1.061208 | AR29: 1.062960671 | AS29: 1.064716237 | AT29: 1.066474703 | AU29: 1.068236072 | AV29: 1.070000351 | AW29: 1.071767544 | AX29: 1.073537655 | AY29: 1.07531069 | AZ29: 1.077086653 | BA29: 1.078865549 | BB29: 1.080647383 | BC29: 1.08243216 | BD29: 1.084219885 | BE29: 1.086010562 | BF29: 1.087804197 | BG29: 1.089600794 | BH29: 1.091400358 | BI29: 1.093202895 | BJ29: 1.095008408 | BK29: 1.096816903 | BL29: 1.098628386 | BM29: 1.10044286 | BN29: 1.102260331 | BO29: 1.104080803 | BP29: 1.105904282 | BQ29: 1.107730773 | BR29: 1.109560281 | BS29: 1.11139281 | BT29: 1.113228365 | BU29: =BT29*(1+$F$29) -> 1.115066952 | BV29: 1.116908576 | BW29: 1.118753241 | BX29: 1.120600953 | BY29: 1.122451717 | BZ29: 1.124305537 | CA29: 1.126162419 | CB29: 1.128022368 | CC29: 1.129885389 | CD29: 1.131751486 | CE29: 1.133620666 | CF29: 1.135492933 | CG29: 1.137368291 | CH29: 1.139246748 | CI29: 1.141128306 | CJ29: 1.143012972 | CK29: 1.144900751 | CL29: 1.146791648 | CM29: 1.148685668 | CN29: 1.150582815 | CO29: 1.152483096 | CP29: 1.154386516 | CQ29: 1.156293079 | CR29: 1.158202791 | CS29: 1.160115657 | CT29: 1.162031683 | CU29: 1.163950872 | CV29: 1.165873232 | CW29: 1.167798766 | CX29: 1.169727481 | CY29: 1.171659381 | CZ29: 1.173594472 | DA29: 1.175532758 | DB29: 1.177474246 | DC29: 1.179418941 | DD29: 1.181366847 | DE29: 1.18331797 | DF29: 1.185272316 | DG29: 1.18722989 | DH29: 1.189190697 | DI29: 1.191154742 | DJ29: 1.193122031 | DK29: 1.195092569 | DL29: 1.197066361 | DM29: 1.199043414 | DN29: 1.201023731 | DO29: 1.20300732 | DP29: 1.204994184 | DQ29: 1.20698433 | DR29: 1.208977763 | DS29: 1.210974488 | DT29: 1.21297451 | DU29: 1.214977837 | DV29: 1.216984471 | DW29: 1.21899442 | DX29: 1.221007688 | DY29: 1.223024282 | DZ29: 1.225044206 | EA29: 1.227067466 | EB29: 1.229094068 | EC29: 1.231124016 | ED29: 1.233157318 | EE29: 1.235193977 | EF29: 1.237234001 | EG29: =EF29*(1+$F$29) -> 1.239277393 | EH29: 1.241324161 | EI29: 1.243374308 | EJ29: 1.245427842 | EK29: 1.247484767 | EL29: 1.24954509 | EM29: 1.251608815 | EN29: 1.253675949 | EO29: 1.255746497 | EP29: 1.257820464 | EQ29: 1.259897857 | ER29: 1.261978681 | ES29: 1.264062941 | ET29: 1.266150644 | EU29: 1.268241795 | EV29: 1.270336399 | EW29: 1.272434463 | EX29: 1.274535992 | EY29: 1.276640992 | EZ29: 1.278749468 | FA29: 1.280861427 | FB29: 1.282976874 | FC29: 1.285095814 | FD29: 1.287218254 | FE29: 1.2893442 | FF29: 1.291473657 | FG29: 1.29360663 | FH29: 1.295743127 | FI29: 1.297883152 | FJ29: 1.300026712 | FK29: 1.302173811 | FL29: 1.304324457 | FM29: 1.306478655 | FN29: 1.308636411 | FO29: 1.31079773 | FP29: 1.312962619 | FQ29: 1.315131084 | FR29: 1.31730313 | FS29: 1.319478763 | FT29: 1.32165799 | FU29: 1.323840815 | FV29: 1.326027246 | FW29: 1.328217288 | FX29: 1.330410947 | FY29: 1.332608228 | FZ29: 1.334809139 | GA29: 1.337013685 | GB29: 1.339221872 | GC29: 1.341433706 | GD29: 1.343649192 | GE29: 1.345868338 | GF29: 1.348091149 | GG29: 1.350317631 | GH29: 1.352547791 | GI29: 1.354781633 | GJ29: 1.357019165 | GK29: 1.359260393 | GL29: 1.361505322 | GM29: 1.363753959 | GN29: 1.366006309 | GO29: 1.36826238 | GP29: 1.370522176 | GQ29: 1.372785705 | GR29: 1.375052972 | GS29: =GR29*(1+$F$29) -> 1.377323984 | GT29: 1.379598747 | GU29: 1.381877266 | GV29: 1.384159549 | GW29: 1.386445601 | GX29: 1.388735428 | GY29: 1.391029038 | GZ29: 1.393326435 | HA29: 1.395627627 | HB29: 1.39793262 | HC29: 1.400241419 | HD29: 1.402554032 | HE29: 1.404870464 | HF29: 1.407190722 | HG29: 1.409514811 | HH29: 1.41184274 | HI29: 1.414174513 | HJ29: 1.416510137 | HK29: 1.418849619 | HL29: 1.421192964 | HM29: 1.42354018 | HN29: 1.425891272 | HO29: 1.428246248 | HP29: 1.430605112 | HQ29: 1.432967873 | HR29: 1.435334536 | HS29: 1.437705108 | HT29: 1.440079595 | HU29: 1.442458003 | HV29: 1.44484034 | HW29: 1.447226611 | HX29: 1.449616823 | HY29: 1.452010983 | HZ29: 1.454409098 | IA29: 1.456811173 | IB29: 1.459217215 | IC29: 1.46162723 | ID29: 1.464041227 | IE29: 1.46645921 | IF29: 1.468881186 | IG29: 1.471307163 | IH29: 1.473737147 | II29: 1.476171143 | IJ29: 1.47860916 | IK29: 1.481051203 | IL29: 1.48349728 | IM29: 1.485947396 | IN29: 1.488401559 | IO29: 1.490859775 | IP29: 1.493322051 | IQ29: 1.495788394 | IR29: 1.49825881 | IS29: 1.500733306 | IT29: 1.503211889 | IU29: 1.505694566 | IV29: 1.508181343 | IW29: 1.510672227 | IX29: 1.513167225 | IY29: 1.515666344 | IZ29: 1.51816959 | JA29: 1.520676971 | JB29: 1.523188492 | JC29: 1.525704162 | JD29: 1.528223986 | JE29: =JD29*(1+$F$29) -> 1.530747973 | JF29: 1.533276127 | JG29: 1.535808457 | JH29: 1.53834497 | JI29: 1.540885672 | JJ29: 1.54343057 | JK29: 1.545979671 | JL29: 1.548532982 | JM29: 1.55109051 | JN29: 1.553652262 | JO29: 1.556218245 | JP29: 1.558788466 | JQ29: 1.561362932 | JR29: 1.56394165 | JS29: 1.566524627 | JT29: 1.569111869 | JU29: 1.571703385 | JV29: 1.574299181 | JW29: 1.576899264 | JX29: 1.579503642 | JY29: 1.58211232 | JZ29: 1.584725307 | KA29: 1.58734261 | KB29: 1.589964235 | KC29: 1.592590191 | KD29: 1.595220483 | KE29: 1.597855119 | KF29: 1.600494107 | KG29: 1.603137453 | KH29: 1.605785165 | KI29: 1.608437249 | KJ29: 1.611093714 | KK29: 1.613754567 | KL29: 1.616419813 | KM29: 1.619089462 | KN29: 1.62176352 | KO29: 1.624441994 | KP29: 1.627124892 | KQ29: 1.629812221 | KR29: 1.632503989 | KS29: 1.635200202 | KT29: 1.637900868 | KU29: 1.640605994 | KV29: 1.643315589 | KW29: 1.646029658 | KX29: 1.64874821 | KY29: 1.651471251 | KZ29: 1.654198791 | LA29: 1.656930834 | LB29: 1.65966739 | LC29: 1.662408466 | LD29: 1.665154069 | LE29: 1.667904206 | LF29: 1.670658885 | LG29: 1.673418114 | LH29: 1.6761819 | LI29: 1.678950251 | LJ29: 1.681723174 | LK29: 1.684500676 | LL29: 1.687282766 | LM29: 1.690069451 | LN29: 1.692860738 | LO29: 1.695656635 | LP29: 1.69845715 | LQ29: =LP29*(1+$F$29) -> 1.70126229 | LR29: 1.704072063 | LS29: 1.706886477 | LT29: 1.709705538 | LU29: 1.712529256 | LV29: 1.715357637 | LW29: 1.71819069 | LX29: 1.721028422 | LY29: 1.72387084 | LZ29: 1.726717953 | MA29: 1.729569768 | MB29: 1.732426293 | MC29: 1.735287536 | MD29: 1.738153504 | ME29: 1.741024206 | MF29: 1.743899649 | MG29: 1.746779841 | MH29: 1.74966479 | MI29: 1.752554504 | MJ29: 1.75544899 | MK29: 1.758348257 | ML29: 1.761252312 | MM29: 1.764161163 | MN29: 1.767074819 | MO29: 1.769993287 | MP29: 1.772916574 | MQ29: 1.77584469 | MR29: 1.778777642 | MS29: 1.781715438 | MT29: 1.784658086 | MU29: 1.787605594 | MV29: 1.79055797 | MW29: 1.793515222 | MX29: 1.796477358 | MY29: 1.799444387 | MZ29: 1.802416315 | NA29: 1.805393152 | NB29: 1.808374906 | NC29: 1.811361584
C30: Cost for Overhaul | D30: RM/kWh | E30: 500 | H30: =H11*1000*$E$30*H26*H29 -> 0 | I30: 0 | J30: 0 | K30: 0 | L30: 0 | M30: 0 | N30: 0 | O30: 0 | P30: 0 | Q30: 0 | R30: 0 | S30: 0 | T30: 0 | U30: 0 | V30: 0 | W30: 0 | X30: 0 | Y30: 0 | Z30: 0 | AA30: 0 | AB30: 0 | AC30: 0 | AD30: 0 | AE30: 0 | AF30: 0 | AG30: 0 | AH30: 0 | AI30: 0 | AJ30: 0 | AK30: 0 | AL30: 0 | AM30: 0 | AN30: 0 | AO30: 0 | AP30: 0 | AQ30: 0 | AR30: 0 | AS30: 0 | AT30: 0 | AU30: 0 | AV30: 0 | AW30: 0 | AX30: 0 | AY30: 0 | AZ30: 0 | BA30: 0 | BB30: 0 | BC30: 0 | BD30: 0 | BE30: 0 | BF30: 0 | BG30: 272400198.5 | BH30: 0 | BI30: 0 | BJ30: 0 | BK30: 0 | BL30: 0 | BM30: 0 | BN30: 0 | BO30: 0 | BP30: 0 | BQ30: 0 | BR30: 0 | BS30: 0 | BT30: =BT11*1000*$E$30*BT26*BT29 -> 0 | BU30: 0 | BV30: 0 | BW30: 0 | BX30: 0 | BY30: 0 | BZ30: 0 | CA30: 0 | CB30: 0 | CC30: 0 | CD30: 0 | CE30: 0 | CF30: 0 | CG30: 0 | CH30: 0 | CI30: 0 | CJ30: 0 | CK30: 0 | CL30: 0 | CM30: 0 | CN30: 0 | CO30: 0 | CP30: 0 | CQ30: 0 | CR30: 0 | CS30: 0 | CT30: 0 | CU30: 0 | CV30: 0 | CW30: 0 | CX30: 0 | CY30: 0 | CZ30: 0 | DA30: 0 | DB30: 0 | DC30: 0 | DD30: 0 | DE30: 0 | DF30: 296318079.1 | DG30: 0 | DH30: 0 | DI30: 0 | DJ30: 0 | DK30: 0 | DL30: 0 | DM30: 0 | DN30: 0 | DO30: 0 | DP30: 0 | DQ30: 0 | DR30: 0 | DS30: 0 | DT30: 0 | DU30: 0 | DV30: 0 | DW30: 0 | DX30: 0 | DY30: 0 | DZ30: 0 | EA30: 0 | EB30: 0 | EC30: 0 | ED30: 0 | EE30: 0 | EF30: =EF11*1000*$E$30*EF26*EF29 -> 0 | EG30: 0 | EH30: 0 | EI30: 0 | EJ30: 0 | EK30: 0 | EL30: 0 | EM30: 0 | EN30: 0 | EO30: 0 | EP30: 0 | EQ30: 0 | ER30: 0 | ES30: 0 | ET30: 0 | EU30: 0 | EV30: 0 | EW30: 0 | EX30: 0 | EY30: 0 | EZ30: 0 | FA30: 0 | FB30: 0 | FC30: 0 | FD30: 0 | FE30: 0 | FF30: 322868414.2 | FG30: 0 | FH30: 0 | FI30: 0 | FJ30: 0 | FK30: 0 | FL30: 0 | FM30: 0 | FN30: 0 | FO30: 0 | FP30: 0 | FQ30: 0 | FR30: 0 | FS30: 0 | FT30: 0 | FU30: 0 | FV30: 0 | FW30: 0 | FX30: 0 | FY30: 0 | FZ30: 0 | GA30: 0 | GB30: 0 | GC30: 0 | GD30: 0 | GE30: 0 | GF30: 0 | GG30: 0 | GH30: 0 | GI30: 0 | GJ30: 0 | GK30: 0 | GL30: 0 | GM30: 0 | GN30: 0 | GO30: 0 | GP30: 0 | GQ30: 0 | GR30: =GR11*1000*$E$30*GR26*GR29 -> 0 | GS30: 0 | GT30: 0 | GU30: 0 | GV30: 0 | GW30: 0 | GX30: 0 | GY30: 0 | GZ30: 0 | HA30: 0 | HB30: 0 | HC30: 0 | HD30: 0 | HE30: 351217615.9 | HF30: 0 | HG30: 0 | HH30: 0 | HI30: 0 | HJ30: 0 | HK30: 0 | HL30: 0 | HM30: 0 | HN30: 0 | HO30: 0 | HP30: 0 | HQ30: 0 | HR30: 0 | HS30: 0 | HT30: 0 | HU30: 0 | HV30: 0 | HW30: 0 | HX30: 0 | HY30: 0 | HZ30: 0 | IA30: 0 | IB30: 0 | IC30: 0 | ID30: 0 | IE30: 0 | IF30: 0 | IG30: 0 | IH30: 0 | II30: 0 | IJ30: 0 | IK30: 0 | IL30: 0 | IM30: 0 | IN30: 0 | IO30: 0 | IP30: 0 | IQ30: 0 | IR30: 0 | IS30: 0 | IT30: 0 | IU30: 0 | IV30: 0 | IW30: 0 | IX30: 0 | IY30: 0 | IZ30: 0 | JA30: 0 | JB30: 0 | JC30: 0 | JD30: =JD11*1000*$E$30*JD26*JD29 -> 382055996.6 | JE30: 0 | JF30: 0 | JG30: 0 | JH30: 0 | JI30: 0 | JJ30: 0 | JK30: 0 | JL30: 0 | JM30: 0 | JN30: 0 | JO30: 0 | JP30: 0 | JQ30: 0 | JR30: 0 | JS30: 0 | JT30: 0 | JU30: 0 | JV30: 0 | JW30: 0 | JX30: 0 | JY30: 0 | JZ30: 0 | KA30: 0 | KB30: 0 | KC30: 0 | KD30: 0 | KE30: 0 | KF30: 0 | KG30: 0 | KH30: 0 | KI30: 0 | KJ30: 0 | KK30: 0 | KL30: 0 | KM30: 0 | KN30: 0 | KO30: 0 | KP30: 0 | KQ30: 0 | KR30: 0 | KS30: 0 | KT30: 0 | KU30: 0 | KV30: 0 | KW30: 0 | KX30: 0 | KY30: 0 | KZ30: 0 | LA30: 0 | LB30: 0 | LC30: 0 | LD30: 416288517.2 | LE30: 0 | LF30: 0 | LG30: 0 | LH30: 0 | LI30: 0 | LJ30: 0 | LK30: 0 | LL30: 0 | LM30: 0 | LN30: 0 | LO30: 0 | LP30: =LP11*1000*$E$30*LP26*LP29 -> 0 | LQ30: 0 | LR30: 0 | LS30: 0 | LT30: 0 | LU30: 0 | LV30: 0 | LW30: 0 | LX30: 0 | LY30: 0 | LZ30: 0 | MA30: 0 | MB30: 0 | MC30: 0 | MD30: 0 | ME30: 0 | MF30: 0 | MG30: 0 | MH30: 0 | MI30: 0 | MJ30: 0 | MK30: 0 | ML30: 0 | MM30: 0 | MN30: 0 | MO30: 0 | MP30: 0 | MQ30: 0 | MR30: 0 | MS30: 0 | MT30: 0 | MU30: 0 | MV30: 0 | MW30: 0 | MX30: 0 | MY30: 0 | MZ30: 0 | NA30: 0 | NB30: 0 | NC30: 452840396
C32: Discount Rate | D32: % | E32: 0.06
C33: Present Value of Cost | E33: =XNPV(E32,H30:NC30,H3:NC3) -> 958360128.9
C34: Present Value for Generation | E34: =XNPV(E32,H14:NC14,H3:NC3) -> 49801760.26
C35: Levelized Cost of Overhaul - Variable Cost | E35: =E33/E34 -> 19.2434991
C37: Overhaul Counter | E37: =E12 -> 0.8 | H37: =G37+H26 -> 0 | I37: =H37+I26 -> 0 | J37: 0 | K37: 0 | L37: 0 | M37: 0 | N37: 0 | O37: 0 | P37: 0 | Q37: 0 | R37: 0 | S37: 0 | T37: 0 | U37: 0 | V37: 0 | W37: 0 | X37: 0 | Y37: 0 | Z37: 0 | AA37: 0 | AB37: 0 | AC37: 0 | AD37: 0 | AE37: 0 | AF37: 0 | AG37: 0 | AH37: 0 | AI37: 0 | AJ37: 0 | AK37: 0 | AL37: 0 | AM37: 0 | AN37: 0 | AO37: 0 | AP37: 0 | AQ37: 0 | AR37: 0 | AS37: 0 | AT37: 0 | AU37: 0 | AV37: 0 | AW37: 0 | AX37: 0 | AY37: 0 | AZ37: 0 | BA37: 0 | BB37: 0 | BC37: 0 | BD37: 0 | BE37: 0 | BF37: 0 | BG37: 1 | BH37: 1 | BI37: 1 | BJ37: 1 | BK37: 1 | BL37: 1 | BM37: 1 | BN37: 1 | BO37: 1 | BP37: 1 | BQ37: 1 | BR37: 1 | BS37: 1 | BT37: 1 | BU37: =BT37+BU26 -> 1 | BV37: 1 | BW37: 1 | BX37: 1 | BY37: 1 | BZ37: 1 | CA37: 1 | CB37: 1 | CC37: 1 | CD37: 1 | CE37: 1 | CF37: 1 | CG37: 1 | CH37: 1 | CI37: 1 | CJ37: 1 | CK37: 1 | CL37: 1 | CM37: 1 | CN37: 1 | CO37: 1 | CP37: 1 | CQ37: 1 | CR37: 1 | CS37: 1 | CT37: 1 | CU37: 1 | CV37: 1 | CW37: 1 | CX37: 1 | CY37: 1 | CZ37: 1 | DA37: 1 | DB37: 1 | DC37: 1 | DD37: 1 | DE37: 1 | DF37: 2 | DG37: 2 | DH37: 2 | DI37: 2 | DJ37: 2 | DK37: 2 | DL37: 2 | DM37: 2 | DN37: 2 | DO37: 2 | DP37: 2 | DQ37: 2 | DR37: 2 | DS37: 2 | DT37: 2 | DU37: 2 | DV37: 2 | DW37: 2 | DX37: 2 | DY37: 2 | DZ37: 2 | EA37: 2 | EB37: 2 | EC37: 2 | ED37: 2 | EE37: 2 | EF37: 2 | EG37: =EF37+EG26 -> 2 | EH37: 2 | EI37: 2 | EJ37: 2 | EK37: 2 | EL37: 2 | EM37: 2 | EN37: 2 | EO37: 2 | EP37: 2 | EQ37: 2 | ER37: 2 | ES37: 2 | ET37: 2 | EU37: 2 | EV37: 2 | EW37: 2 | EX37: 2 | EY37: 2 | EZ37: 2 | FA37: 2 | FB37: 2 | FC37: 2 | FD37: 2 | FE37: 2 | FF37: 3 | FG37: 3 | FH37: 3 | FI37: 3 | FJ37: 3 | FK37: 3 | FL37: 3 | FM37: 3 | FN37: 3 | FO37: 3 | FP37: 3 | FQ37: 3 | FR37: 3 | FS37: 3 | FT37: 3 | FU37: 3 | FV37: 3 | FW37: 3 | FX37: 3 | FY37: 3 | FZ37: 3 | GA37: 3 | GB37: 3 | GC37: 3 | GD37: 3 | GE37: 3 | GF37: 3 | GG37: 3 | GH37: 3 | GI37: 3 | GJ37: 3 | GK37: 3 | GL37: 3 | GM37: 3 | GN37: 3 | GO37: 3 | GP37: 3 | GQ37: 3 | GR37: 3 | GS37: =GR37+GS26 -> 3 | GT37: 3 | GU37: 3 | GV37: 3 | GW37: 3 | GX37: 3 | GY37: 3 | GZ37: 3 | HA37: 3 | HB37: 3 | HC37: 3 | HD37: 3 | HE37: 4 | HF37: 4 | HG37: 4 | HH37: 4 | HI37: 4 | HJ37: 4 | HK37: 4 | HL37: 4 | HM37: 4 | HN37: 4 | HO37: 4 | HP37: 4 | HQ37: 4 | HR37: 4 | HS37: 4 | HT37: 4 | HU37: 4 | HV37: 4 | HW37: 4 | HX37: 4 | HY37: 4 | HZ37: 4 | IA37: 4 | IB37: 4 | IC37: 4 | ID37: 4 | IE37: 4 | IF37: 4 | IG37: 4 | IH37: 4 | II37: 4 | IJ37: 4 | IK37: 4 | IL37: 4 | IM37: 4 | IN37: 4 | IO37: 4 | IP37: 4 | IQ37: 4 | IR37: 4 | IS37: 4 | IT37: 4 | IU37: 4 | IV37: 4 | IW37: 4 | IX37: 4 | IY37: 4 | IZ37: 4 | JA37: 4 | JB37: 4 | JC37: 4 | JD37: 5 | JE37: =JD37+JE26 -> 5 | JF37: 5 | JG37: 5 | JH37: 5 | JI37: 5 | JJ37: 5 | JK37: 5 | JL37: 5 | JM37: 5 | JN37: 5 | JO37: 5 | JP37: 5 | JQ37: 5 | JR37: 5 | JS37: 5 | JT37: 5 | JU37: 5 | JV37: 5 | JW37: 5 | JX37: 5 | JY37: 5 | JZ37: 5 | KA37: 5 | KB37: 5 | KC37: 5 | KD37: 5 | KE37: 5 | KF37: 5 | KG37: 5 | KH37: 5 | KI37: 5 | KJ37: 5 | KK37: 5 | KL37: 5 | KM37: 5 | KN37: 5 | KO37: 5 | KP37: 5 | KQ37: 5 | KR37: 5 | KS37: 5 | KT37: 5 | KU37: 5 | KV37: 5 | KW37: 5 | KX37: 5 | KY37: 5 | KZ37: 5 | LA37: 5 | LB37: 5 | LC37: 5 | LD37: 6 | LE37: 6 | LF37: 6 | LG37: 6 | LH37: 6 | LI37: 6 | LJ37: 6 | LK37: 6 | LL37: 6 | LM37: 6 | LN37: 6 | LO37: 6 | LP37: 6 | LQ37: =LP37+LQ26 -> 6 | LR37: 6 | LS37: 6 | LT37: 6 | LU37: 6 | LV37: 6 | LW37: 6 | LX37: 6 | LY37: 6 | LZ37: 6 | MA37: 6 | MB37: 6 | MC37: 6 | MD37: 6 | ME37: 6 | MF37: 6 | MG37: 6 | MH37: 6 | MI37: 6 | MJ37: 6 | MK37: 6 | ML37: 6 | MM37: 6 | MN37: 6 | MO37: 6 | MP37: 6 | MQ37: 6 | MR37: 6 | MS37: 6 | MT37: 6 | MU37: 6 | MV37: 6 | MW37: 6 | MX37: 6 | MY37: 6 | MZ37: 6 | NA37: 6 | NB37: 6 | NC37: 7
C39: Date of 1st Outage | D39: 1 | E39: =_xlfn.XLOOKUP(D39,$37:$37,$3:$3,FALSE,0) -> 2030-04-30
C40: Date of 1st Outage | D40: 2 | E40: =_xlfn.XLOOKUP(D40,$37:$37,$3:$3,FALSE,0) -> 2034-07-31
C41: Date of 1st Outage | D41: 3 | E41: =_xlfn.XLOOKUP(D41,$37:$37,$3:$3,FALSE,0) -> 2038-11-30
C42: Date of 1st Outage | D42: 4 | E42: =_xlfn.XLOOKUP(D42,$37:$37,$3:$3,FALSE,0) -> 2043-02-28
C43: Date of 1st Outage | D43: 5 | E43: =_xlfn.XLOOKUP(D43,$37:$37,$3:$3,FALSE,0) -> 2047-05-31
C44: Date of 1st Outage | D44: 6 | E44: =_xlfn.XLOOKUP(D44,$37:$37,$3:$3,FALSE,0) -> 2051-09-30
H46: =_xlfn.SEQUENCE(,30,2026) -> 2026 | I46: 2027 | J46: 2028 | K46: 2029 | L46: 2030 | M46: 2031 | N46: 2032 | O46: 2033 | P46: 2034 | Q46: 2035 | R46: 2036 | S46: 2037 | T46: 2038 | U46: 2039 | V46: 2040 | W46: 2041 | X46: 2042 | Y46: 2043 | Z46: 2044 | AA46: 2045 | AB46: 2046 | AC46: 2047 | AD46: 2048 | AE46: 2049 | AF46: 2050 | AG46: 2051 | AH46: 2052 | AI46: 2053 | AJ46: 2054 | AK46: 2055
C47: Maintenance Cost | H47: =SUMIF($4:$4,H$46,30:30) -> 0 | I47: 0 | J47: 0 | K47: 0 | L47: 272400198.5 | M47: 0 | N47: 0 | O47: 0 | P47: 296318079.1 | Q47: 0 | R47: 0 | S47: 0 | T47: 322868414.2 | U47: 0 | V47: 0 | W47: 0 | X47: 0 | Y47: 351217615.9 | Z47: 0 | AA47: 0 | AB47: 0 | AC47: 382055996.6 | AD47: 0 | AE47: 0 | AF47: 0 | AG47: 416288517.2 | AH47: 0 | AI47: 0 | AJ47: 0 | AK47: 452840396
C48: Generation | H48: =SUMIF($4:$4,H$46,14:14) -> 3504000 | I48: 3504000 | J48: 3513600 | K48: 3504000 | L48: 3504000 | M48: 3504000 | N48: 3513600 | O48: 3504000 | P48: 3504000 | Q48: 3504000 | R48: 3513600 | S48: 3504000 | T48: 3504000 | U48: 3504000 | V48: 3513600 | W48: 3504000 | X48: 3504000 | Y48: 3504000 | Z48: 3513600 | AA48: 3504000 | AB48: 3504000 | AC48: 3504000 | AD48: 3513600 | AE48: 3504000 | AF48: 3504000 | AG48: 3504000 | AH48: 3513600 | AI48: 3504000 | AJ48: 3504000 | AK48: 3504000
E66: =E12 -> 0.8

Sheet With Maintenance Hours
H1: =_xlfn.SEQUENCE(,360) -> 1 | I1: 2 | J1: 3 | K1: 4 | L1: 5 | M1: 6 | N1: 7 | O1: 8 | P1: 9 | Q1: 10 | R1: 11 | S1: 12 | T1: 13 | U1: 14 | V1: 15 | W1: 16 | X1: 17 | Y1: 18 | Z1: 19 | AA1: 20 | AB1: 21 | AC1: 22 | AD1: 23 | AE1: 24 | AF1: 25 | AG1: 26 | AH1: 27 | AI1: 28 | AJ1: 29 | AK1: 30 | AL1: 31 | AM1: 32 | AN1: 33 | AO1: 34 | AP1: 35 | AQ1: 36 | AR1: 37 | AS1: 38 | AT1: 39 | AU1: 40 | AV1: 41 | AW1: 42 | AX1: 43 | AY1: 44 | AZ1: 45 | BA1: 46 | BB1: 47 | BC1: 48 | BD1: 49 | BE1: 50 | BF1: 51 | BG1: 52 | BH1: 53 | BI1: 54 | BJ1: 55 | BK1: 56 | BL1: 57 | BM1: 58 | BN1: 59 | BO1: 60 | BP1: 61 | BQ1: 62 | BR1: 63 | BS1: 64 | BT1: 65 | BU1: 66 | BV1: 67 | BW1: 68 | BX1: 69 | BY1: 70 | BZ1: 71 | CA1: 72 | CB1: 73 | CC1: 74 | CD1: 75 | CE1: 76 | CF1: 77 | CG1: 78 | CH1: 79 | CI1: 80 | CJ1: 81 | CK1: 82 | CL1: 83 | CM1: 84 | CN1: 85 | CO1: 86 | CP1: 87 | CQ1: 88 | CR1: 89 | CS1: 90 | CT1: 91 | CU1: 92 | CV1: 93 | CW1: 94 | CX1: 95 | CY1: 96 | CZ1: 97 | DA1: 98 | DB1: 99 | DC1: 100 | DD1: 101 | DE1: 102 | DF1: 103 | DG1: 104 | DH1: 105 | DI1: 106 | DJ1: 107 | DK1: 108 | DL1: 109 | DM1: 110 | DN1: 111 | DO1: 112 | DP1: 113 | DQ1: 114 | DR1: 115 | DS1: 116 | DT1: 117 | DU1: 118 | DV1: 119 | DW1: 120 | DX1: 121 | DY1: 122 | DZ1: 123 | EA1: 124 | EB1: 125 | EC1: 126 | ED1: 127 | EE1: 128 | EF1: 129 | EG1: 130 | EH1: 131 | EI1: 132 | EJ1: 133 | EK1: 134 | EL1: 135 | EM1: 136 | EN1: 137 | EO1: 138 | EP1: 139 | EQ1: 140 | ER1: 141 | ES1: 142 | ET1: 143 | EU1: 144 | EV1: 145 | EW1: 146 | EX1: 147 | EY1: 148 | EZ1: 149 | FA1: 150 | FB1: 151 | FC1: 152 | FD1: 153 | FE1: 154 | FF1: 155 | FG1: 156 | FH1: 157 | FI1: 158 | FJ1: 159 | FK1: 160 | FL1: 161 | FM1: 162 | FN1: 163 | FO1: 164 | FP1: 165 | FQ1: 166 | FR1: 167 | FS1: 168 | FT1: 169 | FU1: 170 | FV1: 171 | FW1: 172 | FX1: 173 | FY1: 174 | FZ1: 175 | GA1: 176 | GB1: 177 | GC1: 178 | GD1: 179 | GE1: 180 | GF1: 181 | GG1: 182 | GH1: 183 | GI1: 184 | GJ1: 185 | GK1: 186 | GL1: 187 | GM1: 188 | GN1: 189 | GO1: 190 | GP1: 191 | GQ1: 192 | GR1: 193 | GS1: 194 | GT1: 195 | GU1: 196 | GV1: 197 | GW1: 198 | GX1: 199 | GY1: 200 | GZ1: 201 | HA1: 202 | HB1: 203 | HC1: 204 | HD1: 205 | HE1: 206 | HF1: 207 | HG1: 208 | HH1: 209 | HI1: 210 | HJ1: 211 | HK1: 212 | HL1: 213 | HM1: 214 | HN1: 215 | HO1: 216 | HP1: 217 | HQ1: 218 | HR1: 219 | HS1: 220 | HT1: 221 | HU1: 222 | HV1: 223 | HW1: 224 | HX1: 225 | HY1: 226 | HZ1: 227 | IA1: 228 | IB1: 229 | IC1: 230 | ID1: 231 | IE1: 232 | IF1: 233 | IG1: 234 | IH1: 235 | II1: 236 | IJ1: 237 | IK1: 238 | IL1: 239 | IM1: 240 | IN1: 241 | IO1: 242 | IP1: 243 | IQ1: 244 | IR1: 245 | IS1: 246 | IT1: 247 | IU1: 248 | IV1: 249 | IW1: 250 | IX1: 251 | IY1: 252 | IZ1: 253 | JA1: 254 | JB1: 255 | JC1: 256 | JD1: 257 | JE1: 258 | JF1: 259 | JG1: 260 | JH1: 261 | JI1: 262 | JJ1: 263 | JK1: 264 | JL1: 265 | JM1: 266 | JN1: 267 | JO1: 268 | JP1: 269 | JQ1: 270 | JR1: 271 | JS1: 272 | JT1: 273 | JU1: 274 | JV1: 275 | JW1: 276 | JX1: 277 | JY1: 278 | JZ1: 279 | KA1: 280 | KB1: 281 | KC1: 282 | KD1: 283 | KE1: 284 | KF1: 285 | KG1: 286 | KH1: 287 | KI1: 288 | KJ1: 289 | KK1: 290 | KL1: 291 | KM1: 292 | KN1: 293 | KO1: 294 | KP1: 295 | KQ1: 296 | KR1: 297 | KS1: 298 | KT1: 299 | KU1: 300 | KV1: 301 | KW1: 302 | KX1: 303 | KY1: 304 | KZ1: 305 | LA1: 306 | LB1: 307 | LC1: 308 | LD1: 309 | LE1: 310 | LF1: 311 | LG1: 312 | LH1: 313 | LI1: 314 | LJ1: 315 | LK1: 316 | LL1: 317 | LM1: 318 | LN1: 319 | LO1: 320 | LP1: 321 | LQ1: 322 | LR1: 323 | LS1: 324 | LT1: 325 | LU1: 326 | LV1: 327 | LW1: 328 | LX1: 329 | LY1: 330 | LZ1: 331 | MA1: 332 | MB1: 333 | MC1: 334 | MD1: 335 | ME1: 336 | MF1: 337 | MG1: 338 | MH1: 339 | MI1: 340 | MJ1: 341 | MK1: 342 | ML1: 343 | MM1: 344 | MN1: 345 | MO1: 346 | MP1: 347 | MQ1: 348 | MR1: 349 | MS1: 350 | MT1: 351 | MU1: 352 | MV1: 353 | MW1: 354 | MX1: 355 | MY1: 356 | MZ1: 357 | NA1: 358 | NB1: 359 | NC1: 360
C2: Date Start | H2: =1+G3 -> 2026-01-01 | I2: =1+H3 -> 2026-02-01 | J2: 2026-03-01 | K2: 2026-04-01 | L2: 2026-05-01 | M2: 2026-06-01 | N2: 2026-07-01 | O2: 2026-08-01 | P2: 2026-09-01 | Q2: 2026-10-01 | R2: 2026-11-01 | S2: 2026-12-01 | T2: 2027-01-01 | U2: 2027-02-01 | V2: 2027-03-01 | W2: 2027-04-01 | X2: 2027-05-01 | Y2: 2027-06-01 | Z2: 2027-07-01 | AA2: 2027-08-01 | AB2: 2027-09-01 | AC2: 2027-10-01 | AD2: 2027-11-01 | AE2: 2027-12-01 | AF2: 2028-01-01 | AG2: 2028-02-01 | AH2: 2028-03-01 | AI2: 2028-04-01 | AJ2: 2028-05-01 | AK2: 2028-06-01 | AL2: 2028-07-01 | AM2: 2028-08-01 | AN2: 2028-09-01 | AO2: 2028-10-01 | AP2: 2028-11-01 | AQ2: 2028-12-01 | AR2: 2029-01-01 | AS2: 2029-02-01 | AT2: 2029-03-01 | AU2: 2029-04-01 | AV2: 2029-05-01 | AW2: 2029-06-01 | AX2: 2029-07-01 | AY2: 2029-08-01 | AZ2: 2029-09-01 | BA2: 2029-10-01 | BB2: 2029-11-01 | BC2: 2029-12-01 | BD2: 2030-01-01 | BE2: 2030-02-01 | BF2: 2030-03-01 | BG2: 2030-04-01 | BH2: 2030-05-01 | BI2: 2030-06-01 | BJ2: 2030-07-01 | BK2: 2030-08-01 | BL2: 2030-09-01 | BM2: 2030-10-01 | BN2: 2030-11-01 | BO2: 2030-12-01 | BP2: 2031-01-01 | BQ2: 2031-02-01 | BR2: 2031-03-01 | BS2: 2031-04-01 | BT2: 2031-05-01 | BU2: =1+BT3 -> 2031-06-01 | BV2: 2031-07-01 | BW2: 2031-08-01 | BX2: 2031-09-01 | BY2: 2031-10-01 | BZ2: 2031-11-01 | CA2: 2031-12-01 | CB2: 2032-01-01 | CC2: 2032-02-01 | CD2: 2032-03-01 | CE2: 2032-04-01 | CF2: 2032-05-01 | CG2: 2032-06-01 | CH2: 2032-07-01 | CI2: 2032-08-01 | CJ2: 2032-09-01 | CK2: 2032-10-01 | CL2: 2032-11-01 | CM2: 2032-12-01 | CN2: 2033-01-01 | CO2: 2033-02-01 | CP2: 2033-03-01 | CQ2: 2033-04-01 | CR2: 2033-05-01 | CS2: 2033-06-01 | CT2: 2033-07-01 | CU2: 2033-08-01 | CV2: 2033-09-01 | CW2: 2033-10-01 | CX2: 2033-11-01 | CY2: 2033-12-01 | CZ2: 2034-01-01 | DA2: 2034-02-01 | DB2: 2034-03-01 | DC2: 2034-04-01 | DD2: 2034-05-01 | DE2: 2034-06-01 | DF2: 2034-07-01 | DG2: 2034-08-01 | DH2: 2034-09-01 | DI2: 2034-10-01 | DJ2: 2034-11-01 | DK2: 2034-12-01 | DL2: 2035-01-01 | DM2: 2035-02-01 | DN2: 2035-03-01 | DO2: 2035-04-01 | DP2: 2035-05-01 | DQ2: 2035-06-01 | DR2: 2035-07-01 | DS2: 2035-08-01 | DT2: 2035-09-01 | DU2: 2035-10-01 | DV2: 2035-11-01 | DW2: 2035-12-01 | DX2: 2036-01-01 | DY2: 2036-02-01 | DZ2: 2036-03-01 | EA2: 2036-04-01 | EB2: 2036-05-01 | EC2: 2036-06-01 | ED2: 2036-07-01 | EE2: 2036-08-01 | EF2: 2036-09-01 | EG2: =1+EF3 -> 2036-10-01 | EH2: 2036-11-01 | EI2: 2036-12-01 | EJ2: 2037-01-01 | EK2: 2037-02-01 | EL2: 2037-03-01 | EM2: 2037-04-01 | EN2: 2037-05-01 | EO2: 2037-06-01 | EP2: 2037-07-01 | EQ2: 2037-08-01 | ER2: 2037-09-01 | ES2: 2037-10-01 | ET2: 2037-11-01 | EU2: 2037-12-01 | EV2: 2038-01-01 | EW2: 2038-02-01 | EX2: 2038-03-01 | EY2: 2038-04-01 | EZ2: 2038-05-01 | FA2: 2038-06-01 | FB2: 2038-07-01 | FC2: 2038-08-01 | FD2: 2038-09-01 | FE2: 2038-10-01 | FF2: 2038-11-01 | FG2: 2038-12-01 | FH2: 2039-01-01 | FI2: 2039-02-01 | FJ2: 2039-03-01 | FK2: 2039-04-01 | FL2: 2039-05-01 | FM2: 2039-06-01 | FN2: 2039-07-01 | FO2: 2039-08-01 | FP2: 2039-09-01 | FQ2: 2039-10-01 | FR2: 2039-11-01 | FS2: 2039-12-01 | FT2: 2040-01-01 | FU2: 2040-02-01 | FV2: 2040-03-01 | FW2: 2040-04-01 | FX2: 2040-05-01 | FY2: 2040-06-01 | FZ2: 2040-07-01 | GA2: 2040-08-01 | GB2: 2040-09-01 | GC2: 2040-10-01 | GD2: 2040-11-01 | GE2: 2040-12-01 | GF2: 2041-01-01 | GG2: 2041-02-01 | GH2: 2041-03-01 | GI2: 2041-04-01 | GJ2: 2041-05-01 | GK2: 2041-06-01 | GL2: 2041-07-01 | GM2: 2041-08-01 | GN2: 2041-09-01 | GO2: 2041-10-01 | GP2: 2041-11-01 | GQ2: 2041-12-01 | GR2: 2042-01-01 | GS2: =1+GR3 -> 2042-02-01 | GT2: 2042-03-01 | GU2: 2042-04-01 | GV2: 2042-05-01 | GW2: 2042-06-01 | GX2: 2042-07-01 | GY2: 2042-08-01 | GZ2: 2042-09-01 | HA2: 2042-10-01 | HB2: 2042-11-01 | HC2: 2042-12-01 | HD2: 2043-01-01 | HE2: 2043-02-01 | HF2: 2043-03-01 | HG2: 2043-04-01 | HH2: 2043-05-01 | HI2: 2043-06-01 | HJ2: 2043-07-01 | HK2: 2043-08-01 | HL2: 2043-09-01 | HM2: 2043-10-01 | HN2: 2043-11-01 | HO2: 2043-12-01 | HP2: 2044-01-01 | HQ2: 2044-02-01 | HR2: 2044-03-01 | HS2: 2044-04-01 | HT2: 2044-05-01 | HU2: 2044-06-01 | HV2: 2044-07-01 | HW2: 2044-08-01 | HX2: 2044-09-01 | HY2: 2044-10-01 | HZ2: 2044-11-01 | IA2: 2044-12-01 | IB2: 2045-01-01 | IC2: 2045-02-01 | ID2: 2045-03-01 | IE2: 2045-04-01 | IF2: 2045-05-01 | IG2: 2045-06-01 | IH2: 2045-07-01 | II2: 2045-08-01 | IJ2: 2045-09-01 | IK2: 2045-10-01 | IL2: 2045-11-01 | IM2: 2045-12-01 | IN2: 2046-01-01 | IO2: 2046-02-01 | IP2: 2046-03-01 | IQ2: 2046-04-01 | IR2: 2046-05-01 | IS2: 2046-06-01 | IT2: 2046-07-01 | IU2: 2046-08-01 | IV2: 2046-09-01 | IW2: 2046-10-01 | IX2: 2046-11-01 | IY2: 2046-12-01 | IZ2: 2047-01-01 | JA2: 2047-02-01 | JB2: 2047-03-01 | JC2: 2047-04-01 | JD2: 2047-05-01 | JE2: =1+JD3 -> 2047-06-01 | JF2: 2047-07-01 | JG2: 2047-08-01 | JH2: 2047-09-01 | JI2: 2047-10-01 | JJ2: 2047-11-01 | JK2: 2047-12-01 | JL2: 2048-01-01 | JM2: 2048-02-01 | JN2: 2048-03-01 | JO2: 2048-04-01 | JP2: 2048-05-01 | JQ2: 2048-06-01 | JR2: 2048-07-01 | JS2: 2048-08-01 | JT2: 2048-09-01 | JU2: 2048-10-01 | JV2: 2048-11-01 | JW2: 2048-12-01 | JX2: 2049-01-01 | JY2: 2049-02-01 | JZ2: 2049-03-01 | KA2: 2049-04-01 | KB2: 2049-05-01 | KC2: 2049-06-01 | KD2: 2049-07-01 | KE2: 2049-08-01 | KF2: 2049-09-01 | KG2: 2049-10-01 | KH2: 2049-11-01 | KI2: 2049-12-01 | KJ2: 2050-01-01 | KK2: 2050-02-01 | KL2: 2050-03-01 | KM2: 2050-04-01 | KN2: 2050-05-01 | KO2: 2050-06-01 | KP2: 2050-07-01 | KQ2: 2050-08-01 | KR2: 2050-09-01 | KS2: 2050-10-01 | KT2: 2050-11-01 | KU2: 2050-12-01 | KV2: 2051-01-01 | KW2: 2051-02-01 | KX2: 2051-03-01 | KY2: 2051-04-01 | KZ2: 2051-05-01 | LA2: 2051-06-01 | LB2: 2051-07-01 | LC2: 2051-08-01 | LD2: 2051-09-01 | LE2: 2051-10-01 | LF2: 2051-11-01 | LG2: 2051-12-01 | LH2: 2052-01-01 | LI2: 2052-02-01 | LJ2: 2052-03-01 | LK2: 2052-04-01 | LL2: 2052-05-01 | LM2: 2052-06-01 | LN2: 2052-07-01 | LO2: 2052-08-01 | LP2: 2052-09-01 | LQ2: =1+LP3 -> 2052-10-01 | LR2: 2052-11-01 | LS2: 2052-12-01 | LT2: 2053-01-01 | LU2: 2053-02-01 | LV2: 2053-03-01 | LW2: 2053-04-01 | LX2: 2053-05-01 | LY2: 2053-06-01 | LZ2: 2053-07-01 | MA2: 2053-08-01 | MB2: 2053-09-01 | MC2: 2053-10-01 | MD2: 2053-11-01 | ME2: 2053-12-01 | MF2: 2054-01-01 | MG2: 2054-02-01 | MH2: 2054-03-01 | MI2: 2054-04-01 | MJ2: 2054-05-01 | MK2: 2054-06-01 | ML2: 2054-07-01 | MM2: 2054-08-01 | MN2: 2054-09-01 | MO2: 2054-10-01 | MP2: 2054-11-01 | MQ2: 2054-12-01 | MR2: 2055-01-01 | MS2: 2055-02-01 | MT2: 2055-03-01 | MU2: 2055-04-01 | MV2: 2055-05-01 | MW2: 2055-06-01 | MX2: 2055-07-01 | MY2: 2055-08-01 | MZ2: 2055-09-01 | NA2: 2055-10-01 | NB2: 2055-11-01 | NC2: 2055-12-01
C3: Date End | G3: 2025-12-31 | H3: =EOMONTH(H2,0) -> 2026-01-31 | I3: =EOMONTH(I2,0) -> 2026-02-28 | J3: 2026-03-31 | K3: 2026-04-30 | L3: 2026-05-31 | M3: 2026-06-30 | N3: 2026-07-31 | O3: 2026-08-31 | P3: 2026-09-30 | Q3: 2026-10-31 | R3: 2026-11-30 | S3: 2026-12-31 | T3: 2027-01-31 | U3: 2027-02-28 | V3: 2027-03-31 | W3: 2027-04-30 | X3: 2027-05-31 | Y3: 2027-06-30 | Z3: 2027-07-31 | AA3: 2027-08-31 | AB3: 2027-09-30 | AC3: 2027-10-31 | AD3: 2027-11-30 | AE3: 2027-12-31 | AF3: 2028-01-31 | AG3: 2028-02-29 | AH3: 2028-03-31 | AI3: 2028-04-30 | AJ3: 2028-05-31 | AK3: 2028-06-30 | AL3: 2028-07-31 | AM3: 2028-08-31 | AN3: 2028-09-30 | AO3: 2028-10-31 | AP3: 2028-11-30 | AQ3: 2028-12-31 | AR3: 2029-01-31 | AS3: 2029-02-28 | AT3: 2029-03-31 | AU3: 2029-04-30 | AV3: 2029-05-31 | AW3: 2029-06-30 | AX3: 2029-07-31 | AY3: 2029-08-31 | AZ3: 2029-09-30 | BA3: 2029-10-31 | BB3: 2029-11-30 | BC3: 2029-12-31 | BD3: 2030-01-31 | BE3: 2030-02-28 | BF3: 2030-03-31 | BG3: 2030-04-30 | BH3: 2030-05-31 | BI3: 2030-06-30 | BJ3: 2030-07-31 | BK3: 2030-08-31 | BL3: 2030-09-30 | BM3: 2030-10-31 | BN3: 2030-11-30 | BO3: 2030-12-31 | BP3: 2031-01-31 | BQ3: 2031-02-28 | BR3: 2031-03-31 | BS3: 2031-04-30 | BT3: 2031-05-31 | BU3: =EOMONTH(BU2,0) -> 2031-06-30 | BV3: 2031-07-31 | BW3: 2031-08-31 | BX3: 2031-09-30 | BY3: 2031-10-31 | BZ3: 2031-11-30 | CA3: 2031-12-31 | CB3: 2032-01-31 | CC3: 2032-02-29 | CD3: 2032-03-31 | CE3: 2032-04-30 | CF3: 2032-05-31 | CG3: 2032-06-30 | CH3: 2032-07-31 | CI3: 2032-08-31 | CJ3: 2032-09-30 | CK3: 2032-10-31 | CL3: 2032-11-30 | CM3: 2032-12-31 | CN3: 2033-01-31 | CO3: 2033-02-28 | CP3: 2033-03-31 | CQ3: 2033-04-30 | CR3: 2033-05-31 | CS3: 2033-06-30 | CT3: 2033-07-31 | CU3: 2033-08-31 | CV3: 2033-09-30 | CW3: 2033-10-31 | CX3: 2033-11-30 | CY3: 2033-12-31 | CZ3: 2034-01-31 | DA3: 2034-02-28 | DB3: 2034-03-31 | DC3: 2034-04-30 | DD3: 2034-05-31 | DE3: 2034-06-30 | DF3: 2034-07-31 | DG3: 2034-08-31 | DH3: 2034-09-30 | DI3: 2034-10-31 | DJ3: 2034-11-30 | DK3: 2034-12-31 | DL3: 2035-01-31 | DM3: 2035-02-28 | DN3: 2035-03-31 | DO3: 2035-04-30 | DP3: 2035-05-31 | DQ3: 2035-06-30 | DR3: 2035-07-31 | DS3: 2035-08-31 | DT3: 2035-09-30 | DU3: 2035-10-31 | DV3: 2035-11-30 | DW3: 2035-12-31 | DX3: 2036-01-31 | DY3: 2036-02-29 | DZ3: 2036-03-31 | EA3: 2036-04-30 | EB3: 2036-05-31 | EC3: 2036-06-30 | ED3: 2036-07-31 | EE3: 2036-08-31 | EF3: 2036-09-30 | EG3: =EOMONTH(EG2,0) -> 2036-10-31 | EH3: 2036-11-30 | EI3: 2036-12-31 | EJ3: 2037-01-31 | EK3: 2037-02-28 | EL3: 2037-03-31 | EM3: 2037-04-30 | EN3: 2037-05-31 | EO3: 2037-06-30 | EP3: 2037-07-31 | EQ3: 2037-08-31 | ER3: 2037-09-30 | ES3: 2037-10-31 | ET3: 2037-11-30 | EU3: 2037-12-31 | EV3: 2038-01-31 | EW3: 2038-02-28 | EX3: 2038-03-31 | EY3: 2038-04-30 | EZ3: 2038-05-31 | FA3: 2038-06-30 | FB3: 2038-07-31 | FC3: 2038-08-31 | FD3: 2038-09-30 | FE3: 2038-10-31 | FF3: 2038-11-30 | FG3: 2038-12-31 | FH3: 2039-01-31 | FI3: 2039-02-28 | FJ3: 2039-03-31 | FK3: 2039-04-30 | FL3: 2039-05-31 | FM3: 2039-06-30 | FN3: 2039-07-31 | FO3: 2039-08-31 | FP3: 2039-09-30 | FQ3: 2039-10-31 | FR3: 2039-11-30 | FS3: 2039-12-31 | FT3: 2040-01-31 | FU3: 2040-02-29 | FV3: 2040-03-31 | FW3: 2040-04-30 | FX3: 2040-05-31 | FY3: 2040-06-30 | FZ3: 2040-07-31 | GA3: 2040-08-31 | GB3: 2040-09-30 | GC3: 2040-10-31 | GD3: 2040-11-30 | GE3: 2040-12-31 | GF3: 2041-01-31 | GG3: 2041-02-28 | GH3: 2041-03-31 | GI3: 2041-04-30 | GJ3: 2041-05-31 | GK3: 2041-06-30 | GL3: 2041-07-31 | GM3: 2041-08-31 | GN3: 2041-09-30 | GO3: 2041-10-31 | GP3: 2041-11-30 | GQ3: 2041-12-31 | GR3: 2042-01-31 | GS3: =EOMONTH(GS2,0) -> 2042-02-28 | GT3: 2042-03-31 | GU3: 2042-04-30 | GV3: 2042-05-31 | GW3: 2042-06-30 | GX3: 2042-07-31 | GY3: 2042-08-31 | GZ3: 2042-09-30 | HA3: 2042-10-31 | HB3: 2042-11-30 | HC3: 2042-12-31 | HD3: 2043-01-31 | HE3: 2043-02-28 | HF3: 2043-03-31 | HG3: 2043-04-30 | HH3: 2043-05-31 | HI3: 2043-06-30 | HJ3: 2043-07-31 | HK3: 2043-08-31 | HL3: 2043-09-30 | HM3: 2043-10-31 | HN3: 2043-11-30 | HO3: 2043-12-31 | HP3: 2044-01-31 | HQ3: 2044-02-29 | HR3: 2044-03-31 | HS3: 2044-04-30 | HT3: 2044-05-31 | HU3: 2044-06-30 | HV3: 2044-07-31 | HW3: 2044-08-31 | HX3: 2044-09-30 | HY3: 2044-10-31 | HZ3: 2044-11-30 | IA3: 2044-12-31 | IB3: 2045-01-31 | IC3: 2045-02-28 | ID3: 2045-03-31 | IE3: 2045-04-30 | IF3: 2045-05-31 | IG3: 2045-06-30 | IH3: 2045-07-31 | II3: 2045-08-31 | IJ3: 2045-09-30 | IK3: 2045-10-31 | IL3: 2045-11-30 | IM3: 2045-12-31 | IN3: 2046-01-31 | IO3: 2046-02-28 | IP3: 2046-03-31 | IQ3: 2046-04-30 | IR3: 2046-05-31 | IS3: 2046-06-30 | IT3: 2046-07-31 | IU3: 2046-08-31 | IV3: 2046-09-30 | IW3: 2046-10-31 | IX3: 2046-11-30 | IY3: 2046-12-31 | IZ3: 2047-01-31 | JA3: 2047-02-28 | JB3: 2047-03-31 | JC3: 2047-04-30 | JD3: 2047-05-31 | JE3: =EOMONTH(JE2,0) -> 2047-06-30 | JF3: 2047-07-31 | JG3: 2047-08-31 | JH3: 2047-09-30 | JI3: 2047-10-31 | JJ3: 2047-11-30 | JK3: 2047-12-31 | JL3: 2048-01-31 | JM3: 2048-02-29 | JN3: 2048-03-31 | JO3: 2048-04-30 | JP3: 2048-05-31 | JQ3: 2048-06-30 | JR3: 2048-07-31 | JS3: 2048-08-31 | JT3: 2048-09-30 | JU3: 2048-10-31 | JV3: 2048-11-30 | JW3: 2048-12-31 | JX3: 2049-01-31 | JY3: 2049-02-28 | JZ3: 2049-03-31 | KA3: 2049-04-30 | KB3: 2049-05-31 | KC3: 2049-06-30 | KD3: 2049-07-31 | KE3: 2049-08-31 | KF3: 2049-09-30 | KG3: 2049-10-31 | KH3: 2049-11-30 | KI3: 2049-12-31 | KJ3: 2050-01-31 | KK3: 2050-02-28 | KL3: 2050-03-31 | KM3: 2050-04-30 | KN3: 2050-05-31 | KO3: 2050-06-30 | KP3: 2050-07-31 | KQ3: 2050-08-31 | KR3: 2050-09-30 | KS3: 2050-10-31 | KT3: 2050-11-30 | KU3: 2050-12-31 | KV3: 2051-01-31 | KW3: 2051-02-28 | KX3: 2051-03-31 | KY3: 2051-04-30 | KZ3: 2051-05-31 | LA3: 2051-06-30 | LB3: 2051-07-31 | LC3: 2051-08-31 | LD3: 2051-09-30 | LE3: 2051-10-31 | LF3: 2051-11-30 | LG3: 2051-12-31 | LH3: 2052-01-31 | LI3: 2052-02-29 | LJ3: 2052-03-31 | LK3: 2052-04-30 | LL3: 2052-05-31 | LM3: 2052-06-30 | LN3: 2052-07-31 | LO3: 2052-08-31 | LP3: 2052-09-30 | LQ3: =EOMONTH(LQ2,0) -> 2052-10-31 | LR3: 2052-11-30 | LS3: 2052-12-31 | LT3: 2053-01-31 | LU3: 2053-02-28 | LV3: 2053-03-31 | LW3: 2053-04-30 | LX3: 2053-05-31 | LY3: 2053-06-30 | LZ3: 2053-07-31 | MA3: 2053-08-31 | MB3: 2053-09-30 | MC3: 2053-10-31 | MD3: 2053-11-30 | ME3: 2053-12-31 | MF3: 2054-01-31 | MG3: 2054-02-28 | MH3: 2054-03-31 | MI3: 2054-04-30 | MJ3: 2054-05-31 | MK3: 2054-06-30 | ML3: 2054-07-31 | MM3: 2054-08-31 | MN3: 2054-09-30 | MO3: 2054-10-31 | MP3: 2054-11-30 | MQ3: 2054-12-31 | MR3: 2055-01-31 | MS3: 2055-02-28 | MT3: 2055-03-31 | MU3: 2055-04-30 | MV3: 2055-05-31 | MW3: 2055-06-30 | MX3: 2055-07-31 | MY3: 2055-08-31 | MZ3: 2055-09-30 | NA3: 2055-10-31 | NB3: 2055-11-30 | NC3: 2055-12-31
C4: Year | H4: =YEAR(H2) -> 2026 | I4: =YEAR(I2) -> 2026 | J4: 2026 | K4: 2026 | L4: 2026 | M4: 2026 | N4: 2026 | O4: 2026 | P4: 2026 | Q4: 2026 | R4: 2026 | S4: 2026 | T4: 2027 | U4: 2027 | V4: 2027 | W4: 2027 | X4: 2027 | Y4: 2027 | Z4: 2027 | AA4: 2027 | AB4: 2027 | AC4: 2027 | AD4: 2027 | AE4: 2027 | AF4: 2028 | AG4: 2028 | AH4: 2028 | AI4: 2028 | AJ4: 2028 | AK4: 2028 | AL4: 2028 | AM4: 2028 | AN4: 2028 | AO4: 2028 | AP4: 2028 | AQ4: 2028 | AR4: 2029 | AS4: 2029 | AT4: 2029 | AU4: 2029 | AV4: 2029 | AW4: 2029 | AX4: 2029 | AY4: 2029 | AZ4: 2029 | BA4: 2029 | BB4: 2029 | BC4: 2029 | BD4: 2030 | BE4: 2030 | BF4: 2030 | BG4: 2030 | BH4: 2030 | BI4: 2030 | BJ4: 2030 | BK4: 2030 | BL4: 2030 | BM4: 2030 | BN4: 2030 | BO4: 2030 | BP4: 2031 | BQ4: 2031 | BR4: 2031 | BS4: 2031 | BT4: 2031 | BU4: =YEAR(BU2) -> 2031 | BV4: 2031 | BW4: 2031 | BX4: 2031 | BY4: 2031 | BZ4: 2031 | CA4: 2031 | CB4: 2032 | CC4: 2032 | CD4: 2032 | CE4: 2032 | CF4: 2032 | CG4: 2032 | CH4: 2032 | CI4: 2032 | CJ4: 2032 | CK4: 2032 | CL4: 2032 | CM4: 2032 | CN4: 2033 | CO4: 2033 | CP4: 2033 | CQ4: 2033 | CR4: 2033 | CS4: 2033 | CT4: 2033 | CU4: 2033 | CV4: 2033 | CW4: 2033 | CX4: 2033 | CY4: 2033 | CZ4: 2034 | DA4: 2034 | DB4: 2034 | DC4: 2034 | DD4: 2034 | DE4: 2034 | DF4: 2034 | DG4: 2034 | DH4: 2034 | DI4: 2034 | DJ4: 2034 | DK4: 2034 | DL4: 2035 | DM4: 2035 | DN4: 2035 | DO4: 2035 | DP4: 2035 | DQ4: 2035 | DR4: 2035 | DS4: 2035 | DT4: 2035 | DU4: 2035 | DV4: 2035 | DW4: 2035 | DX4: 2036 | DY4: 2036 | DZ4: 2036 | EA4: 2036 | EB4: 2036 | EC4: 2036 | ED4: 2036 | EE4: 2036 | EF4: 2036 | EG4: =YEAR(EG2) -> 2036 | EH4: 2036 | EI4: 2036 | EJ4: 2037 | EK4: 2037 | EL4: 2037 | EM4: 2037 | EN4: 2037 | EO4: 2037 | EP4: 2037 | EQ4: 2037 | ER4: 2037 | ES4: 2037 | ET4: 2037 | EU4: 2037 | EV4: 2038 | EW4: 2038 | EX4: 2038 | EY4: 2038 | EZ4: 2038 | FA4: 2038 | FB4: 2038 | FC4: 2038 | FD4: 2038 | FE4: 2038 | FF4: 2038 | FG4: 2038 | FH4: 2039 | FI4: 2039 | FJ4: 2039 | FK4: 2039 | FL4: 2039 | FM4: 2039 | FN4: 2039 | FO4: 2039 | FP4: 2039 | FQ4: 2039 | FR4: 2039 | FS4: 2039 | FT4: 2040 | FU4: 2040 | FV4: 2040 | FW4: 2040 | FX4: 2040 | FY4: 2040 | FZ4: 2040 | GA4: 2040 | GB4: 2040 | GC4: 2040 | GD4: 2040 | GE4: 2040 | GF4: 2041 | GG4: 2041 | GH4: 2041 | GI4: 2041 | GJ4: 2041 | GK4: 2041 | GL4: 2041 | GM4: 2041 | GN4: 2041 | GO4: 2041 | GP4: 2041 | GQ4: 2041 | GR4: 2042 | GS4: =YEAR(GS2) -> 2042 | GT4: 2042 | GU4: 2042 | GV4: 2042 | GW4: 2042 | GX4: 2042 | GY4: 2042 | GZ4: 2042 | HA4: 2042 | HB4: 2042 | HC4: 2042 | HD4: 2043 | HE4: 2043 | HF4: 2043 | HG4: 2043 | HH4: 2043 | HI4: 2043 | HJ4: 2043 | HK4: 2043 | HL4: 2043 | HM4: 2043 | HN4: 2043 | HO4: 2043 | HP4: 2044 | HQ4: 2044 | HR4: 2044 | HS4: 2044 | HT4: 2044 | HU4: 2044 | HV4: 2044 | HW4: 2044 | HX4: 2044 | HY4: 2044 | HZ4: 2044 | IA4: 2044 | IB4: 2045 | IC4: 2045 | ID4: 2045 | IE4: 2045 | IF4: 2045 | IG4: 2045 | IH4: 2045 | II4: 2045 | IJ4: 2045 | IK4: 2045 | IL4: 2045 | IM4: 2045 | IN4: 2046 | IO4: 2046 | IP4: 2046 | IQ4: 2046 | IR4: 2046 | IS4: 2046 | IT4: 2046 | IU4: 2046 | IV4: 2046 | IW4: 2046 | IX4: 2046 | IY4: 2046 | IZ4: 2047 | JA4: 2047 | JB4: 2047 | JC4: 2047 | JD4: 2047 | JE4: =YEAR(JE2) -> 2047 | JF4: 2047 | JG4: 2047 | JH4: 2047 | JI4: 2047 | JJ4: 2047 | JK4: 2047 | JL4: 2048 | JM4: 2048 | JN4: 2048 | JO4: 2048 | JP4: 2048 | JQ4: 2048 | JR4: 2048 | JS4: 2048 | JT4: 2048 | JU4: 2048 | JV4: 2048 | JW4: 2048 | JX4: 2049 | JY4: 2049 | JZ4: 2049 | KA4: 2049 | KB4: 2049 | KC4: 2049 | KD4: 2049 | KE4: 2049 | KF4: 2049 | KG4: 2049 | KH4: 2049 | KI4: 2049 | KJ4: 2050 | KK4: 2050 | KL4: 2050 | KM4: 2050 | KN4: 2050 | KO4: 2050 | KP4: 2050 | KQ4: 2050 | KR4: 2050 | KS4: 2050 | KT4: 2050 | KU4: 2050 | KV4: 2051 | KW4: 2051 | KX4: 2051 | KY4: 2051 | KZ4: 2051 | LA4: 2051 | LB4: 2051 | LC4: 2051 | LD4: 2051 | LE4: 2051 | LF4: 2051 | LG4: 2051 | LH4: 2052 | LI4: 2052 | LJ4: 2052 | LK4: 2052 | LL4: 2052 | LM4: 2052 | LN4: 2052 | LO4: 2052 | LP4: 2052 | LQ4: =YEAR(LQ2) -> 2052 | LR4: 2052 | LS4: 2052 | LT4: 2053 | LU4: 2053 | LV4: 2053 | LW4: 2053 | LX4: 2053 | LY4: 2053 | LZ4: 2053 | MA4: 2053 | MB4: 2053 | MC4: 2053 | MD4: 2053 | ME4: 2053 | MF4: 2054 | MG4: 2054 | MH4: 2054 | MI4: 2054 | MJ4: 2054 | MK4: 2054 | ML4: 2054 | MM4: 2054 | MN4: 2054 | MO4: 2054 | MP4: 2054 | MQ4: 2054 | MR4: 2055 | MS4: 2055 | MT4: 2055 | MU4: 2055 | MV4: 2055 | MW4: 2055 | MX4: 2055 | MY4: 2055 | MZ4: 2055 | NA4: 2055 | NB4: 2055 | NC4: 2055
B6: Maintenance Inputs
C7: Hours Until Major Maintenance | D7: Hours | E7: 20000
C8: Days of Maintenance | D8: Days | E8: 50
C9: Hours of Maintenance | D9: Hours | E9: =E8*24 -> 1200
B11: Computed Hours of Operation
C12: Hours in Period | H12: =(H3-H2+1)*24 -> 744 | I12: =(I3-I2+1)*24 -> 672 | J12: 744 | K12: 720 | L12: 744 | M12: 720 | N12: 744 | O12: 744 | P12: 720 | Q12: 744 | R12: 720 | S12: 744 | T12: 744 | U12: 672 | V12: 744 | W12: 720 | X12: 744 | Y12: 720 | Z12: 744 | AA12: 744 | AB12: 720 | AC12: 744 | AD12: 720 | AE12: 744 | AF12: 744 | AG12: 696 | AH12: 744 | AI12: 720 | AJ12: 744 | AK12: 720 | AL12: 744 | AM12: 744 | AN12: 720 | AO12: 744 | AP12: 720 | AQ12: 744 | AR12: 744 | AS12: 672 | AT12: 744 | AU12: 720 | AV12: 744 | AW12: 720 | AX12: 744 | AY12: 744 | AZ12: 720 | BA12: 744 | BB12: 720 | BC12: 744 | BD12: 744 | BE12: 672 | BF12: 744 | BG12: 720 | BH12: 744 | BI12: 720 | BJ12: 744 | BK12: 744 | BL12: 720 | BM12: 744 | BN12: 720 | BO12: 744 | BP12: 744 | BQ12: 672 | BR12: 744 | BS12: 720 | BT12: 744 | BU12: =(BU3-BU2+1)*24 -> 720 | BV12: 744 | BW12: 744 | BX12: 720 | BY12: 744 | BZ12: 720 | CA12: 744 | CB12: 744 | CC12: 696 | CD12: 744 | CE12: 720 | CF12: 744 | CG12: 720 | CH12: 744 | CI12: 744 | CJ12: 720 | CK12: 744 | CL12: 720 | CM12: 744 | CN12: 744 | CO12: 672 | CP12: 744 | CQ12: 720 | CR12: 744 | CS12: 720 | CT12: 744 | CU12: 744 | CV12: 720 | CW12: 744 | CX12: 720 | CY12: 744 | CZ12: 744 | DA12: 672 | DB12: 744 | DC12: 720 | DD12: 744 | DE12: 720 | DF12: 744 | DG12: 744 | DH12: 720 | DI12: 744 | DJ12: 720 | DK12: 744 | DL12: 744 | DM12: 672 | DN12: 744 | DO12: 720 | DP12: 744 | DQ12: 720 | DR12: 744 | DS12: 744 | DT12: 720 | DU12: 744 | DV12: 720 | DW12: 744 | DX12: 744 | DY12: 696 | DZ12: 744 | EA12: 720 | EB12: 744 | EC12: 720 | ED12: 744 | EE12: 744 | EF12: 720 | EG12: =(EG3-EG2+1)*24 -> 744 | EH12: 720 | EI12: 744 | EJ12: 744 | EK12: 672 | EL12: 744 | EM12: 720 | EN12: 744 | EO12: 720 | EP12: 744 | EQ12: 744 | ER12: 720 | ES12: 744 | ET12: 720 | EU12: 744 | EV12: 744 | EW12: 672 | EX12: 744 | EY12: 720 | EZ12: 744 | FA12: 720 | FB12: 744 | FC12: 744 | FD12: 720 | FE12: 744 | FF12: 720 | FG12: 744 | FH12: 744 | FI12: 672 | FJ12: 744 | FK12: 720 | FL12: 744 | FM12: 720 | FN12: 744 | FO12: 744 | FP12: 720 | FQ12: 744 | FR12: 720 | FS12: 744 | FT12: 744 | FU12: 696 | FV12: 744 | FW12: 720 | FX12: 744 | FY12: 720 | FZ12: 744 | GA12: 744 | GB12: 720 | GC12: 744 | GD12: 720 | GE12: 744 | GF12: 744 | GG12: 672 | GH12: 744 | GI12: 720 | GJ12: 744 | GK12: 720 | GL12: 744 | GM12: 744 | GN12: 720 | GO12: 744 | GP12: 720 | GQ12: 744 | GR12: 744 | GS12: =(GS3-GS2+1)*24 -> 672 | GT12: 744 | GU12: 720 | GV12: 744 | GW12: 720 | GX12: 744 | GY12: 744 | GZ12: 720 | HA12: 744 | HB12: 720 | HC12: 744 | HD12: 744 | HE12: 672 | HF12: 744 | HG12: 720 | HH12: 744 | HI12: 720 | HJ12: 744 | HK12: 744 | HL12: 720 | HM12: 744 | HN12: 720 | HO12: 744 | HP12: 744 | HQ12: 696 | HR12: 744 | HS12: 720 | HT12: 744 | HU12: 720 | HV12: 744 | HW12: 744 | HX12: 720 | HY12: 744 | HZ12: 720 | IA12: 744 | IB12: 744 | IC12: 672 | ID12: 744 | IE12: 720 | IF12: 744 | IG12: 720 | IH12: 744 | II12: 744 | IJ12: 720 | IK12: 744 | IL12: 720 | IM12: 744 | IN12: 744 | IO12: 672 | IP12: 744 | IQ12: 720 | IR12: 744 | IS12: 720 | IT12: 744 | IU12: 744 | IV12: 720 | IW12: 744 | IX12: 720 | IY12: 744 | IZ12: 744 | JA12: 672 | JB12: 744 | JC12: 720 | JD12: 744 | JE12: =(JE3-JE2+1)*24 -> 720 | JF12: 744 | JG12: 744 | JH12: 720 | JI12: 744 | JJ12: 720 | JK12: 744 | JL12: 744 | JM12: 696 | JN12: 744 | JO12: 720 | JP12: 744 | JQ12: 720 | JR12: 744 | JS12: 744 | JT12: 720 | JU12: 744 | JV12: 720 | JW12: 744 | JX12: 744 | JY12: 672 | JZ12: 744 | KA12: 720 | KB12: 744 | KC12: 720 | KD12: 744 | KE12: 744 | KF12: 720 | KG12: 744 | KH12: 720 | KI12: 744 | KJ12: 744 | KK12: 672 | KL12: 744 | KM12: 720 | KN12: 744 | KO12: 720 | KP12: 744 | KQ12: 744 | KR12: 720 | KS12: 744 | KT12: 720 | KU12: 744 | KV12: 744 | KW12: 672 | KX12: 744 | KY12: 720 | KZ12: 744 | LA12: 720 | LB12: 744 | LC12: 744 | LD12: 720 | LE12: 744 | LF12: 720 | LG12: 744 | LH12: 744 | LI12: 696 | LJ12: 744 | LK12: 720 | LL12: 744 | LM12: 720 | LN12: 744 | LO12: 744 | LP12: 720 | LQ12: =(LQ3-LQ2+1)*24 -> 744 | LR12: 720 | LS12: 744 | LT12: 744 | LU12: 672 | LV12: 744 | LW12: 720 | LX12: 744 | LY12: 720 | LZ12: 744 | MA12: 744 | MB12: 720 | MC12: 744 | MD12: 720 | ME12: 744 | MF12: 744 | MG12: 672 | MH12: 744 | MI12: 720 | MJ12: 744 | MK12: 720 | ML12: 744 | MM12: 744 | MN12: 720 | MO12: 744 | MP12: 720 | MQ12: 744 | MR12: 744 | MS12: 672 | MT12: 744 | MU12: 720 | MV12: 744 | MW12: 720 | MX12: 744 | MY12: 744 | MZ12: 720 | NA12: 744 | NB12: 720 | NC12: 744
C13: Capacity | D13: MW | E13: 500 | H13: =$E$13 -> 500 | I13: =$E$13 -> 500 | J13: 500 | K13: 500 | L13: 500 | M13: 500 | N13: 500 | O13: 500 | P13: 500 | Q13: 500 | R13: 500 | S13: 500 | T13: 500 | U13: 500 | V13: 500 | W13: 500 | X13: 500 | Y13: 500 | Z13: 500 | AA13: 500 | AB13: 500 | AC13: 500 | AD13: 500 | AE13: 500 | AF13: 500 | AG13: 500 | AH13: 500 | AI13: 500 | AJ13: 500 | AK13: 500 | AL13: 500 | AM13: 500 | AN13: 500 | AO13: 500 | AP13: 500 | AQ13: 500 | AR13: 500 | AS13: 500 | AT13: 500 | AU13: 500 | AV13: 500 | AW13: 500 | AX13: 500 | AY13: 500 | AZ13: 500 | BA13: 500 | BB13: 500 | BC13: 500 | BD13: 500 | BE13: 500 | BF13: 500 | BG13: 500 | BH13: 500 | BI13: 500 | BJ13: 500 | BK13: 500 | BL13: 500 | BM13: 500 | BN13: 500 | BO13: 500 | BP13: 500 | BQ13: 500 | BR13: 500 | BS13: 500 | BT13: 500 | BU13: =$E$13 -> 500 | BV13: 500 | BW13: 500 | BX13: 500 | BY13: 500 | BZ13: 500 | CA13: 500 | CB13: 500 | CC13: 500 | CD13: 500 | CE13: 500 | CF13: 500 | CG13: 500 | CH13: 500 | CI13: 500 | CJ13: 500 | CK13: 500 | CL13: 500 | CM13: 500 | CN13: 500 | CO13: 500 | CP13: 500 | CQ13: 500 | CR13: 500 | CS13: 500 | CT13: 500 | CU13: 500 | CV13: 500 | CW13: 500 | CX13: 500 | CY13: 500 | CZ13: 500 | DA13: 500 | DB13: 500 | DC13: 500 | DD13: 500 | DE13: 500 | DF13: 500 | DG13: 500 | DH13: 500 | DI13: 500 | DJ13: 500 | DK13: 500 | DL13: 500 | DM13: 500 | DN13: 500 | DO13: 500 | DP13: 500 | DQ13: 500 | DR13: 500 | DS13: 500 | DT13: 500 | DU13: 500 | DV13: 500 | DW13: 500 | DX13: 500 | DY13: 500 | DZ13: 500 | EA13: 500 | EB13: 500 | EC13: 500 | ED13: 500 | EE13: 500 | EF13: 500 | EG13: =$E$13 -> 500 | EH13: 500 | EI13: 500 | EJ13: 500 | EK13: 500 | EL13: 500 | EM13: 500 | EN13: 500 | EO13: 500 | EP13: 500 | EQ13: 500 | ER13: 500 | ES13: 500 | ET13: 500 | EU13: 500 | EV13: 500 | EW13: 500 | EX13: 500 | EY13: 500 | EZ13: 500 | FA13: 500 | FB13: 500 | FC13: 500 | FD13: 500 | FE13: 500 | FF13: 500 | FG13: 500 | FH13: 500 | FI13: 500 | FJ13: 500 | FK13: 500 | FL13: 500 | FM13: 500 | FN13: 500 | FO13: 500 | FP13: 500 | FQ13: 500 | FR13: 500 | FS13: 500 | FT13: 500 | FU13: 500 | FV13: 500 | FW13: 500 | FX13: 500 | FY13: 500 | FZ13: 500 | GA13: 500 | GB13: 500 | GC13: 500 | GD13: 500 | GE13: 500 | GF13: 500 | GG13: 500 | GH13: 500 | GI13: 500 | GJ13: 500 | GK13: 500 | GL13: 500 | GM13: 500 | GN13: 500 | GO13: 500 | GP13: 500 | GQ13: 500 | GR13: 500 | GS13: =$E$13 -> 500 | GT13: 500 | GU13: 500 | GV13: 500 | GW13: 500 | GX13: 500 | GY13: 500 | GZ13: 500 | HA13: 500 | HB13: 500 | HC13: 500 | HD13: 500 | HE13: 500 | HF13: 500 | HG13: 500 | HH13: 500 | HI13: 500 | HJ13: 500 | HK13: 500 | HL13: 500 | HM13: 500 | HN13: 500 | HO13: 500 | HP13: 500 | HQ13: 500 | HR13: 500 | HS13: 500 | HT13: 500 | HU13: 500 | HV13: 500 | HW13: 500 | HX13: 500 | HY13: 500 | HZ13: 500 | IA13: 500 | IB13: 500 | IC13: 500 | ID13: 500 | IE13: 500 | IF13: 500 | IG13: 500 | IH13: 500 | II13: 500 | IJ13: 500 | IK13: 500 | IL13: 500 | IM13: 500 | IN13: 500 | IO13: 500 | IP13: 500 | IQ13: 500 | IR13: 500 | IS13: 500 | IT13: 500 | IU13: 500 | IV13: 500 | IW13: 500 | IX13: 500 | IY13: 500 | IZ13: 500 | JA13: 500 | JB13: 500 | JC13: 500 | JD13: 500 | JE13: =$E$13 -> 500 | JF13: 500 | JG13: 500 | JH13: 500 | JI13: 500 | JJ13: 500 | JK13: 500 | JL13: 500 | JM13: 500 | JN13: 500 | JO13: 500 | JP13: 500 | JQ13: 500 | JR13: 500 | JS13: 500 | JT13: 500 | JU13: 500 | JV13: 500 | JW13: 500 | JX13: 500 | JY13: 500 | JZ13: 500 | KA13: 500 | KB13: 500 | KC13: 500 | KD13: 500 | KE13: 500 | KF13: 500 | KG13: 500 | KH13: 500 | KI13: 500 | KJ13: 500 | KK13: 500 | KL13: 500 | KM13: 500 | KN13: 500 | KO13: 500 | KP13: 500 | KQ13: 500 | KR13: 500 | KS13: 500 | KT13: 500 | KU13: 500 | KV13: 500 | KW13: 500 | KX13: 500 | KY13: 500 | KZ13: 500 | LA13: 500 | LB13: 500 | LC13: 500 | LD13: 500 | LE13: 500 | LF13: 500 | LG13: 500 | LH13: 500 | LI13: 500 | LJ13: 500 | LK13: 500 | LL13: 500 | LM13: 500 | LN13: 500 | LO13: 500 | LP13: 500 | LQ13: =$E$13 -> 500 | LR13: 500 | LS13: 500 | LT13: 500 | LU13: 500 | LV13: 500 | LW13: 500 | LX13: 500 | LY13: 500 | LZ13: 500 | MA13: 500 | MB13: 500 | MC13: 500 | MD13: 500 | ME13: 500 | MF13: 500 | MG13: 500 | MH13: 500 | MI13: 500 | MJ13: 500 | MK13: 500 | ML13: 500 | MM13: 500 | MN13: 500 | MO13: 500 | MP13: 500 | MQ13: 500 | MR13: 500 | MS13: 500 | MT13: 500 | MU13: 500 | MV13: 500 | MW13: 500 | MX13: 500 | MY13: 500 | MZ13: 500 | NA13: 500 | NB13: 500 | NC13: 500
C14: Capacity Factor | D14: % | E14: =G14/100 -> 0.55 | G14: 55 | H14: =$E$14 -> 0.55 | I14: =$E$14 -> 0.55 | J14: 0.55 | K14: 0.55 | L14: 0.55 | M14: 0.55 | N14: 0.55 | O14: 0.55 | P14: 0.55 | Q14: 0.55 | R14: 0.55 | S14: 0.55 | T14: 0.55 | U14: 0.55 | V14: 0.55 | W14: 0.55 | X14: 0.55 | Y14: 0.55 | Z14: 0.55 | AA14: 0.55 | AB14: 0.55 | AC14: 0.55 | AD14: 0.55 | AE14: 0.55 | AF14: 0.55 | AG14: 0.55 | AH14: 0.55 | AI14: 0.55 | AJ14: 0.55 | AK14: 0.55 | AL14: 0.55 | AM14: 0.55 | AN14: 0.55 | AO14: 0.55 | AP14: 0.55 | AQ14: 0.55 | AR14: 0.55 | AS14: 0.55 | AT14: 0.55 | AU14: 0.55 | AV14: 0.55 | AW14: 0.55 | AX14: 0.55 | AY14: 0.55 | AZ14: 0.55 | BA14: 0.55 | BB14: 0.55 | BC14: 0.55 | BD14: 0.55 | BE14: 0.55 | BF14: 0.55 | BG14: 0.55 | BH14: 0.55 | BI14: 0.55 | BJ14: 0.55 | BK14: 0.55 | BL14: 0.55 | BM14: 0.55 | BN14: 0.55 | BO14: 0.55 | BP14: 0.55 | BQ14: 0.55 | BR14: 0.55 | BS14: 0.55 | BT14: 0.55 | BU14: =$E$14 -> 0.55 | BV14: 0.55 | BW14: 0.55 | BX14: 0.55 | BY14: 0.55 | BZ14: 0.55 | CA14: 0.55 | CB14: 0.55 | CC14: 0.55 | CD14: 0.55 | CE14: 0.55 | CF14: 0.55 | CG14: 0.55 | CH14: 0.55 | CI14: 0.55 | CJ14: 0.55 | CK14: 0.55 | CL14: 0.55 | CM14: 0.55 | CN14: 0.55 | CO14: 0.55 | CP14: 0.55 | CQ14: 0.55 | CR14: 0.55 | CS14: 0.55 | CT14: 0.55 | CU14: 0.55 | CV14: 0.55 | CW14: 0.55 | CX14: 0.55 | CY14: 0.55 | CZ14: 0.55 | DA14: 0.55 | DB14: 0.55 | DC14: 0.55 | DD14: 0.55 | DE14: 0.55 | DF14: 0.55 | DG14: 0.55 | DH14: 0.55 | DI14: 0.55 | DJ14: 0.55 | DK14: 0.55 | DL14: 0.55 | DM14: 0.55 | DN14: 0.55 | DO14: 0.55 | DP14: 0.55 | DQ14: 0.55 | DR14: 0.55 | DS14: 0.55 | DT14: 0.55 | DU14: 0.55 | DV14: 0.55 | DW14: 0.55 | DX14: 0.55 | DY14: 0.55 | DZ14: 0.55 | EA14: 0.55 | EB14: 0.55 | EC14: 0.55 | ED14: 0.55 | EE14: 0.55 | EF14: 0.55 | EG14: =$E$14 -> 0.55 | EH14: 0.55 | EI14: 0.55 | EJ14: 0.55 | EK14: 0.55 | EL14: 0.55 | EM14: 0.55 | EN14: 0.55 | EO14: 0.55 | EP14: 0.55 | EQ14: 0.55 | ER14: 0.55 | ES14: 0.55 | ET14: 0.55 | EU14: 0.55 | EV14: 0.55 | EW14: 0.55 | EX14: 0.55 | EY14: 0.55 | EZ14: 0.55 | FA14: 0.55 | FB14: 0.55 | FC14: 0.55 | FD14: 0.55 | FE14: 0.55 | FF14: 0.55 | FG14: 0.55 | FH14: 0.55 | FI14: 0.55 | FJ14: 0.55 | FK14: 0.55 | FL14: 0.55 | FM14: 0.55 | FN14: 0.55 | FO14: 0.55 | FP14: 0.55 | FQ14: 0.55 | FR14: 0.55 | FS14: 0.55 | FT14: 0.55 | FU14: 0.55 | FV14: 0.55 | FW14: 0.55 | FX14: 0.55 | FY14: 0.55 | FZ14: 0.55 | GA14: 0.55 | GB14: 0.55 | GC14: 0.55 | GD14: 0.55 | GE14: 0.55 | GF14: 0.55 | GG14: 0.55 | GH14: 0.55 | GI14: 0.55 | GJ14: 0.55 | GK14: 0.55 | GL14: 0.55 | GM14: 0.55 | GN14: 0.55 | GO14: 0.55 | GP14: 0.55 | GQ14: 0.55 | GR14: 0.55 | GS14: =$E$14 -> 0.55 | GT14: 0.55 | GU14: 0.55 | GV14: 0.55 | GW14: 0.55 | GX14: 0.55 | GY14: 0.55 | GZ14: 0.55 | HA14: 0.55 | HB14: 0.55 | HC14: 0.55 | HD14: 0.55 | HE14: 0.55 | HF14: 0.55 | HG14: 0.55 | HH14: 0.55 | HI14: 0.55 | HJ14: 0.55 | HK14: 0.55 | HL14: 0.55 | HM14: 0.55 | HN14: 0.55 | HO14: 0.55 | HP14: 0.55 | HQ14: 0.55 | HR14: 0.55 | HS14: 0.55 | HT14: 0.55 | HU14: 0.55 | HV14: 0.55 | HW14: 0.55 | HX14: 0.55 | HY14: 0.55 | HZ14: 0.55 | IA14: 0.55 | IB14: 0.55 | IC14: 0.55 | ID14: 0.55 | IE14: 0.55 | IF14: 0.55 | IG14: 0.55 | IH14: 0.55 | II14: 0.55 | IJ14: 0.55 | IK14: 0.55 | IL14: 0.55 | IM14: 0.55 | IN14: 0.55 | IO14: 0.55 | IP14: 0.55 | IQ14: 0.55 | IR14: 0.55 | IS14: 0.55 | IT14: 0.55 | IU14: 0.55 | IV14: 0.55 | IW14: 0.55 | IX14: 0.55 | IY14: 0.55 | IZ14: 0.55 | JA14: 0.55 | JB14: 0.55 | JC14: 0.55 | JD14: 0.55 | JE14: =$E$14 -> 0.55 | JF14: 0.55 | JG14: 0.55 | JH14: 0.55 | JI14: 0.55 | JJ14: 0.55 | JK14: 0.55 | JL14: 0.55 | JM14: 0.55 | JN14: 0.55 | JO14: 0.55 | JP14: 0.55 | JQ14: 0.55 | JR14: 0.55 | JS14: 0.55 | JT14: 0.55 | JU14: 0.55 | JV14: 0.55 | JW14: 0.55 | JX14: 0.55 | JY14: 0.55 | JZ14: 0.55 | KA14: 0.55 | KB14: 0.55 | KC14: 0.55 | KD14: 0.55 | KE14: 0.55 | KF14: 0.55 | KG14: 0.55 | KH14: 0.55 | KI14: 0.55 | KJ14: 0.55 | KK14: 0.55 | KL14: 0.55 | KM14: 0.55 | KN14: 0.55 | KO14: 0.55 | KP14: 0.55 | KQ14: 0.55 | KR14: 0.55 | KS14: 0.55 | KT14: 0.55 | KU14: 0.55 | KV14: 0.55 | KW14: 0.55 | KX14: 0.55 | KY14: 0.55 | KZ14: 0.55 | LA14: 0.55 | LB14: 0.55 | LC14: 0.55 | LD14: 0.55 | LE14: 0.55 | LF14: 0.55 | LG14: 0.55 | LH14: 0.55 | LI14: 0.55 | LJ14: 0.55 | LK14: 0.55 | LL14: 0.55 | LM14: 0.55 | LN14: 0.55 | LO14: 0.55 | LP14: 0.55 | LQ14: =$E$14 -> 0.55 | LR14: 0.55 | LS14: 0.55 | LT14: 0.55 | LU14: 0.55 | LV14: 0.55 | LW14: 0.55 | LX14: 0.55 | LY14: 0.55 | LZ14: 0.55 | MA14: 0.55 | MB14: 0.55 | MC14: 0.55 | MD14: 0.55 | ME14: 0.55 | MF14: 0.55 | MG14: 0.55 | MH14: 0.55 | MI14: 0.55 | MJ14: 0.55 | MK14: 0.55 | ML14: 0.55 | MM14: 0.55 | MN14: 0.55 | MO14: 0.55 | MP14: 0.55 | MQ14: 0.55 | MR14: 0.55 | MS14: 0.55 | MT14: 0.55 | MU14: 0.55 | MV14: 0.55 | MW14: 0.55 | MX14: 0.55 | MY14: 0.55 | MZ14: 0.55 | NA14: 0.55 | NB14: 0.55 | NC14: 0.55
C15: Hours Run (from capacity factor) | D15: Hours | H15: =H14*H12 -> 409.2 | I15: =I14*I12 -> 369.6 | J15: 409.2 | K15: 396 | L15: 409.2 | M15: 396 | N15: 409.2 | O15: 409.2 | P15: 396 | Q15: 409.2 | R15: 396 | S15: 409.2 | T15: 409.2 | U15: 369.6 | V15: 409.2 | W15: 396 | X15: 409.2 | Y15: 396 | Z15: 409.2 | AA15: 409.2 | AB15: 396 | AC15: 409.2 | AD15: 396 | AE15: 409.2 | AF15: 409.2 | AG15: 382.8 | AH15: 409.2 | AI15: 396 | AJ15: 409.2 | AK15: 396 | AL15: 409.2 | AM15: 409.2 | AN15: 396 | AO15: 409.2 | AP15: 396 | AQ15: 409.2 | AR15: 409.2 | AS15: 369.6 | AT15: 409.2 | AU15: 396 | AV15: 409.2 | AW15: 396 | AX15: 409.2 | AY15: 409.2 | AZ15: 396 | BA15: 409.2 | BB15: 396 | BC15: 409.2 | BD15: 409.2 | BE15: 369.6 | BF15: 409.2 | BG15: 396 | BH15: 409.2 | BI15: 396 | BJ15: 409.2 | BK15: 409.2 | BL15: 396 | BM15: 409.2 | BN15: 396 | BO15: 409.2 | BP15: 409.2 | BQ15: 369.6 | BR15: 409.2 | BS15: 396 | BT15: 409.2 | BU15: =BU14*BU12 -> 396 | BV15: 409.2 | BW15: 409.2 | BX15: 396 | BY15: 409.2 | BZ15: 396 | CA15: 409.2 | CB15: 409.2 | CC15: 382.8 | CD15: 409.2 | CE15: 396 | CF15: 409.2 | CG15: 396 | CH15: 409.2 | CI15: 409.2 | CJ15: 396 | CK15: 409.2 | CL15: 396 | CM15: 409.2 | CN15: 409.2 | CO15: 369.6 | CP15: 409.2 | CQ15: 396 | CR15: 409.2 | CS15: 396 | CT15: 409.2 | CU15: 409.2 | CV15: 396 | CW15: 409.2 | CX15: 396 | CY15: 409.2 | CZ15: 409.2 | DA15: 369.6 | DB15: 409.2 | DC15: 396 | DD15: 409.2 | DE15: 396 | DF15: 409.2 | DG15: 409.2 | DH15: 396 | DI15: 409.2 | DJ15: 396 | DK15: 409.2 | DL15: 409.2 | DM15: 369.6 | DN15: 409.2 | DO15: 396 | DP15: 409.2 | DQ15: 396 | DR15: 409.2 | DS15: 409.2 | DT15: 396 | DU15: 409.2 | DV15: 396 | DW15: 409.2 | DX15: 409.2 | DY15: 382.8 | DZ15: 409.2 | EA15: 396 | EB15: 409.2 | EC15: 396 | ED15: 409.2 | EE15: 409.2 | EF15: 396 | EG15: =EG14*EG12 -> 409.2 | EH15: 396 | EI15: 409.2 | EJ15: 409.2 | EK15: 369.6 | EL15: 409.2 | EM15: 396 | EN15: 409.2 | EO15: 396 | EP15: 409.2 | EQ15: 409.2 | ER15: 396 | ES15: 409.2 | ET15: 396 | EU15: 409.2 | EV15: 409.2 | EW15: 369.6 | EX15: 409.2 | EY15: 396 | EZ15: 409.2 | FA15: 396 | FB15: 409.2 | FC15: 409.2 | FD15: 396 | FE15: 409.2 | FF15: 396 | FG15: 409.2 | FH15: 409.2 | FI15: 369.6 | FJ15: 409.2 | FK15: 396 | FL15: 409.2 | FM15: 396 | FN15: 409.2 | FO15: 409.2 | FP15: 396 | FQ15: 409.2 | FR15: 396 | FS15: 409.2 | FT15: 409.2 | FU15: 382.8 | FV15: 409.2 | FW15: 396 | FX15: 409.2 | FY15: 396 | FZ15: 409.2 | GA15: 409.2 | GB15: 396 | GC15: 409.2 | GD15: 396 | GE15: 409.2 | GF15: 409.2 | GG15: 369.6 | GH15: 409.2 | GI15: 396 | GJ15: 409.2 | GK15: 396 | GL15: 409.2 | GM15: 409.2 | GN15: 396 | GO15: 409.2 | GP15: 396 | GQ15: 409.2 | GR15: 409.2 | GS15: =GS14*GS12 -> 369.6 | GT15: 409.2 | GU15: 396 | GV15: 409.2 | GW15: 396 | GX15: 409.2 | GY15: 409.2 | GZ15: 396 | HA15: 409.2 | HB15: 396 | HC15: 409.2 | HD15: 409.2 | HE15: 369.6 | HF15: 409.2 | HG15: 396 | HH15: 409.2 | HI15: 396 | HJ15: 409.2 | HK15: 409.2 | HL15: 396 | HM15: 409.2 | HN15: 396 | HO15: 409.2 | HP15: 409.2 | HQ15: 382.8 | HR15: 409.2 | HS15: 396 | HT15: 409.2 | HU15: 396 | HV15: 409.2 | HW15: 409.2 | HX15: 396 | HY15: 409.2 | HZ15: 396 | IA15: 409.2 | IB15: 409.2 | IC15: 369.6 | ID15: 409.2 | IE15: 396 | IF15: 409.2 | IG15: 396 | IH15: 409.2 | II15: 409.2 | IJ15: 396 | IK15: 409.2 | IL15: 396 | IM15: 409.2 | IN15: 409.2 | IO15: 369.6 | IP15: 409.2 | IQ15: 396 | IR15: 409.2 | IS15: 396 | IT15: 409.2 | IU15: 409.2 | IV15: 396 | IW15: 409.2 | IX15: 396 | IY15: 409.2 | IZ15: 409.2 | JA15: 369.6 | JB15: 409.2 | JC15: 396 | JD15: 409.2 | JE15: =JE14*JE12 -> 396 | JF15: 409.2 | JG15: 409.2 | JH15: 396 | JI15: 409.2 | JJ15: 396 | JK15: 409.2 | JL15: 409.2 | JM15: 382.8 | JN15: 409.2 | JO15: 396 | JP15: 409.2 | JQ15: 396 | JR15: 409.2 | JS15: 409.2 | JT15: 396 | JU15: 409.2 | JV15: 396 | JW15: 409.2 | JX15: 409.2 | JY15: 369.6 | JZ15: 409.2 | KA15: 396 | KB15: 409.2 | KC15: 396 | KD15: 409.2 | KE15: 409.2 | KF15: 396 | KG15: 409.2 | KH15: 396 | KI15: 409.2 | KJ15: 409.2 | KK15: 369.6 | KL15: 409.2 | KM15: 396 | KN15: 409.2 | KO15: 396 | KP15: 409.2 | KQ15: 409.2 | KR15: 396 | KS15: 409.2 | KT15: 396 | KU15: 409.2 | KV15: 409.2 | KW15: 369.6 | KX15: 409.2 | KY15: 396 | KZ15: 409.2 | LA15: 396 | LB15: 409.2 | LC15: 409.2 | LD15: 396 | LE15: 409.2 | LF15: 396 | LG15: 409.2 | LH15: 409.2 | LI15: 382.8 | LJ15: 409.2 | LK15: 396 | LL15: 409.2 | LM15: 396 | LN15: 409.2 | LO15: 409.2 | LP15: 396 | LQ15: =LQ14*LQ12 -> 409.2 | LR15: 396 | LS15: 409.2 | LT15: 409.2 | LU15: 369.6 | LV15: 409.2 | LW15: 396 | LX15: 409.2 | LY15: 396 | LZ15: 409.2 | MA15: 409.2 | MB15: 396 | MC15: 409.2 | MD15: 396 | ME15: 409.2 | MF15: 409.2 | MG15: 369.6 | MH15: 409.2 | MI15: 396 | MJ15: 409.2 | MK15: 396 | ML15: 409.2 | MM15: 409.2 | MN15: 396 | MO15: 409.2 | MP15: 396 | MQ15: 409.2 | MR15: 409.2 | MS15: 369.6 | MT15: 409.2 | MU15: 396 | MV15: 409.2 | MW15: 396 | MX15: 409.2 | MY15: 409.2 | MZ15: 396 | NA15: 409.2 | NB15: 396 | NC15: 409.2
C16: Generation | D16: MWh | H16: =H13*H15 -> 204600 | I16: =I13*I15 -> 184800 | J16: 204600 | K16: 198000 | L16: 204600 | M16: 198000 | N16: 204600 | O16: 204600 | P16: 198000 | Q16: 204600 | R16: 198000 | S16: 204600 | T16: 204600 | U16: 184800 | V16: 204600 | W16: 198000 | X16: 204600 | Y16: 198000 | Z16: 204600 | AA16: 204600 | AB16: 198000 | AC16: 204600 | AD16: 198000 | AE16: 204600 | AF16: 204600 | AG16: 191400 | AH16: 204600 | AI16: 198000 | AJ16: 204600 | AK16: 198000 | AL16: 204600 | AM16: 204600 | AN16: 198000 | AO16: 204600 | AP16: 198000 | AQ16: 204600 | AR16: 204600 | AS16: 184800 | AT16: 204600 | AU16: 198000 | AV16: 204600 | AW16: 198000 | AX16: 204600 | AY16: 204600 | AZ16: 198000 | BA16: 204600 | BB16: 198000 | BC16: 204600 | BD16: 204600 | BE16: 184800 | BF16: 204600 | BG16: 198000 | BH16: 204600 | BI16: 198000 | BJ16: 204600 | BK16: 204600 | BL16: 198000 | BM16: 204600 | BN16: 198000 | BO16: 204600 | BP16: 204600 | BQ16: 184800 | BR16: 204600 | BS16: 198000 | BT16: 204600 | BU16: =BU13*BU15 -> 198000 | BV16: 204600 | BW16: 204600 | BX16: 198000 | BY16: 204600 | BZ16: 198000 | CA16: 204600 | CB16: 204600 | CC16: 191400 | CD16: 204600 | CE16: 198000 | CF16: 204600 | CG16: 198000 | CH16: 204600 | CI16: 204600 | CJ16: 198000 | CK16: 204600 | CL16: 198000 | CM16: 204600 | CN16: 204600 | CO16: 184800 | CP16: 204600 | CQ16: 198000 | CR16: 204600 | CS16: 198000 | CT16: 204600 | CU16: 204600 | CV16: 198000 | CW16: 204600 | CX16: 198000 | CY16: 204600 | CZ16: 204600 | DA16: 184800 | DB16: 204600 | DC16: 198000 | DD16: 204600 | DE16: 198000 | DF16: 204600 | DG16: 204600 | DH16: 198000 | DI16: 204600 | DJ16: 198000 | DK16: 204600 | DL16: 204600 | DM16: 184800 | DN16: 204600 | DO16: 198000 | DP16: 204600 | DQ16: 198000 | DR16: 204600 | DS16: 204600 | DT16: 198000 | DU16: 204600 | DV16: 198000 | DW16: 204600 | DX16: 204600 | DY16: 191400 | DZ16: 204600 | EA16: 198000 | EB16: 204600 | EC16: 198000 | ED16: 204600 | EE16: 204600 | EF16: 198000 | EG16: =EG13*EG15 -> 204600 | EH16: 198000 | EI16: 204600 | EJ16: 204600 | EK16: 184800 | EL16: 204600 | EM16: 198000 | EN16: 204600 | EO16: 198000 | EP16: 204600 | EQ16: 204600 | ER16: 198000 | ES16: 204600 | ET16: 198000 | EU16: 204600 | EV16: 204600 | EW16: 184800 | EX16: 204600 | EY16: 198000 | EZ16: 204600 | FA16: 198000 | FB16: 204600 | FC16: 204600 | FD16: 198000 | FE16: 204600 | FF16: 198000 | FG16: 204600 | FH16: 204600 | FI16: 184800 | FJ16: 204600 | FK16: 198000 | FL16: 204600 | FM16: 198000 | FN16: 204600 | FO16: 204600 | FP16: 198000 | FQ16: 204600 | FR16: 198000 | FS16: 204600 | FT16: 204600 | FU16: 191400 | FV16: 204600 | FW16: 198000 | FX16: 204600 | FY16: 198000 | FZ16: 204600 | GA16: 204600 | GB16: 198000 | GC16: 204600 | GD16: 198000 | GE16: 204600 | GF16: 204600 | GG16: 184800 | GH16: 204600 | GI16: 198000 | GJ16: 204600 | GK16: 198000 | GL16: 204600 | GM16: 204600 | GN16: 198000 | GO16: 204600 | GP16: 198000 | GQ16: 204600 | GR16: 204600 | GS16: =GS13*GS15 -> 184800 | GT16: 204600 | GU16: 198000 | GV16: 204600 | GW16: 198000 | GX16: 204600 | GY16: 204600 | GZ16: 198000 | HA16: 204600 | HB16: 198000 | HC16: 204600 | HD16: 204600 | HE16: 184800 | HF16: 204600 | HG16: 198000 | HH16: 204600 | HI16: 198000 | HJ16: 204600 | HK16: 204600 | HL16: 198000 | HM16: 204600 | HN16: 198000 | HO16: 204600 | HP16: 204600 | HQ16: 191400 | HR16: 204600 | HS16: 198000 | HT16: 204600 | HU16: 198000 | HV16: 204600 | HW16: 204600 | HX16: 198000 | HY16: 204600 | HZ16: 198000 | IA16: 204600 | IB16: 204600 | IC16: 184800 | ID16: 204600 | IE16: 198000 | IF16: 204600 | IG16: 198000 | IH16: 204600 | II16: 204600 | IJ16: 198000 | IK16: 204600 | IL16: 198000 | IM16: 204600 | IN16: 204600 | IO16: 184800 | IP16: 204600 | IQ16: 198000 | IR16: 204600 | IS16: 198000 | IT16: 204600 | IU16: 204600 | IV16: 198000 | IW16: 204600 | IX16: 198000 | IY16: 204600 | IZ16: 204600 | JA16: 184800 | JB16: 204600 | JC16: 198000 | JD16: 204600 | JE16: =JE13*JE15 -> 198000 | JF16: 204600 | JG16: 204600 | JH16: 198000 | JI16: 204600 | JJ16: 198000 | JK16: 204600 | JL16: 204600 | JM16: 191400 | JN16: 204600 | JO16: 198000 | JP16: 204600 | JQ16: 198000 | JR16: 204600 | JS16: 204600 | JT16: 198000 | JU16: 204600 | JV16: 198000 | JW16: 204600 | JX16: 204600 | JY16: 184800 | JZ16: 204600 | KA16: 198000 | KB16: 204600 | KC16: 198000 | KD16: 204600 | KE16: 204600 | KF16: 198000 | KG16: 204600 | KH16: 198000 | KI16: 204600 | KJ16: 204600 | KK16: 184800 | KL16: 204600 | KM16: 198000 | KN16: 204600 | KO16: 198000 | KP16: 204600 | KQ16: 204600 | KR16: 198000 | KS16: 204600 | KT16: 198000 | KU16: 204600 | KV16: 204600 | KW16: 184800 | KX16: 204600 | KY16: 198000 | KZ16: 204600 | LA16: 198000 | LB16: 204600 | LC16: 204600 | LD16: 198000 | LE16: 204600 | LF16: 198000 | LG16: 204600 | LH16: 204600 | LI16: 191400 | LJ16: 204600 | LK16: 198000 | LL16: 204600 | LM16: 198000 | LN16: 204600 | LO16: 204600 | LP16: 198000 | LQ16: =LQ13*LQ15 -> 204600 | LR16: 198000 | LS16: 204600 | LT16: 204600 | LU16: 184800 | LV16: 204600 | LW16: 198000 | LX16: 204600 | LY16: 198000 | LZ16: 204600 | MA16: 204600 | MB16: 198000 | MC16: 204600 | MD16: 198000 | ME16: 204600 | MF16: 204600 | MG16: 184800 | MH16: 204600 | MI16: 198000 | MJ16: 204600 | MK16: 198000 | ML16: 204600 | MM16: 204600 | MN16: 198000 | MO16: 204600 | MP16: 198000 | MQ16: 204600 | MR16: 204600 | MS16: 184800 | MT16: 204600 | MU16: 198000 | MV16: 204600 | MW16: 198000 | MX16: 204600 | MY16: 204600 | MZ16: 198000 | NA16: 204600 | NB16: 198000 | NC16: 204600
B18: Accumulated Hours of Repair
C19: Required Hours of Repair | D19: Hours | E19: =E9 -> 1200 | H19: =$E$19 -> 1200 | I19: =$E$19 -> 1200 | J19: 1200 | K19: 1200 | L19: 1200 | M19: 1200 | N19: 1200 | O19: 1200 | P19: 1200 | Q19: 1200 | R19: 1200 | S19: 1200 | T19: 1200 | U19: 1200 | V19: 1200 | W19: 1200 | X19: 1200 | Y19: 1200 | Z19: 1200 | AA19: 1200 | AB19: 1200 | AC19: 1200 | AD19: 1200 | AE19: 1200 | AF19: 1200 | AG19: 1200 | AH19: 1200 | AI19: 1200 | AJ19: 1200 | AK19: 1200 | AL19: 1200 | AM19: 1200 | AN19: 1200 | AO19: 1200 | AP19: 1200 | AQ19: 1200 | AR19: 1200 | AS19: 1200 | AT19: 1200 | AU19: 1200 | AV19: 1200 | AW19: 1200 | AX19: 1200 | AY19: 1200 | AZ19: 1200 | BA19: 1200 | BB19: 1200 | BC19: 1200 | BD19: 1200 | BE19: 1200 | BF19: 1200 | BG19: 1200 | BH19: 1200 | BI19: 1200 | BJ19: 1200 | BK19: 1200 | BL19: 1200 | BM19: 1200 | BN19: 1200 | BO19: 1200 | BP19: 1200 | BQ19: 1200 | BR19: 1200 | BS19: 1200 | BT19: 1200 | BU19: =$E$19 -> 1200 | BV19: 1200 | BW19: 1200 | BX19: 1200 | BY19: 1200 | BZ19: 1200 | CA19: 1200 | CB19: 1200 | CC19: 1200 | CD19: 1200 | CE19: 1200 | CF19: 1200 | CG19: 1200 | CH19: 1200 | CI19: 1200 | CJ19: 1200 | CK19: 1200 | CL19: 1200 | CM19: 1200 | CN19: 1200 | CO19: 1200 | CP19: 1200 | CQ19: 1200 | CR19: 1200 | CS19: 1200 | CT19: 1200 | CU19: 1200 | CV19: 1200 | CW19: 1200 | CX19: 1200 | CY19: 1200 | CZ19: 1200 | DA19: 1200 | DB19: 1200 | DC19: 1200 | DD19: 1200 | DE19: 1200 | DF19: 1200 | DG19: 1200 | DH19: 1200 | DI19: 1200 | DJ19: 1200 | DK19: 1200 | DL19: 1200 | DM19: 1200 | DN19: 1200 | DO19: 1200 | DP19: 1200 | DQ19: 1200 | DR19: 1200 | DS19: 1200 | DT19: 1200 | DU19: 1200 | DV19: 1200 | DW19: 1200 | DX19: 1200 | DY19: 1200 | DZ19: 1200 | EA19: 1200 | EB19: 1200 | EC19: 1200 | ED19: 1200 | EE19: 1200 | EF19: 1200 | EG19: =$E$19 -> 1200 | EH19: 1200 | EI19: 1200 | EJ19: 1200 | EK19: 1200 | EL19: 1200 | EM19: 1200 | EN19: 1200 | EO19: 1200 | EP19: 1200 | EQ19: 1200 | ER19: 1200 | ES19: 1200 | ET19: 1200 | EU19: 1200 | EV19: 1200 | EW19: 1200 | EX19: 1200 | EY19: 1200 | EZ19: 1200 | FA19: 1200 | FB19: 1200 | FC19: 1200 | FD19: 1200 | FE19: 1200 | FF19: 1200 | FG19: 1200 | FH19: 1200 | FI19: 1200 | FJ19: 1200 | FK19: 1200 | FL19: 1200 | FM19: 1200 | FN19: 1200 | FO19: 1200 | FP19: 1200 | FQ19: 1200 | FR19: 1200 | FS19: 1200 | FT19: 1200 | FU19: 1200 | FV19: 1200 | FW19: 1200 | FX19: 1200 | FY19: 1200 | FZ19: 1200 | GA19: 1200 | GB19: 1200 | GC19: 1200 | GD19: 1200 | GE19: 1200 | GF19: 1200 | GG19: 1200 | GH19: 1200 | GI19: 1200 | GJ19: 1200 | GK19: 1200 | GL19: 1200 | GM19: 1200 | GN19: 1200 | GO19: 1200 | GP19: 1200 | GQ19: 1200 | GR19: 1200 | GS19: =$E$19 -> 1200 | GT19: 1200 | GU19: 1200 | GV19: 1200 | GW19: 1200 | GX19: 1200 | GY19: 1200 | GZ19: 1200 | HA19: 1200 | HB19: 1200 | HC19: 1200 | HD19: 1200 | HE19: 1200 | HF19: 1200 | HG19: 1200 | HH19: 1200 | HI19: 1200 | HJ19: 1200 | HK19: 1200 | HL19: 1200 | HM19: 1200 | HN19: 1200 | HO19: 1200 | HP19: 1200 | HQ19: 1200 | HR19: 1200 | HS19: 1200 | HT19: 1200 | HU19: 1200 | HV19: 1200 | HW19: 1200 | HX19: 1200 | HY19: 1200 | HZ19: 1200 | IA19: 1200 | IB19: 1200 | IC19: 1200 | ID19: 1200 | IE19: 1200 | IF19: 1200 | IG19: 1200 | IH19: 1200 | II19: 1200 | IJ19: 1200 | IK19: 1200 | IL19: 1200 | IM19: 1200 | IN19: 1200 | IO19: 1200 | IP19: 1200 | IQ19: 1200 | IR19: 1200 | IS19: 1200 | IT19: 1200 | IU19: 1200 | IV19: 1200 | IW19: 1200 | IX19: 1200 | IY19: 1200 | IZ19: 1200 | JA19: 1200 | JB19: 1200 | JC19: 1200 | JD19: 1200 | JE19: =$E$19 -> 1200 | JF19: 1200 | JG19: 1200 | JH19: 1200 | JI19: 1200 | JJ19: 1200 | JK19: 1200 | JL19: 1200 | JM19: 1200 | JN19: 1200 | JO19: 1200 | JP19: 1200 | JQ19: 1200 | JR19: 1200 | JS19: 1200 | JT19: 1200 | JU19: 1200 | JV19: 1200 | JW19: 1200 | JX19: 1200 | JY19: 1200 | JZ19: 1200 | KA19: 1200 | KB19: 1200 | KC19: 1200 | KD19: 1200 | KE19: 1200 | KF19: 1200 | KG19: 1200 | KH19: 1200 | KI19: 1200 | KJ19: 1200 | KK19: 1200 | KL19: 1200 | KM19: 1200 | KN19: 1200 | KO19: 1200 | KP19: 1200 | KQ19: 1200 | KR19: 1200 | KS19: 1200 | KT19: 1200 | KU19: 1200 | KV19: 1200 | KW19: 1200 | KX19: 1200 | KY19: 1200 | KZ19: 1200 | LA19: 1200 | LB19: 1200 | LC19: 1200 | LD19: 1200 | LE19: 1200 | LF19: 1200 | LG19: 1200 | LH19: 1200 | LI19: 1200 | LJ19: 1200 | LK19: 1200 | LL19: 1200 | LM19: 1200 | LN19: 1200 | LO19: 1200 | LP19: 1200 | LQ19: =$E$19 -> 1200 | LR19: 1200 | LS19: 1200 | LT19: 1200 | LU19: 1200 | LV19: 1200 | LW19: 1200 | LX19: 1200 | LY19: 1200 | LZ19: 1200 | MA19: 1200 | MB19: 1200 | MC19: 1200 | MD19: 1200 | ME19: 1200 | MF19: 1200 | MG19: 1200 | MH19: 1200 | MI19: 1200 | MJ19: 1200 | MK19: 1200 | ML19: 1200 | MM19: 1200 | MN19: 1200 | MO19: 1200 | MP19: 1200 | MQ19: 1200 | MR19: 1200 | MS19: 1200 | MT19: 1200 | MU19: 1200 | MV19: 1200 | MW19: 1200 | MX19: 1200 | MY19: 1200 | MZ19: 1200 | NA19: 1200 | NB19: 1200 | NC19: 1200
C20: Remaining Hours of Repair | D20: Hours | H20: =H19-H22 -> 1200 | I20: =I19-I22 -> 1200 | J20: 1200 | K20: 1200 | L20: 1200 | M20: 1200 | N20: 1200 | O20: 1200 | P20: 1200 | Q20: 1200 | R20: 1200 | S20: 1200 | T20: 1200 | U20: 1200 | V20: 1200 | W20: 1200 | X20: 1200 | Y20: 1200 | Z20: 1200 | AA20: 1200 | AB20: 1200 | AC20: 1200 | AD20: 1200 | AE20: 1200 | AF20: 1200 | AG20: 1200 | AH20: 1200 | AI20: 1200 | AJ20: 1200 | AK20: 1200 | AL20: 1200 | AM20: 1200 | AN20: 1200 | AO20: 1200 | AP20: 1200 | AQ20: 1200 | AR20: 1200 | AS20: 1200 | AT20: 1200 | AU20: 1200 | AV20: 1200 | AW20: 1200 | AX20: 1200 | AY20: 1200 | AZ20: 1200 | BA20: 1200 | BB20: 1200 | BC20: 1200 | BD20: 1200 | BE20: 1200 | BF20: 1083.636364 | BG20: 339.6363636 | BH20: 1200 | BI20: 1200 | BJ20: 1200 | BK20: 1200 | BL20: 1200 | BM20: 1200 | BN20: 1200 | BO20: 1200 | BP20: 1200 | BQ20: 1200 | BR20: 1200 | BS20: 1200 | BT20: 1200 | BU20: =BU19-BU22 -> 1200 | BV20: 1200 | BW20: 1200 | BX20: 1200 | BY20: 1200 | BZ20: 1200 | CA20: 1200 | CB20: 1200 | CC20: 1200 | CD20: 1200 | CE20: 1200 | CF20: 1200 | CG20: 1200 | CH20: 1200 | CI20: 1200 | CJ20: 1200 | CK20: 1200 | CL20: 1200 | CM20: 1200 | CN20: 1200 | CO20: 1200 | CP20: 1200 | CQ20: 1200 | CR20: 1200 | CS20: 1200 | CT20: 1200 | CU20: 1200 | CV20: 1200 | CW20: 1200 | CX20: 1200 | CY20: 1200 | CZ20: 1200 | DA20: 1200 | DB20: 1200 | DC20: 1200 | DD20: 1200 | DE20: 1200 | DF20: 655.2727273 | DG20: 1200 | DH20: 1200 | DI20: 1200 | DJ20: 1200 | DK20: 1200 | DL20: 1200 | DM20: 1200 | DN20: 1200 | DO20: 1200 | DP20: 1200 | DQ20: 1200 | DR20: 1200 | DS20: 1200 | DT20: 1200 | DU20: 1200 | DV20: 1200 | DW20: 1200 | DX20: 1200 | DY20: 1200 | DZ20: 1200 | EA20: 1200 | EB20: 1200 | EC20: 1200 | ED20: 1200 | EE20: 1200 | EF20: 1200 | EG20: =EG19-EG22 -> 1200 | EH20: 1200 | EI20: 1200 | EJ20: 1200 | EK20: 1200 | EL20: 1200 | EM20: 1200 | EN20: 1200 | EO20: 1200 | EP20: 1200 | EQ20: 1200 | ER20: 1200 | ES20: 1200 | ET20: 1200 | EU20: 1200 | EV20: 1200 | EW20: 1200 | EX20: 1200 | EY20: 1200 | EZ20: 1200 | FA20: 1200 | FB20: 1200 | FC20: 1200 | FD20: 1200 | FE20: 946.9090909 | FF20: 202.9090909 | FG20: 1200 | FH20: 1200 | FI20: 1200 | FJ20: 1200 | FK20: 1200 | FL20: 1200 | FM20: 1200 | FN20: 1200 | FO20: 1200 | FP20: 1200 | FQ20: 1200 | FR20: 1200 | FS20: 1200 | FT20: 1200 | FU20: 1200 | FV20: 1200 | FW20: 1200 | FX20: 1200 | FY20: 1200 | FZ20: 1200 | GA20: 1200 | GB20: 1200 | GC20: 1200 | GD20: 1200 | GE20: 1200 | GF20: 1200 | GG20: 1200 | GH20: 1200 | GI20: 1200 | GJ20: 1200 | GK20: 1200 | GL20: 1200 | GM20: 1200 | GN20: 1200 | GO20: 1200 | GP20: 1200 | GQ20: 1200 | GR20: 1200 | GS20: =GS19-GS22 -> 1200 | GT20: 1200 | GU20: 1200 | GV20: 1200 | GW20: 1200 | GX20: 1200 | GY20: 1200 | GZ20: 1200 | HA20: 1200 | HB20: 1200 | HC20: 1200 | HD20: 1200 | HE20: 494.5454545 | HF20: 1200 | HG20: 1200 | HH20: 1200 | HI20: 1200 | HJ20: 1200 | HK20: 1200 | HL20: 1200 | HM20: 1200 | HN20: 1200 | HO20: 1200 | HP20: 1200 | HQ20: 1200 | HR20: 1200 | HS20: 1200 | HT20: 1200 | HU20: 1200 | HV20: 1200 | HW20: 1200 | HX20: 1200 | HY20: 1200 | HZ20: 1200 | IA20: 1200 | IB20: 1200 | IC20: 1200 | ID20: 1200 | IE20: 1200 | IF20: 1200 | IG20: 1200 | IH20: 1200 | II20: 1200 | IJ20: 1200 | IK20: 1200 | IL20: 1200 | IM20: 1200 | IN20: 1200 | IO20: 1200 | IP20: 1200 | IQ20: 1200 | IR20: 1200 | IS20: 1200 | IT20: 1200 | IU20: 1200 | IV20: 1200 | IW20: 1200 | IX20: 1200 | IY20: 1200 | IZ20: 1200 | JA20: 1200 | JB20: 1200 | JC20: 1200 | JD20: 858.1818182 | JE20: =JE19-JE22 -> 114.1818182 | JF20: 1200 | JG20: 1200 | JH20: 1200 | JI20: 1200 | JJ20: 1200 | JK20: 1200 | JL20: 1200 | JM20: 1200 | JN20: 1200 | JO20: 1200 | JP20: 1200 | JQ20: 1200 | JR20: 1200 | JS20: 1200 | JT20: 1200 | JU20: 1200 | JV20: 1200 | JW20: 1200 | JX20: 1200 | JY20: 1200 | JZ20: 1200 | KA20: 1200 | KB20: 1200 | KC20: 1200 | KD20: 1200 | KE20: 1200 | KF20: 1200 | KG20: 1200 | KH20: 1200 | KI20: 1200 | KJ20: 1200 | KK20: 1200 | KL20: 1200 | KM20: 1200 | KN20: 1200 | KO20: 1200 | KP20: 1200 | KQ20: 1200 | KR20: 1200 | KS20: 1200 | KT20: 1200 | KU20: 1200 | KV20: 1200 | KW20: 1200 | KX20: 1200 | KY20: 1200 | KZ20: 1200 | LA20: 1200 | LB20: 1200 | LC20: 1149.818182 | LD20: 405.8181818 | LE20: 1200 | LF20: 1200 | LG20: 1200 | LH20: 1200 | LI20: 1200 | LJ20: 1200 | LK20: 1200 | LL20: 1200 | LM20: 1200 | LN20: 1200 | LO20: 1200 | LP20: 1200 | LQ20: =LQ19-LQ22 -> 1200 | LR20: 1200 | LS20: 1200 | LT20: 1200 | LU20: 1200 | LV20: 1200 | LW20: 1200 | LX20: 1200 | LY20: 1200 | LZ20: 1200 | MA20: 1200 | MB20: 1200 | MC20: 1200 | MD20: 1200 | ME20: 1200 | MF20: 1200 | MG20: 1200 | MH20: 1200 | MI20: 1200 | MJ20: 1200 | MK20: 1200 | ML20: 1200 | MM20: 1200 | MN20: 1200 | MO20: 1200 | MP20: 1200 | MQ20: 1200 | MR20: 1200 | MS20: 1200 | MT20: 1200 | MU20: 1200 | MV20: 1200 | MW20: 1200 | MX20: 1200 | MY20: 1200 | MZ20: 1200 | NA20: 1200 | NB20: 1200 | NC20: 721.4545455
C22: Opening Balance | D22: Hours | H22: =G25 -> 0 | I22: 0 | J22: 0 | K22: 0 | L22: 0 | M22: 0 | N22: 0 | O22: 0 | P22: 0 | Q22: 0 | R22: 0 | S22: 0 | T22: 0 | U22: 0 | V22: 0 | W22: 0 | X22: 0 | Y22: 0 | Z22: 0 | AA22: 0 | AB22: 0 | AC22: 0 | AD22: 0 | AE22: 0 | AF22: 0 | AG22: 0 | AH22: 0 | AI22: 0 | AJ22: 0 | AK22: 0 | AL22: 0 | AM22: 0 | AN22: 0 | AO22: 0 | AP22: 0 | AQ22: 0 | AR22: 0 | AS22: 0 | AT22: 0 | AU22: 0 | AV22: 0 | AW22: 0 | AX22: 0 | AY22: 0 | AZ22: 0 | BA22: 0 | BB22: 0 | BC22: 0 | BD22: 0 | BE22: 0 | BF22: 116.3636364 | BG22: 860.3636364 | BH22: 0 | BI22: 0 | BJ22: 0 | BK22: 0 | BL22: 0 | BM22: 0 | BN22: 0 | BO22: 0 | BP22: 0 | BQ22: 0 | BR22: 0 | BS22: 0 | BT22: =BS25 -> 0 | BU22: 0 | BV22: 0 | BW22: 0 | BX22: 0 | BY22: 0 | BZ22: 0 | CA22: 0 | CB22: 0 | CC22: 0 | CD22: 0 | CE22: 0 | CF22: 0 | CG22: 0 | CH22: 0 | CI22: 0 | CJ22: 0 | CK22: 0 | CL22: 0 | CM22: 0 | CN22: 0 | CO22: 0 | CP22: 0 | CQ22: 0 | CR22: 0 | CS22: 0 | CT22: 0 | CU22: 0 | CV22: 0 | CW22: 0 | CX22: 0 | CY22: 0 | CZ22: 0 | DA22: 0 | DB22: 0 | DC22: 0 | DD22: 0 | DE22: 0 | DF22: 544.7272727 | DG22: 0 | DH22: 0 | DI22: 0 | DJ22: 0 | DK22: 0 | DL22: 0 | DM22: 0 | DN22: 0 | DO22: 0 | DP22: 0 | DQ22: 0 | DR22: 0 | DS22: 0 | DT22: 0 | DU22: 0 | DV22: 0 | DW22: 0 | DX22: 0 | DY22: 0 | DZ22: 0 | EA22: 0 | EB22: 0 | EC22: 0 | ED22: 0 | EE22: 0 | EF22: =EE25 -> 0 | EG22: 0 | EH22: 0 | EI22: 0 | EJ22: 0 | EK22: 0 | EL22: 0 | EM22: 0 | EN22: 0 | EO22: 0 | EP22: 0 | EQ22: 0 | ER22: 0 | ES22: 0 | ET22: 0 | EU22: 0 | EV22: 0 | EW22: 0 | EX22: 0 | EY22: 0 | EZ22: 0 | FA22: 0 | FB22: 0 | FC22: 0 | FD22: 0 | FE22: 253.0909091 | FF22: 997.0909091 | FG22: 0 | FH22: 0 | FI22: 0 | FJ22: 0 | FK22: 0 | FL22: 0 | FM22: 0 | FN22: 0 | FO22: 0 | FP22: 0 | FQ22: 0 | FR22: 0 | FS22: 0 | FT22: 0 | FU22: 0 | FV22: 0 | FW22: 0 | FX22: 0 | FY22: 0 | FZ22: 0 | GA22: 0 | GB22: 0 | GC22: 0 | GD22: 0 | GE22: 0 | GF22: 0 | GG22: 0 | GH22: 0 | GI22: 0 | GJ22: 0 | GK22: 0 | GL22: 0 | GM22: 0 | GN22: 0 | GO22: 0 | GP22: 0 | GQ22: 0 | GR22: =GQ25 -> 0 | GS22: 0 | GT22: 0 | GU22: 0 | GV22: 0 | GW22: 0 | GX22: 0 | GY22: 0 | GZ22: 0 | HA22: 0 | HB22: 0 | HC22: 0 | HD22: 0 | HE22: 705.4545455 | HF22: 0 | HG22: 0 | HH22: 0 | HI22: 0 | HJ22: 0 | HK22: 0 | HL22: 0 | HM22: 0 | HN22: 0 | HO22: 0 | HP22: 0 | HQ22: 0 | HR22: 0 | HS22: 0 | HT22: 0 | HU22: 0 | HV22: 0 | HW22: 0 | HX22: 0 | HY22: 0 | HZ22: 0 | IA22: 0 | IB22: 0 | IC22: 0 | ID22: 0 | IE22: 0 | IF22: 0 | IG22: 0 | IH22: 0 | II22: 0 | IJ22: 0 | IK22: 0 | IL22: 0 | IM22: 0 | IN22: 0 | IO22: 0 | IP22: 0 | IQ22: 0 | IR22: 0 | IS22: 0 | IT22: 0 | IU22: 0 | IV22: 0 | IW22: 0 | IX22: 0 | IY22: 0 | IZ22: 0 | JA22: 0 | JB22: 0 | JC22: 0 | JD22: =JC25 -> 341.8181818 | JE22: 1085.818182 | JF22: 0 | JG22: 0 | JH22: 0 | JI22: 0 | JJ22: 0 | JK22: 0 | JL22: 0 | JM22: 0 | JN22: 0 | JO22: 0 | JP22: 0 | JQ22: 0 | JR22: 0 | JS22: 0 | JT22: 0 | JU22: 0 | JV22: 0 | JW22: 0 | JX22: 0 | JY22: 0 | JZ22: 0 | KA22: 0 | KB22: 0 | KC22: 0 | KD22: 0 | KE22: 0 | KF22: 0 | KG22: 0 | KH22: 0 | KI22: 0 | KJ22: 0 | KK22: 0 | KL22: 0 | KM22: 0 | KN22: 0 | KO22: 0 | KP22: 0 | KQ22: 0 | KR22: 0 | KS22: 0 | KT22: 0 | KU22: 0 | KV22: 0 | KW22: 0 | KX22: 0 | KY22: 0 | KZ22: 0 | LA22: 0 | LB22: 0 | LC22: 50.18181818 | LD22: 794.1818182 | LE22: 0 | LF22: 0 | LG22: 0 | LH22: 0 | LI22: 0 | LJ22: 0 | LK22: 0 | LL22: 0 | LM22: 0 | LN22: 0 | LO22: 0 | LP22: =LO25 -> 0 | LQ22: 0 | LR22: 0 | LS22: 0 | LT22: 0 | LU22: 0 | LV22: 0 | LW22: 0 | LX22: 0 | LY22: 0 | LZ22: 0 | MA22: 0 | MB22: 0 | MC22: 0 | MD22: 0 | ME22: 0 | MF22: 0 | MG22: 0 | MH22: 0 | MI22: 0 | MJ22: 0 | MK22: 0 | ML22: 0 | MM22: 0 | MN22: 0 | MO22: 0 | MP22: 0 | MQ22: 0 | MR22: 0 | MS22: 0 | MT22: 0 | MU22: 0 | MV22: 0 | MW22: 0 | MX22: 0 | MY22: 0 | MZ22: 0 | NA22: 0 | NB22: 0 | NC22: 478.5454545
C23: Add: Hours of Repair in Current Month | D23: Hours | H23: =H39 -> 0 | I23: =I39 -> 0 | J23: 0 | K23: 0 | L23: 0 | M23: 0 | N23: 0 | O23: 0 | P23: 0 | Q23: 0 | R23: 0 | S23: 0 | T23: 0 | U23: 0 | V23: 0 | W23: 0 | X23: 0 | Y23: 0 | Z23: 0 | AA23: 0 | AB23: 0 | AC23: 0 | AD23: 0 | AE23: 0 | AF23: 0 | AG23: 0 | AH23: 0 | AI23: 0 | AJ23: 0 | AK23: 0 | AL23: 0 | AM23: 0 | AN23: 0 | AO23: 0 | AP23: 0 | AQ23: 0 | AR23: 0 | AS23: 0 | AT23: 0 | AU23: 0 | AV23: 0 | AW23: 0 | AX23: 0 | AY23: 0 | AZ23: 0 | BA23: 0 | BB23: 0 | BC23: 0 | BD23: 0 | BE23: 116.3636364 | BF23: 744 | BG23: 339.6363636 | BH23: 0 | BI23: 0 | BJ23: 0 | BK23: 0 | BL23: 0 | BM23: 0 | BN23: 0 | BO23: 0 | BP23: 0 | BQ23: 0 | BR23: 0 | BS23: 0 | BT23: 0 | BU23: =BU39 -> 0 | BV23: 0 | BW23: 0 | BX23: 0 | BY23: 0 | BZ23: 0 | CA23: 0 | CB23: 0 | CC23: 0 | CD23: 0 | CE23: 0 | CF23: 0 | CG23: 0 | CH23: 0 | CI23: 0 | CJ23: 0 | CK23: 0 | CL23: 0 | CM23: 0 | CN23: 0 | CO23: 0 | CP23: 0 | CQ23: 0 | CR23: 0 | CS23: 0 | CT23: 0 | CU23: 0 | CV23: 0 | CW23: 0 | CX23: 0 | CY23: 0 | CZ23: 0 | DA23: 0 | DB23: 0 | DC23: 0 | DD23: 0 | DE23: 544.7272727 | DF23: 655.2727273 | DG23: 0 | DH23: 0 | DI23: 0 | DJ23: 0 | DK23: 0 | DL23: 0 | DM23: 0 | DN23: 0 | DO23: 0 | DP23: 0 | DQ23: 0 | DR23: 0 | DS23: 0 | DT23: 0 | DU23: 0 | DV23: 0 | DW23: 0 | DX23: 0 | DY23: 0 | DZ23: 0 | EA23: 0 | EB23: 0 | EC23: 0 | ED23: 0 | EE23: 0 | EF23: 0 | EG23: =EG39 -> 0 | EH23: 0 | EI23: 0 | EJ23: 0 | EK23: 0 | EL23: 0 | EM23: 0 | EN23: 0 | EO23: 0 | EP23: 0 | EQ23: 0 | ER23: 0 | ES23: 0 | ET23: 0 | EU23: 0 | EV23: 0 | EW23: 0 | EX23: 0 | EY23: 0 | EZ23: 0 | FA23: 0 | FB23: 0 | FC23: 0 | FD23: 253.0909091 | FE23: 744 | FF23: 202.9090909 | FG23: 0 | FH23: 0 | FI23: 0 | FJ23: 0 | FK23: 0 | FL23: 0 | FM23: 0 | FN23: 0 | FO23: 0 | FP23: 0 | FQ23: 0 | FR23: 0 | FS23: 0 | FT23: 0 | FU23: 0 | FV23: 0 | FW23: 0 | FX23: 0 | FY23: 0 | FZ23: 0 | GA23: 0 | GB23: 0 | GC23: 0 | GD23: 0 | GE23: 0 | GF23: 0 | GG23: 0 | GH23: 0 | GI23: 0 | GJ23: 0 | GK23: 0 | GL23: 0 | GM23: 0 | GN23: 0 | GO23: 0 | GP23: 0 | GQ23: 0 | GR23: 0 | GS23: =GS39 -> 0 | GT23: 0 | GU23: 0 | GV23: 0 | GW23: 0 | GX23: 0 | GY23: 0 | GZ23: 0 | HA23: 0 | HB23: 0 | HC23: 0 | HD23: 705.4545455 | HE23: 494.5454545 | HF23: 0 | HG23: 0 | HH23: 0 | HI23: 0 | HJ23: 0 | HK23: 0 | HL23: 0 | HM23: 0 | HN23: 0 | HO23: 0 | HP23: 0 | HQ23: 0 | HR23: 0 | HS23: 0 | HT23: 0 | HU23: 0 | HV23: 0 | HW23: 0 | HX23: 0 | HY23: 0 | HZ23: 0 | IA23: 0 | IB23: 0 | IC23: 0 | ID23: 0 | IE23: 0 | IF23: 0 | IG23: 0 | IH23: 0 | II23: 0 | IJ23: 0 | IK23: 0 | IL23: 0 | IM23: 0 | IN23: 0 | IO23: 0 | IP23: 0 | IQ23: 0 | IR23: 0 | IS23: 0 | IT23: 0 | IU23: 0 | IV23: 0 | IW23: 0 | IX23: 0 | IY23: 0 | IZ23: 0 | JA23: 0 | JB23: 0 | JC23: 341.8181818 | JD23: 744 | JE23: =JE39 -> 114.1818182 | JF23: 0 | JG23: 0 | JH23: 0 | JI23: 0 | JJ23: 0 | JK23: 0 | JL23: 0 | JM23: 0 | JN23: 0 | JO23: 0 | JP23: 0 | JQ23: 0 | JR23: 0 | JS23: 0 | JT23: 0 | JU23: 0 | JV23: 0 | JW23: 0 | JX23: 0 | JY23: 0 | JZ23: 0 | KA23: 0 | KB23: 0 | KC23: 0 | KD23: 0 | KE23: 0 | KF23: 0 | KG23: 0 | KH23: 0 | KI23: 0 | KJ23: 0 | KK23: 0 | KL23: 0 | KM23: 0 | KN23: 0 | KO23: 0 | KP23: 0 | KQ23: 0 | KR23: 0 | KS23: 0 | KT23: 0 | KU23: 0 | KV23: 0 | KW23: 0 | KX23: 0 | KY23: 0 | KZ23: 0 | LA23: 0 | LB23: 50.18181818 | LC23: 744 | LD23: 405.8181818 | LE23: 0 | LF23: 0 | LG23: 0 | LH23: 0 | LI23: 0 | LJ23: 0 | LK23: 0 | LL23: 0 | LM23: 0 | LN23: 0 | LO23: 0 | LP23: 0 | LQ23: =LQ39 -> 0 | LR23: 0 | LS23: 0 | LT23: 0 | LU23: 0 | LV23: 0 | LW23: 0 | LX23: 0 | LY23: 0 | LZ23: 0 | MA23: 0 | MB23: 0 | MC23: 0 | MD23: 0 | ME23: 0 | MF23: 0 | MG23: 0 | MH23: 0 | MI23: 0 | MJ23: 0 | MK23: 0 | ML23: 0 | MM23: 0 | MN23: 0 | MO23: 0 | MP23: 0 | MQ23: 0 | MR23: 0 | MS23: 0 | MT23: 0 | MU23: 0 | MV23: 0 | MW23: 0 | MX23: 0 | MY23: 0 | MZ23: 0 | NA23: 0 | NB23: 478.5454545 | NC23: 721.4545455
C24: Less: Restart of Maintenance Period | D24: Hours | H24: =IF(H48,H19,0) -> 0 | I24: 0 | J24: 0 | K24: 0 | L24: 0 | M24: 0 | N24: 0 | O24: 0 | P24: 0 | Q24: 0 | R24: 0 | S24: 0 | T24: 0 | U24: 0 | V24: 0 | W24: 0 | X24: 0 | Y24: 0 | Z24: 0 | AA24: 0 | AB24: 0 | AC24: 0 | AD24: 0 | AE24: 0 | AF24: 0 | AG24: 0 | AH24: 0 | AI24: 0 | AJ24: 0 | AK24: 0 | AL24: 0 | AM24: 0 | AN24: 0 | AO24: 0 | AP24: 0 | AQ24: 0 | AR24: 0 | AS24: 0 | AT24: 0 | AU24: 0 | AV24: 0 | AW24: 0 | AX24: 0 | AY24: 0 | AZ24: 0 | BA24: 0 | BB24: 0 | BC24: 0 | BD24: 0 | BE24: 0 | BF24: 0 | BG24: 1200 | BH24: 0 | BI24: 0 | BJ24: 0 | BK24: 0 | BL24: 0 | BM24: 0 | BN24: 0 | BO24: 0 | BP24: 0 | BQ24: 0 | BR24: =IF(BR48,BR19,0) -> 0 | BS24: 0 | BT24: =IF(BT48,BT19,0) -> 0 | BU24: 0 | BV24: 0 | BW24: 0 | BX24: 0 | BY24: 0 | BZ24: 0 | CA24: 0 | CB24: 0 | CC24: 0 | CD24: 0 | CE24: 0 | CF24: 0 | CG24: 0 | CH24: 0 | CI24: 0 | CJ24: 0 | CK24: 0 | CL24: 0 | CM24: 0 | CN24: 0 | CO24: 0 | CP24: 0 | CQ24: 0 | CR24: 0 | CS24: 0 | CT24: 0 | CU24: 0 | CV24: 0 | CW24: 0 | CX24: 0 | CY24: 0 | CZ24: 0 | DA24: 0 | DB24: 0 | DC24: 0 | DD24: 0 | DE24: 0 | DF24: 1200 | DG24: 0 | DH24: 0 | DI24: 0 | DJ24: 0 | DK24: 0 | DL24: 0 | DM24: 0 | DN24: 0 | DO24: 0 | DP24: 0 | DQ24: 0 | DR24: 0 | DS24: 0 | DT24: 0 | DU24: 0 | DV24: 0 | DW24: 0 | DX24: 0 | DY24: 0 | DZ24: 0 | EA24: 0 | EB24: 0 | EC24: 0 | ED24: 0 | EE24: 0 | EF24: =IF(EF48,EF19,0) -> 0 | EG24: 0 | EH24: 0 | EI24: 0 | EJ24: 0 | EK24: 0 | EL24: 0 | EM24: 0 | EN24: 0 | EO24: 0 | EP24: 0 | EQ24: 0 | ER24: 0 | ES24: 0 | ET24: 0 | EU24: 0 | EV24: 0 | EW24: 0 | EX24: 0 | EY24: 0 | EZ24: 0 | FA24: 0 | FB24: 0 | FC24: 0 | FD24: 0 | FE24: 0 | FF24: 1200 | FG24: 0 | FH24: 0 | FI24: 0 | FJ24: 0 | FK24: 0 | FL24: 0 | FM24: 0 | FN24: 0 | FO24: 0 | FP24: 0 | FQ24: 0 | FR24: 0 | FS24: 0 | FT24: 0 | FU24: 0 | FV24: 0 | FW24: 0 | FX24: 0 | FY24: 0 | FZ24: 0 | GA24: 0 | GB24: 0 | GC24: 0 | GD24: 0 | GE24: 0 | GF24: 0 | GG24: 0 | GH24: 0 | GI24: 0 | GJ24: 0 | GK24: 0 | GL24: 0 | GM24: 0 | GN24: 0 | GO24: 0 | GP24: 0 | GQ24: 0 | GR24: =IF(GR48,GR19,0) -> 0 | GS24: 0 | GT24: 0 | GU24: 0 | GV24: 0 | GW24: 0 | GX24: 0 | GY24: 0 | GZ24: 0 | HA24: 0 | HB24: 0 | HC24: 0 | HD24: 0 | HE24: 1200 | HF24: 0 | HG24: 0 | HH24: 0 | HI24: 0 | HJ24: 0 | HK24: 0 | HL24: 0 | HM24: 0 | HN24: 0 | HO24: 0 | HP24: 0 | HQ24: 0 | HR24: 0 | HS24: 0 | HT24: 0 | HU24: 0 | HV24: 0 | HW24: 0 | HX24: 0 | HY24: 0 | HZ24: 0 | IA24: 0 | IB24: 0 | IC24: 0 | ID24: 0 | IE24: 0 | IF24: 0 | IG24: 0 | IH24: 0 | II24: 0 | IJ24: 0 | IK24: 0 | IL24: 0 | IM24: 0 | IN24: 0 | IO24: 0 | IP24: 0 | IQ24: 0 | IR24: 0 | IS24: 0 | IT24: 0 | IU24: 0 | IV24: 0 | IW24: 0 | IX24: 0 | IY24: 0 | IZ24: 0 | JA24: 0 | JB24: 0 | JC24: 0 | JD24: =IF(JD48,JD19,0) -> 0 | JE24: 1200 | JF24: 0 | JG24: 0 | JH24: 0 | JI24: 0 | JJ24: 0 | JK24: 0 | JL24: 0 | JM24: 0 | JN24: 0 | JO24: 0 | JP24: 0 | JQ24: 0 | JR24: 0 | JS24: 0 | JT24: 0 | JU24: 0 | JV24: 0 | JW24: 0 | JX24: 0 | JY24: 0 | JZ24: 0 | KA24: 0 | KB24: 0 | KC24: 0 | KD24: 0 | KE24: 0 | KF24: 0 | KG24: 0 | KH24: 0 | KI24: 0 | KJ24: 0 | KK24: 0 | KL24: 0 | KM24: 0 | KN24: 0 | KO24: 0 | KP24: 0 | KQ24: 0 | KR24: 0 | KS24: 0 | KT24: 0 | KU24: 0 | KV24: 0 | KW24: 0 | KX24: 0 | KY24: 0 | KZ24: 0 | LA24: 0 | LB24: 0 | LC24: 0 | LD24: 1200 | LE24: 0 | LF24: 0 | LG24: 0 | LH24: 0 | LI24: 0 | LJ24: 0 | LK24: 0 | LL24: 0 | LM24: 0 | LN24: 0 | LO24: 0 | LP24: =IF(LP48,LP19,0) -> 0 | LQ24: 0 | LR24: 0 | LS24: 0 | LT24: 0 | LU24: 0 | LV24: 0 | LW24: 0 | LX24: 0 | LY24: 0 | LZ24: 0 | MA24: 0 | MB24: 0 | MC24: 0 | MD24: 0 | ME24: 0 | MF24: 0 | MG24: 0 | MH24: 0 | MI24: 0 | MJ24: 0 | MK24: 0 | ML24: 0 | MM24: 0 | MN24: 0 | MO24: 0 | MP24: 0 | MQ24: 0 | MR24: 0 | MS24: 0 | MT24: 0 | MU24: 0 | MV24: 0 | MW24: 0 | MX24: 0 | MY24: 0 | MZ24: 0 | NA24: 0 | NB24: 0 | NC24: 1200
C25: Closing Balance | D25: Hours | H25: =H22+H23-H24 -> 0 | I25: =I22+I23-I24 -> 0 | J25: 0 | K25: 0 | L25: 0 | M25: 0 | N25: 0 | O25: 0 | P25: 0 | Q25: 0 | R25: 0 | S25: 0 | T25: 0 | U25: 0 | V25: 0 | W25: 0 | X25: 0 | Y25: 0 | Z25: 0 | AA25: 0 | AB25: 0 | AC25: 0 | AD25: 0 | AE25: 0 | AF25: 0 | AG25: 0 | AH25: 0 | AI25: 0 | AJ25: 0 | AK25: 0 | AL25: 0 | AM25: 0 | AN25: 0 | AO25: 0 | AP25: 0 | AQ25: 0 | AR25: 0 | AS25: 0 | AT25: 0 | AU25: 0 | AV25: 0 | AW25: 0 | AX25: 0 | AY25: 0 | AZ25: 0 | BA25: 0 | BB25: 0 | BC25: 0 | BD25: 0 | BE25: 116.3636364 | BF25: 860.3636364 | BG25: 0 | BH25: 0 | BI25: 0 | BJ25: 0 | BK25: 0 | BL25: 0 | BM25: 0 | BN25: 0 | BO25: 0 | BP25: 0 | BQ25: 0 | BR25: 0 | BS25: 0 | BT25: 0 | BU25: =BU22+BU23-BU24 -> 0 | BV25: 0 | BW25: 0 | BX25: 0 | BY25: 0 | BZ25: 0 | CA25: 0 | CB25: 0 | CC25: 0 | CD25: 0 | CE25: 0 | CF25: 0 | CG25: 0 | CH25: 0 | CI25: 0 | CJ25: 0 | CK25: 0 | CL25: 0 | CM25: 0 | CN25: 0 | CO25: 0 | CP25: 0 | CQ25: 0 | CR25: 0 | CS25: 0 | CT25: 0 | CU25: 0 | CV25: 0 | CW25: 0 | CX25: 0 | CY25: 0 | CZ25: 0 | DA25: 0 | DB25: 0 | DC25: 0 | DD25: 0 | DE25: 544.7272727 | DF25: 0 | DG25: 0 | DH25: 0 | DI25: 0 | DJ25: 0 | DK25: 0 | DL25: 0 | DM25: 0 | DN25: 0 | DO25: 0 | DP25: 0 | DQ25: 0 | DR25: 0 | DS25: 0 | DT25: 0 | DU25: 0 | DV25: 0 | DW25: 0 | DX25: 0 | DY25: 0 | DZ25: 0 | EA25: 0 | EB25: 0 | EC25: 0 | ED25: 0 | EE25: 0 | EF25: 0 | EG25: =EG22+EG23-EG24 -> 0 | EH25: 0 | EI25: 0 | EJ25: 0 | EK25: 0 | EL25: 0 | EM25: 0 | EN25: 0 | EO25: 0 | EP25: 0 | EQ25: 0 | ER25: 0 | ES25: 0 | ET25: 0 | EU25: 0 | EV25: 0 | EW25: 0 | EX25: 0 | EY25: 0 | EZ25: 0 | FA25: 0 | FB25: 0 | FC25: 0 | FD25: 253.0909091 | FE25: 997.0909091 | FF25: 0 | FG25: 0 | FH25: 0 | FI25: 0 | FJ25: 0 | FK25: 0 | FL25: 0 | FM25: 0 | FN25: 0 | FO25: 0 | FP25: 0 | FQ25: 0 | FR25: 0 | FS25: 0 | FT25: 0 | FU25: 0 | FV25: 0 | FW25: 0 | FX25: 0 | FY25: 0 | FZ25: 0 | GA25: 0 | GB25: 0 | GC25: 0 | GD25: 0 | GE25: 0 | GF25: 0 | GG25: 0 | GH25: 0 | GI25: 0 | GJ25: 0 | GK25: 0 | GL25: 0 | GM25: 0 | GN25: 0 | GO25: 0 | GP25: 0 | GQ25: 0 | GR25: 0 | GS25: =GS22+GS23-GS24 -> 0 | GT25: 0 | GU25: 0 | GV25: 0 | GW25: 0 | GX25: 0 | GY25: 0 | GZ25: 0 | HA25: 0 | HB25: 0 | HC25: 0 | HD25: 705.4545455 | HE25: 0 | HF25: 0 | HG25: 0 | HH25: 0 | HI25: 0 | HJ25: 0 | HK25: 0 | HL25: 0 | HM25: 0 | HN25: 0 | HO25: 0 | HP25: 0 | HQ25: 0 | HR25: 0 | HS25: 0 | HT25: 0 | HU25: 0 | HV25: 0 | HW25: 0 | HX25: 0 | HY25: 0 | HZ25: 0 | IA25: 0 | IB25: 0 | IC25: 0 | ID25: 0 | IE25: 0 | IF25: 0 | IG25: 0 | IH25: 0 | II25: 0 | IJ25: 0 | IK25: 0 | IL25: 0 | IM25: 0 | IN25: 0 | IO25: 0 | IP25: 0 | IQ25: 0 | IR25: 0 | IS25: 0 | IT25: 0 | IU25: 0 | IV25: 0 | IW25: 0 | IX25: 0 | IY25: 0 | IZ25: 0 | JA25: 0 | JB25: 0 | JC25: 341.8181818 | JD25: 1085.818182 | JE25: =JE22+JE23-JE24 -> 0 | JF25: 0 | JG25: 0 | JH25: 0 | JI25: 0 | JJ25: 0 | JK25: 0 | JL25: 0 | JM25: 0 | JN25: 0 | JO25: 0 | JP25: 0 | JQ25: 0 | JR25: 0 | JS25: 0 | JT25: 0 | JU25: 0 | JV25: 0 | JW25: 0 | JX25: 0 | JY25: 0 | JZ25: 0 | KA25: 0 | KB25: 0 | KC25: 0 | KD25: 0 | KE25: 0 | KF25: 0 | KG25: 0 | KH25: 0 | KI25: 0 | KJ25: 0 | KK25: 0 | KL25: 0 | KM25: 0 | KN25: 0 | KO25: 0 | KP25: 0 | KQ25: 0 | KR25: 0 | KS25: 0 | KT25: 0 | KU25: 0 | KV25: 0 | KW25: 0 | KX25: 0 | KY25: 0 | KZ25: 0 | LA25: 0 | LB25: 50.18181818 | LC25: 794.1818182 | LD25: 0 | LE25: 0 | LF25: 0 | LG25: 0 | LH25: 0 | LI25: 0 | LJ25: 0 | LK25: 0 | LL25: 0 | LM25: 0 | LN25: 0 | LO25: 0 | LP25: 0 | LQ25: =LQ22+LQ23-LQ24 -> 0 | LR25: 0 | LS25: 0 | LT25: 0 | LU25: 0 | LV25: 0 | LW25: 0 | LX25: 0 | LY25: 0 | LZ25: 0 | MA25: 0 | MB25: 0 | MC25: 0 | MD25: 0 | ME25: 0 | MF25: 0 | MG25: 0 | MH25: 0 | MI25: 0 | MJ25: 0 | MK25: 0 | ML25: 0 | MM25: 0 | MN25: 0 | MO25: 0 | MP25: 0 | MQ25: 0 | MR25: 0 | MS25: 0 | MT25: 0 | MU25: 0 | MV25: 0 | MW25: 0 | MX25: 0 | MY25: 0 | MZ25: 0 | NA25: 0 | NB25: 478.5454545 | NC25: 0
C27: Remaining at End of Period | D27: Hours | H27: =H19-H25 -> 1200 | I27: =I19-I25 -> 1200 | J27: 1200 | K27: 1200 | L27: 1200 | M27: 1200 | N27: 1200 | O27: 1200 | P27: 1200 | Q27: 1200 | R27: 1200 | S27: 1200 | T27: 1200 | U27: 1200 | V27: 1200 | W27: 1200 | X27: 1200 | Y27: 1200 | Z27: 1200 | AA27: 1200 | AB27: 1200 | AC27: 1200 | AD27: 1200 | AE27: 1200 | AF27: 1200 | AG27: 1200 | AH27: 1200 | AI27: 1200 | AJ27: 1200 | AK27: 1200 | AL27: 1200 | AM27: 1200 | AN27: 1200 | AO27: 1200 | AP27: 1200 | AQ27: 1200 | AR27: 1200 | AS27: 1200 | AT27: 1200 | AU27: 1200 | AV27: 1200 | AW27: 1200 | AX27: 1200 | AY27: 1200 | AZ27: 1200 | BA27: 1200 | BB27: 1200 | BC27: 1200 | BD27: 1200 | BE27: 1083.636364 | BF27: 339.6363636 | BG27: 1200 | BH27: 1200 | BI27: 1200 | BJ27: 1200 | BK27: 1200 | BL27: 1200 | BM27: 1200 | BN27: 1200 | BO27: 1200 | BP27: 1200 | BQ27: 1200 | BR27: 1200 | BS27: 1200 | BT27: 1200 | BU27: =BU19-BU25 -> 1200 | BV27: 1200 | BW27: 1200 | BX27: 1200 | BY27: 1200 | BZ27: 1200 | CA27: 1200 | CB27: 1200 | CC27: 1200 | CD27: 1200 | CE27: 1200 | CF27: 1200 | CG27: 1200 | CH27: 1200 | CI27: 1200 | CJ27: 1200 | CK27: 1200 | CL27: 1200 | CM27: 1200 | CN27: 1200 | CO27: 1200 | CP27: 1200 | CQ27: 1200 | CR27: 1200 | CS27: 1200 | CT27: 1200 | CU27: 1200 | CV27: 1200 | CW27: 1200 | CX27: 1200 | CY27: 1200 | CZ27: 1200 | DA27: 1200 | DB27: 1200 | DC27: 1200 | DD27: 1200 | DE27: 655.2727273 | DF27: 1200 | DG27: 1200 | DH27: 1200 | DI27: 1200 | DJ27: 1200 | DK27: 1200 | DL27: 1200 | DM27: 1200 | DN27: 1200 | DO27: 1200 | DP27: 1200 | DQ27: 1200 | DR27: 1200 | DS27: 1200 | DT27: 1200 | DU27: 1200 | DV27: 1200 | DW27: 1200 | DX27: 1200 | DY27: 1200 | DZ27: 1200 | EA27: 1200 | EB27: 1200 | EC27: 1200 | ED27: 1200 | EE27: 1200 | EF27: 1200 | EG27: =EG19-EG25 -> 1200 | EH27: 1200 | EI27: 1200 | EJ27: 1200 | EK27: 1200 | EL27: 1200 | EM27: 1200 | EN27: 1200 | EO27: 1200 | EP27: 1200 | EQ27: 1200 | ER27: 1200 | ES27: 1200 | ET27: 1200 | EU27: 1200 | EV27: 1200 | EW27: 1200 | EX27: 1200 | EY27: 1200 | EZ27: 1200 | FA27: 1200 | FB27: 1200 | FC27: 1200 | FD27: 946.9090909 | FE27: 202.9090909 | FF27: 1200 | FG27: 1200 | FH27: 1200 | FI27: 1200 | FJ27: 1200 | FK27: 1200 | FL27: 1200 | FM27: 1200 | FN27: 1200 | FO27: 1200 | FP27: 1200 | FQ27: 1200 | FR27: 1200 | FS27: 1200 | FT27: 1200 | FU27: 1200 | FV27: 1200 | FW27: 1200 | FX27: 1200 | FY27: 1200 | FZ27: 1200 | GA27: 1200 | GB27: 1200 | GC27: 1200 | GD27: 1200 | GE27: 1200 | GF27: 1200 | GG27: 1200 | GH27: 1200 | GI27: 1200 | GJ27: 1200 | GK27: 1200 | GL27: 1200 | GM27: 1200 | GN27: 1200 | GO27: 1200 | GP27: 1200 | GQ27: 1200 | GR27: 1200 | GS27: =GS19-GS25 -> 1200 | GT27: 1200 | GU27: 1200 | GV27: 1200 | GW27: 1200 | GX27: 1200 | GY27: 1200 | GZ27: 1200 | HA27: 1200 | HB27: 1200 | HC27: 1200 | HD27: 494.5454545 | HE27: 1200 | HF27: 1200 | HG27: 1200 | HH27: 1200 | HI27: 1200 | HJ27: 1200 | HK27: 1200 | HL27: 1200 | HM27: 1200 | HN27: 1200 | HO27: 1200 | HP27: 1200 | HQ27: 1200 | HR27: 1200 | HS27: 1200 | HT27: 1200 | HU27: 1200 | HV27: 1200 | HW27: 1200 | HX27: 1200 | HY27: 1200 | HZ27: 1200 | IA27: 1200 | IB27: 1200 | IC27: 1200 | ID27: 1200 | IE27: 1200 | IF27: 1200 | IG27: 1200 | IH27: 1200 | II27: 1200 | IJ27: 1200 | IK27: 1200 | IL27: 1200 | IM27: 1200 | IN27: 1200 | IO27: 1200 | IP27: 1200 | IQ27: 1200 | IR27: 1200 | IS27: 1200 | IT27: 1200 | IU27: 1200 | IV27: 1200 | IW27: 1200 | IX27: 1200 | IY27: 1200 | IZ27: 1200 | JA27: 1200 | JB27: 1200 | JC27: 858.1818182 | JD27: 114.1818182 | JE27: =JE19-JE25 -> 1200 | JF27: 1200 | JG27: 1200 | JH27: 1200 | JI27: 1200 | JJ27: 1200 | JK27: 1200 | JL27: 1200 | JM27: 1200 | JN27: 1200 | JO27: 1200 | JP27: 1200 | JQ27: 1200 | JR27: 1200 | JS27: 1200 | JT27: 1200 | JU27: 1200 | JV27: 1200 | JW27: 1200 | JX27: 1200 | JY27: 1200 | JZ27: 1200 | KA27: 1200 | KB27: 1200 | KC27: 1200 | KD27: 1200 | KE27: 1200 | KF27: 1200 | KG27: 1200 | KH27: 1200 | KI27: 1200 | KJ27: 1200 | KK27: 1200 | KL27: 1200 | KM27: 1200 | KN27: 1200 | KO27: 1200 | KP27: 1200 | KQ27: 1200 | KR27: 1200 | KS27: 1200 | KT27: 1200 | KU27: 1200 | KV27: 1200 | KW27: 1200 | KX27: 1200 | KY27: 1200 | KZ27: 1200 | LA27: 1200 | LB27: 1149.818182 | LC27: 405.8181818 | LD27: 1200 | LE27: 1200 | LF27: 1200 | LG27: 1200 | LH27: 1200 | LI27: 1200 | LJ27: 1200 | LK27: 1200 | LL27: 1200 | LM27: 1200 | LN27: 1200 | LO27: 1200 | LP27: 1200 | LQ27: =LQ19-LQ25 -> 1200 | LR27: 1200 | LS27: 1200 | LT27: 1200 | LU27: 1200 | LV27: 1200 | LW27: 1200 | LX27: 1200 | LY27: 1200 | LZ27: 1200 | MA27: 1200 | MB27: 1200 | MC27: 1200 | MD27: 1200 | ME27: 1200 | MF27: 1200 | MG27: 1200 | MH27: 1200 | MI27: 1200 | MJ27: 1200 | MK27: 1200 | ML27: 1200 | MM27: 1200 | MN27: 1200 | MO27: 1200 | MP27: 1200 | MQ27: 1200 | MR27: 1200 | MS27: 1200 | MT27: 1200 | MU27: 1200 | MV27: 1200 | MW27: 1200 | MX27: 1200 | MY27: 1200 | MZ27: 1200 | NA27: 1200 | NB27: 721.4545455 | NC27: 1200
B29: Accumulated Hours Unitl Maintnenace Period
C30: Target Run Hours Input Before Maintenance | D30: Hours | E30: =E7 -> 20000 | H30: =$E$30 -> 20000 | I30: 20000 | J30: 20000 | K30: 20000 | L30: 20000 | M30: 20000 | N30: 20000 | O30: 20000 | P30: 20000 | Q30: 20000 | R30: 20000 | S30: 20000 | T30: 20000 | U30: 20000 | V30: 20000 | W30: 20000 | X30: 20000 | Y30: 20000 | Z30: 20000 | AA30: 20000 | AB30: 20000 | AC30: 20000 | AD30: 20000 | AE30: 20000 | AF30: 20000 | AG30: 20000 | AH30: 20000 | AI30: 20000 | AJ30: 20000 | AK30: 20000 | AL30: 20000 | AM30: 20000 | AN30: 20000 | AO30: 20000 | AP30: 20000 | AQ30: 20000 | AR30: 20000 | AS30: 20000 | AT30: 20000 | AU30: 20000 | AV30: 20000 | AW30: 20000 | AX30: 20000 | AY30: 20000 | AZ30: 20000 | BA30: 20000 | BB30: 20000 | BC30: 20000 | BD30: 20000 | BE30: 20000 | BF30: 20000 | BG30: 20000 | BH30: 20000 | BI30: 20000 | BJ30: 20000 | BK30: 20000 | BL30: 20000 | BM30: 20000 | BN30: 20000 | BO30: 20000 | BP30: 20000 | BQ30: 20000 | BR30: 20000 | BS30: 20000 | BT30: =$E$30 -> 20000 | BU30: 20000 | BV30: 20000 | BW30: 20000 | BX30: 20000 | BY30: 20000 | BZ30: 20000 | CA30: 20000 | CB30: 20000 | CC30: 20000 | CD30: 20000 | CE30: 20000 | CF30: 20000 | CG30: 20000 | CH30: 20000 | CI30: 20000 | CJ30: 20000 | CK30: 20000 | CL30: 20000 | CM30: 20000 | CN30: 20000 | CO30: 20000 | CP30: 20000 | CQ30: 20000 | CR30: 20000 | CS30: 20000 | CT30: 20000 | CU30: 20000 | CV30: 20000 | CW30: 20000 | CX30: 20000 | CY30: 20000 | CZ30: 20000 | DA30: 20000 | DB30: 20000 | DC30: 20000 | DD30: 20000 | DE30: 20000 | DF30: 20000 | DG30: 20000 | DH30: 20000 | DI30: 20000 | DJ30: 20000 | DK30: 20000 | DL30: 20000 | DM30: 20000 | DN30: 20000 | DO30: 20000 | DP30: 20000 | DQ30: 20000 | DR30: 20000 | DS30: 20000 | DT30: 20000 | DU30: 20000 | DV30: 20000 | DW30: 20000 | DX30: 20000 | DY30: 20000 | DZ30: 20000 | EA30: 20000 | EB30: 20000 | EC30: 20000 | ED30: 20000 | EE30: 20000 | EF30: =$E$30 -> 20000 | EG30: 20000 | EH30: 20000 | EI30: 20000 | EJ30: 20000 | EK30: 20000 | EL30: 20000 | EM30: 20000 | EN30: 20000 | EO30: 20000 | EP30: 20000 | EQ30: 20000 | ER30: 20000 | ES30: 20000 | ET30: 20000 | EU30: 20000 | EV30: 20000 | EW30: 20000 | EX30: 20000 | EY30: 20000 | EZ30: 20000 | FA30: 20000 | FB30: 20000 | FC30: 20000 | FD30: 20000 | FE30: 20000 | FF30: 20000 | FG30: 20000 | FH30: 20000 | FI30: 20000 | FJ30: 20000 | FK30: 20000 | FL30: 20000 | FM30: 20000 | FN30: 20000 | FO30: 20000 | FP30: 20000 | FQ30: 20000 | FR30: 20000 | FS30: 20000 | FT30: 20000 | FU30: 20000 | FV30: 20000 | FW30: 20000 | FX30: 20000 | FY30: 20000 | FZ30: 20000 | GA30: 20000 | GB30: 20000 | GC30: 20000 | GD30: 20000 | GE30: 20000 | GF30: 20000 | GG30: 20000 | GH30: 20000 | GI30: 20000 | GJ30: 20000 | GK30: 20000 | GL30: 20000 | GM30: 20000 | GN30: 20000 | GO30: 20000 | GP30: 20000 | GQ30: 20000 | GR30: =$E$30 -> 20000 | GS30: 20000 | GT30: 20000 | GU30: 20000 | GV30: 20000 | GW30: 20000 | GX30: 20000 | GY30: 20000 | GZ30: 20000 | HA30: 20000 | HB30: 20000 | HC30: 20000 | HD30: 20000 | HE30: 20000 | HF30: 20000 | HG30: 20000 | HH30: 20000 | HI30: 20000 | HJ30: 20000 | HK30: 20000 | HL30: 20000 | HM30: 20000 | HN30: 20000 | HO30: 20000 | HP30: 20000 | HQ30: 20000 | HR30: 20000 | HS30: 20000 | HT30: 20000 | HU30: 20000 | HV30: 20000 | HW30: 20000 | HX30: 20000 | HY30: 20000 | HZ30: 20000 | IA30: 20000 | IB30: 20000 | IC30: 20000 | ID30: 20000 | IE30: 20000 | IF30: 20000 | IG30: 20000 | IH30: 20000 | II30: 20000 | IJ30: 20000 | IK30: 20000 | IL30: 20000 | IM30: 20000 | IN30: 20000 | IO30: 20000 | IP30: 20000 | IQ30: 20000 | IR30: 20000 | IS30: 20000 | IT30: 20000 | IU30: 20000 | IV30: 20000 | IW30: 20000 | IX30: 20000 | IY30: 20000 | IZ30: 20000 | JA30: 20000 | JB30: 20000 | JC30: 20000 | JD30: =$E$30 -> 20000 | JE30: 20000 | JF30: 20000 | JG30: 20000 | JH30: 20000 | JI30: 20000 | JJ30: 20000 | JK30: 20000 | JL30: 20000 | JM30: 20000 | JN30: 20000 | JO30: 20000 | JP30: 20000 | JQ30: 20000 | JR30: 20000 | JS30: 20000 | JT30: 20000 | JU30: 20000 | JV30: 20000 | JW30: 20000 | JX30: 20000 | JY30: 20000 | JZ30: 20000 | KA30: 20000 | KB30: 20000 | KC30: 20000 | KD30: 20000 | KE30: 20000 | KF30: 20000 | KG30: 20000 | KH30: 20000 | KI30: 20000 | KJ30: 20000 | KK30: 20000 | KL30: 20000 | KM30: 20000 | KN30: 20000 | KO30: 20000 | KP30: 20000 | KQ30: 20000 | KR30: 20000 | KS30: 20000 | KT30: 20000 | KU30: 20000 | KV30: 20000 | KW30: 20000 | KX30: 20000 | KY30: 20000 | KZ30: 20000 | LA30: 20000 | LB30: 20000 | LC30: 20000 | LD30: 20000 | LE30: 20000 | LF30: 20000 | LG30: 20000 | LH30: 20000 | LI30: 20000 | LJ30: 20000 | LK30: 20000 | LL30: 20000 | LM30: 20000 | LN30: 20000 | LO30: 20000 | LP30: =$E$30 -> 20000 | LQ30: 20000 | LR30: 20000 | LS30: 20000 | LT30: 20000 | LU30: 20000 | LV30: 20000 | LW30: 20000 | LX30: 20000 | LY30: 20000 | LZ30: 20000 | MA30: 20000 | MB30: 20000 | MC30: 20000 | MD30: 20000 | ME30: 20000 | MF30: 20000 | MG30: 20000 | MH30: 20000 | MI30: 20000 | MJ30: 20000 | MK30: 20000 | ML30: 20000 | MM30: 20000 | MN30: 20000 | MO30: 20000 | MP30: 20000 | MQ30: 20000 | MR30: 20000 | MS30: 20000 | MT30: 20000 | MU30: 20000 | MV30: 20000 | MW30: 20000 | MX30: 20000 | MY30: 20000 | MZ30: 20000 | NA30: 20000 | NB30: 20000 | NC30: 20000
C32: Opening Balance | D32: Hours | H32: =G44 -> 0 | I32: =H44 -> 409.2 | J32: 778.8 | K32: 1188 | L32: 1584 | M32: 1993.2 | N32: 2389.2 | O32: 2798.4 | P32: 3207.6 | Q32: 3603.6 | R32: 4012.8 | S32: 4408.8 | T32: 4818 | U32: 5227.2 | V32: 5596.8 | W32: 6006 | X32: 6402 | Y32: 6811.2 | Z32: 7207.2 | AA32: 7616.4 | AB32: 8025.6 | AC32: 8421.6 | AD32: 8830.8 | AE32: 9226.8 | AF32: 9636 | AG32: 10045.2 | AH32: 10428 | AI32: 10837.2 | AJ32: 11233.2 | AK32: 11642.4 | AL32: 12038.4 | AM32: 12447.6 | AN32: 12856.8 | AO32: 13252.8 | AP32: 13662 | AQ32: 14058 | AR32: 14467.2 | AS32: 14876.4 | AT32: 15246 | AU32: 15655.2 | AV32: 16051.2 | AW32: 16460.4 | AX32: 16856.4 | AY32: 17265.6 | AZ32: 17674.8 | BA32: 18070.8 | BB32: 18480 | BC32: 18876 | BD32: 19285.2 | BE32: 19694.4 | BF32: 20000 | BG32: 20000 | BH32: 209.2 | BI32: 618.4 | BJ32: 1014.4 | BK32: 1423.6 | BL32: 1832.8 | BM32: 2228.8 | BN32: 2638 | BO32: 3034 | BP32: 3443.2 | BQ32: 3852.4 | BR32: 4222 | BS32: 4631.2 | BT32: 5027.2 | BU32: =BT44 -> 5436.4 | BV32: 5832.4 | BW32: 6241.6 | BX32: 6650.8 | BY32: 7046.8 | BZ32: 7456 | CA32: 7852 | CB32: 8261.2 | CC32: 8670.4 | CD32: 9053.2 | CE32: 9462.4 | CF32: 9858.4 | CG32: 10267.6 | CH32: 10663.6 | CI32: 11072.8 | CJ32: 11482 | CK32: 11878 | CL32: 12287.2 | CM32: 12683.2 | CN32: 13092.4 | CO32: 13501.6 | CP32: 13871.2 | CQ32: 14280.4 | CR32: 14676.4 | CS32: 15085.6 | CT32: 15481.6 | CU32: 15890.8 | CV32: 16300 | CW32: 16696 | CX32: 17105.2 | CY32: 17501.2 | CZ32: 17910.4 | DA32: 18319.6 | DB32: 18689.2 | DC32: 19098.4 | DD32: 19494.4 | DE32: 19903.6 | DF32: 20000 | DG32: 48.8 | DH32: 458 | DI32: 854 | DJ32: 1263.2 | DK32: 1659.2 | DL32: 2068.4 | DM32: 2477.6 | DN32: 2847.2 | DO32: 3256.4 | DP32: 3652.4 | DQ32: 4061.6 | DR32: 4457.6 | DS32: 4866.8 | DT32: 5276 | DU32: 5672 | DV32: 6081.2 | DW32: 6477.2 | DX32: 6886.4 | DY32: 7295.6 | DZ32: 7678.4 | EA32: 8087.6 | EB32: 8483.6 | EC32: 8892.8 | ED32: 9288.8 | EE32: 9698 | EF32: 10107.2 | EG32: =EF44 -> 10503.2 | EH32: 10912.4 | EI32: 11308.4 | EJ32: 11717.6 | EK32: 12126.8 | EL32: 12496.4 | EM32: 12905.6 | EN32: 13301.6 | EO32: 13710.8 | EP32: 14106.8 | EQ32: 14516 | ER32: 14925.2 | ES32: 15321.2 | ET32: 15730.4 | EU32: 16126.4 | EV32: 16535.6 | EW32: 16944.8 | EX32: 17314.4 | EY32: 17723.6 | EZ32: 18119.6 | FA32: 18528.8 | FB32: 18924.8 | FC32: 19334 | FD32: 19743.2 | FE32: 20000 | FF32: 20000 | FG32: 284.4 | FH32: 693.6 | FI32: 1102.8 | FJ32: 1472.4 | FK32: 1881.6 | FL32: 2277.6 | FM32: 2686.8 | FN32: 3082.8 | FO32: 3492 | FP32: 3901.2 | FQ32: 4297.2 | FR32: 4706.4 | FS32: 5102.4 | FT32: 5511.6 | FU32: 5920.8 | FV32: 6303.6 | FW32: 6712.8 | FX32: 7108.8 | FY32: 7518 | FZ32: 7914 | GA32: 8323.2 | GB32: 8732.4 | GC32: 9128.4 | GD32: 9537.6 | GE32: 9933.6 | GF32: 10342.8 | GG32: 10752 | GH32: 11121.6 | GI32: 11530.8 | GJ32: 11926.8 | GK32: 12336 | GL32: 12732 | GM32: 13141.2 | GN32: 13550.4 | GO32: 13946.4 | GP32: 14355.6 | GQ32: 14751.6 | GR32: 15160.8 | GS32: =GR44 -> 15570 | GT32: 15939.6 | GU32: 16348.8 | GV32: 16744.8 | GW32: 17154 | GX32: 17550 | GY32: 17959.2 | GZ32: 18368.4 | HA32: 18764.4 | HB32: 19173.6 | HC32: 19569.6 | HD32: 19978.8 | HE32: 20000 | HF32: 97.6 | HG32: 506.8 | HH32: 902.8 | HI32: 1312 | HJ32: 1708 | HK32: 2117.2 | HL32: 2526.4 | HM32: 2922.4 | HN32: 3331.6 | HO32: 3727.6 | HP32: 4136.8 | HQ32: 4546 | HR32: 4928.8 | HS32: 5338 | HT32: 5734 | HU32: 6143.2 | HV32: 6539.2 | HW32: 6948.4 | HX32: 7357.6 | HY32: 7753.6 | HZ32: 8162.8 | IA32: 8558.8 | IB32: 8968 | IC32: 9377.2 | ID32: 9746.8 | IE32: 10156 | IF32: 10552 | IG32: 10961.2 | IH32: 11357.2 | II32: 11766.4 | IJ32: 12175.6 | IK32: 12571.6 | IL32: 12980.8 | IM32: 13376.8 | IN32: 13786 | IO32: 14195.2 | IP32: 14564.8 | IQ32: 14974 | IR32: 15370 | IS32: 15779.2 | IT32: 16175.2 | IU32: 16584.4 | IV32: 16993.6 | IW32: 17389.6 | IX32: 17798.8 | IY32: 18194.8 | IZ32: 18604 | JA32: 19013.2 | JB32: 19382.8 | JC32: 19792 | JD32: 20000 | JE32: =JD44 -> 20000 | JF32: 333.2 | JG32: 742.4 | JH32: 1151.6 | JI32: 1547.6 | JJ32: 1956.8 | JK32: 2352.8 | JL32: 2762 | JM32: 3171.2 | JN32: 3554 | JO32: 3963.2 | JP32: 4359.2 | JQ32: 4768.4 | JR32: 5164.4 | JS32: 5573.6 | JT32: 5982.8 | JU32: 6378.8 | JV32: 6788 | JW32: 7184 | JX32: 7593.2 | JY32: 8002.4 | JZ32: 8372 | KA32: 8781.2 | KB32: 9177.2 | KC32: 9586.4 | KD32: 9982.4 | KE32: 10391.6 | KF32: 10800.8 | KG32: 11196.8 | KH32: 11606 | KI32: 12002 | KJ32: 12411.2 | KK32: 12820.4 | KL32: 13190 | KM32: 13599.2 | KN32: 13995.2 | KO32: 14404.4 | KP32: 14800.4 | KQ32: 15209.6 | KR32: 15618.8 | KS32: 16014.8 | KT32: 16424 | KU32: 16820 | KV32: 17229.2 | KW32: 17638.4 | KX32: 18008 | KY32: 18417.2 | KZ32: 18813.2 | LA32: 19222.4 | LB32: 19618.4 | LC32: 20000 | LD32: 20000 | LE32: 172.8 | LF32: 582 | LG32: 978 | LH32: 1387.2 | LI32: 1796.4 | LJ32: 2179.2 | LK32: 2588.4 | LL32: 2984.4 | LM32: 3393.6 | LN32: 3789.6 | LO32: 4198.8 | LP32: 4608 | LQ32: =LP44 -> 5004 | LR32: 5413.2 | LS32: 5809.2 | LT32: 6218.4 | LU32: 6627.6 | LV32: 6997.2 | LW32: 7406.4 | LX32: 7802.4 | LY32: 8211.6 | LZ32: 8607.6 | MA32: 9016.8 | MB32: 9426 | MC32: 9822 | MD32: 10231.2 | ME32: 10627.2 | MF32: 11036.4 | MG32: 11445.6 | MH32: 11815.2 | MI32: 12224.4 | MJ32: 12620.4 | MK32: 13029.6 | ML32: 13425.6 | MM32: 13834.8 | MN32: 14244 | MO32: 14640 | MP32: 15049.2 | MQ32: 15445.2 | MR32: 15854.4 | MS32: 16263.6 | MT32: 16633.2 | MU32: 17042.4 | MV32: 17438.4 | MW32: 17847.6 | MX32: 18243.6 | MY32: 18652.8 | MZ32: 19062 | NA32: 19458 | NB32: 19867.2 | NC32: 20000
C33: Hours Remaining until Maintenance Begin | D33: Hours | H33: =H30-H32 -> 20000 | I33: 19590.8 | J33: 19221.2 | K33: 18812 | L33: 18416 | M33: 18006.8 | N33: 17610.8 | O33: 17201.6 | P33: 16792.4 | Q33: 16396.4 | R33: 15987.2 | S33: 15591.2 | T33: 15182 | U33: 14772.8 | V33: 14403.2 | W33: 13994 | X33: 13598 | Y33: 13188.8 | Z33: 12792.8 | AA33: 12383.6 | AB33: 11974.4 | AC33: 11578.4 | AD33: 11169.2 | AE33: 10773.2 | AF33: 10364 | AG33: 9954.8 | AH33: 9572 | AI33: 9162.8 | AJ33: 8766.8 | AK33: 8357.6 | AL33: 7961.6 | AM33: 7552.4 | AN33: =AN30-AN32 -> 7143.2 | AO33: 6747.2 | AP33: 6338 | AQ33: 5942 | AR33: 5532.8 | AS33: 5123.6 | AT33: 4754 | AU33: 4344.8 | AV33: 3948.8 | AW33: 3539.6 | AX33: 3143.6 | AY33: 2734.4 | AZ33: 2325.2 | BA33: 1929.2 | BB33: 1520 | BC33: 1124 | BD33: 714.8 | BE33: 305.6 | BF33: 0 | BG33: 0 | BH33: 19790.8 | BI33: 19381.6 | BJ33: 18985.6 | BK33: 18576.4 | BL33: =BL30-BL32 -> 18167.2 | BM33: 17771.2 | BN33: 17362 | BO33: 16966 | BP33: 16556.8 | BQ33: 16147.6 | BR33: 15778 | BS33: 15368.8 | BT33: 14972.8 | BU33: 14563.6 | BV33: 14167.6 | BW33: 13758.4 | BX33: 13349.2 | BY33: 12953.2 | BZ33: 12544 | CA33: 12148 | CB33: 11738.8 | CC33: 11329.6 | CD33: 10946.8 | CE33: 10537.6 | CF33: 10141.6 | CG33: 9732.4 | CH33: 9336.4 | CI33: 8927.2 | CJ33: 8518 | CK33: 8122 | CL33: 7712.8 | CM33: 7316.8 | CN33: 6907.6 | CO33: 6498.4 | CP33: 6128.8 | CQ33: 5719.6 | CR33: 5323.6 | CS33: 4914.4 | CT33: 4518.4 | CU33: 4109.2 | CV33: 3700 | CW33: 3304 | CX33: 2894.8 | CY33: 2498.8 | CZ33: 2089.6 | DA33: 1680.4 | DB33: 1310.8 | DC33: 901.6 | DD33: 505.6 | DE33: 96.4 | DF33: 0 | DG33: 19951.2 | DH33: 19542 | DI33: 19146 | DJ33: 18736.8 | DK33: 18340.8 | DL33: 17931.6 | DM33: 17522.4 | DN33: 17152.8 | DO33: 16743.6 | DP33: 16347.6 | DQ33: 15938.4 | DR33: 15542.4 | DS33: 15133.2 | DT33: 14724 | DU33: 14328 | DV33: 13918.8 | DW33: 13522.8 | DX33: =DX30-DX32 -> 13113.6 | DY33: 12704.4 | DZ33: 12321.6 | EA33: 11912.4 | EB33: 11516.4 | EC33: 11107.2 | ED33: 10711.2 | EE33: 10302 | EF33: 9892.8 | EG33: 9496.8 | EH33: 9087.6 | EI33: 8691.6 | EJ33: 8282.4 | EK33: 7873.2 | EL33: 7503.6 | EM33: 7094.4 | EN33: 6698.4 | EO33: 6289.2 | EP33: 5893.2 | EQ33: 5484 | ER33: 5074.8 | ES33: 4678.8 | ET33: 4269.6 | EU33: 3873.6 | EV33: 3464.4 | EW33: 3055.2 | EX33: 2685.6 | EY33: 2276.4 | EZ33: 1880.4 | FA33: 1471.2 | FB33: 1075.2 | FC33: 666 | FD33: 256.8 | FE33: 0 | FF33: 0 | FG33: 19715.6 | FH33: 19306.4 | FI33: 18897.2 | FJ33: 18527.6 | FK33: 18118.4 | FL33: 17722.4 | FM33: 17313.2 | FN33: 16917.2 | FO33: 16508 | FP33: 16098.8 | FQ33: 15702.8 | FR33: 15293.6 | FS33: 14897.6 | FT33: 14488.4 | FU33: 14079.2 | FV33: 13696.4 | FW33: 13287.2 | FX33: 12891.2 | FY33: 12482 | FZ33: 12086 | GA33: 11676.8 | GB33: 11267.6 | GC33: 10871.6 | GD33: 10462.4 | GE33: 10066.4 | GF33: 9657.2 | GG33: 9248 | GH33: 8878.4 | GI33: 8469.2 | GJ33: =GJ30-GJ32 -> 8073.2 | GK33: 7664 | GL33: 7268 | GM33: 6858.8 | GN33: 6449.6 | GO33: 6053.6 | GP33: 5644.4 | GQ33: 5248.4 | GR33: 4839.2 | GS33: 4430 | GT33: 4060.4 | GU33: 3651.2 | GV33: 3255.2 | GW33: 2846 | GX33: 2450 | GY33: 2040.8 | GZ33: 1631.6 | HA33: 1235.6 | HB33: 826.4 | HC33: 430.4 | HD33: 21.2 | HE33: 0 | HF33: 19902.4 | HG33: 19493.2 | HH33: 19097.2 | HI33: 18688 | HJ33: 18292 | HK33: 17882.8 | HL33: 17473.6 | HM33: 17077.6 | HN33: 16668.4 | HO33: 16272.4 | HP33: 15863.2 | HQ33: 15454 | HR33: 15071.2 | HS33: 14662 | HT33: 14266 | HU33: 13856.8 | HV33: 13460.8 | HW33: 13051.6 | HX33: 12642.4 | HY33: 12246.4 | HZ33: 11837.2 | IA33: 11441.2 | IB33: 11032 | IC33: 10622.8 | ID33: 10253.2 | IE33: 9844 | IF33: 9448 | IG33: 9038.8 | IH33: 8642.8 | II33: 8233.6 | IJ33: 7824.4 | IK33: 7428.4 | IL33: 7019.2 | IM33: 6623.2 | IN33: 6214 | IO33: 5804.8 | IP33: 5435.2 | IQ33: 5026 | IR33: 4630 | IS33: 4220.8 | IT33: 3824.8 | IU33: 3415.6 | IV33: =IV30-IV32 -> 3006.4 | IW33: 2610.4 | IX33: 2201.2 | IY33: 1805.2 | IZ33: 1396 | JA33: 986.8 | JB33: 617.2 | JC33: 208 | JD33: 0 | JE33: 0 | JF33: 19666.8 | JG33: 19257.6 | JH33: 18848.4 | JI33: 18452.4 | JJ33: 18043.2 | JK33: 17647.2 | JL33: 17238 | JM33: 16828.8 | JN33: 16446 | JO33: 16036.8 | JP33: 15640.8 | JQ33: 15231.6 | JR33: 14835.6 | JS33: 14426.4 | JT33: 14017.2 | JU33: 13621.2 | JV33: 13212 | JW33: 12816 | JX33: 12406.8 | JY33: 11997.6 | JZ33: 11628 | KA33: 11218.8 | KB33: 10822.8 | KC33: 10413.6 | KD33: 10017.6 | KE33: 9608.4 | KF33: 9199.2 | KG33: 8803.2 | KH33: 8394 | KI33: 7998 | KJ33: 7588.8 | KK33: 7179.6 | KL33: 6810 | KM33: 6400.8 | KN33: 6004.8 | KO33: 5595.6 | KP33: 5199.6 | KQ33: 4790.4 | KR33: 4381.2 | KS33: 3985.2 | KT33: 3576 | KU33: 3180 | KV33: 2770.8 | KW33: 2361.6 | KX33: 1992 | KY33: 1582.8 | KZ33: 1186.8 | LA33: 777.6 | LB33: 381.6 | LC33: 0 | LD33: 0 | LE33: 19827.2 | LF33: 19418 | LG33: 19022 | LH33: =LH30-LH32 -> 18612.8 | LI33: 18203.6 | LJ33: 17820.8 | LK33: 17411.6 | LL33: 17015.6 | LM33: 16606.4 | LN33: 16210.4 | LO33: 15801.2 | LP33: 15392 | LQ33: 14996 | LR33: 14586.8 | LS33: 14190.8 | LT33: 13781.6 | LU33: 13372.4 | LV33: 13002.8 | LW33: 12593.6 | LX33: 12197.6 | LY33: 11788.4 | LZ33: 11392.4 | MA33: 10983.2 | MB33: 10574 | MC33: 10178 | MD33: 9768.8 | ME33: 9372.8 | MF33: 8963.6 | MG33: 8554.4 | MH33: 8184.8 | MI33: 7775.6 | MJ33: 7379.6 | MK33: 6970.4 | ML33: 6574.4 | MM33: 6165.2 | MN33: 5756 | MO33: 5360 | MP33: 4950.8 | MQ33: 4554.8 | MR33: 4145.6 | MS33: 3736.4 | MT33: 3366.8 | MU33: 2957.6 | MV33: 2561.6 | MW33: 2152.4 | MX33: 1756.4 | MY33: 1347.2 | MZ33: 938 | NA33: 542 | NB33: 132.8 | NC33: 0
C34: Hours Run this month before Maintenance Period (Min) | D34: Hours | H34: =MIN(H15,H33) -> 409.2 | I34: 369.6 | J34: 409.2 | K34: 396 | L34: 409.2 | M34: 396 | N34: 409.2 | O34: 409.2 | P34: 396 | Q34: 409.2 | R34: 396 | S34: 409.2 | T34: 409.2 | U34: 369.6 | V34: 409.2 | W34: 396 | X34: 409.2 | Y34: 396 | Z34: 409.2 | AA34: 409.2 | AB34: 396 | AC34: 409.2 | AD34: 396 | AE34: 409.2 | AF34: 409.2 | AG34: 382.8 | AH34: 409.2 | AI34: 396 | AJ34: 409.2 | AK34: 396 | AL34: 409.2 | AM34: 409.2 | AN34: =MIN(AN15,AN33) -> 396 | AO34: 409.2 | AP34: 396 | AQ34: 409.2 | AR34: 409.2 | AS34: 369.6 | AT34: 409.2 | AU34: 396 | AV34: 409.2 | AW34: 396 | AX34: 409.2 | AY34: 409.2 | AZ34: 396 | BA34: 409.2 | BB34: 396 | BC34: 409.2 | BD34: 409.2 | BE34: 305.6 | BF34: 0 | BG34: 0 | BH34: 409.2 | BI34: 396 | BJ34: 409.2 | BK34: 409.2 | BL34: =MIN(BL15,BL33) -> 396 | BM34: 409.2 | BN34: 396 | BO34: 409.2 | BP34: 409.2 | BQ34: 369.6 | BR34: 409.2 | BS34: 396 | BT34: 409.2 | BU34: 396 | BV34: 409.2 | BW34: 409.2 | BX34: 396 | BY34: 409.2 | BZ34: 396 | CA34: 409.2 | CB34: 409.2 | CC34: 382.8 | CD34: 409.2 | CE34: 396 | CF34: 409.2 | CG34: 396 | CH34: 409.2 | CI34: 409.2 | CJ34: 396 | CK34: 409.2 | CL34: 396 | CM34: 409.2 | CN34: 409.2 | CO34: 369.6 | CP34: 409.2 | CQ34: 396 | CR34: 409.2 | CS34: 396 | CT34: 409.2 | CU34: 409.2 | CV34: 396 | CW34: 409.2 | CX34: 396 | CY34: 409.2 | CZ34: 409.2 | DA34: 369.6 | DB34: 409.2 | DC34: 396 | DD34: 409.2 | DE34: 96.4 | DF34: 0 | DG34: 409.2 | DH34: 396 | DI34: 409.2 | DJ34: 396 | DK34: 409.2 | DL34: 409.2 | DM34: 369.6 | DN34: 409.2 | DO34: 396 | DP34: 409.2 | DQ34: 396 | DR34: 409.2 | DS34: 409.2 | DT34: 396 | DU34: 409.2 | DV34: 396 | DW34: 409.2 | DX34: =MIN(DX15,DX33) -> 409.2 | DY34: 382.8 | DZ34: 409.2 | EA34: 396 | EB34: 409.2 | EC34: 396 | ED34: 409.2 | EE34: 409.2 | EF34: 396 | EG34: 409.2 | EH34: 396 | EI34: 409.2 | EJ34: 409.2 | EK34: 369.6 | EL34: 409.2 | EM34: 396 | EN34: 409.2 | EO34: 396 | EP34: 409.2 | EQ34: 409.2 | ER34: 396 | ES34: 409.2 | ET34: 396 | EU34: 409.2 | EV34: 409.2 | EW34: 369.6 | EX34: 409.2 | EY34: 396 | EZ34: 409.2 | FA34: 396 | FB34: 409.2 | FC34: 409.2 | FD34: 256.8 | FE34: 0 | FF34: 0 | FG34: 409.2 | FH34: 409.2 | FI34: 369.6 | FJ34: 409.2 | FK34: 396 | FL34: 409.2 | FM34: 396 | FN34: 409.2 | FO34: 409.2 | FP34: 396 | FQ34: 409.2 | FR34: 396 | FS34: 409.2 | FT34: 409.2 | FU34: 382.8 | FV34: 409.2 | FW34: 396 | FX34: 409.2 | FY34: 396 | FZ34: 409.2 | GA34: 409.2 | GB34: 396 | GC34: 409.2 | GD34: 396 | GE34: 409.2 | GF34: 409.2 | GG34: 369.6 | GH34: 409.2 | GI34: 396 | GJ34: =MIN(GJ15,GJ33) -> 409.2 | GK34: 396 | GL34: 409.2 | GM34: 409.2 | GN34: 396 | GO34: 409.2 | GP34: 396 | GQ34: 409.2 | GR34: 409.2 | GS34: 369.6 | GT34: 409.2 | GU34: 396 | GV34: 409.2 | GW34: 396 | GX34: 409.2 | GY34: 409.2 | GZ34: 396 | HA34: 409.2 | HB34: 396 | HC34: 409.2 | HD34: 21.2 | HE34: 0 | HF34: 409.2 | HG34: 396 | HH34: 409.2 | HI34: 396 | HJ34: 409.2 | HK34: 409.2 | HL34: 396 | HM34: 409.2 | HN34: 396 | HO34: 409.2 | HP34: 409.2 | HQ34: 382.8 | HR34: 409.2 | HS34: 396 | HT34: 409.2 | HU34: 396 | HV34: 409.2 | HW34: 409.2 | HX34: 396 | HY34: 409.2 | HZ34: 396 | IA34: 409.2 | IB34: 409.2 | IC34: 369.6 | ID34: 409.2 | IE34: 396 | IF34: 409.2 | IG34: 396 | IH34: 409.2 | II34: 409.2 | IJ34: 396 | IK34: 409.2 | IL34: 396 | IM34: 409.2 | IN34: 409.2 | IO34: 369.6 | IP34: 409.2 | IQ34: 396 | IR34: 409.2 | IS34: 396 | IT34: 409.2 | IU34: 409.2 | IV34: =MIN(IV15,IV33) -> 396 | IW34: 409.2 | IX34: 396 | IY34: 409.2 | IZ34: 409.2 | JA34: 369.6 | JB34: 409.2 | JC34: 208 | JD34: 0 | JE34: 0 | JF34: 409.2 | JG34: 409.2 | JH34: 396 | JI34: 409.2 | JJ34: 396 | JK34: 409.2 | JL34: 409.2 | JM34: 382.8 | JN34: 409.2 | JO34: 396 | JP34: 409.2 | JQ34: 396 | JR34: 409.2 | JS34: 409.2 | JT34: 396 | JU34: 409.2 | JV34: 396 | JW34: 409.2 | JX34: 409.2 | JY34: 369.6 | JZ34: 409.2 | KA34: 396 | KB34: 409.2 | KC34: 396 | KD34: 409.2 | KE34: 409.2 | KF34: 396 | KG34: 409.2 | KH34: 396 | KI34: 409.2 | KJ34: 409.2 | KK34: 369.6 | KL34: 409.2 | KM34: 396 | KN34: 409.2 | KO34: 396 | KP34: 409.2 | KQ34: 409.2 | KR34: 396 | KS34: 409.2 | KT34: 396 | KU34: 409.2 | KV34: 409.2 | KW34: 369.6 | KX34: 409.2 | KY34: 396 | KZ34: 409.2 | LA34: 396 | LB34: 381.6 | LC34: 0 | LD34: 0 | LE34: 409.2 | LF34: 396 | LG34: 409.2 | LH34: =MIN(LH15,LH33) -> 409.2 | LI34: 382.8 | LJ34: 409.2 | LK34: 396 | LL34: 409.2 | LM34: 396 | LN34: 409.2 | LO34: 409.2 | LP34: 396 | LQ34: 409.2 | LR34: 396 | LS34: 409.2 | LT34: 409.2 | LU34: 369.6 | LV34: 409.2 | LW34: 396 | LX34: 409.2 | LY34: 396 | LZ34: 409.2 | MA34: 409.2 | MB34: 396 | MC34: 409.2 | MD34: 396 | ME34: 409.2 | MF34: 409.2 | MG34: 369.6 | MH34: 409.2 | MI34: 396 | MJ34: 409.2 | MK34: 396 | ML34: 409.2 | MM34: 409.2 | MN34: 396 | MO34: 409.2 | MP34: 396 | MQ34: 409.2 | MR34: 409.2 | MS34: 369.6 | MT34: 409.2 | MU34: 396 | MV34: 409.2 | MW34: 396 | MX34: 409.2 | MY34: 409.2 | MZ34: 396 | NA34: 409.2 | NB34: 132.8 | NC34: 0
C36: Total Hours for Run before Maintnance (Divide by Capacity Factor) - First | D36: Hours | H36: =H34/H14 -> 744 | I36: =I34/I14 -> 672 | J36: 744 | K36: 720 | L36: 744 | M36: 720 | N36: 744 | O36: 744 | P36: 720 | Q36: 744 | R36: 720 | S36: 744 | T36: 744 | U36: 672 | V36: 744 | W36: 720 | X36: 744 | Y36: 720 | Z36: 744 | AA36: 744 | AB36: 720 | AC36: 744 | AD36: 720 | AE36: 744 | AF36: 744 | AG36: 696 | AH36: 744 | AI36: 720 | AJ36: 744 | AK36: 720 | AL36: 744 | AM36: 744 | AN36: 720 | AO36: 744 | AP36: 720 | AQ36: 744 | AR36: 744 | AS36: 672 | AT36: 744 | AU36: 720 | AV36: 744 | AW36: 720 | AX36: 744 | AY36: 744 | AZ36: 720 | BA36: 744 | BB36: 720 | BC36: 744 | BD36: 744 | BE36: 555.6363636 | BF36: 0 | BG36: 0 | BH36: 744 | BI36: 720 | BJ36: 744 | BK36: 744 | BL36: =BL34/BL14 -> 720 | BM36: =BM34/BM14 -> 744 | BN36: =BN34/BN14 -> 720 | BO36: =BO34/BO14 -> 744 | BP36: =BP34/BP14 -> 744 | BQ36: =BQ34/BQ14 -> 672 | BR36: =BR34/BR14 -> 744 | BS36: =BS34/BS14 -> 720 | BT36: =BT34/BT14 -> 744 | BU36: =BU34/BU14 -> 720 | BV36: =BV34/BV14 -> 744 | BW36: =BW34/BW14 -> 744 | BX36: =BX34/BX14 -> 720 | BY36: =BY34/BY14 -> 744 | BZ36: =BZ34/BZ14 -> 720 | CA36: =CA34/CA14 -> 744 | CB36: =CB34/CB14 -> 744 | CC36: =CC34/CC14 -> 696 | CD36: =CD34/CD14 -> 744 | CE36: =CE34/CE14 -> 720 | CF36: =CF34/CF14 -> 744 | CG36: =CG34/CG14 -> 720 | CH36: =CH34/CH14 -> 744 | CI36: =CI34/CI14 -> 744 | CJ36: =CJ34/CJ14 -> 720 | CK36: =CK34/CK14 -> 744 | CL36: =CL34/CL14 -> 720 | CM36: =CM34/CM14 -> 744 | CN36: =CN34/CN14 -> 744 | CO36: =CO34/CO14 -> 672 | CP36: =CP34/CP14 -> 744 | CQ36: =CQ34/CQ14 -> 720 | CR36: =CR34/CR14 -> 744 | CS36: =CS34/CS14 -> 720 | CT36: =CT34/CT14 -> 744 | CU36: =CU34/CU14 -> 744 | CV36: =CV34/CV14 -> 720 | CW36: =CW34/CW14 -> 744 | CX36: =CX34/CX14 -> 720 | CY36: =CY34/CY14 -> 744 | CZ36: =CZ34/CZ14 -> 744 | DA36: =DA34/DA14 -> 672 | DB36: =DB34/DB14 -> 744 | DC36: =DC34/DC14 -> 720 | DD36: =DD34/DD14 -> 744 | DE36: =DE34/DE14 -> 175.2727273 | DF36: =DF34/DF14 -> 0 | DG36: =DG34/DG14 -> 744 | DH36: =DH34/DH14 -> 720 | DI36: =DI34/DI14 -> 744 | DJ36: =DJ34/DJ14 -> 720 | DK36: =DK34/DK14 -> 744 | DL36: =DL34/DL14 -> 744 | DM36: =DM34/DM14 -> 672 | DN36: =DN34/DN14 -> 744 | DO36: =DO34/DO14 -> 720 | DP36: =DP34/DP14 -> 744 | DQ36: =DQ34/DQ14 -> 720 | DR36: =DR34/DR14 -> 744 | DS36: =DS34/DS14 -> 744 | DT36: =DT34/DT14 -> 720 | DU36: =DU34/DU14 -> 744 | DV36: =DV34/DV14 -> 720 | DW36: =DW34/DW14 -> 744 | DX36: =DX34/DX14 -> 744 | DY36: =DY34/DY14 -> 696 | DZ36: =DZ34/DZ14 -> 744 | EA36: =EA34/EA14 -> 720 | EB36: =EB34/EB14 -> 744 | EC36: =EC34/EC14 -> 720 | ED36: =ED34/ED14 -> 744 | EE36: =EE34/EE14 -> 744 | EF36: =EF34/EF14 -> 720 | EG36: =EG34/EG14 -> 744 | EH36: =EH34/EH14 -> 720 | EI36: =EI34/EI14 -> 744 | EJ36: =EJ34/EJ14 -> 744 | EK36: =EK34/EK14 -> 672 | EL36: =EL34/EL14 -> 744 | EM36: =EM34/EM14 -> 720 | EN36: =EN34/EN14 -> 744 | EO36: =EO34/EO14 -> 720 | EP36: =EP34/EP14 -> 744 | EQ36: =EQ34/EQ14 -> 744 | ER36: =ER34/ER14 -> 720 | ES36: =ES34/ES14 -> 744 | ET36: =ET34/ET14 -> 720 | EU36: =EU34/EU14 -> 744 | EV36: =EV34/EV14 -> 744 | EW36: =EW34/EW14 -> 672 | EX36: =EX34/EX14 -> 744 | EY36: =EY34/EY14 -> 720 | EZ36: =EZ34/EZ14 -> 744 | FA36: =FA34/FA14 -> 720 | FB36: =FB34/FB14 -> 744 | FC36: =FC34/FC14 -> 744 | FD36: =FD34/FD14 -> 466.9090909 | FE36: =FE34/FE14 -> 0 | FF36: =FF34/FF14 -> 0 | FG36: =FG34/FG14 -> 744 | FH36: =FH34/FH14 -> 744 | FI36: =FI34/FI14 -> 672 | FJ36: =FJ34/FJ14 -> 744 | FK36: =FK34/FK14 -> 720 | FL36: =FL34/FL14 -> 744 | FM36: =FM34/FM14 -> 720 | FN36: =FN34/FN14 -> 744 | FO36: =FO34/FO14 -> 744 | FP36: =FP34/FP14 -> 720 | FQ36: =FQ34/FQ14 -> 744 | FR36: =FR34/FR14 -> 720 | FS36: =FS34/FS14 -> 744 | FT36: =FT34/FT14 -> 744 | FU36: =FU34/FU14 -> 696 | FV36: =FV34/FV14 -> 744 | FW36: =FW34/FW14 -> 720 | FX36: =FX34/FX14 -> 744 | FY36: =FY34/FY14 -> 720 | FZ36: =FZ34/FZ14 -> 744 | GA36: =GA34/GA14 -> 744 | GB36: =GB34/GB14 -> 720 | GC36: =GC34/GC14 -> 744 | GD36: =GD34/GD14 -> 720 | GE36: =GE34/GE14 -> 744 | GF36: =GF34/GF14 -> 744 | GG36: =GG34/GG14 -> 672 | GH36: =GH34/GH14 -> 744 | GI36: =GI34/GI14 -> 720 | GJ36: =GJ34/GJ14 -> 744 | GK36: =GK34/GK14 -> 720 | GL36: =GL34/GL14 -> 744 | GM36: =GM34/GM14 -> 744 | GN36: =GN34/GN14 -> 720 | GO36: =GO34/GO14 -> 744 | GP36: =GP34/GP14 -> 720 | GQ36: =GQ34/GQ14 -> 744 | GR36: =GR34/GR14 -> 744 | GS36: =GS34/GS14 -> 672 | GT36: =GT34/GT14 -> 744 | GU36: =GU34/GU14 -> 720 | GV36: =GV34/GV14 -> 744 | GW36: =GW34/GW14 -> 720 | GX36: =GX34/GX14 -> 744 | GY36: =GY34/GY14 -> 744 | GZ36: =GZ34/GZ14 -> 720 | HA36: =HA34/HA14 -> 744 | HB36: =HB34/HB14 -> 720 | HC36: =HC34/HC14 -> 744 | HD36: =HD34/HD14 -> 38.54545455 | HE36: =HE34/HE14 -> 0 | HF36: =HF34/HF14 -> 744 | HG36: =HG34/HG14 -> 720 | HH36: =HH34/HH14 -> 744 | HI36: =HI34/HI14 -> 720 | HJ36: =HJ34/HJ14 -> 744 | HK36: =HK34/HK14 -> 744 | HL36: =HL34/HL14 -> 720 | HM36: =HM34/HM14 -> 744 | HN36: =HN34/HN14 -> 720 | HO36: =HO34/HO14 -> 744 | HP36: =HP34/HP14 -> 744 | HQ36: =HQ34/HQ14 -> 696 | HR36: =HR34/HR14 -> 744 | HS36: =HS34/HS14 -> 720 | HT36: =HT34/HT14 -> 744 | HU36: =HU34/HU14 -> 720 | HV36: =HV34/HV14 -> 744 | HW36: =HW34/HW14 -> 744 | HX36: =HX34/HX14 -> 720 | HY36: =HY34/HY14 -> 744 | HZ36: =HZ34/HZ14 -> 720 | IA36: =IA34/IA14 -> 744 | IB36: =IB34/IB14 -> 744 | IC36: =IC34/IC14 -> 672 | ID36: =ID34/ID14 -> 744 | IE36: =IE34/IE14 -> 720 | IF36: =IF34/IF14 -> 744 | IG36: =IG34/IG14 -> 720 | IH36: =IH34/IH14 -> 744 | II36: =II34/II14 -> 744 | IJ36: =IJ34/IJ14 -> 720 | IK36: =IK34/IK14 -> 744 | IL36: =IL34/IL14 -> 720 | IM36: =IM34/IM14 -> 744 | IN36: =IN34/IN14 -> 744 | IO36: =IO34/IO14 -> 672 | IP36: =IP34/IP14 -> 744 | IQ36: =IQ34/IQ14 -> 720 | IR36: =IR34/IR14 -> 744 | IS36: =IS34/IS14 -> 720 | IT36: =IT34/IT14 -> 744 | IU36: =IU34/IU14 -> 744 | IV36: =IV34/IV14 -> 720 | IW36: =IW34/IW14 -> 744 | IX36: =IX34/IX14 -> 720 | IY36: =IY34/IY14 -> 744 | IZ36: =IZ34/IZ14 -> 744 | JA36: =JA34/JA14 -> 672 | JB36: =JB34/JB14 -> 744 | JC36: =JC34/JC14 -> 378.1818182 | JD36: =JD34/JD14 -> 0 | JE36: =JE34/JE14 -> 0 | JF36: =JF34/JF14 -> 744 | JG36: =JG34/JG14 -> 744 | JH36: =JH34/JH14 -> 720 | JI36: =JI34/JI14 -> 744 | JJ36: =JJ34/JJ14 -> 720 | JK36: =JK34/JK14 -> 744 | JL36: =JL34/JL14 -> 744 | JM36: =JM34/JM14 -> 696 | JN36: =JN34/JN14 -> 744 | JO36: =JO34/JO14 -> 720 | JP36: =JP34/JP14 -> 744 | JQ36: =JQ34/JQ14 -> 720 | JR36: =JR34/JR14 -> 744 | JS36: =JS34/JS14 -> 744 | JT36: =JT34/JT14 -> 720 | JU36: =JU34/JU14 -> 744 | JV36: =JV34/JV14 -> 720 | JW36: =JW34/JW14 -> 744 | JX36: =JX34/JX14 -> 744 | JY36: =JY34/JY14 -> 672 | JZ36: =JZ34/JZ14 -> 744 | KA36: =KA34/KA14 -> 720 | KB36: =KB34/KB14 -> 744 | KC36: =KC34/KC14 -> 720 | KD36: =KD34/KD14 -> 744 | KE36: =KE34/KE14 -> 744 | KF36: =KF34/KF14 -> 720 | KG36: =KG34/KG14 -> 744 | KH36: =KH34/KH14 -> 720 | KI36: =KI34/KI14 -> 744 | KJ36: =KJ34/KJ14 -> 744 | KK36: =KK34/KK14 -> 672 | KL36: =KL34/KL14 -> 744 | KM36: =KM34/KM14 -> 720 | KN36: =KN34/KN14 -> 744 | KO36: =KO34/KO14 -> 720 | KP36: =KP34/KP14 -> 744 | KQ36: =KQ34/KQ14 -> 744 | KR36: =KR34/KR14 -> 720 | KS36: =KS34/KS14 -> 744 | KT36: =KT34/KT14 -> 720 | KU36: =KU34/KU14 -> 744 | KV36: =KV34/KV14 -> 744 | KW36: =KW34/KW14 -> 672 | KX36: =KX34/KX14 -> 744 | KY36: =KY34/KY14 -> 720 | KZ36: =KZ34/KZ14 -> 744 | LA36: =LA34/LA14 -> 720 | LB36: =LB34/LB14 -> 693.8181818 | LC36: =LC34/LC14 -> 0 | LD36: =LD34/LD14 -> 0 | LE36: =LE34/LE14 -> 744 | LF36: =LF34/LF14 -> 720 | LG36: =LG34/LG14 -> 744 | LH36: =LH34/LH14 -> 744 | LI36: =LI34/LI14 -> 696 | LJ36: =LJ34/LJ14 -> 744 | LK36: =LK34/LK14 -> 720 | LL36: =LL34/LL14 -> 744 | LM36: =LM34/LM14 -> 720 | LN36: =LN34/LN14 -> 744 | LO36: =LO34/LO14 -> 744 | LP36: =LP34/LP14 -> 720 | LQ36: =LQ34/LQ14 -> 744 | LR36: =LR34/LR14 -> 720 | LS36: =LS34/LS14 -> 744 | LT36: =LT34/LT14 -> 744 | LU36: =LU34/LU14 -> 672 | LV36: =LV34/LV14 -> 744 | LW36: =LW34/LW14 -> 720 | LX36: =LX34/LX14 -> 744 | LY36: =LY34/LY14 -> 720 | LZ36: =LZ34/LZ14 -> 744 | MA36: =MA34/MA14 -> 744 | MB36: =MB34/MB14 -> 720 | MC36: =MC34/MC14 -> 744 | MD36: =MD34/MD14 -> 720 | ME36: =ME34/ME14 -> 744 | MF36: =MF34/MF14 -> 744 | MG36: =MG34/MG14 -> 672 | MH36: =MH34/MH14 -> 744 | MI36: =MI34/MI14 -> 720 | MJ36: =MJ34/MJ14 -> 744 | MK36: =MK34/MK14 -> 720 | ML36: =ML34/ML14 -> 744 | MM36: =MM34/MM14 -> 744 | MN36: =MN34/MN14 -> 720 | MO36: =MO34/MO14 -> 744 | MP36: =MP34/MP14 -> 720 | MQ36: =MQ34/MQ14 -> 744 | MR36: =MR34/MR14 -> 744 | MS36: =MS34/MS14 -> 672 | MT36: =MT34/MT14 -> 744 | MU36: =MU34/MU14 -> 720 | MV36: =MV34/MV14 -> 744 | MW36: =MW34/MW14 -> 720 | MX36: =MX34/MX14 -> 744 | MY36: =MY34/MY14 -> 744 | MZ36: =MZ34/MZ14 -> 720 | NA36: =NA34/NA14 -> 744 | NB36: =NB34/NB14 -> 241.4545455 | NC36: =NC34/NC14 -> 0
C38: Hours Available for Repair | D38: Hours | H38: =H12-H36 -> 0 | I38: =I12-I36 -> 0 | J38: 0 | K38: 0 | L38: 0 | M38: 0 | N38: 0 | O38: 0 | P38: 0 | Q38: 0 | R38: 0 | S38: 0 | T38: 0 | U38: 0 | V38: 0 | W38: 0 | X38: 0 | Y38: 0 | Z38: 0 | AA38: 0 | AB38: 0 | AC38: 0 | AD38: 0 | AE38: 0 | AF38: 0 | AG38: 0 | AH38: 0 | AI38: 0 | AJ38: 0 | AK38: 0 | AL38: 0 | AM38: 0 | AN38: 0 | AO38: 0 | AP38: 0 | AQ38: 0 | AR38: 0 | AS38: 0 | AT38: 0 | AU38: 0 | AV38: 0 | AW38: 0 | AX38: 0 | AY38: 0 | AZ38: 0 | BA38: 0 | BB38: 0 | BC38: 0 | BD38: 0 | BE38: 116.3636364 | BF38: 744 | BG38: 720 | BH38: 0 | BI38: 0 | BJ38: 0 | BK38: 0 | BL38: 0 | BM38: 0 | BN38: 0 | BO38: 0 | BP38: =BP12-BP36 -> 0 | BQ38: 0 | BR38: 0 | BS38: 0 | BT38: 0 | BU38: =BU12-BU36 -> 0 | BV38: 0 | BW38: 0 | BX38: 0 | BY38: 0 | BZ38: 0 | CA38: 0 | CB38: 0 | CC38: 0 | CD38: 0 | CE38: 0 | CF38: 0 | CG38: 0 | CH38: 0 | CI38: 0 | CJ38: 0 | CK38: 0 | CL38: 0 | CM38: 0 | CN38: 0 | CO38: 0 | CP38: 0 | CQ38: 0 | CR38: 0 | CS38: 0 | CT38: 0 | CU38: 0 | CV38: 0 | CW38: 0 | CX38: 0 | CY38: 0 | CZ38: 0 | DA38: 0 | DB38: 0 | DC38: 0 | DD38: 0 | DE38: 544.7272727 | DF38: 744 | DG38: 0 | DH38: 0 | DI38: 0 | DJ38: 0 | DK38: 0 | DL38: 0 | DM38: 0 | DN38: 0 | DO38: 0 | DP38: 0 | DQ38: 0 | DR38: 0 | DS38: 0 | DT38: 0 | DU38: 0 | DV38: 0 | DW38: 0 | DX38: 0 | DY38: 0 | DZ38: 0 | EA38: 0 | EB38: 0 | EC38: 0 | ED38: 0 | EE38: 0 | EF38: 0 | EG38: =EG12-EG36 -> 0 | EH38: 0 | EI38: 0 | EJ38: 0 | EK38: 0 | EL38: 0 | EM38: 0 | EN38: 0 | EO38: 0 | EP38: 0 | EQ38: 0 | ER38: 0 | ES38: 0 | ET38: 0 | EU38: 0 | EV38: 0 | EW38: 0 | EX38: 0 | EY38: 0 | EZ38: 0 | FA38: 0 | FB38: 0 | FC38: 0 | FD38: 253.0909091 | FE38: 744 | FF38: 720 | FG38: 0 | FH38: 0 | FI38: 0 | FJ38: 0 | FK38: 0 | FL38: 0 | FM38: 0 | FN38: 0 | FO38: 0 | FP38: 0 | FQ38: 0 | FR38: 0 | FS38: 0 | FT38: 0 | FU38: 0 | FV38: 0 | FW38: 0 | FX38: 0 | FY38: 0 | FZ38: 0 | GA38: 0 | GB38: 0 | GC38: 0 | GD38: 0 | GE38: 0 | GF38: 0 | GG38: 0 | GH38: 0 | GI38: 0 | GJ38: 0 | GK38: 0 | GL38: 0 | GM38: 0 | GN38: 0 | GO38: 0 | GP38: 0 | GQ38: 0 | GR38: 0 | GS38: =GS12-GS36 -> 0 | GT38: 0 | GU38: 0 | GV38: 0 | GW38: 0 | GX38: 0 | GY38: 0 | GZ38: 0 | HA38: 0 | HB38: 0 | HC38: 0 | HD38: 705.4545455 | HE38: 672 | HF38: 0 | HG38: 0 | HH38: 0 | HI38: 0 | HJ38: 0 | HK38: 0 | HL38: 0 | HM38: 0 | HN38: 0 | HO38: 0 | HP38: 0 | HQ38: 0 | HR38: 0 | HS38: 0 | HT38: 0 | HU38: 0 | HV38: 0 | HW38: 0 | HX38: 0 | HY38: 0 | HZ38: 0 | IA38: 0 | IB38: 0 | IC38: 0 | ID38: 0 | IE38: 0 | IF38: 0 | IG38: 0 | IH38: 0 | II38: 0 | IJ38: 0 | IK38: 0 | IL38: 0 | IM38: 0 | IN38: 0 | IO38: 0 | IP38: 0 | IQ38: 0 | IR38: 0 | IS38: 0 | IT38: 0 | IU38: 0 | IV38: 0 | IW38: 0 | IX38: 0 | IY38: 0 | IZ38: 0 | JA38: 0 | JB38: 0 | JC38: 341.8181818 | JD38: 744 | JE38: =JE12-JE36 -> 720 | JF38: 0 | JG38: 0 | JH38: 0 | JI38: 0 | JJ38: 0 | JK38: 0 | JL38: 0 | JM38: 0 | JN38: 0 | JO38: 0 | JP38: 0 | JQ38: 0 | JR38: 0 | JS38: 0 | JT38: 0 | JU38: 0 | JV38: 0 | JW38: 0 | JX38: 0 | JY38: 0 | JZ38: 0 | KA38: 0 | KB38: 0 | KC38: 0 | KD38: 0 | KE38: 0 | KF38: 0 | KG38: 0 | KH38: 0 | KI38: 0 | KJ38: 0 | KK38: 0 | KL38: 0 | KM38: 0 | KN38: 0 | KO38: 0 | KP38: 0 | KQ38: 0 | KR38: 0 | KS38: 0 | KT38: 0 | KU38: 0 | KV38: 0 | KW38: 0 | KX38: 0 | KY38: 0 | KZ38: 0 | LA38: 0 | LB38: 50.18181818 | LC38: 744 | LD38: 720 | LE38: 0 | LF38: 0 | LG38: 0 | LH38: 0 | LI38: 0 | LJ38: 0 | LK38: 0 | LL38: 0 | LM38: 0 | LN38: 0 | LO38: 0 | LP38: 0 | LQ38: =LQ12-LQ36 -> 0 | LR38: 0 | LS38: 0 | LT38: 0 | LU38: 0 | LV38: 0 | LW38: 0 | LX38: 0 | LY38: 0 | LZ38: 0 | MA38: 0 | MB38: 0 | MC38: 0 | MD38: 0 | ME38: 0 | MF38: 0 | MG38: 0 | MH38: 0 | MI38: 0 | MJ38: 0 | MK38: 0 | ML38: 0 | MM38: 0 | MN38: 0 | MO38: 0 | MP38: 0 | MQ38: 0 | MR38: 0 | MS38: 0 | MT38: 0 | MU38: 0 | MV38: 0 | MW38: 0 | MX38: 0 | MY38: 0 | MZ38: 0 | NA38: 0 | NB38: 478.5454545 | NC38: 744
C39: Hours of Repair with Min | D39: Hours | H39: =MIN(H38,H20) -> 0 | I39: =MIN(I38,I20) -> 0 | J39: 0 | K39: 0 | L39: 0 | M39: 0 | N39: 0 | O39: 0 | P39: 0 | Q39: 0 | R39: 0 | S39: 0 | T39: 0 | U39: 0 | V39: 0 | W39: 0 | X39: 0 | Y39: 0 | Z39: 0 | AA39: 0 | AB39: 0 | AC39: 0 | AD39: 0 | AE39: 0 | AF39: 0 | AG39: 0 | AH39: 0 | AI39: 0 | AJ39: 0 | AK39: 0 | AL39: 0 | AM39: 0 | AN39: 0 | AO39: 0 | AP39: 0 | AQ39: 0 | AR39: 0 | AS39: 0 | AT39: 0 | AU39: 0 | AV39: 0 | AW39: 0 | AX39: 0 | AY39: 0 | AZ39: 0 | BA39: 0 | BB39: 0 | BC39: 0 | BD39: 0 | BE39: 116.3636364 | BF39: 744 | BG39: 339.6363636 | BH39: 0 | BI39: 0 | BJ39: 0 | BK39: 0 | BL39: 0 | BM39: 0 | BN39: 0 | BO39: 0 | BP39: 0 | BQ39: =MIN(BQ38,BQ20) -> 0 | BR39: 0 | BS39: 0 | BT39: 0 | BU39: =MIN(BU38,BU20) -> 0 | BV39: 0 | BW39: 0 | BX39: 0 | BY39: 0 | BZ39: 0 | CA39: 0 | CB39: 0 | CC39: 0 | CD39: 0 | CE39: 0 | CF39: 0 | CG39: 0 | CH39: 0 | CI39: 0 | CJ39: 0 | CK39: 0 | CL39: 0 | CM39: 0 | CN39: 0 | CO39: 0 | CP39: 0 | CQ39: 0 | CR39: 0 | CS39: 0 | CT39: 0 | CU39: 0 | CV39: 0 | CW39: 0 | CX39: 0 | CY39: 0 | CZ39: 0 | DA39: 0 | DB39: 0 | DC39: 0 | DD39: 0 | DE39: 544.7272727 | DF39: 655.2727273 | DG39: 0 | DH39: 0 | DI39: 0 | DJ39: 0 | DK39: 0 | DL39: 0 | DM39: 0 | DN39: 0 | DO39: 0 | DP39: 0 | DQ39: 0 | DR39: 0 | DS39: 0 | DT39: 0 | DU39: 0 | DV39: 0 | DW39: 0 | DX39: 0 | DY39: 0 | DZ39: 0 | EA39: 0 | EB39: 0 | EC39: 0 | ED39: 0 | EE39: 0 | EF39: 0 | EG39: =MIN(EG38,EG20) -> 0 | EH39: 0 | EI39: 0 | EJ39: 0 | EK39: 0 | EL39: 0 | EM39: 0 | EN39: 0 | EO39: 0 | EP39: 0 | EQ39: 0 | ER39: 0 | ES39: 0 | ET39: 0 | EU39: 0 | EV39: 0 | EW39: 0 | EX39: 0 | EY39: 0 | EZ39: 0 | FA39: 0 | FB39: 0 | FC39: 0 | FD39: 253.0909091 | FE39: 744 | FF39: 202.9090909 | FG39: 0 | FH39: 0 | FI39: 0 | FJ39: 0 | FK39: 0 | FL39: 0 | FM39: 0 | FN39: 0 | FO39: 0 | FP39: 0 | FQ39: 0 | FR39: 0 | FS39: 0 | FT39: 0 | FU39: 0 | FV39: 0 | FW39: 0 | FX39: 0 | FY39: 0 | FZ39: 0 | GA39: 0 | GB39: 0 | GC39: 0 | GD39: 0 | GE39: 0 | GF39: 0 | GG39: 0 | GH39: 0 | GI39: 0 | GJ39: 0 | GK39: 0 | GL39: 0 | GM39: 0 | GN39: 0 | GO39: 0 | GP39: 0 | GQ39: 0 | GR39: 0 | GS39: =MIN(GS38,GS20) -> 0 | GT39: 0 | GU39: 0 | GV39: 0 | GW39: 0 | GX39: 0 | GY39: 0 | GZ39: 0 | HA39: 0 | HB39: 0 | HC39: 0 | HD39: 705.4545455 | HE39: 494.5454545 | HF39: 0 | HG39: 0 | HH39: 0 | HI39: 0 | HJ39: 0 | HK39: 0 | HL39: 0 | HM39: 0 | HN39: 0 | HO39: 0 | HP39: 0 | HQ39: 0 | HR39: 0 | HS39: 0 | HT39: 0 | HU39: 0 | HV39: 0 | HW39: 0 | HX39: 0 | HY39: 0 | HZ39: 0 | IA39: 0 | IB39: 0 | IC39: 0 | ID39: 0 | IE39: 0 | IF39: 0 | IG39: 0 | IH39: 0 | II39: 0 | IJ39: 0 | IK39: 0 | IL39: 0 | IM39: 0 | IN39: 0 | IO39: 0 | IP39: 0 | IQ39: 0 | IR39: 0 | IS39: 0 | IT39: 0 | IU39: 0 | IV39: 0 | IW39: 0 | IX39: 0 | IY39: 0 | IZ39: 0 | JA39: 0 | JB39: 0 | JC39: 341.8181818 | JD39: 744 | JE39: =MIN(JE38,JE20) -> 114.1818182 | JF39: 0 | JG39: 0 | JH39: 0 | JI39: 0 | JJ39: 0 | JK39: 0 | JL39: 0 | JM39: 0 | JN39: 0 | JO39: 0 | JP39: 0 | JQ39: 0 | JR39: 0 | JS39: 0 | JT39: 0 | JU39: 0 | JV39: 0 | JW39: 0 | JX39: 0 | JY39: 0 | JZ39: 0 | KA39: 0 | KB39: 0 | KC39: 0 | KD39: 0 | KE39: 0 | KF39: 0 | KG39: 0 | KH39: 0 | KI39: 0 | KJ39: 0 | KK39: 0 | KL39: 0 | KM39: 0 | KN39: 0 | KO39: 0 | KP39: 0 | KQ39: 0 | KR39: 0 | KS39: 0 | KT39: 0 | KU39: 0 | KV39: 0 | KW39: 0 | KX39: 0 | KY39: 0 | KZ39: 0 | LA39: 0 | LB39: 50.18181818 | LC39: 744 | LD39: 405.8181818 | LE39: 0 | LF39: 0 | LG39: 0 | LH39: 0 | LI39: 0 | LJ39: 0 | LK39: 0 | LL39: 0 | LM39: 0 | LN39: 0 | LO39: 0 | LP39: 0 | LQ39: =MIN(LQ38,LQ20) -> 0 | LR39: 0 | LS39: 0 | LT39: 0 | LU39: 0 | LV39: 0 | LW39: 0 | LX39: 0 | LY39: 0 | LZ39: 0 | MA39: 0 | MB39: 0 | MC39: 0 | MD39: 0 | ME39: 0 | MF39: 0 | MG39: 0 | MH39: 0 | MI39: 0 | MJ39: 0 | MK39: 0 | ML39: 0 | MM39: 0 | MN39: 0 | MO39: 0 | MP39: 0 | MQ39: 0 | MR39: 0 | MS39: 0 | MT39: 0 | MU39: 0 | MV39: 0 | MW39: 0 | MX39: 0 | MY39: 0 | MZ39: 0 | NA39: 0 | NB39: 478.5454545 | NC39: 721.4545455
C41: Hours Available for Second Run Period | D41: Hours | H41: =H12-H36-H39 -> 0 | I41: 0 | J41: 0 | K41: 0 | L41: 0 | M41: 0 | N41: 0 | O41: 0 | P41: 0 | Q41: 0 | R41: 0 | S41: 0 | T41: 0 | U41: 0 | V41: 0 | W41: 0 | X41: 0 | Y41: 0 | Z41: 0 | AA41: 0 | AB41: 0 | AC41: 0 | AD41: 0 | AE41: 0 | AF41: 0 | AG41: 0 | AH41: 0 | AI41: 0 | AJ41: 0 | AK41: 0 | AL41: 0 | AM41: 0 | AN41: 0 | AO41: 0 | AP41: 0 | AQ41: 0 | AR41: 0 | AS41: 0 | AT41: 0 | AU41: 0 | AV41: 0 | AW41: 0 | AX41: 0 | AY41: 0 | AZ41: 0 | BA41: 0 | BB41: 0 | BC41: 0 | BD41: 0 | BE41: 0 | BF41: 0 | BG41: 380.3636364 | BH41: 0 | BI41: 0 | BJ41: 0 | BK41: 0 | BL41: 0 | BM41: 0 | BN41: 0 | BO41: 0 | BP41: 0 | BQ41: =BQ12-BQ36-BQ39 -> 0 | BR41: 0 | BS41: 0 | BT41: =BT12-BT36-BT39 -> 0 | BU41: 0 | BV41: 0 | BW41: 0 | BX41: 0 | BY41: 0 | BZ41: 0 | CA41: 0 | CB41: 0 | CC41: 0 | CD41: 0 | CE41: 0 | CF41: 0 | CG41: 0 | CH41: 0 | CI41: 0 | CJ41: 0 | CK41: 0 | CL41: 0 | CM41: 0 | CN41: 0 | CO41: 0 | CP41: 0 | CQ41: 0 | CR41: 0 | CS41: 0 | CT41: 0 | CU41: 0 | CV41: 0 | CW41: 0 | CX41: 0 | CY41: 0 | CZ41: 0 | DA41: 0 | DB41: 0 | DC41: 0 | DD41: 0 | DE41: 0 | DF41: 88.72727273 | DG41: 0 | DH41: 0 | DI41: 0 | DJ41: 0 | DK41: 0 | DL41: 0 | DM41: 0 | DN41: 0 | DO41: 0 | DP41: 0 | DQ41: 0 | DR41: 0 | DS41: 0 | DT41: 0 | DU41: 0 | DV41: 0 | DW41: 0 | DX41: 0 | DY41: 0 | DZ41: 0 | EA41: 0 | EB41: 0 | EC41: 0 | ED41: 0 | EE41: 0 | EF41: =EF12-EF36-EF39 -> 0 | EG41: 0 | EH41: 0 | EI41: 0 | EJ41: 0 | EK41: 0 | EL41: 0 | EM41: 0 | EN41: 0 | EO41: 0 | EP41: 0 | EQ41: 0 | ER41: 0 | ES41: 0 | ET41: 0 | EU41: 0 | EV41: 0 | EW41: 0 | EX41: 0 | EY41: 0 | EZ41: 0 | FA41: 0 | FB41: 0 | FC41: 0 | FD41: 0 | FE41: 0 | FF41: 517.0909091 | FG41: 0 | FH41: 0 | FI41: 0 | FJ41: 0 | FK41: 0 | FL41: 0 | FM41: 0 | FN41: 0 | FO41: 0 | FP41: 0 | FQ41: 0 | FR41: 0 | FS41: 0 | FT41: 0 | FU41: 0 | FV41: 0 | FW41: 0 | FX41: 0 | FY41: 0 | FZ41: 0 | GA41: 0 | GB41: 0 | GC41: 0 | GD41: 0 | GE41: 0 | GF41: 0 | GG41: 0 | GH41: 0 | GI41: 0 | GJ41: 0 | GK41: 0 | GL41: 0 | GM41: 0 | GN41: 0 | GO41: 0 | GP41: 0 | GQ41: 0 | GR41: =GR12-GR36-GR39 -> 0 | GS41: 0 | GT41: 0 | GU41: 0 | GV41: 0 | GW41: 0 | GX41: 0 | GY41: 0 | GZ41: 0 | HA41: 0 | HB41: 0 | HC41: 0 | HD41: 0 | HE41: 177.4545455 | HF41: 0 | HG41: 0 | HH41: 0 | HI41: 0 | HJ41: 0 | HK41: 0 | HL41: 0 | HM41: 0 | HN41: 0 | HO41: 0 | HP41: 0 | HQ41: 0 | HR41: 0 | HS41: 0 | HT41: 0 | HU41: 0 | HV41: 0 | HW41: 0 | HX41: 0 | HY41: 0 | HZ41: 0 | IA41: 0 | IB41: 0 | IC41: 0 | ID41: 0 | IE41: 0 | IF41: 0 | IG41: 0 | IH41: 0 | II41: 0 | IJ41: 0 | IK41: 0 | IL41: 0 | IM41: 0 | IN41: 0 | IO41: 0 | IP41: 0 | IQ41: 0 | IR41: 0 | IS41: 0 | IT41: 0 | IU41: 0 | IV41: 0 | IW41: 0 | IX41: 0 | IY41: 0 | IZ41: 0 | JA41: 0 | JB41: 0 | JC41: 0 | JD41: =JD12-JD36-JD39 -> 0 | JE41: 605.8181818 | JF41: 0 | JG41: 0 | JH41: 0 | JI41: 0 | JJ41: 0 | JK41: 0 | JL41: 0 | JM41: 0 | JN41: 0 | JO41: 0 | JP41: 0 | JQ41: 0 | JR41: 0 | JS41: 0 | JT41: 0 | JU41: 0 | JV41: 0 | JW41: 0 | JX41: 0 | JY41: 0 | JZ41: 0 | KA41: 0 | KB41: 0 | KC41: 0 | KD41: 0 | KE41: 0 | KF41: 0 | KG41: 0 | KH41: 0 | KI41: 0 | KJ41: 0 | KK41: 0 | KL41: 0 | KM41: 0 | KN41: 0 | KO41: 0 | KP41: 0 | KQ41: 0 | KR41: 0 | KS41: 0 | KT41: 0 | KU41: 0 | KV41: 0 | KW41: 0 | KX41: 0 | KY41: 0 | KZ41: 0 | LA41: 0 | LB41: 0 | LC41: 0 | LD41: 314.1818182 | LE41: 0 | LF41: 0 | LG41: 0 | LH41: 0 | LI41: 0 | LJ41: 0 | LK41: 0 | LL41: 0 | LM41: 0 | LN41: 0 | LO41: 0 | LP41: =LP12-LP36-LP39 -> 0 | LQ41: 0 | LR41: 0 | LS41: 0 | LT41: 0 | LU41: 0 | LV41: 0 | LW41: 0 | LX41: 0 | LY41: 0 | LZ41: 0 | MA41: 0 | MB41: 0 | MC41: 0 | MD41: 0 | ME41: 0 | MF41: 0 | MG41: 0 | MH41: 0 | MI41: 0 | MJ41: 0 | MK41: 0 | ML41: 0 | MM41: 0 | MN41: 0 | MO41: 0 | MP41: 0 | MQ41: 0 | MR41: 0 | MS41: 0 | MT41: 0 | MU41: 0 | MV41: 0 | MW41: 0 | MX41: 0 | MY41: 0 | MZ41: 0 | NA41: 0 | NB41: 0 | NC41: 22.54545455
C42: Hours of Generation for Second Run in Initial Period | D42: Hours | H42: =H41*H14 -> 0 | I42: 0 | J42: 0 | K42: 0 | L42: 0 | M42: 0 | N42: 0 | O42: 0 | P42: 0 | Q42: 0 | R42: 0 | S42: 0 | T42: 0 | U42: 0 | V42: 0 | W42: 0 | X42: 0 | Y42: 0 | Z42: 0 | AA42: 0 | AB42: 0 | AC42: 0 | AD42: 0 | AE42: 0 | AF42: 0 | AG42: 0 | AH42: 0 | AI42: 0 | AJ42: 0 | AK42: 0 | AL42: 0 | AM42: 0 | AN42: 0 | AO42: 0 | AP42: 0 | AQ42: 0 | AR42: 0 | AS42: 0 | AT42: 0 | AU42: 0 | AV42: 0 | AW42: 0 | AX42: 0 | AY42: 0 | AZ42: 0 | BA42: 0 | BB42: 0 | BC42: 0 | BD42: 0 | BE42: 0 | BF42: 0 | BG42: 209.2 | BH42: 0 | BI42: 0 | BJ42: 0 | BK42: 0 | BL42: 0 | BM42: 0 | BN42: 0 | BO42: 0 | BP42: 0 | BQ42: 0 | BR42: 0 | BS42: 0 | BT42: =BT41*BT14 -> 0 | BU42: 0 | BV42: 0 | BW42: 0 | BX42: 0 | BY42: 0 | BZ42: 0 | CA42: 0 | CB42: 0 | CC42: 0 | CD42: 0 | CE42: 0 | CF42: 0 | CG42: 0 | CH42: 0 | CI42: 0 | CJ42: 0 | CK42: 0 | CL42: 0 | CM42: 0 | CN42: 0 | CO42: 0 | CP42: 0 | CQ42: 0 | CR42: 0 | CS42: 0 | CT42: 0 | CU42: 0 | CV42: 0 | CW42: 0 | CX42: 0 | CY42: 0 | CZ42: 0 | DA42: 0 | DB42: 0 | DC42: 0 | DD42: 0 | DE42: 0 | DF42: 48.8 | DG42: 0 | DH42: 0 | DI42: 0 | DJ42: 0 | DK42: 0 | DL42: 0 | DM42: 0 | DN42: 0 | DO42: 0 | DP42: 0 | DQ42: 0 | DR42: 0 | DS42: 0 | DT42: 0 | DU42: 0 | DV42: 0 | DW42: 0 | DX42: 0 | DY42: 0 | DZ42: 0 | EA42: 0 | EB42: 0 | EC42: 0 | ED42: 0 | EE42: 0 | EF42: =EF41*EF14 -> 0 | EG42: 0 | EH42: 0 | EI42: 0 | EJ42: 0 | EK42: 0 | EL42: 0 | EM42: 0 | EN42: 0 | EO42: 0 | EP42: 0 | EQ42: 0 | ER42: 0 | ES42: 0 | ET42: 0 | EU42: 0 | EV42: 0 | EW42: 0 | EX42: 0 | EY42: 0 | EZ42: 0 | FA42: 0 | FB42: 0 | FC42: 0 | FD42: 0 | FE42: 0 | FF42: 284.4 | FG42: 0 | FH42: 0 | FI42: 0 | FJ42: 0 | FK42: 0 | FL42: 0 | FM42: 0 | FN42: 0 | FO42: 0 | FP42: 0 | FQ42: 0 | FR42: 0 | FS42: 0 | FT42: 0 | FU42: 0 | FV42: 0 | FW42: 0 | FX42: 0 | FY42: 0 | FZ42: 0 | GA42: 0 | GB42: 0 | GC42: 0 | GD42: 0 | GE42: 0 | GF42: 0 | GG42: 0 | GH42: 0 | GI42: 0 | GJ42: 0 | GK42: 0 | GL42: 0 | GM42: 0 | GN42: 0 | GO42: 0 | GP42: 0 | GQ42: 0 | GR42: =GR41*GR14 -> 0 | GS42: 0 | GT42: 0 | GU42: 0 | GV42: 0 | GW42: 0 | GX42: 0 | GY42: 0 | GZ42: 0 | HA42: 0 | HB42: 0 | HC42: 0 | HD42: 0 | HE42: 97.6 | HF42: 0 | HG42: 0 | HH42: 0 | HI42: 0 | HJ42: 0 | HK42: 0 | HL42: 0 | HM42: 0 | HN42: 0 | HO42: 0 | HP42: 0 | HQ42: 0 | HR42: 0 | HS42: 0 | HT42: 0 | HU42: 0 | HV42: 0 | HW42: 0 | HX42: 0 | HY42: 0 | HZ42: 0 | IA42: 0 | IB42: 0 | IC42: 0 | ID42: 0 | IE42: 0 | IF42: 0 | IG42: 0 | IH42: 0 | II42: 0 | IJ42: 0 | IK42: 0 | IL42: 0 | IM42: 0 | IN42: 0 | IO42: 0 | IP42: 0 | IQ42: 0 | IR42: 0 | IS42: 0 | IT42: 0 | IU42: 0 | IV42: 0 | IW42: 0 | IX42: 0 | IY42: 0 | IZ42: 0 | JA42: 0 | JB42: 0 | JC42: 0 | JD42: =JD41*JD14 -> 0 | JE42: 333.2 | JF42: 0 | JG42: 0 | JH42: 0 | JI42: 0 | JJ42: 0 | JK42: 0 | JL42: 0 | JM42: 0 | JN42: 0 | JO42: 0 | JP42: 0 | JQ42: 0 | JR42: 0 | JS42: 0 | JT42: 0 | JU42: 0 | JV42: 0 | JW42: 0 | JX42: 0 | JY42: 0 | JZ42: 0 | KA42: 0 | KB42: 0 | KC42: 0 | KD42: 0 | KE42: 0 | KF42: 0 | KG42: 0 | KH42: 0 | KI42: 0 | KJ42: 0 | KK42: 0 | KL42: 0 | KM42: 0 | KN42: 0 | KO42: 0 | KP42: 0 | KQ42: 0 | KR42: 0 | KS42: 0 | KT42: 0 | KU42: 0 | KV42: 0 | KW42: 0 | KX42: 0 | KY42: 0 | KZ42: 0 | LA42: 0 | LB42: 0 | LC42: 0 | LD42: 172.8 | LE42: 0 | LF42: 0 | LG42: 0 | LH42: 0 | LI42: 0 | LJ42: 0 | LK42: 0 | LL42: 0 | LM42: 0 | LN42: 0 | LO42: 0 | LP42: =LP41*LP14 -> 0 | LQ42: 0 | LR42: 0 | LS42: 0 | LT42: 0 | LU42: 0 | LV42: 0 | LW42: 0 | LX42: 0 | LY42: 0 | LZ42: 0 | MA42: 0 | MB42: 0 | MC42: 0 | MD42: 0 | ME42: 0 | MF42: 0 | MG42: 0 | MH42: 0 | MI42: 0 | MJ42: 0 | MK42: 0 | ML42: 0 | MM42: 0 | MN42: 0 | MO42: 0 | MP42: 0 | MQ42: 0 | MR42: 0 | MS42: 0 | MT42: 0 | MU42: 0 | MV42: 0 | MW42: 0 | MX42: 0 | MY42: 0 | MZ42: 0 | NA42: 0 | NB42: 0 | NC42: 12.4
C44: Closing Balance | D44: Hours | H44: =IF(H48,H42,H32+H34) -> 409.2 | I44: 778.8 | J44: 1188 | K44: 1584 | L44: 1993.2 | M44: 2389.2 | N44: 2798.4 | O44: 3207.6 | P44: 3603.6 | Q44: 4012.8 | R44: 4408.8 | S44: 4818 | T44: 5227.2 | U44: 5596.8 | V44: 6006 | W44: 6402 | X44: 6811.2 | Y44: 7207.2 | Z44: 7616.4 | AA44: 8025.6 | AB44: 8421.6 | AC44: 8830.8 | AD44: 9226.8 | AE44: 9636 | AF44: 10045.2 | AG44: 10428 | AH44: 10837.2 | AI44: 11233.2 | AJ44: 11642.4 | AK44: 12038.4 | AL44: 12447.6 | AM44: 12856.8 | AN44: 13252.8 | AO44: 13662 | AP44: 14058 | AQ44: 14467.2 | AR44: 14876.4 | AS44: 15246 | AT44: 15655.2 | AU44: 16051.2 | AV44: 16460.4 | AW44: 16856.4 | AX44: 17265.6 | AY44: 17674.8 | AZ44: 18070.8 | BA44: 18480 | BB44: 18876 | BC44: 19285.2 | BD44: 19694.4 | BE44: 20000 | BF44: 20000 | BG44: 209.2 | BH44: 618.4 | BI44: 1014.4 | BJ44: 1423.6 | BK44: 1832.8 | BL44: 2228.8 | BM44: 2638 | BN44: 3034 | BO44: 3443.2 | BP44: 3852.4 | BQ44: =IF(BQ48,BQ42,BQ32+BQ34) -> 4222 | BR44: 4631.2 | BS44: 5027.2 | BT44: =IF(BT48,BT42,BT32+BT34) -> 5436.4 | BU44: 5832.4 | BV44: 6241.6 | BW44: 6650.8 | BX44: 7046.8 | BY44: 7456 | BZ44: 7852 | CA44: 8261.2 | CB44: 8670.4 | CC44: 9053.2 | CD44: 9462.4 | CE44: 9858.4 | CF44: 10267.6 | CG44: 10663.6 | CH44: 11072.8 | CI44: 11482 | CJ44: 11878 | CK44: 12287.2 | CL44: 12683.2 | CM44: 13092.4 | CN44: 13501.6 | CO44: 13871.2 | CP44: 14280.4 | CQ44: 14676.4 | CR44: 15085.6 | CS44: 15481.6 | CT44: 15890.8 | CU44: 16300 | CV44: 16696 | CW44: 17105.2 | CX44: 17501.2 | CY44: 17910.4 | CZ44: 18319.6 | DA44: 18689.2 | DB44: 19098.4 | DC44: 19494.4 | DD44: 19903.6 | DE44: 20000 | DF44: 48.8 | DG44: 458 | DH44: 854 | DI44: 1263.2 | DJ44: 1659.2 | DK44: 2068.4 | DL44: 2477.6 | DM44: 2847.2 | DN44: 3256.4 | DO44: 3652.4 | DP44: 4061.6 | DQ44: 4457.6 | DR44: 4866.8 | DS44: 5276 | DT44: 5672 | DU44: 6081.2 | DV44: 6477.2 | DW44: 6886.4 | DX44: 7295.6 | DY44: 7678.4 | DZ44: 8087.6 | EA44: 8483.6 | EB44: 8892.8 | EC44: 9288.8 | ED44: 9698 | EE44: 10107.2 | EF44: =IF(EF48,EF42,EF32+EF34) -> 10503.2 | EG44: 10912.4 | EH44: 11308.4 | EI44: 11717.6 | EJ44: 12126.8 | EK44: 12496.4 | EL44: 12905.6 | EM44: 13301.6 | EN44: 13710.8 | EO44: 14106.8 | EP44: 14516 | EQ44: 14925.2 | ER44: 15321.2 | ES44: 15730.4 | ET44: 16126.4 | EU44: 16535.6 | EV44: 16944.8 | EW44: 17314.4 | EX44: 17723.6 | EY44: 18119.6 | EZ44: 18528.8 | FA44: 18924.8 | FB44: 19334 | FC44: 19743.2 | FD44: 20000 | FE44: 20000 | FF44: 284.4 | FG44: 693.6 | FH44: 1102.8 | FI44: 1472.4 | FJ44: 1881.6 | FK44: 2277.6 | FL44: 2686.8 | FM44: 3082.8 | FN44: 3492 | FO44: 3901.2 | FP44: 4297.2 | FQ44: 4706.4 | FR44: 5102.4 | FS44: 5511.6 | FT44: 5920.8 | FU44: 6303.6 | FV44: 6712.8 | FW44: 7108.8 | FX44: 7518 | FY44: 7914 | FZ44: 8323.2 | GA44: 8732.4 | GB44: 9128.4 | GC44: 9537.6 | GD44: 9933.6 | GE44: 10342.8 | GF44: 10752 | GG44: 11121.6 | GH44: 11530.8 | GI44: 11926.8 | GJ44: 12336 | GK44: 12732 | GL44: 13141.2 | GM44: 13550.4 | GN44: 13946.4 | GO44: 14355.6 | GP44: 14751.6 | GQ44: 15160.8 | GR44: =IF(GR48,GR42,GR32+GR34) -> 15570 | GS44: 15939.6 | GT44: 16348.8 | GU44: 16744.8 | GV44: 17154 | GW44: 17550 | GX44: 17959.2 | GY44: 18368.4 | GZ44: 18764.4 | HA44: 19173.6 | HB44: 19569.6 | HC44: 19978.8 | HD44: 20000 | HE44: 97.6 | HF44: 506.8 | HG44: 902.8 | HH44: 1312 | HI44: 1708 | HJ44: 2117.2 | HK44: 2526.4 | HL44: 2922.4 | HM44: 3331.6 | HN44: 3727.6 | HO44: 4136.8 | HP44: 4546 | HQ44: 4928.8 | HR44: 5338 | HS44: 5734 | HT44: 6143.2 | HU44: 6539.2 | HV44: 6948.4 | HW44: 7357.6 | HX44: 7753.6 | HY44: 8162.8 | HZ44: 8558.8 | IA44: 8968 | IB44: 9377.2 | IC44: 9746.8 | ID44: 10156 | IE44: 10552 | IF44: 10961.2 | IG44: 11357.2 | IH44: 11766.4 | II44: 12175.6 | IJ44: 12571.6 | IK44: 12980.8 | IL44: 13376.8 | IM44: 13786 | IN44: 14195.2 | IO44: 14564.8 | IP44: 14974 | IQ44: 15370 | IR44: 15779.2 | IS44: 16175.2 | IT44: 16584.4 | IU44: 16993.6 | IV44: 17389.6 | IW44: 17798.8 | IX44: 18194.8 | IY44: 18604 | IZ44: 19013.2 | JA44: 19382.8 | JB44: 19792 | JC44: 20000 | JD44: =IF(JD48,JD42,JD32+JD34) -> 20000 | JE44: 333.2 | JF44: 742.4 | JG44: 1151.6 | JH44: 1547.6 | JI44: 1956.8 | JJ44: 2352.8 | JK44: 2762 | JL44: 3171.2 | JM44: 3554 | JN44: 3963.2 | JO44: 4359.2 | JP44: 4768.4 | JQ44: 5164.4 | JR44: 5573.6 | JS44: 5982.8 | JT44: 6378.8 | JU44: 6788 | JV44: 7184 | JW44: 7593.2 | JX44: 8002.4 | JY44: 8372 | JZ44: 8781.2 | KA44: 9177.2 | KB44: 9586.4 | KC44: 9982.4 | KD44: 10391.6 | KE44: 10800.8 | KF44: 11196.8 | KG44: 11606 | KH44: 12002 | KI44: 12411.2 | KJ44: 12820.4 | KK44: 13190 | KL44: 13599.2 | KM44: 13995.2 | KN44: 14404.4 | KO44: 14800.4 | KP44: 15209.6 | KQ44: 15618.8 | KR44: 16014.8 | KS44: 16424 | KT44: 16820 | KU44: 17229.2 | KV44: 17638.4 | KW44: 18008 | KX44: 18417.2 | KY44: 18813.2 | KZ44: 19222.4 | LA44: 19618.4 | LB44: 20000 | LC44: 20000 | LD44: 172.8 | LE44: 582 | LF44: 978 | LG44: 1387.2 | LH44: 1796.4 | LI44: 2179.2 | LJ44: 2588.4 | LK44: 2984.4 | LL44: 3393.6 | LM44: 3789.6 | LN44: 4198.8 | LO44: 4608 | LP44: =IF(LP48,LP42,LP32+LP34) -> 5004 | LQ44: 5413.2 | LR44: 5809.2 | LS44: 6218.4 | LT44: 6627.6 | LU44: 6997.2 | LV44: 7406.4 | LW44: 7802.4 | LX44: 8211.6 | LY44: 8607.6 | LZ44: 9016.8 | MA44: 9426 | MB44: 9822 | MC44: 10231.2 | MD44: 10627.2 | ME44: 11036.4 | MF44: 11445.6 | MG44: 11815.2 | MH44: 12224.4 | MI44: 12620.4 | MJ44: 13029.6 | MK44: 13425.6 | ML44: 13834.8 | MM44: 14244 | MN44: 14640 | MO44: 15049.2 | MP44: 15445.2 | MQ44: 15854.4 | MR44: 16263.6 | MS44: 16633.2 | MT44: 17042.4 | MU44: 17438.4 | MV44: 17847.6 | MW44: 18243.6 | MX44: 18652.8 | MY44: 19062 | MZ44: 19458 | NA44: 19867.2 | NB44: 20000 | NC44: 12.4
C46: Hours Run from First Maintenance Period | D46: Hours | H46: =H32+H34 -> 409.2 | I46: 778.8 | J46: 1188 | K46: 1584 | L46: 1993.2 | M46: 2389.2 | N46: 2798.4 | O46: 3207.6 | P46: 3603.6 | Q46: 4012.8 | R46: 4408.8 | S46: 4818 | T46: 5227.2 | U46: 5596.8 | V46: 6006 | W46: 6402 | X46: 6811.2 | Y46: 7207.2 | Z46: 7616.4 | AA46: 8025.6 | AB46: 8421.6 | AC46: 8830.8 | AD46: 9226.8 | AE46: 9636 | AF46: 10045.2 | AG46: 10428 | AH46: 10837.2 | AI46: 11233.2 | AJ46: 11642.4 | AK46: 12038.4 | AL46: 12447.6 | AM46: 12856.8 | AN46: 13252.8 | AO46: 13662 | AP46: 14058 | AQ46: 14467.2 | AR46: 14876.4 | AS46: 15246 | AT46: 15655.2 | AU46: 16051.2 | AV46: 16460.4 | AW46: 16856.4 | AX46: 17265.6 | AY46: 17674.8 | AZ46: 18070.8 | BA46: 18480 | BB46: 18876 | BC46: 19285.2 | BD46: 19694.4 | BE46: 20000 | BF46: 20000 | BG46: 20000 | BH46: 618.4 | BI46: 1014.4 | BJ46: 1423.6 | BK46: 1832.8 | BL46: 2228.8 | BM46: 2638 | BN46: 3034 | BO46: 3443.2 | BP46: 3852.4 | BQ46: 4222 | BR46: 4631.2 | BS46: 5027.2 | BT46: =BT32+BT34 -> 5436.4 | BU46: 5832.4 | BV46: 6241.6 | BW46: 6650.8 | BX46: 7046.8 | BY46: 7456 | BZ46: 7852 | CA46: 8261.2 | CB46: 8670.4 | CC46: 9053.2 | CD46: 9462.4 | CE46: 9858.4 | CF46: 10267.6 | CG46: 10663.6 | CH46: 11072.8 | CI46: 11482 | CJ46: 11878 | CK46: 12287.2 | CL46: 12683.2 | CM46: 13092.4 | CN46: 13501.6 | CO46: 13871.2 | CP46: 14280.4 | CQ46: 14676.4 | CR46: 15085.6 | CS46: 15481.6 | CT46: 15890.8 | CU46: 16300 | CV46: 16696 | CW46: 17105.2 | CX46: 17501.2 | CY46: 17910.4 | CZ46: 18319.6 | DA46: 18689.2 | DB46: 19098.4 | DC46: 19494.4 | DD46: 19903.6 | DE46: 20000 | DF46: 20000 | DG46: 458 | DH46: 854 | DI46: 1263.2 | DJ46: 1659.2 | DK46: 2068.4 | DL46: 2477.6 | DM46: 2847.2 | DN46: 3256.4 | DO46: 3652.4 | DP46: 4061.6 | DQ46: 4457.6 | DR46: 4866.8 | DS46: 5276 | DT46: 5672 | DU46: 6081.2 | DV46: 6477.2 | DW46: 6886.4 | DX46: 7295.6 | DY46: 7678.4 | DZ46: 8087.6 | EA46: 8483.6 | EB46: 8892.8 | EC46: 9288.8 | ED46: 9698 | EE46: 10107.2 | EF46: =EF32+EF34 -> 10503.2 | EG46: 10912.4 | EH46: 11308.4 | EI46: 11717.6 | EJ46: 12126.8 | EK46: 12496.4 | EL46: 12905.6 | EM46: 13301.6 | EN46: 13710.8 | EO46: 14106.8 | EP46: 14516 | EQ46: 14925.2 | ER46: 15321.2 | ES46: 15730.4 | ET46: 16126.4 | EU46: 16535.6 | EV46: 16944.8 | EW46: 17314.4 | EX46: 17723.6 | EY46: 18119.6 | EZ46: 18528.8 | FA46: 18924.8 | FB46: 19334 | FC46: 19743.2 | FD46: 20000 | FE46: 20000 | FF46: 20000 | FG46: 693.6 | FH46: 1102.8 | FI46: 1472.4 | FJ46: 1881.6 | FK46: 2277.6 | FL46: 2686.8 | FM46: 3082.8 | FN46: 3492 | FO46: 3901.2 | FP46: 4297.2 | FQ46: 4706.4 | FR46: 5102.4 | FS46: 5511.6 | FT46: 5920.8 | FU46: 6303.6 | FV46: 6712.8 | FW46: 7108.8 | FX46: 7518 | FY46: 7914 | FZ46: 8323.2 | GA46: 8732.4 | GB46: 9128.4 | GC46: 9537.6 | GD46: 9933.6 | GE46: 10342.8 | GF46: 10752 | GG46: 11121.6 | GH46: 11530.8 | GI46: 11926.8 | GJ46: 12336 | GK46: 12732 | GL46: 13141.2 | GM46: 13550.4 | GN46: 13946.4 | GO46: 14355.6 | GP46: 14751.6 | GQ46: 15160.8 | GR46: =GR32+GR34 -> 15570 | GS46: 15939.6 | GT46: 16348.8 | GU46: 16744.8 | GV46: 17154 | GW46: 17550 | GX46: 17959.2 | GY46: 18368.4 | GZ46: 18764.4 | HA46: 19173.6 | HB46: 19569.6 | HC46: 19978.8 | HD46: 20000 | HE46: 20000 | HF46: 506.8 | HG46: 902.8 | HH46: 1312 | HI46: 1708 | HJ46: 2117.2 | HK46: 2526.4 | HL46: 2922.4 | HM46: 3331.6 | HN46: 3727.6 | HO46: 4136.8 | HP46: 4546 | HQ46: 4928.8 | HR46: 5338 | HS46: 5734 | HT46: 6143.2 | HU46: 6539.2 | HV46: 6948.4 | HW46: 7357.6 | HX46: 7753.6 | HY46: 8162.8 | HZ46: 8558.8 | IA46: 8968 | IB46: 9377.2 | IC46: 9746.8 | ID46: 10156 | IE46: 10552 | IF46: 10961.2 | IG46: 11357.2 | IH46: 11766.4 | II46: 12175.6 | IJ46: 12571.6 | IK46: 12980.8 | IL46: 13376.8 | IM46: 13786 | IN46: 14195.2 | IO46: 14564.8 | IP46: 14974 | IQ46: 15370 | IR46: 15779.2 | IS46: 16175.2 | IT46: 16584.4 | IU46: 16993.6 | IV46: 17389.6 | IW46: 17798.8 | IX46: 18194.8 | IY46: 18604 | IZ46: 19013.2 | JA46: 19382.8 | JB46: 19792 | JC46: 20000 | JD46: =JD32+JD34 -> 20000 | JE46: 20000 | JF46: 742.4 | JG46: 1151.6 | JH46: 1547.6 | JI46: 1956.8 | JJ46: 2352.8 | JK46: 2762 | JL46: 3171.2 | JM46: 3554 | JN46: 3963.2 | JO46: 4359.2 | JP46: 4768.4 | JQ46: 5164.4 | JR46: 5573.6 | JS46: 5982.8 | JT46: 6378.8 | JU46: 6788 | JV46: 7184 | JW46: 7593.2 | JX46: 8002.4 | JY46: 8372 | JZ46: 8781.2 | KA46: 9177.2 | KB46: 9586.4 | KC46: 9982.4 | KD46: 10391.6 | KE46: 10800.8 | KF46: 11196.8 | KG46: 11606 | KH46: 12002 | KI46: 12411.2 | KJ46: 12820.4 | KK46: 13190 | KL46: 13599.2 | KM46: 13995.2 | KN46: 14404.4 | KO46: 14800.4 | KP46: 15209.6 | KQ46: 15618.8 | KR46: 16014.8 | KS46: 16424 | KT46: 16820 | KU46: 17229.2 | KV46: 17638.4 | KW46: 18008 | KX46: 18417.2 | KY46: 18813.2 | KZ46: 19222.4 | LA46: 19618.4 | LB46: 20000 | LC46: 20000 | LD46: 20000 | LE46: 582 | LF46: 978 | LG46: 1387.2 | LH46: 1796.4 | LI46: 2179.2 | LJ46: 2588.4 | LK46: 2984.4 | LL46: 3393.6 | LM46: 3789.6 | LN46: 4198.8 | LO46: 4608 | LP46: =LP32+LP34 -> 5004 | LQ46: 5413.2 | LR46: 5809.2 | LS46: 6218.4 | LT46: 6627.6 | LU46: 6997.2 | LV46: 7406.4 | LW46: 7802.4 | LX46: 8211.6 | LY46: 8607.6 | LZ46: 9016.8 | MA46: 9426 | MB46: 9822 | MC46: 10231.2 | MD46: 10627.2 | ME46: 11036.4 | MF46: 11445.6 | MG46: 11815.2 | MH46: 12224.4 | MI46: 12620.4 | MJ46: 13029.6 | MK46: 13425.6 | ML46: 13834.8 | MM46: 14244 | MN46: 14640 | MO46: 15049.2 | MP46: 15445.2 | MQ46: 15854.4 | MR46: 16263.6 | MS46: 16633.2 | MT46: 17042.4 | MU46: 17438.4 | MV46: 17847.6 | MW46: 18243.6 | MX46: 18652.8 | MY46: 19062 | MZ46: 19458 | NA46: 19867.2 | NB46: 20000 | NC46: 20000
C48: End of Maintenance Period | D48: Flag | H48: =AND(H20=H39,H20) -> FALSE | I48: FALSE | J48: FALSE | K48: FALSE | L48: FALSE | M48: FALSE | N48: FALSE | O48: FALSE | P48: FALSE | Q48: FALSE | R48: FALSE | S48: FALSE | T48: FALSE | U48: FALSE | V48: FALSE | W48: FALSE | X48: FALSE | Y48: FALSE | Z48: FALSE | AA48: FALSE | AB48: FALSE | AC48: FALSE | AD48: FALSE | AE48: FALSE | AF48: FALSE | AG48: FALSE | AH48: FALSE | AI48: FALSE | AJ48: FALSE | AK48: FALSE | AL48: FALSE | AM48: FALSE | AN48: FALSE | AO48: FALSE | AP48: FALSE | AQ48: FALSE | AR48: FALSE | AS48: FALSE | AT48: FALSE | AU48: FALSE | AV48: FALSE | AW48: FALSE | AX48: FALSE | AY48: FALSE | AZ48: FALSE | BA48: FALSE | BB48: FALSE | BC48: FALSE | BD48: FALSE | BE48: FALSE | BF48: FALSE | BG48: TRUE | BH48: FALSE | BI48: FALSE | BJ48: FALSE | BK48: FALSE | BL48: FALSE | BM48: FALSE | BN48: FALSE | BO48: FALSE | BP48: FALSE | BQ48: FALSE | BR48: FALSE | BS48: FALSE | BT48: =AND(BT20=BT39,BT20) -> FALSE | BU48: FALSE | BV48: FALSE | BW48: FALSE | BX48: FALSE | BY48: FALSE | BZ48: FALSE | CA48: FALSE | CB48: FALSE | CC48: FALSE | CD48: FALSE | CE48: FALSE | CF48: FALSE | CG48: FALSE | CH48: FALSE | CI48: FALSE | CJ48: FALSE | CK48: FALSE | CL48: FALSE | CM48: FALSE | CN48: FALSE | CO48: FALSE | CP48: FALSE | CQ48: FALSE | CR48: FALSE | CS48: FALSE | CT48: FALSE | CU48: FALSE | CV48: FALSE | CW48: FALSE | CX48: FALSE | CY48: FALSE | CZ48: FALSE | DA48: FALSE | DB48: FALSE | DC48: FALSE | DD48: FALSE | DE48: FALSE | DF48: TRUE | DG48: FALSE | DH48: FALSE | DI48: FALSE | DJ48: FALSE | DK48: FALSE | DL48: FALSE | DM48: FALSE | DN48: FALSE | DO48: FALSE | DP48: FALSE | DQ48: FALSE | DR48: FALSE | DS48: FALSE | DT48: FALSE | DU48: FALSE | DV48: FALSE | DW48: FALSE | DX48: FALSE | DY48: FALSE | DZ48: FALSE | EA48: FALSE | EB48: FALSE | EC48: FALSE | ED48: FALSE | EE48: FALSE | EF48: =AND(EF20=EF39,EF20) -> FALSE | EG48: FALSE | EH48: FALSE | EI48: FALSE | EJ48: FALSE | EK48: FALSE | EL48: FALSE | EM48: FALSE | EN48: FALSE | EO48: FALSE | EP48: FALSE | EQ48: FALSE | ER48: FALSE | ES48: FALSE | ET48: FALSE | EU48: FALSE | EV48: FALSE | EW48: FALSE | EX48: FALSE | EY48: FALSE | EZ48: FALSE | FA48: FALSE | FB48: FALSE | FC48: FALSE | FD48: FALSE | FE48: FALSE | FF48: TRUE | FG48: FALSE | FH48: FALSE | FI48: FALSE | FJ48: FALSE | FK48: FALSE | FL48: FALSE | FM48: FALSE | FN48: FALSE | FO48: FALSE | FP48: FALSE | FQ48: FALSE | FR48: FALSE | FS48: FALSE | FT48: FALSE | FU48: FALSE | FV48: FALSE | FW48: FALSE | FX48: FALSE | FY48: FALSE | FZ48: FALSE | GA48: FALSE | GB48: FALSE | GC48: FALSE | GD48: FALSE | GE48: FALSE | GF48: FALSE | GG48: FALSE | GH48: FALSE | GI48: FALSE | GJ48: FALSE | GK48: FALSE | GL48: FALSE | GM48: FALSE | GN48: FALSE | GO48: FALSE | GP48: FALSE | GQ48: FALSE | GR48: =AND(GR20=GR39,GR20) -> FALSE | GS48: FALSE | GT48: FALSE | GU48: FALSE | GV48: FALSE | GW48: FALSE | GX48: FALSE | GY48: FALSE | GZ48: FALSE | HA48: FALSE | HB48: FALSE | HC48: FALSE | HD48: FALSE | HE48: TRUE | HF48: FALSE | HG48: FALSE | HH48: FALSE | HI48: FALSE | HJ48: FALSE | HK48: FALSE | HL48: FALSE | HM48: FALSE | HN48: FALSE | HO48: FALSE | HP48: FALSE | HQ48: FALSE | HR48: FALSE | HS48: FALSE | HT48: FALSE | HU48: FALSE | HV48: FALSE | HW48: FALSE | HX48: FALSE | HY48: FALSE | HZ48: FALSE | IA48: FALSE | IB48: FALSE | IC48: FALSE | ID48: FALSE | IE48: FALSE | IF48: FALSE | IG48: FALSE | IH48: FALSE | II48: FALSE | IJ48: FALSE | IK48: FALSE | IL48: FALSE | IM48: FALSE | IN48: FALSE | IO48: FALSE | IP48: FALSE | IQ48: FALSE | IR48: FALSE | IS48: FALSE | IT48: FALSE | IU48: FALSE | IV48: FALSE | IW48: FALSE | IX48: FALSE | IY48: FALSE | IZ48: FALSE | JA48: FALSE | JB48: FALSE | JC48: FALSE | JD48: =AND(JD20=JD39,JD20) -> FALSE | JE48: TRUE | JF48: FALSE | JG48: FALSE | JH48: FALSE | JI48: FALSE | JJ48: FALSE | JK48: FALSE | JL48: FALSE | JM48: FALSE | JN48: FALSE | JO48: FALSE | JP48: FALSE | JQ48: FALSE | JR48: FALSE | JS48: FALSE | JT48: FALSE | JU48: FALSE | JV48: FALSE | JW48: FALSE | JX48: FALSE | JY48: FALSE | JZ48: FALSE | KA48: FALSE | KB48: FALSE | KC48: FALSE | KD48: FALSE | KE48: FALSE | KF48: FALSE | KG48: FALSE | KH48: FALSE | KI48: FALSE | KJ48: FALSE | KK48: FALSE | KL48: FALSE | KM48: FALSE | KN48: FALSE | KO48: FALSE | KP48: FALSE | KQ48: FALSE | KR48: FALSE | KS48: FALSE | KT48: FALSE | KU48: FALSE | KV48: FALSE | KW48: FALSE | KX48: FALSE | KY48: FALSE | KZ48: FALSE | LA48: FALSE | LB48: FALSE | LC48: FALSE | LD48: TRUE | LE48: FALSE | LF48: FALSE | LG48: FALSE | LH48: FALSE | LI48: FALSE | LJ48: FALSE | LK48: FALSE | LL48: FALSE | LM48: FALSE | LN48: FALSE | LO48: FALSE | LP48: =AND(LP20=LP39,LP20) -> FALSE | LQ48: FALSE | LR48: FALSE | LS48: FALSE | LT48: FALSE | LU48: FALSE | LV48: FALSE | LW48: FALSE | LX48: FALSE | LY48: FALSE | LZ48: FALSE | MA48: FALSE | MB48: FALSE | MC48: FALSE | MD48: FALSE | ME48: FALSE | MF48: FALSE | MG48: FALSE | MH48: FALSE | MI48: FALSE | MJ48: FALSE | MK48: FALSE | ML48: FALSE | MM48: FALSE | MN48: FALSE | MO48: FALSE | MP48: FALSE | MQ48: FALSE | MR48: FALSE | MS48: FALSE | MT48: FALSE | MU48: FALSE | MV48: FALSE | MW48: FALSE | MX48: FALSE | MY48: FALSE | MZ48: FALSE | NA48: FALSE | NB48: FALSE | NC48: TRUE
C49: New Run Period | D49: Flag
C51: Cost of Overhaul - Real | D51: RM/kWh | E51: 500 | H51: =$E$51 -> 500 | I51: =$E$51 -> 500 | J51: 500 | K51: 500 | L51: 500 | M51: 500 | N51: 500 | O51: 500 | P51: 500 | Q51: 500 | R51: 500 | S51: 500 | T51: 500 | U51: 500 | V51: 500 | W51: 500 | X51: 500 | Y51: 500 | Z51: 500 | AA51: 500 | AB51: 500 | AC51: 500 | AD51: 500 | AE51: 500 | AF51: 500 | AG51: 500 | AH51: 500 | AI51: 500 | AJ51: 500 | AK51: 500 | AL51: 500 | AM51: 500 | AN51: 500 | AO51: 500 | AP51: 500 | AQ51: 500 | AR51: 500 | AS51: 500 | AT51: 500 | AU51: 500 | AV51: 500 | AW51: 500 | AX51: 500 | AY51: 500 | AZ51: 500 | BA51: 500 | BB51: 500 | BC51: 500 | BD51: 500 | BE51: 500 | BF51: 500 | BG51: 500 | BH51: 500 | BI51: 500 | BJ51: 500 | BK51: 500 | BL51: 500 | BM51: 500 | BN51: 500 | BO51: 500 | BP51: 500 | BQ51: 500 | BR51: 500 | BS51: 500 | BT51: 500 | BU51: =$E$51 -> 500 | BV51: 500 | BW51: 500 | BX51: 500 | BY51: 500 | BZ51: 500 | CA51: 500 | CB51: 500 | CC51: 500 | CD51: 500 | CE51: 500 | CF51: 500 | CG51: 500 | CH51: 500 | CI51: 500 | CJ51: 500 | CK51: 500 | CL51: 500 | CM51: 500 | CN51: 500 | CO51: 500 | CP51: 500 | CQ51: 500 | CR51: 500 | CS51: 500 | CT51: 500 | CU51: 500 | CV51: 500 | CW51: 500 | CX51: 500 | CY51: 500 | CZ51: 500 | DA51: 500 | DB51: 500 | DC51: 500 | DD51: 500 | DE51: 500 | DF51: 500 | DG51: 500 | DH51: 500 | DI51: 500 | DJ51: 500 | DK51: 500 | DL51: 500 | DM51: 500 | DN51: 500 | DO51: 500 | DP51: 500 | DQ51: 500 | DR51: 500 | DS51: 500 | DT51: 500 | DU51: 500 | DV51: 500 | DW51: 500 | DX51: 500 | DY51: 500 | DZ51: 500 | EA51: 500 | EB51: 500 | EC51: 500 | ED51: 500 | EE51: 500 | EF51: 500 | EG51: =$E$51 -> 500 | EH51: 500 | EI51: 500 | EJ51: 500 | EK51: 500 | EL51: 500 | EM51: 500 | EN51: 500 | EO51: 500 | EP51: 500 | EQ51: 500 | ER51: 500 | ES51: 500 | ET51: 500 | EU51: 500 | EV51: 500 | EW51: 500 | EX51: 500 | EY51: 500 | EZ51: 500 | FA51: 500 | FB51: 500 | FC51: 500 | FD51: 500 | FE51: 500 | FF51: 500 | FG51: 500 | FH51: 500 | FI51: 500 | FJ51: 500 | FK51: 500 | FL51: 500 | FM51: 500 | FN51: 500 | FO51: 500 | FP51: 500 | FQ51: 500 | FR51: 500 | FS51: 500 | FT51: 500 | FU51: 500 | FV51: 500 | FW51: 500 | FX51: 500 | FY51: 500 | FZ51: 500 | GA51: 500 | GB51: 500 | GC51: 500 | GD51: 500 | GE51: 500 | GF51: 500 | GG51: 500 | GH51: 500 | GI51: 500 | GJ51: 500 | GK51: 500 | GL51: 500 | GM51: 500 | GN51: 500 | GO51: 500 | GP51: 500 | GQ51: 500 | GR51: 500 | GS51: =$E$51 -> 500 | GT51: 500 | GU51: 500 | GV51: 500 | GW51: 500 | GX51: 500 | GY51: 500 | GZ51: 500 | HA51: 500 | HB51: 500 | HC51: 500 | HD51: 500 | HE51: 500 | HF51: 500 | HG51: 500 | HH51: 500 | HI51: 500 | HJ51: 500 | HK51: 500 | HL51: 500 | HM51: 500 | HN51: 500 | HO51: 500 | HP51: 500 | HQ51: 500 | HR51: 500 | HS51: 500 | HT51: 500 | HU51: 500 | HV51: 500 | HW51: 500 | HX51: 500 | HY51: 500 | HZ51: 500 | IA51: 500 | IB51: 500 | IC51: 500 | ID51: 500 | IE51: 500 | IF51: 500 | IG51: 500 | IH51: 500 | II51: 500 | IJ51: 500 | IK51: 500 | IL51: 500 | IM51: 500 | IN51: 500 | IO51: 500 | IP51: 500 | IQ51: 500 | IR51: 500 | IS51: 500 | IT51: 500 | IU51: 500 | IV51: 500 | IW51: 500 | IX51: 500 | IY51: 500 | IZ51: 500 | JA51: 500 | JB51: 500 | JC51: 500 | JD51: 500 | JE51: =$E$51 -> 500 | JF51: 500 | JG51: 500 | JH51: 500 | JI51: 500 | JJ51: 500 | JK51: 500 | JL51: 500 | JM51: 500 | JN51: 500 | JO51: 500 | JP51: 500 | JQ51: 500 | JR51: 500 | JS51: 500 | JT51: 500 | JU51: 500 | JV51: 500 | JW51: 500 | JX51: 500 | JY51: 500 | JZ51: 500 | KA51: 500 | KB51: 500 | KC51: 500 | KD51: 500 | KE51: 500 | KF51: 500 | KG51: 500 | KH51: 500 | KI51: 500 | KJ51: 500 | KK51: 500 | KL51: 500 | KM51: 500 | KN51: 500 | KO51: 500 | KP51: 500 | KQ51: 500 | KR51: 500 | KS51: 500 | KT51: 500 | KU51: 500 | KV51: 500 | KW51: 500 | KX51: 500 | KY51: 500 | KZ51: 500 | LA51: 500 | LB51: 500 | LC51: 500 | LD51: 500 | LE51: 500 | LF51: 500 | LG51: 500 | LH51: 500 | LI51: 500 | LJ51: 500 | LK51: 500 | LL51: 500 | LM51: 500 | LN51: 500 | LO51: 500 | LP51: 500 | LQ51: =$E$51 -> 500 | LR51: 500 | LS51: 500 | LT51: 500 | LU51: 500 | LV51: 500 | LW51: 500 | LX51: 500 | LY51: 500 | LZ51: 500 | MA51: 500 | MB51: 500 | MC51: 500 | MD51: 500 | ME51: 500 | MF51: 500 | MG51: 500 | MH51: 500 | MI51: 500 | MJ51: 500 | MK51: 500 | ML51: 500 | MM51: 500 | MN51: 500 | MO51: 500 | MP51: 500 | MQ51: 500 | MR51: 500 | MS51: 500 | MT51: 500 | MU51: 500 | MV51: 500 | MW51: 500 | MX51: 500 | MY51: 500 | MZ51: 500 | NA51: 500 | NB51: 500 | NC51: 500
C52: Inflation Index | D52: % | E52: 0.03 | F52: =(1+E52)^(1/12)-1 -> 0.002466269772 | G52: 1 | H52: =G52*(1+$F$52) -> 1.00246627 | I52: =H52*(1+$F$52) -> 1.004938622 | J52: 1.007417072 | K52: 1.009901634 | L52: 1.012392324 | M52: 1.014889157 | N52: 1.017392147 | O52: 1.01990131 | P52: 1.022416662 | Q52: 1.024938218 | R52: 1.027465992 | S52: 1.03 | T52: 1.032540258 | U52: 1.035086781 | V52: 1.037639584 | W52: 1.040198683 | X52: 1.042764094 | Y52: 1.045335831 | Z52: 1.047913911 | AA52: 1.05049835 | AB52: 1.053089162 | AC52: 1.055686364 | AD52: 1.058289971 | AE52: 1.0609 | AF52: 1.063516466 | AG52: 1.066139384 | AH52: 1.068768771 | AI52: 1.071404644 | AJ52: 1.074047016 | AK52: 1.076695906 | AL52: 1.079351329 | AM52: 1.0820133 | AN52: 1.084681837 | AO52: 1.087356955 | AP52: 1.090038671 | AQ52: 1.092727 | AR52: 1.09542196 | AS52: 1.098123566 | AT52: 1.100831835 | AU52: 1.103546783 | AV52: 1.106268427 | AW52: 1.108996783 | AX52: 1.111731869 | AY52: 1.114473699 | AZ52: 1.117222292 | BA52: 1.119977664 | BB52: 1.122739831 | BC52: 1.12550881 | BD52: 1.128284618 | BE52: 1.131067273 | BF52: 1.13385679 | BG52: 1.136653186 | BH52: 1.13945648 | BI52: 1.142266687 | BJ52: 1.145083825 | BK52: 1.14790791 | BL52: 1.150738961 | BM52: 1.153576994 | BN52: 1.156422026 | BO52: 1.159274074 | BP52: 1.162133157 | BQ52: 1.164999291 | BR52: 1.167872493 | BS52: 1.170752782 | BT52: 1.173640174 | BU52: =BT52*(1+$F$52) -> 1.176534687 | BV52: 1.179436339 | BW52: 1.182345148 | BX52: 1.18526113 | BY52: 1.188184303 | BZ52: 1.191114686 | CA52: 1.194052297 | CB52: 1.196997152 | CC52: 1.19994927 | CD52: 1.202908668 | CE52: 1.205875365 | CF52: 1.208849379 | CG52: 1.211830728 | CH52: 1.21481943 | CI52: 1.217815502 | CJ52: 1.220818964 | CK52: 1.223829832 | CL52: 1.226848127 | CM52: 1.229873865 | CN52: 1.232907066 | CO52: 1.235947748 | CP52: 1.238995928 | CQ52: 1.242051626 | CR52: 1.245114861 | CS52: 1.24818565 | CT52: 1.251264012 | CU52: 1.254349967 | CV52: 1.257443532 | CW52: 1.260544727 | CX52: 1.263653571 | CY52: 1.266770081 | CZ52: 1.269894278 | DA52: 1.27302618 | DB52: 1.276165806 | DC52: 1.279313175 | DD52: 1.282468307 | DE52: 1.285631219 | DF52: 1.288801933 | DG52: 1.291980466 | DH52: 1.295166838 | DI52: 1.298361069 | DJ52: 1.301563178 | DK52: 1.304773184 | DL52: 1.307991106 | DM52: 1.311216965 | DN52: 1.31445078 | DO52: 1.31769257 | DP52: 1.320942356 | DQ52: 1.324200156 | DR52: 1.327465991 | DS52: 1.33073988 | DT52: 1.334021844 | DU52: 1.337311901 | DV52: 1.340610073 | DW52: 1.343916379 | DX52: 1.34723084 | DY52: 1.350553474 | DZ52: 1.353884304 | EA52: 1.357223348 | EB52: 1.360570626 | EC52: 1.363926161 | ED52: 1.367289971 | EE52: 1.370662076 | EF52: 1.374042499 | EG52: =EF52*(1+$F$52) -> 1.377431258 | EH52: 1.380828375 | EI52: 1.384233871 | EJ52: 1.387647765 | EK52: 1.391070079 | EL52: 1.394500833 | EM52: 1.397940048 | EN52: 1.401387745 | EO52: 1.404843945 | EP52: 1.40830867 | EQ52: 1.411781939 | ER52: 1.415263774 | ES52: 1.418754196 | ET52: 1.422253227 | EU52: 1.425760887 | EV52: 1.429277198 | EW52: 1.432802181 | EX52: 1.436335858 | EY52: 1.439878249 | EZ52: 1.443429378 | FA52: 1.446989264 | FB52: 1.45055793 | FC52: 1.454135397 | FD52: 1.457721687 | FE52: 1.461316822 | FF52: 1.464920824 | FG52: 1.468533713 | FH52: 1.472155514 | FI52: 1.475786246 | FJ52: 1.479425933 | FK52: 1.483074597 | FL52: 1.486732259 | FM52: 1.490398942 | FN52: 1.494074668 | FO52: 1.497759459 | FP52: 1.501453338 | FQ52: 1.505156327 | FR52: 1.508868448 | FS52: 1.512589725 | FT52: 1.516320179 | FU52: 1.520059834 | FV52: 1.523808711 | FW52: 1.527566835 | FX52: 1.531334227 | FY52: 1.53511091 | FZ52: 1.538896908 | GA52: 1.542692243 | GB52: 1.546496938 | GC52: 1.550311016 | GD52: 1.554134502 | GE52: 1.557967417 | GF52: 1.561809785 | GG52: 1.565661629 | GH52: 1.569522973 | GI52: 1.57339384 | GJ52: 1.577274253 | GK52: 1.581164237 | GL52: 1.585063815 | GM52: 1.58897301 | GN52: 1.592891846 | GO52: 1.596820347 | GP52: 1.600758537 | GQ52: 1.604706439 | GR52: 1.608664078 | GS52: =GR52*(1+$F$52) -> 1.612631478 | GT52: 1.616608662 | GU52: 1.620595655 | GV52: 1.624592481 | GW52: 1.628599164 | GX52: 1.632615729 | GY52: 1.6366422 | GZ52: 1.640678601 | HA52: 1.644724957 | HB52: 1.648781293 | HC52: 1.652847632 | HD52: 1.656924 | HE52: 1.661010422 | HF52: 1.665106922 | HG52: 1.669213525 | HH52: 1.673330256 | HI52: 1.677457139 | HJ52: 1.681594201 | HK52: 1.685741466 | HL52: 1.689898959 | HM52: 1.694066706 | HN52: 1.698244732 | HO52: 1.702433061 | HP52: 1.70663172 | HQ52: 1.710840735 | HR52: 1.715060129 | HS52: 1.71928993 | HT52: 1.723530163 | HU52: 1.727780854 | HV52: 1.732042027 | HW52: 1.73631371 | HX52: 1.740595928 | HY52: 1.744888707 | HZ52: 1.749192074 | IA52: 1.753506053 | IB52: 1.757830672 | IC52: 1.762165957 | ID52: 1.766511933 | IE52: 1.770868628 | IF52: 1.775236068 | IG52: 1.779614279 | IH52: 1.784003288 | II52: 1.788403121 | IJ52: 1.792813806 | IK52: 1.797235368 | IL52: 1.801667836 | IM52: 1.806111235 | IN52: 1.810565592 | IO52: 1.815030935 | IP52: 1.819507291 | IQ52: 1.823994687 | IR52: 1.82849315 | IS52: 1.833002708 | IT52: 1.837523387 | IU52: 1.842055215 | IV52: 1.84659822 | IW52: 1.85115243 | IX52: 1.855717871 | IY52: 1.860294572 | IZ52: 1.86488256 | JA52: 1.869481863 | JB52: 1.87409251 | JC52: 1.878714528 | JD52: 1.883347945 | JE52: =JD52*(1+$F$52) -> 1.887992789 | JF52: 1.892649088 | JG52: 1.897316872 | JH52: 1.901996167 | JI52: 1.906687002 | JJ52: 1.911389407 | JK52: 1.916103409 | JL52: 1.920829037 | JM52: 1.925566319 | JN52: 1.930315285 | JO52: 1.935075964 | JP52: 1.939848383 | JQ52: 1.944632572 | JR52: 1.949428561 | JS52: 1.954236378 | JT52: 1.959056052 | JU52: 1.963887612 | JV52: 1.968731089 | JW52: 1.973586511 | JX52: 1.978453908 | JY52: 1.983333309 | JZ52: 1.988224744 | KA52: 1.993128243 | KB52: 1.998043834 | KC52: 2.00297155 | KD52: 2.007911418 | KE52: 2.012863469 | KF52: 2.017827733 | KG52: 2.022804241 | KH52: 2.027793022 | KI52: 2.032794106 | KJ52: 2.037807525 | KK52: 2.042833308 | KL52: 2.047871486 | KM52: 2.05292209 | KN52: 2.057985149 | KO52: 2.063060696 | KP52: 2.06814876 | KQ52: 2.073249373 | KR52: 2.078362565 | KS52: 2.083488368 | KT52: 2.088626812 | KU52: 2.09377793 | KV52: 2.098941751 | KW52: 2.104118307 | KX52: 2.109307631 | KY52: 2.114509752 | KZ52: 2.119724704 | LA52: 2.124952517 | LB52: 2.130193223 | LC52: 2.135446854 | LD52: 2.140713442 | LE52: 2.145993019 | LF52: 2.151285617 | LG52: 2.156591268 | LH52: 2.161910003 | LI52: 2.167241857 | LJ52: 2.17258686 | LK52: 2.177945045 | LL52: 2.183316445 | LM52: 2.188701092 | LN52: 2.19409902 | LO52: 2.19951026 | LP52: 2.204934846 | LQ52: =LP52*(1+$F$52) -> 2.21037281 | LR52: 2.215824185 | LS52: 2.221289006 | LT52: 2.226767304 | LU52: 2.232259112 | LV52: 2.237764466 | LW52: 2.243283396 | LX52: 2.248815938 | LY52: 2.254362125 | LZ52: 2.25992199 | MA52: 2.265495568 | MB52: 2.271082891 | MC52: 2.276683994 | MD52: 2.282298911 | ME52: 2.287927676 | MF52: 2.293570323 | MG52: 2.299226886 | MH52: 2.3048974 | MI52: 2.310581898 | MJ52: 2.316280417 | MK52: 2.321992989 | ML52: 2.32771965 | MM52: 2.333460435 | MN52: 2.339215378 | MO52: 2.344984514 | MP52: 2.350767878 | MQ52: 2.356565506 | MR52: 2.362377432 | MS52: 2.368203692 | MT52: 2.374044322 | MU52: 2.379899355 | MV52: 2.385768829 | MW52: 2.391652779 | MX52: 2.39755124 | MY52: 2.403464248 | MZ52: 2.409391839 | NA52: 2.415334049 | NB52: 2.421290915 | NC52: 2.427262471
C53: Cost for Overhaul | D53: RM/kWh | E53: 500 | H53: =H13*1000*$E$53*H48*H52 -> 0 | I53: 0 | J53: 0 | K53: 0 | L53: 0 | M53: 0 | N53: 0 | O53: 0 | P53: 0 | Q53: 0 | R53: 0 | S53: 0 | T53: 0 | U53: 0 | V53: 0 | W53: 0 | X53: 0 | Y53: 0 | Z53: 0 | AA53: 0 | AB53: 0 | AC53: 0 | AD53: 0 | AE53: 0 | AF53: 0 | AG53: 0 | AH53: 0 | AI53: 0 | AJ53: 0 | AK53: 0 | AL53: 0 | AM53: 0 | AN53: 0 | AO53: 0 | AP53: 0 | AQ53: 0 | AR53: 0 | AS53: 0 | AT53: 0 | AU53: 0 | AV53: 0 | AW53: 0 | AX53: 0 | AY53: 0 | AZ53: 0 | BA53: 0 | BB53: 0 | BC53: 0 | BD53: 0 | BE53: 0 | BF53: 0 | BG53: 284163296.6 | BH53: 0 | BI53: 0 | BJ53: 0 | BK53: 0 | BL53: 0 | BM53: 0 | BN53: 0 | BO53: 0 | BP53: 0 | BQ53: 0 | BR53: 0 | BS53: 0 | BT53: =BT13*1000*$E$53*BT48*BT52 -> 0 | BU53: 0 | BV53: 0 | BW53: 0 | BX53: 0 | BY53: 0 | BZ53: 0 | CA53: 0 | CB53: 0 | CC53: 0 | CD53: 0 | CE53: 0 | CF53: 0 | CG53: 0 | CH53: 0 | CI53: 0 | CJ53: 0 | CK53: 0 | CL53: 0 | CM53: 0 | CN53: 0 | CO53: 0 | CP53: 0 | CQ53: 0 | CR53: 0 | CS53: 0 | CT53: 0 | CU53: 0 | CV53: 0 | CW53: 0 | CX53: 0 | CY53: 0 | CZ53: 0 | DA53: 0 | DB53: 0 | DC53: 0 | DD53: 0 | DE53: 0 | DF53: 322200483.2 | DG53: 0 | DH53: 0 | DI53: 0 | DJ53: 0 | DK53: 0 | DL53: 0 | DM53: 0 | DN53: 0 | DO53: 0 | DP53: 0 | DQ53: 0 | DR53: 0 | DS53: 0 | DT53: 0 | DU53: 0 | DV53: 0 | DW53: 0 | DX53: 0 | DY53: 0 | DZ53: 0 | EA53: 0 | EB53: 0 | EC53: 0 | ED53: 0 | EE53: 0 | EF53: =EF13*1000*$E$53*EF48*EF52 -> 0 | EG53: 0 | EH53: 0 | EI53: 0 | EJ53: 0 | EK53: 0 | EL53: 0 | EM53: 0 | EN53: 0 | EO53: 0 | EP53: 0 | EQ53: 0 | ER53: 0 | ES53: 0 | ET53: 0 | EU53: 0 | EV53: 0 | EW53: 0 | EX53: 0 | EY53: 0 | EZ53: 0 | FA53: 0 | FB53: 0 | FC53: 0 | FD53: 0 | FE53: 0 | FF53: 366230205.9 | FG53: 0 | FH53: 0 | FI53: 0 | FJ53: 0 | FK53: 0 | FL53: 0 | FM53: 0 | FN53: 0 | FO53: 0 | FP53: 0 | FQ53: 0 | FR53: 0 | FS53: 0 | FT53: 0 | FU53: 0 | FV53: 0 | FW53: 0 | FX53: 0 | FY53: 0 | FZ53: 0 | GA53: 0 | GB53: 0 | GC53: 0 | GD53: 0 | GE53: 0 | GF53: 0 | GG53: 0 | GH53: 0 | GI53: 0 | GJ53: 0 | GK53: 0 | GL53: 0 | GM53: 0 | GN53: 0 | GO53: 0 | GP53: 0 | GQ53: 0 | GR53: =GR13*1000*$E$53*GR48*GR52 -> 0 | GS53: 0 | GT53: 0 | GU53: 0 | GV53: 0 | GW53: 0 | GX53: 0 | GY53: 0 | GZ53: 0 | HA53: 0 | HB53: 0 | HC53: 0 | HD53: 0 | HE53: 415252605.5 | HF53: 0 | HG53: 0 | HH53: 0 | HI53: 0 | HJ53: 0 | HK53: 0 | HL53: 0 | HM53: 0 | HN53: 0 | HO53: 0 | HP53: 0 | HQ53: 0 | HR53: 0 | HS53: 0 | HT53: 0 | HU53: 0 | HV53: 0 | HW53: 0 | HX53: 0 | HY53: 0 | HZ53: 0 | IA53: 0 | IB53: 0 | IC53: 0 | ID53: 0 | IE53: 0 | IF53: 0 | IG53: 0 | IH53: 0 | II53: 0 | IJ53: 0 | IK53: 0 | IL53: 0 | IM53: 0 | IN53: 0 | IO53: 0 | IP53: 0 | IQ53: 0 | IR53: 0 | IS53: 0 | IT53: 0 | IU53: 0 | IV53: 0 | IW53: 0 | IX53: 0 | IY53: 0 | IZ53: 0 | JA53: 0 | JB53: 0 | JC53: 0 | JD53: =JD13*1000*$E$53*JD48*JD52 -> 0 | JE53: 471998197.2 | JF53: 0 | JG53: 0 | JH53: 0 | JI53: 0 | JJ53: 0 | JK53: 0 | JL53: 0 | JM53: 0 | JN53: 0 | JO53: 0 | JP53: 0 | JQ53: 0 | JR53: 0 | JS53: 0 | JT53: 0 | JU53: 0 | JV53: 0 | JW53: 0 | JX53: 0 | JY53: 0 | JZ53: 0 | KA53: 0 | KB53: 0 | KC53: 0 | KD53: 0 | KE53: 0 | KF53: 0 | KG53: 0 | KH53: 0 | KI53: 0 | KJ53: 0 | KK53: 0 | KL53: 0 | KM53: 0 | KN53: 0 | KO53: 0 | KP53: 0 | KQ53: 0 | KR53: 0 | KS53: 0 | KT53: 0 | KU53: 0 | KV53: 0 | KW53: 0 | KX53: 0 | KY53: 0 | KZ53: 0 | LA53: 0 | LB53: 0 | LC53: 0 | LD53: 535178360.6 | LE53: 0 | LF53: 0 | LG53: 0 | LH53: 0 | LI53: 0 | LJ53: 0 | LK53: 0 | LL53: 0 | LM53: 0 | LN53: 0 | LO53: 0 | LP53: =LP13*1000*$E$53*LP48*LP52 -> 0 | LQ53: 0 | LR53: 0 | LS53: 0 | LT53: 0 | LU53: 0 | LV53: 0 | LW53: 0 | LX53: 0 | LY53: 0 | LZ53: 0 | MA53: 0 | MB53: 0 | MC53: 0 | MD53: 0 | ME53: 0 | MF53: 0 | MG53: 0 | MH53: 0 | MI53: 0 | MJ53: 0 | MK53: 0 | ML53: 0 | MM53: 0 | MN53: 0 | MO53: 0 | MP53: 0 | MQ53: 0 | MR53: 0 | MS53: 0 | MT53: 0 | MU53: 0 | MV53: 0 | MW53: 0 | MX53: 0 | MY53: 0 | MZ53: 0 | NA53: 0 | NB53: 0 | NC53: 606815617.8
C55: Discount Rate | D55: % | E55: 0.06 | F55: =(1+E55)^(1/12)-1 -> 0.004867550565
C56: Present Value of Cost | E56: =XNPV(F55,H53:NC53,H3:NC3) -> 2736344418
C57: Present Value for Generation | E57: =XNPV(F55,H16:NC16,H3:NC3) -> 67306743.58
C58: Levelized Cost of Overhaul - Variable Cost | E58: =E56/E57 -> 40.65483297
C60: Overhaul Counter | H60: =G60+H48 -> 0 | I60: =H60+I48 -> 0 | J60: 0 | K60: 0 | L60: 0 | M60: 0 | N60: 0 | O60: 0 | P60: 0 | Q60: 0 | R60: 0 | S60: 0 | T60: 0 | U60: 0 | V60: 0 | W60: 0 | X60: 0 | Y60: 0 | Z60: 0 | AA60: 0 | AB60: 0 | AC60: 0 | AD60: 0 | AE60: 0 | AF60: 0 | AG60: 0 | AH60: 0 | AI60: 0 | AJ60: 0 | AK60: 0 | AL60: 0 | AM60: 0 | AN60: 0 | AO60: 0 | AP60: 0 | AQ60: 0 | AR60: 0 | AS60: 0 | AT60: 0 | AU60: 0 | AV60: 0 | AW60: 0 | AX60: 0 | AY60: 0 | AZ60: 0 | BA60: 0 | BB60: 0 | BC60: 0 | BD60: 0 | BE60: 0 | BF60: 0 | BG60: 1 | BH60: 1 | BI60: 1 | BJ60: 1 | BK60: 1 | BL60: 1 | BM60: 1 | BN60: 1 | BO60: 1 | BP60: 1 | BQ60: 1 | BR60: 1 | BS60: 1 | BT60: 1 | BU60: =BT60+BU48 -> 1 | BV60: 1 | BW60: 1 | BX60: 1 | BY60: 1 | BZ60: 1 | CA60: 1 | CB60: 1 | CC60: 1 | CD60: 1 | CE60: 1 | CF60: 1 | CG60: 1 | CH60: 1 | CI60: 1 | CJ60: 1 | CK60: 1 | CL60: 1 | CM60: 1 | CN60: 1 | CO60: 1 | CP60: 1 | CQ60: 1 | CR60: 1 | CS60: 1 | CT60: 1 | CU60: 1 | CV60: 1 | CW60: 1 | CX60: 1 | CY60: 1 | CZ60: 1 | DA60: 1 | DB60: 1 | DC60: 1 | DD60: 1 | DE60: 1 | DF60: 2 | DG60: 2 | DH60: 2 | DI60: 2 | DJ60: 2 | DK60: 2 | DL60: 2 | DM60: 2 | DN60: 2 | DO60: 2 | DP60: 2 | DQ60: 2 | DR60: 2 | DS60: 2 | DT60: 2 | DU60: 2 | DV60: 2 | DW60: 2 | DX60: 2 | DY60: 2 | DZ60: 2 | EA60: 2 | EB60: 2 | EC60: 2 | ED60: 2 | EE60: 2 | EF60: 2 | EG60: =EF60+EG48 -> 2 | EH60: 2 | EI60: 2 | EJ60: 2 | EK60: 2 | EL60: 2 | EM60: 2 | EN60: 2 | EO60: 2 | EP60: 2 | EQ60: 2 | ER60: 2 | ES60: 2 | ET60: 2 | EU60: 2 | EV60: 2 | EW60: 2 | EX60: 2 | EY60: 2 | EZ60: 2 | FA60: 2 | FB60: 2 | FC60: 2 | FD60: 2 | FE60: 2 | FF60: 3 | FG60: 3 | FH60: 3 | FI60: 3 | FJ60: 3 | FK60: 3 | FL60: 3 | FM60: 3 | FN60: 3 | FO60: 3 | FP60: 3 | FQ60: 3 | FR60: 3 | FS60: 3 | FT60: 3 | FU60: 3 | FV60: 3 | FW60: 3 | FX60: 3 | FY60: 3 | FZ60: 3 | GA60: 3 | GB60: 3 | GC60: 3 | GD60: 3 | GE60: 3 | GF60: 3 | GG60: 3 | GH60: 3 | GI60: 3 | GJ60: 3 | GK60: 3 | GL60: 3 | GM60: 3 | GN60: 3 | GO60: 3 | GP60: 3 | GQ60: 3 | GR60: 3 | GS60: =GR60+GS48 -> 3 | GT60: 3 | GU60: 3 | GV60: 3 | GW60: 3 | GX60: 3 | GY60: 3 | GZ60: 3 | HA60: 3 | HB60: 3 | HC60: 3 | HD60: 3 | HE60: 4 | HF60: 4 | HG60: 4 | HH60: 4 | HI60: 4 | HJ60: 4 | HK60: 4 | HL60: 4 | HM60: 4 | HN60: 4 | HO60: 4 | HP60: 4 | HQ60: 4 | HR60: 4 | HS60: 4 | HT60: 4 | HU60: 4 | HV60: 4 | HW60: 4 | HX60: 4 | HY60: 4 | HZ60: 4 | IA60: 4 | IB60: 4 | IC60: 4 | ID60: 4 | IE60: 4 | IF60: 4 | IG60: 4 | IH60: 4 | II60: 4 | IJ60: 4 | IK60: 4 | IL60: 4 | IM60: 4 | IN60: 4 | IO60: 4 | IP60: 4 | IQ60: 4 | IR60: 4 | IS60: 4 | IT60: 4 | IU60: 4 | IV60: 4 | IW60: 4 | IX60: 4 | IY60: 4 | IZ60: 4 | JA60: 4 | JB60: 4 | JC60: 4 | JD60: 4 | JE60: =JD60+JE48 -> 5 | JF60: 5 | JG60: 5 | JH60: 5 | JI60: 5 | JJ60: 5 | JK60: 5 | JL60: 5 | JM60: 5 | JN60: 5 | JO60: 5 | JP60: 5 | JQ60: 5 | JR60: 5 | JS60: 5 | JT60: 5 | JU60: 5 | JV60: 5 | JW60: 5 | JX60: 5 | JY60: 5 | JZ60: 5 | KA60: 5 | KB60: 5 | KC60: 5 | KD60: 5 | KE60: 5 | KF60: 5 | KG60: 5 | KH60: 5 | KI60: 5 | KJ60: 5 | KK60: 5 | KL60: 5 | KM60: 5 | KN60: 5 | KO60: 5 | KP60: 5 | KQ60: 5 | KR60: 5 | KS60: 5 | KT60: 5 | KU60: 5 | KV60: 5 | KW60: 5 | KX60: 5 | KY60: 5 | KZ60: 5 | LA60: 5 | LB60: 5 | LC60: 5 | LD60: 6 | LE60: 6 | LF60: 6 | LG60: 6 | LH60: 6 | LI60: 6 | LJ60: 6 | LK60: 6 | LL60: 6 | LM60: 6 | LN60: 6 | LO60: 6 | LP60: 6 | LQ60: =LP60+LQ48 -> 6 | LR60: 6 | LS60: 6 | LT60: 6 | LU60: 6 | LV60: 6 | LW60: 6 | LX60: 6 | LY60: 6 | LZ60: 6 | MA60: 6 | MB60: 6 | MC60: 6 | MD60: 6 | ME60: 6 | MF60: 6 | MG60: 6 | MH60: 6 | MI60: 6 | MJ60: 6 | MK60: 6 | ML60: 6 | MM60: 6 | MN60: 6 | MO60: 6 | MP60: 6 | MQ60: 6 | MR60: 6 | MS60: 6 | MT60: 6 | MU60: 6 | MV60: 6 | MW60: 6 | MX60: 6 | MY60: 6 | MZ60: 6 | NA60: 6 | NB60: 6 | NC60: 7
C62: Date of 1st Outage | D62: 1 | E62: =_xlfn.XLOOKUP(D62,$60:$60,$3:$3,FALSE,0) -> 2030-04-30
C63: Date of 1st Outage | D63: 2 | E63: 2034-07-31
C64: Date of 1st Outage | D64: 3 | E64: 2038-11-30
C65: Date of 1st Outage | D65: 4 | E65: 2043-02-28
C66: Date of 1st Outage | D66: 5 | E66: 2047-06-30
C67: Date of 1st Outage | D67: 6 | E67: 2051-09-30
H69: =_xlfn.SEQUENCE(,30,2026) -> 2026 | I69: 2027 | J69: 2028 | K69: 2029 | L69: 2030 | M69: 2031 | N69: 2032 | O69: 2033 | P69: 2034 | Q69: 2035 | R69: 2036 | S69: 2037 | T69: 2038 | U69: 2039 | V69: 2040 | W69: 2041 | X69: 2042 | Y69: 2043 | Z69: 2044 | AA69: 2045 | AB69: 2046 | AC69: 2047 | AD69: 2048 | AE69: 2049 | AF69: 2050 | AG69: 2051 | AH69: 2052 | AI69: 2053 | AJ69: 2054 | AK69: 2055
C70: Maintenance Cost | H70: =SUMIF($4:$4,H$69,53:53) -> 0 | I70: 0 | J70: 0 | K70: 0 | L70: 284163296.6 | M70: 0 | N70: 0 | O70: 0 | P70: 322200483.2 | Q70: 0 | R70: 0 | S70: 0 | T70: 366230205.9 | U70: 0 | V70: 0 | W70: 0 | X70: 0 | Y70: 415252605.5 | Z70: 0 | AA70: 0 | AB70: 0 | AC70: 471998197.2 | AD70: 0 | AE70: 0 | AF70: 0 | AG70: 535178360.6 | AH70: 0 | AI70: 0 | AJ70: 0 | AK70: 606815617.8
C71: Generation | H71: =SUMIF($4:$4,H$69,16:16) -> 2409000 | I71: 2409000 | J71: 2415600 | K71: 2409000 | L71: 2409000 | M71: 2409000 | N71: 2415600 | O71: 2409000 | P71: 2409000 | Q71: 2409000 | R71: 2415600 | S71: 2409000 | T71: 2409000 | U71: 2409000 | V71: 2415600 | W71: 2409000 | X71: 2409000 | Y71: 2409000 | Z71: 2415600 | AA71: 2409000 | AB71: 2409000 | AC71: 2409000 | AD71: 2415600 | AE71: 2409000 | AF71: 2409000 | AG71: 2409000 | AH71: 2415600 | AI71: 2409000 | AJ71: 2409000 | AK71: 2409000
E74: =E14 -> 0.55
